Workbook

Sheet Instructions & Notes
A1: Pennsylvania Plan and Insurer Summary Workbook - 2022 ACA-Compliant Health Insurance Rate Filings in the Individual and Small Group Markets
A3: Below is a brief description of each tab in the file and any comments regarding the use of these tabs.
A5: Plans by County
B6: A summary of the number of plans by metal level in each county based on the selected Market/Exchange drop-downs.
A8: Issuers by County
B9: A summary of the number of unique issuers (legal entities) by metal level in each county based on the selected Market/Exchange drop-downs.
B10: For reference, legal entities that filed to offer Affordable Care Act-compliant comprehensive health insurance in Pennsylvania in 2022 are listed in the table below.
A12: Rate by County
B13: The non-tobacco rates for every plan by county for the selected age (first quarter rates for small group plans).
B14: Note that rates are calculated by multiplying the 21-year-old rate by the federally-established age factor and may vary slightly from the actual rate due to rounding.
A16: Plan Map
B17: A visual summary of the number of plans in each county based on the selected Market/Exchange drop-downs.
B18: Every time the tab is selected or a drop-down is changed, the map will automatically refresh; alternatively, the "Update Map" button can be pressed.
A20: Issuer Map
B21: A visual summary of the number of unique issuers (legal entities) in each county based on the selected Market/Exchange drop-downs.
B22: Every time the tab is selected or a drop-down is changed, the map will automatically refresh; alternatively, the "Update Map" button can be pressed.
A24: Service Area Map
B25: A visual summary of an insurer's prior and current service area based on the Entity/Market drop-downs.
B26: Every time the tab is selected or a drop-down is changed, the map will automatically refresh; alternatively, the "Update Map" button can be pressed.
A28: Membership Map
B29: The membership shown is total covered lives as of February 1, 2021.
B30: A visual summary of the number of members in each county based on the selected Market drop-down.
B31: Every time the tab is selected or a drop-down is changed, the map will automatically refresh; alternatively, the "Update Map" button can be pressed.
A33: List of Insurers that Filed to Offer Affordable Care Act-Compliant Comprehensive Health Insurance in Pennsylvania in 2022
B34: Parent Company | C34: Company Name (Legal Entity) | D34: Individual Market | E34: Small Group Market
B35: Aetna | C35: Aetna Health Assurance | E35: X
C36: Aetna Health Inc | E36: X
C37: Aetna Life | E37: X
B38: Capital Blue Cross | C38: Capital Advantage Assurance Company | D38: X | E38: X
C39: Capital Advantage Insurance Company | D39: X | E39: X
C40: Keystone Health Plan Central | D40: X | E40: X
B41: Centene | C41: Pennsylvania Health & Wellness, Inc. | D41: X
B42: Cigna | C42: Cigna Health and Life Insurance Company | D42: X
B43: Geisinger | C43: Geisinger Health Plan | D43: X | E43: X
C44: Geisinger Quality Options | D44: X | E44: X
B45: Highmark | C45: First Priority Health | D45: X
C46: First Priority Life Insurance Company | E46: X
C47: Highmark | D47: X | E47: X
C48: Highmark Benefits Group | D48: X | E48: X
C49: Highmark Choice Company | D49: X | E49: X
C50: Highmark Coverage Advantage Inc | D50: X | E50: X
C51: HM Health Insurance Company (HHIC) | D51: X | E51: X
B52: IBC | C52: KHPE | D52: X | E52: X
C53: QCC | D53: X | E53: X
B54: Oscar | C54: Oscar Health Plan of Pennsylvania, Inc. | D54: X
B55: United Healthcare | C55: UnitedHealthcare Insurance Company | E55: X
C56: UnitedHealthcare of Pennsylvania, Inc. | E56: X
B57: UPMC | C57: UPMC Health Benefits, Inc. | E57: X
C58: UPMC Health Coverage, Inc. | D58: X | E58: X
C59: UPMC Health Options, Inc. | D59: X | E59: X
A61: Pennsylvania Rating Areas

Sheet Inputs (hidden)
A1: User Inputs (Tool updated 7/14/2021) | G1: MANUAL INPUT NEEDED
D2: Prior Year | E2: 2021 | G2: Prior Data Last Updated: | H2: 2021-07-14T18:38:22
D3: Current Year | E3: 2022 | G3: Current Data Last Updated: | H3: 2021-07-14T18:38:35
G4: Report Data Last Updated: | H4: 2021-07-14T18:38:36
B5: Filing Submissions
G6: ="Prior Filings ("&year_prior&")" -> Prior Filings (2021) | I6: ="Current Filings ("&year_current&")" -> Current Filings (2022)
C7: Parent Company | D7: Legal Entity | E7: =year_current&" SERFF ID" -> 2022 SERFF ID | F7: Market | G7: PA Plan Design Summary and Rate Tables | H7: PA Actuarial Memorandum Rate Exhibits | I7: PA Plan Design Summary and Rate Tables | J7: PA Actuarial Memorandum Rate Exhibits
C8: IBC | D8: QCC | E8: INAC-132818429 | F8: Individual | G8: G:\PY2022 Tool Files\2021 PDS\2021_Indiv_QCC_PDSRateTable_RV_08182020.xlsm | H8: G:\PY2022 Tool Files\2021 AME\2021_Indiv_QCC_PAAMExhibits_RV_08182020.xlsm | I8: G:\PY2022 Tool Files\2022 PDS\2022_Individual_QCC_PDSRateTable_20210427_RV.xlsm | J8: G:\PY2022 Tool Files\2022 AME\2022_Indiv_QCC_PAAMExhibits_20210708_RV.xlsm | L8: Populate Prior Plan, Current Plan, and Report Data (current data in the tool will be erased)
C9: IBC | D9: QCC | E9: INAC-132818434 | F9: Small Group | G9: G:\PY2022 Tool Files\2021 PDS\2021_SmGrp_QCC_PDSRateTable_Q1_071620 RV.xlsm | H9: G:\PY2022 Tool Files\2021 AME\2021_SmGrp_QCC_PAAMExhibits_07_16_2020 RV.xlsm | I9: G:\PY2022 Tool Files\2022 PDS\2022_Small_Group_QCC_PDSRateTable_Q1_20210427_RV.xlsm | J9: G:\PY2022 Tool Files\2022 AME\2022_SmGrp_QCC_PAAMExhibits_20210708_RV.xlsm
C10: IBC | D10: KHPE | E10: INAC-132818417 | F10: Individual | G10: G:\PY2022 Tool Files\2021 PDS\2021_Indiv_KHPE_PDSRateTable_RV_08182020.xlsm | H10: G:\PY2022 Tool Files\2021 AME\2021_Indiv_KHPE_PAAMExhibits_RV_08182020.xlsm | I10: G:\PY2022 Tool Files\2022 PDS\2022_Individual_KHPE_PDSRateTable_20210427_RV.xlsm | J10: G:\PY2022 Tool Files\2022 AME\2022_Indiv_KHPE_PAAMExhibits_20210708_RV.xlsm
C11: IBC | D11: KHPE | E11: INAC-132818409 | F11: Small Group | G11: G:\PY2022 Tool Files\2021 PDS\2021_SmGrp_KHPE_PDSRateTable_Q1_071620 RV.xlsm | H11: G:\PY2022 Tool Files\2021 AME\2021_SmGrp_KHPE_PAAMExhibits_07_16_2020 RV.xlsm | I11: G:\PY2022 Tool Files\2022 PDS\2022_Small_Group_KHPE_PDSRateTable_Q1_20210427_RV.xlsm | J11: G:\PY2022 Tool Files\2022 AME\2022_SmGrp_KHPE_PAAMExhibits_20210708_RV.xlsm
C12: Aetna | D12: Aetna Health Inc | E12: AETN-132730900 | F12: Small Group | G12: G:\PY2022 Tool Files\2021 PDS\2021_SmGrp_AetnaHealthInc_PDSRateTable_071620_Q1.xlsm | H12: G:\PY2022 Tool Files\2021 AME\2021_SmGrp_AetnaHealthInc_PAAMExhibits_071620.xlsm | I12: G:\PY2022 Tool Files\2022 PDS\2022_SmGrp_AetnaHealthInc_PDSRateTable_050421_Q1.xlsm | J12: G:\PY2022 Tool Files\2022 AME\2022_SmGrp_AetnaHealthInc_PAAMExhibits_v3.xlsm
C13: Aetna | D13: Aetna Health Assurance | E13: AETN-132731141 | F13: Small Group | G13: G:\PY2022 Tool Files\2021 PDS\2021_SmGrp_AetnaHealthAssuranceOfPennsylvania_PDSRateTable_071620_Q1.xlsm | H13: G:\PY2022 Tool Files\2021 AME\2021_SmGrp_AetnaHealthAssuranceOfPennsylvania_PAAMExhibits_071620.xlsm | I13: G:\PY2022 Tool Files\2022 PDS\2022_SmGrp_AetnaHealthAssuranceOfPennsylvania_PDSRateTable_050421_Q1.xlsm | J13: G:\PY2022 Tool Files\2022 AME\2022_SmGrp_AetnaHealthAssuranceOfPennsylvania_PAAMExhibits_v2.xlsm
C14: Aetna | D14: Aetna Life | E14: AETN-132731340 | F14: Small Group | G14: G:\PY2022 Tool Files\2021 PDS\2021_SmGrp_AetnaLifeInsuranceCo_PDSRateTable_071620_Q1.xlsm | H14: G:\PY2022 Tool Files\2021 AME\2021_SmGrp_AetnaLifeInsuranceCo_PAAMExhibits_071620.xlsm | I14: G:\PY2022 Tool Files\2022 PDS\2022_SmGrp_AetnaLifeInsuranceCo_PDSRateTable_050421_Q1.xlsm | J14: G:\PY2022 Tool Files\2022 AME\2022_SmGrp_AetnaLifeInsuranceCo_PAAMExhibits_v2.xlsm | L14: Remove Prior Plan, Current Plan, and Report Data
C15: Capital BlueCross | D15: Capital Advantage Assurance Company | E15: CABC-132795876 | F15: Small Group | G15: G:\PY2022 Tool Files\2021 PDS\2021_SG_CAAC_PDSRateTable_20200723.xlsm | H15: G:\PY2022 Tool Files\2021 AME\2021_SmGrp_CAAC_PAAMExhibits_20200723.xlsm | I15: G:\PY2022 Tool Files\2022 PDS\2022_SG_CAAC_PDSRateTable_20210713.xlsm | J15: G:\PY2022 Tool Files\2022 AME\2022_SmGrp_CAAC_PAAMExhibits_20210713.xlsm
C16: Capital BlueCross | D16: Capital Advantage Insurance Company | E16: CABC-132795942 | F16: Small Group | G16: G:\PY2022 Tool Files\2021 PDS\2021_SG_CAIC_PDSRateTable_20200720.xlsm | H16: G:\PY2022 Tool Files\2021 AME\2021_SmGrp_CAIC_PAAMExhibits_20200720.xlsm | I16: G:\PY2022 Tool Files\2022 PDS\2022_SG_CAIC_PDSRateTable_20210713.xlsm | J16: G:\PY2022 Tool Files\2022 AME\2022_SmGrp_CAIC_PAAMExhibits_20210713.xlsm
C17: Capital BlueCross | D17: Keystone Health Plan Central | E17: CABC-132795960 | F17: Small Group | G17: G:\PY2022 Tool Files\2021 PDS\2021_SG_KHPC_PDSRateTable_20200720.xlsm | H17: G:\PY2022 Tool Files\2021 AME\2021_SmGrp_KHP_PAAMExhibits_20200720.xlsm | I17: G:\PY2022 Tool Files\2022 PDS\2022_SG_KHPC_PDSRateTable_20210713.xlsm | J17: G:\PY2022 Tool Files\2022 AME\2022_SmGrp_KHP_PAAMExhibits_20210713.xlsm
C18: Capital BlueCross | D18: Capital Advantage Assurance Company | E18: CABC-132796292 | F18: Individual | G18: G:\PY2022 Tool Files\2021 PDS\2021_Indiv_CAAC_PDSRateTable_20200723.xlsm | H18: G:\PY2022 Tool Files\2021 AME\2021_Indiv_CAAC_PAAMExhibits_20200723.xlsm | I18: G:\PY2022 Tool Files\2022 PDS\2022_Indiv_CAAC_PDSRateTable_20210713.xlsm | J18: G:\PY2022 Tool Files\2022 AME\2022_Indiv_CAAC_PAAMExhibits_20210713.xlsm
C19: Capital BlueCross | D19: Capital Advantage Insurance Company | E19: CABC-132796294 | F19: Individual | G19: G:\PY2022 Tool Files\2021 PDS\2021_Indiv_CAIC_PDSRateTable_20200720.xlsm | H19: G:\PY2022 Tool Files\2021 AME\2021_Indiv_CAIC_PAAMExhibits_20200720.xlsm | I19: G:\PY2022 Tool Files\2022 PDS\2022_Indiv_CAIC_PDSRateTable_20210713.xlsm | J19: G:\PY2022 Tool Files\2022 AME\2022_Indiv_CAIC_PAAMExhibits_20210713.xlsm
C20: Capital BlueCross | D20: Keystone Health Plan Central | E20: CABC-132796296 | F20: Individual | G20: G:\PY2022 Tool Files\2021 PDS\2021_Indiv_KHPC_PDSRateTable_20200720.xlsm | H20: G:\PY2022 Tool Files\2021 AME\2021_Indiv_KHP_PAAMExhibits_20200720.xlsm | I20: G:\PY2022 Tool Files\2022 PDS\2022_Indiv_KHPC_PDSRateTable_20210713.xlsm | J20: G:\PY2022 Tool Files\2022 AME\2022_Indiv_KHP_PAAMExhibits_20210713.xlsm
C21: Centene | D21: Pennsylvania Health & Wellness, Inc. | E21: CECO-132819212 | F21: Individual | G21: G:\PY2022 Tool Files\2021 PDS\2021_PHW_Plan_Design_Summary_and_Rate_Tables_20200717.xlsm | H21: G:\PY2022 Tool Files\2021 AME\2021_PHW_Actuarial_Memorandum_Rate_Exhibits_20200717.xlsm | I21: G:\PY2022 Tool Files\2022 PDS\2022_PHW_Plan_Design_Summary_and_Rate_Tables_20210711.xlsm | J21: G:\PY2022 Tool Files\2022 AME\2022_PHW_Actuarial_Memorandum_Rate_Exhibits_20210711.xlsm
C22: Geisinger | D22: Geisinger Quality Options | E22: GSHP-132824706 | F22: Small Group | G22: G:\PY2022 Tool Files\2021 PDS\2021_SmGrp_GQO_PDSRateTable_080620.xlsm | H22: G:\PY2022 Tool Files\2021 AME\2021_SmGrp_GQO_PAAMExhibits_080620.xlsm | I22: G:\PY2022 Tool Files\2022 PDS\2022_SmGrp_GQO_PDSRateTable_051221.xlsm | J22: G:\PY2022 Tool Files\2022 AME\2022_SmGrp_GQO_PAAMExhibits_051221.xlsm
C23: Geisinger | D23: Geisinger Health Plan | E23: GSHP-132824328 | F23: Small Group | G23: G:\PY2022 Tool Files\2021 PDS\2021_SmGrp_GHP_PDSRateTable_080620.xlsm | H23: G:\PY2022 Tool Files\2021 AME\2021_SmGrp_GHP_PAAMExhibits_080620.xlsm | I23: G:\PY2022 Tool Files\2022 PDS\2022_SmGrp_GHP_PDSRateTable_051421.xlsm | J23: G:\PY2022 Tool Files\2022 AME\2022_SmGrp_GHP_PAAMExhibits_051221.xlsm
C24: Geisinger | D24: Geisinger Quality Options | E24: GSHP-132824666 | F24: Individual | G24: G:\PY2022 Tool Files\2021 PDS\2021_Indiv_GQO_PDSRateTable_071620.xlsm | H24: G:\PY2022 Tool Files\2021 AME\2021_Indiv_GQO_PAAMExhibits_071620.xlsm | I24: G:\PY2022 Tool Files\2022 PDS\2022_Indiv_GQO_PDSRateTable_051221.xlsm | J24: G:\PY2022 Tool Files\2022 AME\2022_Indiv_GQO_PAAMExhibits_revised_070821.xlsm
C25: Geisinger | D25: Geisinger Health Plan | E25: GSHP-132824247 | F25: Individual | G25: G:\PY2022 Tool Files\2021 PDS\2021_Indiv_GHP_PDSRateTable_071620.xlsm | H25: G:\PY2022 Tool Files\2021 AME\2021_Indiv_GHP_PAAMExhibits_071620.xlsm | I25: G:\PY2022 Tool Files\2022 PDS\2022_Indiv_GHP_PDSRateTable_051421.xlsm | J25: G:\PY2022 Tool Files\2022 AME\2022_Indiv_GHP_PAAMExhibits_revised_070821.xlsm
C26: Highmark | D26: Highmark | E26: HGHM-132820364 | F26: Individual | G26: G:\PY2022 Tool Files\2021 PDS\2021_Indiv_HI_PDSRateTable_071620.xlsm | H26: G:\PY2022 Tool Files\2021 AME\2021_Indiv_HI_PAAMExhibits_071620.xlsm | I26: G:\PY2022 Tool Files\2022 PDS\2022_Indiv_HI_PDSRateTable_071321.xlsm | J26: G:\PY2022 Tool Files\2022 AME\2022_Indiv_HI_PAAMExhibits_071321.xlsm
C27: Highmark | D27: Highmark Choice Company | F27: Individual | G27: G:\PY2022 Tool Files\2021 PDS\2021_Indiv_HCC_PDSRateTable_071620.xlsm | H27: G:\PY2022 Tool Files\2021 AME\2021_Indiv_HCC_PAAMExhibits_071620.xlsm
C28: Highmark | D28: HM Health Insurance Company (HHIC) | F28: Individual | G28: G:\PY2022 Tool Files\2021 PDS\2021_Indiv_HHIC_PDSRateTable_071620.xlsm | H28: G:\PY2022 Tool Files\2021 AME\2021_Indiv_HHIC_PAAMExhibits_071620.xlsm
C29: Highmark | D29: First Priority Health | E29: HGHM-132820374 | F29: Individual | G29: G:\PY2022 Tool Files\2021 PDS\2021_Indiv_FPH_PDSRateTable_071620.xlsm | H29: G:\PY2022 Tool Files\2021 AME\2021_Indiv_FPH_PAAMExhibits_071620.xlsm | I29: G:\PY2022 Tool Files\2022 PDS\2022_Indiv_FPH_PDSRateTable_071321.xlsm | J29: G:\PY2022 Tool Files\2022 AME\2022_Indiv_FPH_PAAMExhibits_071321.xlsm
C30: Highmark | D30: Highmark Coverage Advantage Inc | E30: HGHM-132820368 | F30: Individual | G30: G:\PY2022 Tool Files\2021 PDS\2021_Indiv_HCA_PDSRateTable_071620.xlsm | H30: G:\PY2022 Tool Files\2021 AME\2021_Indiv_HCA_PAAMExhibits_071620.xlsm | I30: G:\PY2022 Tool Files\2022 PDS\2022_Indiv_HCA_PDSRateTable_071321.xlsm | J30: G:\PY2022 Tool Files\2022 AME\2022_Indiv_HCA_PAAMExhibits_071321.xlsm
C31: Highmark | D31: Highmark Benefits Group | E31: HGHM-132820371 | F31: Individual | G31: G:\PY2022 Tool Files\2021 PDS\2021_Indiv_HBG_PDSRateTable_071620.xlsm | H31: G:\PY2022 Tool Files\2021 AME\2021_Indiv_HBG_PAAMExhibits_071620.xlsm | I31: G:\PY2022 Tool Files\2022 PDS\2022_Indiv_HBG_PDSRateTable_071321.xlsm | J31: G:\PY2022 Tool Files\2022 AME\2022_Indiv_HBG_PAAMExhibits_071321.xlsm
C32: Highmark | D32: Highmark Benefits Group | E32: HGHM-132830994 | F32: Small Group | G32: G:\PY2022 Tool Files\2021 PDS\2021_SmGrp_HBG_PDSRateTable_07202020.xlsm | H32: G:\PY2022 Tool Files\2021 AME\2021_SmGrp_HBG_PAAMExibits_072020.xlsm | I32: G:\PY2022 Tool Files\2022 PDS\2022_SmGrp_HBG_PDSRateTable_051821.xlsm | J32: G:\PY2022 Tool Files\2022 AME\2022_SmGrp_HBG_PAAMExhibits_051821.xlsm
C33: Highmark | D33: Highmark Coverage Advantage Inc | E33: HGHM-132831330 | F33: Small Group | G33: G:\PY2022 Tool Files\2021 PDS\2021_SmGrp_HCA_PDSRateTable_07202020.xlsm | H33: G:\PY2022 Tool Files\2021 AME\2021_SmGrp_HCA_PAAMExibits_072020.xlsm | I33: G:\PY2022 Tool Files\2022 PDS\2022_SmGrp_HCA_PDSRateTable_051821.xlsm | J33: G:\PY2022 Tool Files\2022 AME\2022_SmGrp_HCA_PAAMExibits_051821.xlsm
C34: Highmark | D34: First Priority Life Insurance Company | E34: HGHM-132831354 | F34: Small Group | G34: G:\PY2022 Tool Files\2021 PDS\2021_SmGrp_FPLIC_PDSRateTable_07202020.xlsm | H34: G:\PY2022 Tool Files\2021 AME\2021_SmGrp_FPLIC_PAAMExhibits_07202020.xlsm | I34: G:\PY2022 Tool Files\2022 PDS\2022_SmGrp_FPLIC_PDSRateTable_071321.xlsm | J34: G:\PY2022 Tool Files\2022 AME\2022_SmGrp_FPLIC_PAAMExhibits_071321.xlsm
C35: Highmark | D35: HM Health Insurance Company (HHIC) | E35: HGHM-132830955 | F35: Small Group | G35: G:\PY2022 Tool Files\2021 PDS\2021_SmGrp_HHIC_PDSRateTable_07202020.xlsm | H35: G:\PY2022 Tool Files\2021 AME\2021_SmGrp_HHIC_PAAMExibits_072020.xlsm | I35: G:\PY2022 Tool Files\2022 PDS\2022_SmGrp_HHIC_PDSRateTable_051821.xlsm | J35: G:\PY2022 Tool Files\2022 AME\2022_SmGrp_HHIC_PAAMExibits_051821.xlsm
C36: Highmark | D36: Highmark Choice Company | E36: HGHM-132831326 | F36: Small Group | G36: G:\PY2022 Tool Files\2021 PDS\2021_SmGrp_HCC_PDSRateTable_07202020.xlsm | H36: G:\PY2022 Tool Files\2021 AME\2021_SmGrp_HCC_PAAMExhibits_072020.xlsm | I36: G:\PY2022 Tool Files\2022 PDS\2022_SmGrp_HCC_PDSRateTable_5-18-2021.xlsm | J36: G:\PY2022 Tool Files\2022 AME\2022_SmGrp_HCC_PAAMExhibits_051821.xlsm
C37: Highmark | D37: Highmark | E37: HGHM-132831048 | F37: Small Group | G37: G:\PY2022 Tool Files\2021 PDS\2021_SmGrp_HMK_PDSRateTable_07202020.xlsm | H37: G:\PY2022 Tool Files\2021 AME\2021_SmGrp_HMK_PAAMExhibits_072020.xlsm | I37: G:\PY2022 Tool Files\2022 PDS\2022_SmGrp_HMK_PDSRateTable_051821.xlsm | J37: G:\PY2022 Tool Files\2022 AME\2022_SmGrp_HMK_PAAMExhibits_051821.xlsm
C38: Oscar | D38: Oscar Health Plan of Pennsylvania, Inc. | E38: OHIN-132808338 | F38: Individual | G38: G:\PY2022 Tool Files\2021 PDS\PA Plan Design Summary and Rate Tables_PY 2021_20200716.xlsm | H38: G:\PY2022 Tool Files\2021 AME\PA Rate Template_PY 2021_Unredacted_20200716.xlsm | I38: G:\PY2022 Tool Files\2022 PDS\Oscar_2022 PA Plan Design Summary and Rate Tables_20210713.xlsm | J38: G:\PY2022 Tool Files\2022 AME\Oscar_2022 PA Actuarial Memorandum Rate Exhibits_20210713.xlsm
C39: United Healthcare | D39: UnitedHealthcare Insurance Company | E39: UHLC-132831625 | F39: Small Group | G39: G:\PY2022 Tool Files\2021 PDS\2021_SmGrp_UHIC_PDSRateTable_08062020_Q1 v5.xlsm | H39: G:\PY2022 Tool Files\2021 AME\2021_SmGrp_UHIC_PAAMExhibits_080620.xlsm | I39: G:\PY2022 Tool Files\2022 PDS\2022_SmGrp_UHIC_PDSRateTable_07132021_Q1 v2.xlsm | J39: G:\PY2022 Tool Files\2022 AME\PA SG UHIC 202201 PAAM Rate Exhibits - 07.13.21.xlsm
C40: United Healthcare | D40: UnitedHealthcare of Pennsylvania, Inc. | E40: UHLC-132831666 | F40: Small Group | G40: G:\PY2022 Tool Files\2021 PDS\2021_SmGrp_UHCPA_PDSRateTable_08072020_Q1 v5.xlsm | H40: G:\PY2022 Tool Files\2021 AME\2021_SmGrp_UHCPA_PAAMExhibits_080720.xlsm | I40: G:\PY2022 Tool Files\2022 PDS\2022_SmGrp_UHCPA_PDSRateTable_07132021_Q1 v2.xlsm | J40: G:\PY2022 Tool Files\2022 AME\PA SG 202201 UHCPA PAAM Rate Exhibits - 07.13.21.xlsm
C41: UPMC | D41: UPMC Health Options, Inc. | E41: UPMC-132801412 | F41: Individual | G41: G:\PY2022 Tool Files\2021 PDS\2021_Indiv_UPMCHealthOptions_PDSRateTable_051920.xlsm | H41: G:\PY2022 Tool Files\2021 AME\2021_Indiv_UPMCHealthOptions_PAAMExhibits_072020.xlsm | I41: G:\PY2022 Tool Files\2022 PDS\2022_Indiv_UPMCHealthOptions_PDSRateTable_071321.xlsm | J41: G:\PY2022 Tool Files\2022 AME\2022_Indiv_UPMCHealthOptions_PAAMExhibits_071321.xlsm
C42: UPMC | D42: UPMC Health Coverage, Inc. | E42: UPMC-132801380 | F42: Individual | G42: G:\PY2022 Tool Files\2021 PDS\2021_Indiv_UPMCHealthCoverage_PDSRateTable_051920.xlsm | H42: G:\PY2022 Tool Files\2021 AME\2021_Indiv_UPMCHealthCoverage_PAAMExhibits_072020.xlsm | I42: G:\PY2022 Tool Files\2022 PDS\2022_Indiv_UPMCHealthCoverage_PDSRateTable_071321.xlsm | J42: G:\PY2022 Tool Files\2022 AME\2022_Indiv_UPMCHealthCoverage_PAAMExhibits_071321.xlsm
C43: UPMC | D43: UPMC Health Options, Inc. | E43: UPMC-132801371 | F43: Small Group | G43: G:\PY2022 Tool Files\2021 PDS\2021_SmGrp_UPMCHealthOptions_PDSRateTable_051920.xlsm | H43: G:\PY2022 Tool Files\2021 AME\2021_SmGrp_UPMCHealthOptions_PAAMExhibits_072020.xlsm | I43: G:\PY2022 Tool Files\2022 PDS\2022_SmGrp_UPMCHealthOptions_PDSRateTable_051821.xlsm | J43: G:\PY2022 Tool Files\2022 AME\2022_SmGrp_UPMCHealthOptions_PAAMExhibits_051821.xlsm
C44: UPMC | D44: UPMC Health Coverage, Inc. | E44: UPMC-132801322 | F44: Small Group | G44: G:\PY2022 Tool Files\2021 PDS\2021_SmGrp_UPMCHealthCoverage_PDSRateTable_051920.xlsm | H44: G:\PY2022 Tool Files\2021 AME\2021_SmGrp_UPMCHealthCoverage_PAAMExhibits_072020.xlsm | I44: G:\PY2022 Tool Files\2022 PDS\2022_SmGrp_UPMCHealthCoverage_PDSRateTable_051821.xlsm | J44: G:\PY2022 Tool Files\2022 AME\2022_SmGrp_UPMCHealthCoverage_PAAMExhibits_051821.xlsm
C45: UPMC | D45: UPMC Health Benefits, Inc. | E45: UPMC-132801369 | F45: Small Group | G45: G:\PY2022 Tool Files\2021 PDS\2021_SmGrp_UPMCHealthBenefits_PDSRateTable_051920.xlsm | H45: G:\PY2022 Tool Files\2021 AME\2021_SmGrp_UPMCHealthBenefits_PAAMExhibits_072020.xlsm | I45: G:\PY2022 Tool Files\2022 PDS\2022_SmGrp_UPMCHealthBenefits_PDSRateTable_051821.xlsm | J45: G:\PY2022 Tool Files\2022 AME\2022_SmGrp_UPMCHealthBenefits_PAAMExhibits_051821.xlsm
C46: Cigna | D46: Cigna Health and Life Insurance Company | E46: CCGH-132805433 | F46: Individual | I46: G:\PY2022 Tool Files\2022 PDS\20202_Indiv_CHLIC_PDSRateTable_071321.xlsm | J46: G:\PY2022 Tool Files\2022 AME\Cigna_13401_PAAM_7_13_2021.xlsm

Sheet Prior Plans (hidden)
A1: PRIOR RATES FOR AGE 21, NON-TOBACCO USER, BY RATING AREA AND COUNTY
B4: Inputs Tab | C4: Inputs Tab | D4: Inputs Tab | E4: Prior Rate Tables; Plan Design Summary Tab | F4: Prior Rate Tables; Plan Design Summary Tab | G4: Prior Rate Tables; Plan Design Summary Tab | H4: Prior Rate Tables; Plan Design Summary Tab | I4: Prior Rate Tables; Plan Design Summary Tab | J4: Prior Rate Tables; Rates by County Tab | K4: Prior Rate Tables; Rates by County Tab | L4: Prior Rate Tables; Rates by County Tab | M4: Prior Rate Tables; Rates by County Tab | N4: Prior Rate Tables; Rates by County Tab | O4: Prior Rate Tables; Rates by County Tab | P4: Prior Rate Tables; Rates by County Tab | Q4: Prior Rate Tables; Rates by County Tab | R4: Prior Rate Tables; Rates by County Tab | S4: Prior Rate Tables; Rates by County Tab | T4: Prior Rate Tables; Rates by County Tab | U4: Prior Rate Tables; Rates by County Tab | V4: Prior Rate Tables; Rates by County Tab | W4: Prior Rate Tables; Rates by County Tab | X4: Prior Rate Tables; Rates by County Tab | Y4: Prior Rate Tables; Rates by County Tab | Z4: Prior Rate Tables; Rates by County Tab | AA4: Prior Rate Tables; Rates by County Tab | AB4: Prior Rate Tables; Rates by County Tab | AC4: Prior Rate Tables; Rates by County Tab | AD4: Prior Rate Tables; Rates by County Tab | AE4: Prior Rate Tables; Rates by County Tab | AF4: Prior Rate Tables; Rates by County Tab | AG4: Prior Rate Tables; Rates by County Tab | AH4: Prior Rate Tables; Rates by County Tab | AI4: Prior Rate Tables; Rates by County Tab | AJ4: Prior Rate Tables; Rates by County Tab | AK4: Prior Rate Tables; Rates by County Tab | AL4: Prior Rate Tables; Rates by County Tab | AM4: Prior Rate Tables; Rates by County Tab | AN4: Prior Rate Tables; Rates by County Tab | AO4: Prior Rate Tables; Rates by County Tab | AP4: Prior Rate Tables; Rates by County Tab | AQ4: Prior Rate Tables; Rates by County Tab | AR4: Prior Rate Tables; Rates by County Tab | AS4: Prior Rate Tables; Rates by County Tab | AT4: Prior Rate Tables; Rates by County Tab | AU4: Prior Rate Tables; Rates by County Tab | AV4: Prior Rate Tables; Rates by County Tab | AW4: Prior Rate Tables; Rates by County Tab | AX4: Prior Rate Tables; Rates by County Tab | AY4: Prior Rate Tables; Rates by County Tab | AZ4: Prior Rate Tables; Rates by County Tab | BA4: Prior Rate Tables; Rates by County Tab | BB4: Prior Rate Tables; Rates by County Tab | BC4: Prior Rate Tables; Rates by County Tab | BD4: Prior Rate Tables; Rates by County Tab | BE4: Prior Rate Tables; Rates by County Tab | BF4: Prior Rate Tables; Rates by County Tab | BG4: Prior Rate Tables; Rates by County Tab | BH4: Prior Rate Tables; Rates by County Tab | BI4: Prior Rate Tables; Rates by County Tab | BJ4: Prior Rate Tables; Rates by County Tab | BK4: Prior Rate Tables; Rates by County Tab | BL4: Prior Rate Tables; Rates by County Tab | BM4: Prior Rate Tables; Rates by County Tab | BN4: Prior Rate Tables; Rates by County Tab | BO4: Prior Rate Tables; Rates by County Tab | BP4: Prior Rate Tables; Rates by County Tab | BQ4: Prior Rate Tables; Rates by County Tab | BR4: Prior Rate Tables; Rates by County Tab | BS4: Prior Rate Tables; Rates by County Tab | BT4: Prior Rate Tables; Rates by County Tab | BU4: Prior Rate Tables; Rates by County Tab | BV4: Prior Rate Tables; Rates by County Tab | BW4: Prior Rate Tables; Rates by County Tab | BX4: Prior Rate Tables; Rates by County Tab
J6: =INDEX(Lookups!$B:$B,MATCH(J$7,Lookups!$A:$A,0),1) -> Rating Area 1 | K6: =INDEX(Lookups!$B:$B,MATCH(K$7,Lookups!$A:$A,0),1) -> Rating Area 1 | L6: =INDEX(Lookups!$B:$B,MATCH(L$7,Lookups!$A:$A,0),1) -> Rating Area 1 | M6: =INDEX(Lookups!$B:$B,MATCH(M$7,Lookups!$A:$A,0),1) -> Rating Area 1 | N6: =INDEX(Lookups!$B:$B,MATCH(N$7,Lookups!$A:$A,0),1) -> Rating Area 1 | O6: =INDEX(Lookups!$B:$B,MATCH(O$7,Lookups!$A:$A,0),1) -> Rating Area 1 | P6: =INDEX(Lookups!$B:$B,MATCH(P$7,Lookups!$A:$A,0),1) -> Rating Area 1 | Q6: =INDEX(Lookups!$B:$B,MATCH(Q$7,Lookups!$A:$A,0),1) -> Rating Area 1 | R6: =INDEX(Lookups!$B:$B,MATCH(R$7,Lookups!$A:$A,0),1) -> Rating Area 2 | S6: =INDEX(Lookups!$B:$B,MATCH(S$7,Lookups!$A:$A,0),1) -> Rating Area 2 | T6: =INDEX(Lookups!$B:$B,MATCH(T$7,Lookups!$A:$A,0),1) -> Rating Area 2 | U6: =INDEX(Lookups!$B:$B,MATCH(U$7,Lookups!$A:$A,0),1) -> Rating Area 3 | V6: =INDEX(Lookups!$B:$B,MATCH(V$7,Lookups!$A:$A,0),1) -> Rating Area 3 | W6: =INDEX(Lookups!$B:$B,MATCH(W$7,Lookups!$A:$A,0),1) -> Rating Area 3 | X6: =INDEX(Lookups!$B:$B,MATCH(X$7,Lookups!$A:$A,0),1) -> Rating Area 3 | Y6: =INDEX(Lookups!$B:$B,MATCH(Y$7,Lookups!$A:$A,0),1) -> Rating Area 3 | Z6: =INDEX(Lookups!$B:$B,MATCH(Z$7,Lookups!$A:$A,0),1) -> Rating Area 3 | AA6: =INDEX(Lookups!$B:$B,MATCH(AA$7,Lookups!$A:$A,0),1) -> Rating Area 3 | AB6: =INDEX(Lookups!$B:$B,MATCH(AB$7,Lookups!$A:$A,0),1) -> Rating Area 3 | AC6: =INDEX(Lookups!$B:$B,MATCH(AC$7,Lookups!$A:$A,0),1) -> Rating Area 3 | AD6: =INDEX(Lookups!$B:$B,MATCH(AD$7,Lookups!$A:$A,0),1) -> Rating Area 3 | AE6: =INDEX(Lookups!$B:$B,MATCH(AE$7,Lookups!$A:$A,0),1) -> Rating Area 3 | AF6: =INDEX(Lookups!$B:$B,MATCH(AF$7,Lookups!$A:$A,0),1) -> Rating Area 3 | AG6: =INDEX(Lookups!$B:$B,MATCH(AG$7,Lookups!$A:$A,0),1) -> Rating Area 3 | AH6: =INDEX(Lookups!$B:$B,MATCH(AH$7,Lookups!$A:$A,0),1) -> Rating Area 4 | AI6: =INDEX(Lookups!$B:$B,MATCH(AI$7,Lookups!$A:$A,0),1) -> Rating Area 4 | AJ6: =INDEX(Lookups!$B:$B,MATCH(AJ$7,Lookups!$A:$A,0),1) -> Rating Area 4 | AK6: =INDEX(Lookups!$B:$B,MATCH(AK$7,Lookups!$A:$A,0),1) -> Rating Area 4 | AL6: =INDEX(Lookups!$B:$B,MATCH(AL$7,Lookups!$A:$A,0),1) -> Rating Area 4 | AM6: =INDEX(Lookups!$B:$B,MATCH(AM$7,Lookups!$A:$A,0),1) -> Rating Area 4 | AN6: =INDEX(Lookups!$B:$B,MATCH(AN$7,Lookups!$A:$A,0),1) -> Rating Area 4 | AO6: =INDEX(Lookups!$B:$B,MATCH(AO$7,Lookups!$A:$A,0),1) -> Rating Area 4 | AP6: =INDEX(Lookups!$B:$B,MATCH(AP$7,Lookups!$A:$A,0),1) -> Rating Area 4 | AQ6: =INDEX(Lookups!$B:$B,MATCH(AQ$7,Lookups!$A:$A,0),1) -> Rating Area 4 | AR6: =INDEX(Lookups!$B:$B,MATCH(AR$7,Lookups!$A:$A,0),1) -> Rating Area 5 | AS6: =INDEX(Lookups!$B:$B,MATCH(AS$7,Lookups!$A:$A,0),1) -> Rating Area 5 | AT6: =INDEX(Lookups!$B:$B,MATCH(AT$7,Lookups!$A:$A,0),1) -> Rating Area 5 | AU6: =INDEX(Lookups!$B:$B,MATCH(AU$7,Lookups!$A:$A,0),1) -> Rating Area 5 | AV6: =INDEX(Lookups!$B:$B,MATCH(AV$7,Lookups!$A:$A,0),1) -> Rating Area 5 | AW6: =INDEX(Lookups!$B:$B,MATCH(AW$7,Lookups!$A:$A,0),1) -> Rating Area 5 | AX6: =INDEX(Lookups!$B:$B,MATCH(AX$7,Lookups!$A:$A,0),1) -> Rating Area 5 | AY6: =INDEX(Lookups!$B:$B,MATCH(AY$7,Lookups!$A:$A,0),1) -> Rating Area 6 | AZ6: =INDEX(Lookups!$B:$B,MATCH(AZ$7,Lookups!$A:$A,0),1) -> Rating Area 6 | BA6: =INDEX(Lookups!$B:$B,MATCH(BA$7,Lookups!$A:$A,0),1) -> Rating Area 6 | BB6: =INDEX(Lookups!$B:$B,MATCH(BB$7,Lookups!$A:$A,0),1) -> Rating Area 6 | BC6: =INDEX(Lookups!$B:$B,MATCH(BC$7,Lookups!$A:$A,0),1) -> Rating Area 6 | BD6: =INDEX(Lookups!$B:$B,MATCH(BD$7,Lookups!$A:$A,0),1) -> Rating Area 6 | BE6: =INDEX(Lookups!$B:$B,MATCH(BE$7,Lookups!$A:$A,0),1) -> Rating Area 6 | BF6: =INDEX(Lookups!$B:$B,MATCH(BF$7,Lookups!$A:$A,0),1) -> Rating Area 6 | BG6: =INDEX(Lookups!$B:$B,MATCH(BG$7,Lookups!$A:$A,0),1) -> Rating Area 6 | BH6: =INDEX(Lookups!$B:$B,MATCH(BH$7,Lookups!$A:$A,0),1) -> Rating Area 6 | BI6: =INDEX(Lookups!$B:$B,MATCH(BI$7,Lookups!$A:$A,0),1) -> Rating Area 7 | BJ6: =INDEX(Lookups!$B:$B,MATCH(BJ$7,Lookups!$A:$A,0),1) -> Rating Area 7 | BK6: =INDEX(Lookups!$B:$B,MATCH(BK$7,Lookups!$A:$A,0),1) -> Rating Area 7 | BL6: =INDEX(Lookups!$B:$B,MATCH(BL$7,Lookups!$A:$A,0),1) -> Rating Area 7 | BM6: =INDEX(Lookups!$B:$B,MATCH(BM$7,Lookups!$A:$A,0),1) -> Rating Area 8 | BN6: =INDEX(Lookups!$B:$B,MATCH(BN$7,Lookups!$A:$A,0),1) -> Rating Area 8 | BO6: =INDEX(Lookups!$B:$B,MATCH(BO$7,Lookups!$A:$A,0),1) -> Rating Area 8 | BP6: =INDEX(Lookups!$B:$B,MATCH(BP$7,Lookups!$A:$A,0),1) -> Rating Area 8 | BQ6: =INDEX(Lookups!$B:$B,MATCH(BQ$7,Lookups!$A:$A,0),1) -> Rating Area 8 | BR6: =INDEX(Lookups!$B:$B,MATCH(BR$7,Lookups!$A:$A,0),1) -> Rating Area 9 | BS6: =INDEX(Lookups!$B:$B,MATCH(BS$7,Lookups!$A:$A,0),1) -> Rating Area 9 | BT6: =INDEX(Lookups!$B:$B,MATCH(BT$7,Lookups!$A:$A,0),1) -> Rating Area 9 | BU6: =INDEX(Lookups!$B:$B,MATCH(BU$7,Lookups!$A:$A,0),1) -> Rating Area 9 | BV6: =INDEX(Lookups!$B:$B,MATCH(BV$7,Lookups!$A:$A,0),1) -> Rating Area 9 | BW6: =INDEX(Lookups!$B:$B,MATCH(BW$7,Lookups!$A:$A,0),1) -> Rating Area 9 | BX6: =INDEX(Lookups!$B:$B,MATCH(BX$7,Lookups!$A:$A,0),1) -> Rating Area 9 | CA6: Individual | CG6: Small Group
B7: Parent Company | C7: Legal Entity | D7: Market | E7: HIOS Plan ID | F7: Plan Marketing Name | G7: Product | H7: Metal | I7: On/Off Exchange | J7: Clarion | K7: Crawford | L7: Erie | M7: Forest | N7: McKean | O7: Mercer | P7: Venango | Q7: Warren | R7: Cameron | S7: Elk | T7: Potter | U7: Bradford | V7: Carbon | W7: Clinton | X7: Lackawanna | Y7: Luzerne | Z7: Lycoming | AA7: Monroe | AB7: Pike | AC7: Sullivan | AD7: Susquehanna | AE7: Tioga | AF7: Wayne | AG7: Wyoming | AH7: Allegheny | AI7: Armstrong | AJ7: Beaver | AK7: Butler | AL7: Fayette | AM7: Greene | AN7: Indiana | AO7: Lawrence | AP7: Washington | AQ7: Westmoreland | AR7: Bedford | AS7: Blair | AT7: Cambria | AU7: Clearfield | AV7: Huntingdon | AW7: Jefferson | AX7: Somerset | AY7: Centre | AZ7: Columbia | BA7: Lehigh | BB7: Mifflin | BC7: Montour | BD7: Northampton | BE7: Northumberland | BF7: Schuylkill | BG7: Snyder | BH7: Union | BI7: Adams | BJ7: Berks | BK7: Lancaster | BL7: York | BM7: Bucks | BN7: Chester | BO7: Delaware | BP7: Montgomery | BQ7: Philadelphia | BR7: Cumberland | BS7: Dauphin | BT7: Franklin | BU7: Fulton | BV7: Juniata | BW7: Lebanon | BX7: Perry | BZ7: County | CA7: Catastrophic | CB7: Bronze | CC7: Silver | CD7: Gold | CE7: Platinum | CF7: 2nd Lowest Silver | CG7: Catastrophic | CH7: Bronze | CI7: Silver | CJ7: Gold | CK7: Platinum | CL7: 2nd Lowest Silver
B8: IBC | C8: QCC | D8: Individual | E8: 31609PA0070002 | F8: Personal Choice PPO Gold | G8: PPO | H8: Gold | I8: On | J8: 0 | K8: 0 | L8: 0 | M8: 0 | N8: 0 | O8: 0 | P8: 0 | Q8: 0 | R8: 0 | S8: 0 | T8: 0 | U8: 0 | V8: 0 | W8: 0 | X8: 0 | Y8: 0 | Z8: 0 | AA8: 0 | AB8: 0 | AC8: 0 | AD8: 0 | AE8: 0 | AF8: 0 | AG8: 0 | AH8: 0 | AI8: 0 | AJ8: 0 | AK8: 0 | AL8: 0 | AM8: 0 | AN8: 0 | AO8: 0 | AP8: 0 | AQ8: 0 | AR8: 0 | AS8: 0 | AT8: 0 | AU8: 0 | AV8: 0 | AW8: 0 | AX8: 0 | AY8: 0 | AZ8: 0 | BA8: 0 | BB8: 0 | BC8: 0 | BD8: 0 | BE8: 0 | BF8: 0 | BG8: 0 | BH8: 0 | BI8: 0 | BJ8: 0 | BK8: 0 | BL8: 0 | BM8: 550.38 | BN8: 550.38 | BO8: 550.38 | BP8: 550.38 | BQ8: 550.38 | BR8: 0 | BS8: 0 | BT8: 0 | BU8: 0 | BV8: 0 | BW8: 0 | BX8: 0 | BZ8: Clarion | CA8: =MIN(IF((PriorPlansTable[Market]=$CA$6)*(PriorPlansTable[Metal]=CA$7)*(INDIRECT("PriorPlansTable["&$BZ8&"]")>0),INDIRECT("PriorPlansTable["&$BZ8&"]"))) -> 179.88 | CB8: =MIN(IF((PriorPlansTable[Market]=$CA$6)*(PriorPlansTable[Metal]=CB$7)*(INDIRECT("PriorPlansTable["&$BZ8&"]")>0),INDIRECT("PriorPlansTable["&$BZ8&"]"))) -> 229.13 | CC8: =MIN(IF((PriorPlansTable[Market]=$CA$6)*(PriorPlansTable[Metal]=CC$7)*(INDIRECT("PriorPlansTable["&$BZ8&"]")>0),INDIRECT("PriorPlansTable["&$BZ8&"]"))) -> 274.09 | CD8: =MIN(IF((PriorPlansTable[Market]=$CA$6)*(PriorPlansTable[Metal]=CD$7)*(INDIRECT("PriorPlansTable["&$BZ8&"]")>0),INDIRECT("PriorPlansTable["&$BZ8&"]"))) -> 291.8 | CE8: =MIN(IF((PriorPlansTable[Market]=$CA$6)*(PriorPlansTable[Metal]=CE$7)*(INDIRECT("PriorPlansTable["&$BZ8&"]")>0),INDIRECT("PriorPlansTable["&$BZ8&"]"))) -> 0 | CF8: =MIN(IF((PriorPlansTable[Market]=$CA$6)*(PriorPlansTable[Metal]="Silver")*(INDIRECT("PriorPlansTable["&$BZ8&"]")>CC8),INDIRECT("PriorPlansTable["&$BZ8&"]"))) -> 276.46 | CG8: =MIN(IF((PriorPlansTable[Market]=$CG$6)*(PriorPlansTable[Metal]=CG$7)*(INDIRECT("PriorPlansTable["&$BZ8&"]")>0),INDIRECT("PriorPlansTable["&$BZ8&"]"))) -> 0 | CH8: =MIN(IF((PriorPlansTable[Market]=$CG$6)*(PriorPlansTable[Metal]=CH$7)*(INDIRECT("PriorPlansTable["&$BZ8&"]")>0),INDIRECT("PriorPlansTable["&$BZ8&"]"))) -> 173.59 | CI8: =MIN(IF((PriorPlansTable[Market]=$CG$6)*(PriorPlansTable[Metal]=CI$7)*(INDIRECT("PriorPlansTable["&$BZ8&"]")>0),INDIRECT("PriorPlansTable["&$BZ8&"]"))) -> 230.21 | CJ8: =MIN(IF((PriorPlansTable[Market]=$CG$6)*(PriorPlansTable[Metal]=CJ$7)*(INDIRECT("PriorPlansTable["&$BZ8&"]")>0),INDIRECT("PriorPlansTable["&$BZ8&"]"))) -> 260.58 | CK8: =MIN(IF((PriorPlansTable[Market]=$CG$6)*(PriorPlansTable[Metal]=CK$7)*(INDIRECT("PriorPlansTable["&$BZ8&"]")>0),INDIRECT("PriorPlansTable["&$BZ8&"]"))) -> 313.24 | CL8: =MIN(IF((PriorPlansTable[Market]=$CG$6)*(PriorPlansTable[Metal]="Silver")*(INDIRECT("PriorPlansTable["&$BZ8&"]")>CI8),INDIRECT("PriorPlansTable["&$BZ8&"]"))) -> 232.97
B9: IBC | C9: QCC | D9: Individual | E9: 31609PA0070003 | F9: Personal Choice PPO Silver | G9: PPO | H9: Silver | I9: On | J9: 0 | K9: 0 | L9: 0 | M9: 0 | N9: 0 | O9: 0 | P9: 0 | Q9: 0 | R9: 0 | S9: 0 | T9: 0 | U9: 0 | V9: 0 | W9: 0 | X9: 0 | Y9: 0 | Z9: 0 | AA9: 0 | AB9: 0 | AC9: 0 | AD9: 0 | AE9: 0 | AF9: 0 | AG9: 0 | AH9: 0 | AI9: 0 | AJ9: 0 | AK9: 0 | AL9: 0 | AM9: 0 | AN9: 0 | AO9: 0 | AP9: 0 | AQ9: 0 | AR9: 0 | AS9: 0 | AT9: 0 | AU9: 0 | AV9: 0 | AW9: 0 | AX9: 0 | AY9: 0 | AZ9: 0 | BA9: 0 | BB9: 0 | BC9: 0 | BD9: 0 | BE9: 0 | BF9: 0 | BG9: 0 | BH9: 0 | BI9: 0 | BJ9: 0 | BK9: 0 | BL9: 0 | BM9: 481.3 | BN9: 481.3 | BO9: 481.3 | BP9: 481.3 | BQ9: 481.3 | BR9: 0 | BS9: 0 | BT9: 0 | BU9: 0 | BV9: 0 | BW9: 0 | BX9: 0 | BZ9: Crawford | CA9: =MIN(IF((PriorPlansTable[Market]=$CA$6)*(PriorPlansTable[Metal]=CA$7)*(INDIRECT("PriorPlansTable["&$BZ9&"]")>0),INDIRECT("PriorPlansTable["&$BZ9&"]"))) -> 179.88 | CB9: =MIN(IF((PriorPlansTable[Market]=$CA$6)*(PriorPlansTable[Metal]=CB$7)*(INDIRECT("PriorPlansTable["&$BZ9&"]")>0),INDIRECT("PriorPlansTable["&$BZ9&"]"))) -> 239.04 | CC9: =MIN(IF((PriorPlansTable[Market]=$CA$6)*(PriorPlansTable[Metal]=CC$7)*(INDIRECT("PriorPlansTable["&$BZ9&"]")>0),INDIRECT("PriorPlansTable["&$BZ9&"]"))) -> 274.09 | CD9: =MIN(IF((PriorPlansTable[Market]=$CA$6)*(PriorPlansTable[Metal]=CD$7)*(INDIRECT("PriorPlansTable["&$BZ9&"]")>0),INDIRECT("PriorPlansTable["&$BZ9&"]"))) -> 303.69 | CE9: =MIN(IF((PriorPlansTable[Market]=$CA$6)*(PriorPlansTable[Metal]=CE$7)*(INDIRECT("PriorPlansTable["&$BZ9&"]")>0),INDIRECT("PriorPlansTable["&$BZ9&"]"))) -> 0 | CF9: =MIN(IF((PriorPlansTable[Market]=$CA$6)*(PriorPlansTable[Metal]="Silver")*(INDIRECT("PriorPlansTable["&$BZ9&"]")>CC9),INDIRECT("PriorPlansTable["&$BZ9&"]"))) -> 276.46 | CG9: =MIN(IF((PriorPlansTable[Market]=$CG$6)*(PriorPlansTable[Metal]=CG$7)*(INDIRECT("PriorPlansTable["&$BZ9&"]")>0),INDIRECT("PriorPlansTable["&$BZ9&"]"))) -> 0 | CH9: =MIN(IF((PriorPlansTable[Market]=$CG$6)*(PriorPlansTable[Metal]=CH$7)*(INDIRECT("PriorPlansTable["&$BZ9&"]")>0),INDIRECT("PriorPlansTable["&$BZ9&"]"))) -> 199.61 | CI9: =MIN(IF((PriorPlansTable[Market]=$CG$6)*(PriorPlansTable[Metal]=CI$7)*(INDIRECT("PriorPlansTable["&$BZ9&"]")>0),INDIRECT("PriorPlansTable["&$BZ9&"]"))) -> 248.47 | CJ9: =MIN(IF((PriorPlansTable[Market]=$CG$6)*(PriorPlansTable[Metal]=CJ$7)*(INDIRECT("PriorPlansTable["&$BZ9&"]")>0),INDIRECT("PriorPlansTable["&$BZ9&"]"))) -> 280.02 | CK9: =MIN(IF((PriorPlansTable[Market]=$CG$6)*(PriorPlansTable[Metal]=CK$7)*(INDIRECT("PriorPlansTable["&$BZ9&"]")>0),INDIRECT("PriorPlansTable["&$BZ9&"]"))) -> 379.4 | CL9: =MIN(IF((PriorPlansTable[Market]=$CG$6)*(PriorPlansTable[Metal]="Silver")*(INDIRECT("PriorPlansTable["&$BZ9&"]")>CI9),INDIRECT("PriorPlansTable["&$BZ9&"]"))) -> 254.87
B10: IBC | C10: QCC | D10: Individual | E10: 31609PA0070004 | F10: Personal Choice PPO Bronze | G10: PPO | H10: Bronze | I10: On | J10: 0 | K10: 0 | L10: 0 | M10: 0 | N10: 0 | O10: 0 | P10: 0 | Q10: 0 | R10: 0 | S10: 0 | T10: 0 | U10: 0 | V10: 0 | W10: 0 | X10: 0 | Y10: 0 | Z10: 0 | AA10: 0 | AB10: 0 | AC10: 0 | AD10: 0 | AE10: 0 | AF10: 0 | AG10: 0 | AH10: 0 | AI10: 0 | AJ10: 0 | AK10: 0 | AL10: 0 | AM10: 0 | AN10: 0 | AO10: 0 | AP10: 0 | AQ10: 0 | AR10: 0 | AS10: 0 | AT10: 0 | AU10: 0 | AV10: 0 | AW10: 0 | AX10: 0 | AY10: 0 | AZ10: 0 | BA10: 0 | BB10: 0 | BC10: 0 | BD10: 0 | BE10: 0 | BF10: 0 | BG10: 0 | BH10: 0 | BI10: 0 | BJ10: 0 | BK10: 0 | BL10: 0 | BM10: 322.38 | BN10: 322.38 | BO10: 322.38 | BP10: 322.38 | BQ10: 322.38 | BR10: 0 | BS10: 0 | BT10: 0 | BU10: 0 | BV10: 0 | BW10: 0 | BX10: 0 | BZ10: Erie | CA10: =MIN(IF((PriorPlansTable[Market]=$CA$6)*(PriorPlansTable[Metal]=CA$7)*(INDIRECT("PriorPlansTable["&$BZ10&"]")>0),INDIRECT("PriorPlansTable["&$BZ10&"]"))) -> 148.02 | CB10: =MIN(IF((PriorPlansTable[Market]=$CA$6)*(PriorPlansTable[Metal]=CB$7)*(INDIRECT("PriorPlansTable["&$BZ10&"]")>0),INDIRECT("PriorPlansTable["&$BZ10&"]"))) -> 173.59 | CC10: =MIN(IF((PriorPlansTable[Market]=$CA$6)*(PriorPlansTable[Metal]=CC$7)*(INDIRECT("PriorPlansTable["&$BZ10&"]")>0),INDIRECT("PriorPlansTable["&$BZ10&"]"))) -> 211.37 | CD10: =MIN(IF((PriorPlansTable[Market]=$CA$6)*(PriorPlansTable[Metal]=CD$7)*(INDIRECT("PriorPlansTable["&$BZ10&"]")>0),INDIRECT("PriorPlansTable["&$BZ10&"]"))) -> 220.53 | CE10: =MIN(IF((PriorPlansTable[Market]=$CA$6)*(PriorPlansTable[Metal]=CE$7)*(INDIRECT("PriorPlansTable["&$BZ10&"]")>0),INDIRECT("PriorPlansTable["&$BZ10&"]"))) -> 0 | CF10: =MIN(IF((PriorPlansTable[Market]=$CA$6)*(PriorPlansTable[Metal]="Silver")*(INDIRECT("PriorPlansTable["&$BZ10&"]")>CC10),INDIRECT("PriorPlansTable["&$BZ10&"]"))) -> 218.1 | CG10: =MIN(IF((PriorPlansTable[Market]=$CG$6)*(PriorPlansTable[Metal]=CG$7)*(INDIRECT("PriorPlansTable["&$BZ10&"]")>0),INDIRECT("PriorPlansTable["&$BZ10&"]"))) -> 0 | CH10: =MIN(IF((PriorPlansTable[Market]=$CG$6)*(PriorPlansTable[Metal]=CH$7)*(INDIRECT("PriorPlansTable["&$BZ10&"]")>0),INDIRECT("PriorPlansTable["&$BZ10&"]"))) -> 173.59 | CI10: =MIN(IF((PriorPlansTable[Market]=$CG$6)*(PriorPlansTable[Metal]=CI$7)*(INDIRECT("PriorPlansTable["&$BZ10&"]")>0),INDIRECT("PriorPlansTable["&$BZ10&"]"))) -> 208.31 | CJ10: =MIN(IF((PriorPlansTable[Market]=$CG$6)*(PriorPlansTable[Metal]=CJ$7)*(INDIRECT("PriorPlansTable["&$BZ10&"]")>0),INDIRECT("PriorPlansTable["&$BZ10&"]"))) -> 233.94 | CK10: =MIN(IF((PriorPlansTable[Market]=$CG$6)*(PriorPlansTable[Metal]=CK$7)*(INDIRECT("PriorPlansTable["&$BZ10&"]")>0),INDIRECT("PriorPlansTable["&$BZ10&"]"))) -> 313.24 | CL10: =MIN(IF((PriorPlansTable[Market]=$CG$6)*(PriorPlansTable[Metal]="Silver")*(INDIRECT("PriorPlansTable["&$BZ10&"]")>CI10),INDIRECT("PriorPlansTable["&$BZ10&"]"))) -> 212.07
B11: IBC | C11: QCC | D11: Individual | E11: 31609PA0160001 | F11: Personal Choice EPO Catastrophic | G11: EPO | H11: Catastrophic | I11: On | J11: 0 | K11: 0 | L11: 0 | M11: 0 | N11: 0 | O11: 0 | P11: 0 | Q11: 0 | R11: 0 | S11: 0 | T11: 0 | U11: 0 | V11: 0 | W11: 0 | X11: 0 | Y11: 0 | Z11: 0 | AA11: 0 | AB11: 0 | AC11: 0 | AD11: 0 | AE11: 0 | AF11: 0 | AG11: 0 | AH11: 0 | AI11: 0 | AJ11: 0 | AK11: 0 | AL11: 0 | AM11: 0 | AN11: 0 | AO11: 0 | AP11: 0 | AQ11: 0 | AR11: 0 | AS11: 0 | AT11: 0 | AU11: 0 | AV11: 0 | AW11: 0 | AX11: 0 | AY11: 0 | AZ11: 0 | BA11: 0 | BB11: 0 | BC11: 0 | BD11: 0 | BE11: 0 | BF11: 0 | BG11: 0 | BH11: 0 | BI11: 0 | BJ11: 0 | BK11: 0 | BL11: 0 | BM11: 264.18 | BN11: 264.18 | BO11: 264.18 | BP11: 264.18 | BQ11: 264.18 | BR11: 0 | BS11: 0 | BT11: 0 | BU11: 0 | BV11: 0 | BW11: 0 | BX11: 0 | BZ11: Forest | CA11: =MIN(IF((PriorPlansTable[Market]=$CA$6)*(PriorPlansTable[Metal]=CA$7)*(INDIRECT("PriorPlansTable["&$BZ11&"]")>0),INDIRECT("PriorPlansTable["&$BZ11&"]"))) -> 179.88 | CB11: =MIN(IF((PriorPlansTable[Market]=$CA$6)*(PriorPlansTable[Metal]=CB$7)*(INDIRECT("PriorPlansTable["&$BZ11&"]")>0),INDIRECT("PriorPlansTable["&$BZ11&"]"))) -> 229.13 | CC11: =MIN(IF((PriorPlansTable[Market]=$CA$6)*(PriorPlansTable[Metal]=CC$7)*(INDIRECT("PriorPlansTable["&$BZ11&"]")>0),INDIRECT("PriorPlansTable["&$BZ11&"]"))) -> 274.09 | CD11: =MIN(IF((PriorPlansTable[Market]=$CA$6)*(PriorPlansTable[Metal]=CD$7)*(INDIRECT("PriorPlansTable["&$BZ11&"]")>0),INDIRECT("PriorPlansTable["&$BZ11&"]"))) -> 291.8 | CE11: =MIN(IF((PriorPlansTable[Market]=$CA$6)*(PriorPlansTable[Metal]=CE$7)*(INDIRECT("PriorPlansTable["&$BZ11&"]")>0),INDIRECT("PriorPlansTable["&$BZ11&"]"))) -> 0 | CF11: =MIN(IF((PriorPlansTable[Market]=$CA$6)*(PriorPlansTable[Metal]="Silver")*(INDIRECT("PriorPlansTable["&$BZ11&"]")>CC11),INDIRECT("PriorPlansTable["&$BZ11&"]"))) -> 276.46 | CG11: =MIN(IF((PriorPlansTable[Market]=$CG$6)*(PriorPlansTable[Metal]=CG$7)*(INDIRECT("PriorPlansTable["&$BZ11&"]")>0),INDIRECT("PriorPlansTable["&$BZ11&"]"))) -> 0 | CH11: =MIN(IF((PriorPlansTable[Market]=$CG$6)*(PriorPlansTable[Metal]=CH$7)*(INDIRECT("PriorPlansTable["&$BZ11&"]")>0),INDIRECT("PriorPlansTable["&$BZ11&"]"))) -> 173.59 | CI11: =MIN(IF((PriorPlansTable[Market]=$CG$6)*(PriorPlansTable[Metal]=CI$7)*(INDIRECT("PriorPlansTable["&$BZ11&"]")>0),INDIRECT("PriorPlansTable["&$BZ11&"]"))) -> 230.21 | CJ11: =MIN(IF((PriorPlansTable[Market]=$CG$6)*(PriorPlansTable[Metal]=CJ$7)*(INDIRECT("PriorPlansTable["&$BZ11&"]")>0),INDIRECT("PriorPlansTable["&$BZ11&"]"))) -> 260.58 | CK11: =MIN(IF((PriorPlansTable[Market]=$CG$6)*(PriorPlansTable[Metal]=CK$7)*(INDIRECT("PriorPlansTable["&$BZ11&"]")>0),INDIRECT("PriorPlansTable["&$BZ11&"]"))) -> 313.24 | CL11: =MIN(IF((PriorPlansTable[Market]=$CG$6)*(PriorPlansTable[Metal]="Silver")*(INDIRECT("PriorPlansTable["&$BZ11&"]")>CI11),INDIRECT("PriorPlansTable["&$BZ11&"]"))) -> 232.97
B12: IBC | C12: QCC | D12: Individual | E12: 31609PA0160005 | F12: Personal Choice EPO Bronze Reserve | G12: EPO | H12: Bronze | I12: On | J12: 0 | K12: 0 | L12: 0 | M12: 0 | N12: 0 | O12: 0 | P12: 0 | Q12: 0 | R12: 0 | S12: 0 | T12: 0 | U12: 0 | V12: 0 | W12: 0 | X12: 0 | Y12: 0 | Z12: 0 | AA12: 0 | AB12: 0 | AC12: 0 | AD12: 0 | AE12: 0 | AF12: 0 | AG12: 0 | AH12: 0 | AI12: 0 | AJ12: 0 | AK12: 0 | AL12: 0 | AM12: 0 | AN12: 0 | AO12: 0 | AP12: 0 | AQ12: 0 | AR12: 0 | AS12: 0 | AT12: 0 | AU12: 0 | AV12: 0 | AW12: 0 | AX12: 0 | AY12: 0 | AZ12: 0 | BA12: 0 | BB12: 0 | BC12: 0 | BD12: 0 | BE12: 0 | BF12: 0 | BG12: 0 | BH12: 0 | BI12: 0 | BJ12: 0 | BK12: 0 | BL12: 0 | BM12: 296.65 | BN12: 296.65 | BO12: 296.65 | BP12: 296.65 | BQ12: 296.65 | BR12: 0 | BS12: 0 | BT12: 0 | BU12: 0 | BV12: 0 | BW12: 0 | BX12: 0 | BZ12: McKean | CA12: =MIN(IF((PriorPlansTable[Market]=$CA$6)*(PriorPlansTable[Metal]=CA$7)*(INDIRECT("PriorPlansTable["&$BZ12&"]")>0),INDIRECT("PriorPlansTable["&$BZ12&"]"))) -> 204.78 | CB12: =MIN(IF((PriorPlansTable[Market]=$CA$6)*(PriorPlansTable[Metal]=CB$7)*(INDIRECT("PriorPlansTable["&$BZ12&"]")>0),INDIRECT("PriorPlansTable["&$BZ12&"]"))) -> 229.13 | CC12: =MIN(IF((PriorPlansTable[Market]=$CA$6)*(PriorPlansTable[Metal]=CC$7)*(INDIRECT("PriorPlansTable["&$BZ12&"]")>0),INDIRECT("PriorPlansTable["&$BZ12&"]"))) -> 279.67 | CD12: =MIN(IF((PriorPlansTable[Market]=$CA$6)*(PriorPlansTable[Metal]=CD$7)*(INDIRECT("PriorPlansTable["&$BZ12&"]")>0),INDIRECT("PriorPlansTable["&$BZ12&"]"))) -> 291.8 | CE12: =MIN(IF((PriorPlansTable[Market]=$CA$6)*(PriorPlansTable[Metal]=CE$7)*(INDIRECT("PriorPlansTable["&$BZ12&"]")>0),INDIRECT("PriorPlansTable["&$BZ12&"]"))) -> 0 | CF12: =MIN(IF((PriorPlansTable[Market]=$CA$6)*(PriorPlansTable[Metal]="Silver")*(INDIRECT("PriorPlansTable["&$BZ12&"]")>CC12),INDIRECT("PriorPlansTable["&$BZ12&"]"))) -> 289.51 | CG12: =MIN(IF((PriorPlansTable[Market]=$CG$6)*(PriorPlansTable[Metal]=CG$7)*(INDIRECT("PriorPlansTable["&$BZ12&"]")>0),INDIRECT("PriorPlansTable["&$BZ12&"]"))) -> 0 | CH12: =MIN(IF((PriorPlansTable[Market]=$CG$6)*(PriorPlansTable[Metal]=CH$7)*(INDIRECT("PriorPlansTable["&$BZ12&"]")>0),INDIRECT("PriorPlansTable["&$BZ12&"]"))) -> 173.59 | CI12: =MIN(IF((PriorPlansTable[Market]=$CG$6)*(PriorPlansTable[Metal]=CI$7)*(INDIRECT("PriorPlansTable["&$BZ12&"]")>0),INDIRECT("PriorPlansTable["&$BZ12&"]"))) -> 230.21 | CJ12: =MIN(IF((PriorPlansTable[Market]=$CG$6)*(PriorPlansTable[Metal]=CJ$7)*(INDIRECT("PriorPlansTable["&$BZ12&"]")>0),INDIRECT("PriorPlansTable["&$BZ12&"]"))) -> 260.58 | CK12: =MIN(IF((PriorPlansTable[Market]=$CG$6)*(PriorPlansTable[Metal]=CK$7)*(INDIRECT("PriorPlansTable["&$BZ12&"]")>0),INDIRECT("PriorPlansTable["&$BZ12&"]"))) -> 313.24 | CL12: =MIN(IF((PriorPlansTable[Market]=$CG$6)*(PriorPlansTable[Metal]="Silver")*(INDIRECT("PriorPlansTable["&$BZ12&"]")>CI12),INDIRECT("PriorPlansTable["&$BZ12&"]"))) -> 232.97
B13: IBC | C13: QCC | D13: Individual | E13: 31609PA0160006 | F13: Personal Choice EPO Bronze Basic | G13: EPO | H13: Bronze | I13: On | J13: 0 | K13: 0 | L13: 0 | M13: 0 | N13: 0 | O13: 0 | P13: 0 | Q13: 0 | R13: 0 | S13: 0 | T13: 0 | U13: 0 | V13: 0 | W13: 0 | X13: 0 | Y13: 0 | Z13: 0 | AA13: 0 | AB13: 0 | AC13: 0 | AD13: 0 | AE13: 0 | AF13: 0 | AG13: 0 | AH13: 0 | AI13: 0 | AJ13: 0 | AK13: 0 | AL13: 0 | AM13: 0 | AN13: 0 | AO13: 0 | AP13: 0 | AQ13: 0 | AR13: 0 | AS13: 0 | AT13: 0 | AU13: 0 | AV13: 0 | AW13: 0 | AX13: 0 | AY13: 0 | AZ13: 0 | BA13: 0 | BB13: 0 | BC13: 0 | BD13: 0 | BE13: 0 | BF13: 0 | BG13: 0 | BH13: 0 | BI13: 0 | BJ13: 0 | BK13: 0 | BL13: 0 | BM13: 271.78 | BN13: 271.78 | BO13: 271.78 | BP13: 271.78 | BQ13: 271.78 | BR13: 0 | BS13: 0 | BT13: 0 | BU13: 0 | BV13: 0 | BW13: 0 | BX13: 0 | BZ13: Mercer | CA13: =MIN(IF((PriorPlansTable[Market]=$CA$6)*(PriorPlansTable[Metal]=CA$7)*(INDIRECT("PriorPlansTable["&$BZ13&"]")>0),INDIRECT("PriorPlansTable["&$BZ13&"]"))) -> 164.75 | CB13: =MIN(IF((PriorPlansTable[Market]=$CA$6)*(PriorPlansTable[Metal]=CB$7)*(INDIRECT("PriorPlansTable["&$BZ13&"]")>0),INDIRECT("PriorPlansTable["&$BZ13&"]"))) -> 173.59 | CC13: =MIN(IF((PriorPlansTable[Market]=$CA$6)*(PriorPlansTable[Metal]=CC$7)*(INDIRECT("PriorPlansTable["&$BZ13&"]")>0),INDIRECT("PriorPlansTable["&$BZ13&"]"))) -> 211.37 | CD13: =MIN(IF((PriorPlansTable[Market]=$CA$6)*(PriorPlansTable[Metal]=CD$7)*(INDIRECT("PriorPlansTable["&$BZ13&"]")>0),INDIRECT("PriorPlansTable["&$BZ13&"]"))) -> 220.53 | CE13: =MIN(IF((PriorPlansTable[Market]=$CA$6)*(PriorPlansTable[Metal]=CE$7)*(INDIRECT("PriorPlansTable["&$BZ13&"]")>0),INDIRECT("PriorPlansTable["&$BZ13&"]"))) -> 0 | CF13: =MIN(IF((PriorPlansTable[Market]=$CA$6)*(PriorPlansTable[Metal]="Silver")*(INDIRECT("PriorPlansTable["&$BZ13&"]")>CC13),INDIRECT("PriorPlansTable["&$BZ13&"]"))) -> 218.1 | CG13: =MIN(IF((PriorPlansTable[Market]=$CG$6)*(PriorPlansTable[Metal]=CG$7)*(INDIRECT("PriorPlansTable["&$BZ13&"]")>0),INDIRECT("PriorPlansTable["&$BZ13&"]"))) -> 0 | CH13: =MIN(IF((PriorPlansTable[Market]=$CG$6)*(PriorPlansTable[Metal]=CH$7)*(INDIRECT("PriorPlansTable["&$BZ13&"]")>0),INDIRECT("PriorPlansTable["&$BZ13&"]"))) -> 173.59 | CI13: =MIN(IF((PriorPlansTable[Market]=$CG$6)*(PriorPlansTable[Metal]=CI$7)*(INDIRECT("PriorPlansTable["&$BZ13&"]")>0),INDIRECT("PriorPlansTable["&$BZ13&"]"))) -> 208.31 | CJ13: =MIN(IF((PriorPlansTable[Market]=$CG$6)*(PriorPlansTable[Metal]=CJ$7)*(INDIRECT("PriorPlansTable["&$BZ13&"]")>0),INDIRECT("PriorPlansTable["&$BZ13&"]"))) -> 255.53 | CK13: =MIN(IF((PriorPlansTable[Market]=$CG$6)*(PriorPlansTable[Metal]=CK$7)*(INDIRECT("PriorPlansTable["&$BZ13&"]")>0),INDIRECT("PriorPlansTable["&$BZ13&"]"))) -> 313.24 | CL13: =MIN(IF((PriorPlansTable[Market]=$CG$6)*(PriorPlansTable[Metal]="Silver")*(INDIRECT("PriorPlansTable["&$BZ13&"]")>CI13),INDIRECT("PriorPlansTable["&$BZ13&"]"))) -> 214.53
B14: IBC | C14: QCC | D14: Individual | E14: 31609PA0160007 | F14: Personal Choice EPO Gold | G14: EPO | H14: Gold | I14: On | J14: 0 | K14: 0 | L14: 0 | M14: 0 | N14: 0 | O14: 0 | P14: 0 | Q14: 0 | R14: 0 | S14: 0 | T14: 0 | U14: 0 | V14: 0 | W14: 0 | X14: 0 | Y14: 0 | Z14: 0 | AA14: 0 | AB14: 0 | AC14: 0 | AD14: 0 | AE14: 0 | AF14: 0 | AG14: 0 | AH14: 0 | AI14: 0 | AJ14: 0 | AK14: 0 | AL14: 0 | AM14: 0 | AN14: 0 | AO14: 0 | AP14: 0 | AQ14: 0 | AR14: 0 | AS14: 0 | AT14: 0 | AU14: 0 | AV14: 0 | AW14: 0 | AX14: 0 | AY14: 0 | AZ14: 0 | BA14: 0 | BB14: 0 | BC14: 0 | BD14: 0 | BE14: 0 | BF14: 0 | BG14: 0 | BH14: 0 | BI14: 0 | BJ14: 0 | BK14: 0 | BL14: 0 | BM14: 572.74 | BN14: 572.74 | BO14: 572.74 | BP14: 572.74 | BQ14: 572.74 | BR14: 0 | BS14: 0 | BT14: 0 | BU14: 0 | BV14: 0 | BW14: 0 | BX14: 0 | BZ14: Venango | CA14: =MIN(IF((PriorPlansTable[Market]=$CA$6)*(PriorPlansTable[Metal]=CA$7)*(INDIRECT("PriorPlansTable["&$BZ14&"]")>0),INDIRECT("PriorPlansTable["&$BZ14&"]"))) -> 164.75 | CB14: =MIN(IF((PriorPlansTable[Market]=$CA$6)*(PriorPlansTable[Metal]=CB$7)*(INDIRECT("PriorPlansTable["&$BZ14&"]")>0),INDIRECT("PriorPlansTable["&$BZ14&"]"))) -> 173.59 | CC14: =MIN(IF((PriorPlansTable[Market]=$CA$6)*(PriorPlansTable[Metal]=CC$7)*(INDIRECT("PriorPlansTable["&$BZ14&"]")>0),INDIRECT("PriorPlansTable["&$BZ14&"]"))) -> 211.37 | CD14: =MIN(IF((PriorPlansTable[Market]=$CA$6)*(PriorPlansTable[Metal]=CD$7)*(INDIRECT("PriorPlansTable["&$BZ14&"]")>0),INDIRECT("PriorPlansTable["&$BZ14&"]"))) -> 220.53 | CE14: =MIN(IF((PriorPlansTable[Market]=$CA$6)*(PriorPlansTable[Metal]=CE$7)*(INDIRECT("PriorPlansTable["&$BZ14&"]")>0),INDIRECT("PriorPlansTable["&$BZ14&"]"))) -> 0 | CF14: =MIN(IF((PriorPlansTable[Market]=$CA$6)*(PriorPlansTable[Metal]="Silver")*(INDIRECT("PriorPlansTable["&$BZ14&"]")>CC14),INDIRECT("PriorPlansTable["&$BZ14&"]"))) -> 218.1 | CG14: =MIN(IF((PriorPlansTable[Market]=$CG$6)*(PriorPlansTable[Metal]=CG$7)*(INDIRECT("PriorPlansTable["&$BZ14&"]")>0),INDIRECT("PriorPlansTable["&$BZ14&"]"))) -> 0 | CH14: =MIN(IF((PriorPlansTable[Market]=$CG$6)*(PriorPlansTable[Metal]=CH$7)*(INDIRECT("PriorPlansTable["&$BZ14&"]")>0),INDIRECT("PriorPlansTable["&$BZ14&"]"))) -> 173.59 | CI14: =MIN(IF((PriorPlansTable[Market]=$CG$6)*(PriorPlansTable[Metal]=CI$7)*(INDIRECT("PriorPlansTable["&$BZ14&"]")>0),INDIRECT("PriorPlansTable["&$BZ14&"]"))) -> 208.31 | CJ14: =MIN(IF((PriorPlansTable[Market]=$CG$6)*(PriorPlansTable[Metal]=CJ$7)*(INDIRECT("PriorPlansTable["&$BZ14&"]")>0),INDIRECT("PriorPlansTable["&$BZ14&"]"))) -> 255.53 | CK14: =MIN(IF((PriorPlansTable[Market]=$CG$6)*(PriorPlansTable[Metal]=CK$7)*(INDIRECT("PriorPlansTable["&$BZ14&"]")>0),INDIRECT("PriorPlansTable["&$BZ14&"]"))) -> 313.24 | CL14: =MIN(IF((PriorPlansTable[Market]=$CG$6)*(PriorPlansTable[Metal]="Silver")*(INDIRECT("PriorPlansTable["&$BZ14&"]")>CI14),INDIRECT("PriorPlansTable["&$BZ14&"]"))) -> 214.53
B15: IBC | C15: QCC | D15: Individual | E15: 31609PA0180001 | F15: Personal Choice EPO Catastrophic | G15: EPO | H15: Catastrophic | I15: Off | J15: 0 | K15: 0 | L15: 0 | M15: 0 | N15: 0 | O15: 0 | P15: 0 | Q15: 0 | R15: 0 | S15: 0 | T15: 0 | U15: 0 | V15: 0 | W15: 0 | X15: 0 | Y15: 0 | Z15: 0 | AA15: 0 | AB15: 0 | AC15: 0 | AD15: 0 | AE15: 0 | AF15: 0 | AG15: 0 | AH15: 0 | AI15: 0 | AJ15: 0 | AK15: 0 | AL15: 0 | AM15: 0 | AN15: 0 | AO15: 0 | AP15: 0 | AQ15: 0 | AR15: 0 | AS15: 0 | AT15: 0 | AU15: 0 | AV15: 0 | AW15: 0 | AX15: 0 | AY15: 0 | AZ15: 0 | BA15: 0 | BB15: 0 | BC15: 0 | BD15: 0 | BE15: 0 | BF15: 0 | BG15: 0 | BH15: 0 | BI15: 0 | BJ15: 0 | BK15: 0 | BL15: 0 | BM15: 264.18 | BN15: 264.18 | BO15: 264.18 | BP15: 264.18 | BQ15: 264.18 | BR15: 0 | BS15: 0 | BT15: 0 | BU15: 0 | BV15: 0 | BW15: 0 | BX15: 0 | BZ15: Warren | CA15: =MIN(IF((PriorPlansTable[Market]=$CA$6)*(PriorPlansTable[Metal]=CA$7)*(INDIRECT("PriorPlansTable["&$BZ15&"]")>0),INDIRECT("PriorPlansTable["&$BZ15&"]"))) -> 179.88 | CB15: =MIN(IF((PriorPlansTable[Market]=$CA$6)*(PriorPlansTable[Metal]=CB$7)*(INDIRECT("PriorPlansTable["&$BZ15&"]")>0),INDIRECT("PriorPlansTable["&$BZ15&"]"))) -> 229.13 | CC15: =MIN(IF((PriorPlansTable[Market]=$CA$6)*(PriorPlansTable[Metal]=CC$7)*(INDIRECT("PriorPlansTable["&$BZ15&"]")>0),INDIRECT("PriorPlansTable["&$BZ15&"]"))) -> 274.09 | CD15: =MIN(IF((PriorPlansTable[Market]=$CA$6)*(PriorPlansTable[Metal]=CD$7)*(INDIRECT("PriorPlansTable["&$BZ15&"]")>0),INDIRECT("PriorPlansTable["&$BZ15&"]"))) -> 291.8 | CE15: =MIN(IF((PriorPlansTable[Market]=$CA$6)*(PriorPlansTable[Metal]=CE$7)*(INDIRECT("PriorPlansTable["&$BZ15&"]")>0),INDIRECT("PriorPlansTable["&$BZ15&"]"))) -> 0 | CF15: =MIN(IF((PriorPlansTable[Market]=$CA$6)*(PriorPlansTable[Metal]="Silver")*(INDIRECT("PriorPlansTable["&$BZ15&"]")>CC15),INDIRECT("PriorPlansTable["&$BZ15&"]"))) -> 276.46 | CG15: =MIN(IF((PriorPlansTable[Market]=$CG$6)*(PriorPlansTable[Metal]=CG$7)*(INDIRECT("PriorPlansTable["&$BZ15&"]")>0),INDIRECT("PriorPlansTable["&$BZ15&"]"))) -> 0 | CH15: =MIN(IF((PriorPlansTable[Market]=$CG$6)*(PriorPlansTable[Metal]=CH$7)*(INDIRECT("PriorPlansTable["&$BZ15&"]")>0),INDIRECT("PriorPlansTable["&$BZ15&"]"))) -> 173.59 | CI15: =MIN(IF((PriorPlansTable[Market]=$CG$6)*(PriorPlansTable[Metal]=CI$7)*(INDIRECT("PriorPlansTable["&$BZ15&"]")>0),INDIRECT("PriorPlansTable["&$BZ15&"]"))) -> 230.21 | CJ15: =MIN(IF((PriorPlansTable[Market]=$CG$6)*(PriorPlansTable[Metal]=CJ$7)*(INDIRECT("PriorPlansTable["&$BZ15&"]")>0),INDIRECT("PriorPlansTable["&$BZ15&"]"))) -> 260.58 | CK15: =MIN(IF((PriorPlansTable[Market]=$CG$6)*(PriorPlansTable[Metal]=CK$7)*(INDIRECT("PriorPlansTable["&$BZ15&"]")>0),INDIRECT("PriorPlansTable["&$BZ15&"]"))) -> 313.24 | CL15: =MIN(IF((PriorPlansTable[Market]=$CG$6)*(PriorPlansTable[Metal]="Silver")*(INDIRECT("PriorPlansTable["&$BZ15&"]")>CI15),INDIRECT("PriorPlansTable["&$BZ15&"]"))) -> 232.97
B16: IBC | C16: QCC | D16: Individual | E16: 31609PA0180004 | F16: Personal Choice EPO Bronze Reserve | G16: EPO | H16: Bronze | I16: Off | J16: 0 | K16: 0 | L16: 0 | M16: 0 | N16: 0 | O16: 0 | P16: 0 | Q16: 0 | R16: 0 | S16: 0 | T16: 0 | U16: 0 | V16: 0 | W16: 0 | X16: 0 | Y16: 0 | Z16: 0 | AA16: 0 | AB16: 0 | AC16: 0 | AD16: 0 | AE16: 0 | AF16: 0 | AG16: 0 | AH16: 0 | AI16: 0 | AJ16: 0 | AK16: 0 | AL16: 0 | AM16: 0 | AN16: 0 | AO16: 0 | AP16: 0 | AQ16: 0 | AR16: 0 | AS16: 0 | AT16: 0 | AU16: 0 | AV16: 0 | AW16: 0 | AX16: 0 | AY16: 0 | AZ16: 0 | BA16: 0 | BB16: 0 | BC16: 0 | BD16: 0 | BE16: 0 | BF16: 0 | BG16: 0 | BH16: 0 | BI16: 0 | BJ16: 0 | BK16: 0 | BL16: 0 | BM16: 296.65 | BN16: 296.65 | BO16: 296.65 | BP16: 296.65 | BQ16: 296.65 | BR16: 0 | BS16: 0 | BT16: 0 | BU16: 0 | BV16: 0 | BW16: 0 | BX16: 0 | BZ16: Cameron | CA16: =MIN(IF((PriorPlansTable[Market]=$CA$6)*(PriorPlansTable[Metal]=CA$7)*(INDIRECT("PriorPlansTable["&$BZ16&"]")>0),INDIRECT("PriorPlansTable["&$BZ16&"]"))) -> 204.78 | CB16: =MIN(IF((PriorPlansTable[Market]=$CA$6)*(PriorPlansTable[Metal]=CB$7)*(INDIRECT("PriorPlansTable["&$BZ16&"]")>0),INDIRECT("PriorPlansTable["&$BZ16&"]"))) -> 232.29 | CC16: =MIN(IF((PriorPlansTable[Market]=$CA$6)*(PriorPlansTable[Metal]=CC$7)*(INDIRECT("PriorPlansTable["&$BZ16&"]")>0),INDIRECT("PriorPlansTable["&$BZ16&"]"))) -> 318.09 | CD16: =MIN(IF((PriorPlansTable[Market]=$CA$6)*(PriorPlansTable[Metal]=CD$7)*(INDIRECT("PriorPlansTable["&$BZ16&"]")>0),INDIRECT("PriorPlansTable["&$BZ16&"]"))) -> 351.92 | CE16: =MIN(IF((PriorPlansTable[Market]=$CA$6)*(PriorPlansTable[Metal]=CE$7)*(INDIRECT("PriorPlansTable["&$BZ16&"]")>0),INDIRECT("PriorPlansTable["&$BZ16&"]"))) -> 0 | CF16: =MIN(IF((PriorPlansTable[Market]=$CA$6)*(PriorPlansTable[Metal]="Silver")*(INDIRECT("PriorPlansTable["&$BZ16&"]")>CC16),INDIRECT("PriorPlansTable["&$BZ16&"]"))) -> 327.57 | CG16: =MIN(IF((PriorPlansTable[Market]=$CG$6)*(PriorPlansTable[Metal]=CG$7)*(INDIRECT("PriorPlansTable["&$BZ16&"]")>0),INDIRECT("PriorPlansTable["&$BZ16&"]"))) -> 0 | CH16: =MIN(IF((PriorPlansTable[Market]=$CG$6)*(PriorPlansTable[Metal]=CH$7)*(INDIRECT("PriorPlansTable["&$BZ16&"]")>0),INDIRECT("PriorPlansTable["&$BZ16&"]"))) -> 199.61 | CI16: =MIN(IF((PriorPlansTable[Market]=$CG$6)*(PriorPlansTable[Metal]=CI$7)*(INDIRECT("PriorPlansTable["&$BZ16&"]")>0),INDIRECT("PriorPlansTable["&$BZ16&"]"))) -> 281.86 | CJ16: =MIN(IF((PriorPlansTable[Market]=$CG$6)*(PriorPlansTable[Metal]=CJ$7)*(INDIRECT("PriorPlansTable["&$BZ16&"]")>0),INDIRECT("PriorPlansTable["&$BZ16&"]"))) -> 317.65 | CK16: =MIN(IF((PriorPlansTable[Market]=$CG$6)*(PriorPlansTable[Metal]=CK$7)*(INDIRECT("PriorPlansTable["&$BZ16&"]")>0),INDIRECT("PriorPlansTable["&$BZ16&"]"))) -> 390.1 | CL16: =MIN(IF((PriorPlansTable[Market]=$CG$6)*(PriorPlansTable[Metal]="Silver")*(INDIRECT("PriorPlansTable["&$BZ16&"]")>CI16),INDIRECT("PriorPlansTable["&$BZ16&"]"))) -> 286.7
B17: IBC | C17: QCC | D17: Individual | E17: 31609PA0180005 | F17: Personal Choice EPO Bronze Basic | G17: EPO | H17: Bronze | I17: Off | J17: 0 | K17: 0 | L17: 0 | M17: 0 | N17: 0 | O17: 0 | P17: 0 | Q17: 0 | R17: 0 | S17: 0 | T17: 0 | U17: 0 | V17: 0 | W17: 0 | X17: 0 | Y17: 0 | Z17: 0 | AA17: 0 | AB17: 0 | AC17: 0 | AD17: 0 | AE17: 0 | AF17: 0 | AG17: 0 | AH17: 0 | AI17: 0 | AJ17: 0 | AK17: 0 | AL17: 0 | AM17: 0 | AN17: 0 | AO17: 0 | AP17: 0 | AQ17: 0 | AR17: 0 | AS17: 0 | AT17: 0 | AU17: 0 | AV17: 0 | AW17: 0 | AX17: 0 | AY17: 0 | AZ17: 0 | BA17: 0 | BB17: 0 | BC17: 0 | BD17: 0 | BE17: 0 | BF17: 0 | BG17: 0 | BH17: 0 | BI17: 0 | BJ17: 0 | BK17: 0 | BL17: 0 | BM17: 271.78 | BN17: 271.78 | BO17: 271.78 | BP17: 271.78 | BQ17: 271.78 | BR17: 0 | BS17: 0 | BT17: 0 | BU17: 0 | BV17: 0 | BW17: 0 | BX17: 0 | BZ17: Elk | CA17: =MIN(IF((PriorPlansTable[Market]=$CA$6)*(PriorPlansTable[Metal]=CA$7)*(INDIRECT("PriorPlansTable["&$BZ17&"]")>0),INDIRECT("PriorPlansTable["&$BZ17&"]"))) -> 204.78 | CB17: =MIN(IF((PriorPlansTable[Market]=$CA$6)*(PriorPlansTable[Metal]=CB$7)*(INDIRECT("PriorPlansTable["&$BZ17&"]")>0),INDIRECT("PriorPlansTable["&$BZ17&"]"))) -> 232.29 | CC17: =MIN(IF((PriorPlansTable[Market]=$CA$6)*(PriorPlansTable[Metal]=CC$7)*(INDIRECT("PriorPlansTable["&$BZ17&"]")>0),INDIRECT("PriorPlansTable["&$BZ17&"]"))) -> 318.09 | CD17: =MIN(IF((PriorPlansTable[Market]=$CA$6)*(PriorPlansTable[Metal]=CD$7)*(INDIRECT("PriorPlansTable["&$BZ17&"]")>0),INDIRECT("PriorPlansTable["&$BZ17&"]"))) -> 351.92 | CE17: =MIN(IF((PriorPlansTable[Market]=$CA$6)*(PriorPlansTable[Metal]=CE$7)*(INDIRECT("PriorPlansTable["&$BZ17&"]")>0),INDIRECT("PriorPlansTable["&$BZ17&"]"))) -> 0 | CF17: =MIN(IF((PriorPlansTable[Market]=$CA$6)*(PriorPlansTable[Metal]="Silver")*(INDIRECT("PriorPlansTable["&$BZ17&"]")>CC17),INDIRECT("PriorPlansTable["&$BZ17&"]"))) -> 327.57 | CG17: =MIN(IF((PriorPlansTable[Market]=$CG$6)*(PriorPlansTable[Metal]=CG$7)*(INDIRECT("PriorPlansTable["&$BZ17&"]")>0),INDIRECT("PriorPlansTable["&$BZ17&"]"))) -> 0 | CH17: =MIN(IF((PriorPlansTable[Market]=$CG$6)*(PriorPlansTable[Metal]=CH$7)*(INDIRECT("PriorPlansTable["&$BZ17&"]")>0),INDIRECT("PriorPlansTable["&$BZ17&"]"))) -> 199.61 | CI17: =MIN(IF((PriorPlansTable[Market]=$CG$6)*(PriorPlansTable[Metal]=CI$7)*(INDIRECT("PriorPlansTable["&$BZ17&"]")>0),INDIRECT("PriorPlansTable["&$BZ17&"]"))) -> 281.86 | CJ17: =MIN(IF((PriorPlansTable[Market]=$CG$6)*(PriorPlansTable[Metal]=CJ$7)*(INDIRECT("PriorPlansTable["&$BZ17&"]")>0),INDIRECT("PriorPlansTable["&$BZ17&"]"))) -> 317.65 | CK17: =MIN(IF((PriorPlansTable[Market]=$CG$6)*(PriorPlansTable[Metal]=CK$7)*(INDIRECT("PriorPlansTable["&$BZ17&"]")>0),INDIRECT("PriorPlansTable["&$BZ17&"]"))) -> 390.1 | CL17: =MIN(IF((PriorPlansTable[Market]=$CG$6)*(PriorPlansTable[Metal]="Silver")*(INDIRECT("PriorPlansTable["&$BZ17&"]")>CI17),INDIRECT("PriorPlansTable["&$BZ17&"]"))) -> 286.7
B18: IBC | C18: QCC | D18: Individual | E18: 31609PA0180007 | F18: Personal Choice EPO Gold | G18: EPO | H18: Gold | I18: Off | J18: 0 | K18: 0 | L18: 0 | M18: 0 | N18: 0 | O18: 0 | P18: 0 | Q18: 0 | R18: 0 | S18: 0 | T18: 0 | U18: 0 | V18: 0 | W18: 0 | X18: 0 | Y18: 0 | Z18: 0 | AA18: 0 | AB18: 0 | AC18: 0 | AD18: 0 | AE18: 0 | AF18: 0 | AG18: 0 | AH18: 0 | AI18: 0 | AJ18: 0 | AK18: 0 | AL18: 0 | AM18: 0 | AN18: 0 | AO18: 0 | AP18: 0 | AQ18: 0 | AR18: 0 | AS18: 0 | AT18: 0 | AU18: 0 | AV18: 0 | AW18: 0 | AX18: 0 | AY18: 0 | AZ18: 0 | BA18: 0 | BB18: 0 | BC18: 0 | BD18: 0 | BE18: 0 | BF18: 0 | BG18: 0 | BH18: 0 | BI18: 0 | BJ18: 0 | BK18: 0 | BL18: 0 | BM18: 572.74 | BN18: 572.74 | BO18: 572.74 | BP18: 572.74 | BQ18: 572.74 | BR18: 0 | BS18: 0 | BT18: 0 | BU18: 0 | BV18: 0 | BW18: 0 | BX18: 0 | BZ18: Potter | CA18: =MIN(IF((PriorPlansTable[Market]=$CA$6)*(PriorPlansTable[Metal]=CA$7)*(INDIRECT("PriorPlansTable["&$BZ18&"]")>0),INDIRECT("PriorPlansTable["&$BZ18&"]"))) -> 204.78 | CB18: =MIN(IF((PriorPlansTable[Market]=$CA$6)*(PriorPlansTable[Metal]=CB$7)*(INDIRECT("PriorPlansTable["&$BZ18&"]")>0),INDIRECT("PriorPlansTable["&$BZ18&"]"))) -> 232.29 | CC18: =MIN(IF((PriorPlansTable[Market]=$CA$6)*(PriorPlansTable[Metal]=CC$7)*(INDIRECT("PriorPlansTable["&$BZ18&"]")>0),INDIRECT("PriorPlansTable["&$BZ18&"]"))) -> 318.09 | CD18: =MIN(IF((PriorPlansTable[Market]=$CA$6)*(PriorPlansTable[Metal]=CD$7)*(INDIRECT("PriorPlansTable["&$BZ18&"]")>0),INDIRECT("PriorPlansTable["&$BZ18&"]"))) -> 351.92 | CE18: =MIN(IF((PriorPlansTable[Market]=$CA$6)*(PriorPlansTable[Metal]=CE$7)*(INDIRECT("PriorPlansTable["&$BZ18&"]")>0),INDIRECT("PriorPlansTable["&$BZ18&"]"))) -> 0 | CF18: =MIN(IF((PriorPlansTable[Market]=$CA$6)*(PriorPlansTable[Metal]="Silver")*(INDIRECT("PriorPlansTable["&$BZ18&"]")>CC18),INDIRECT("PriorPlansTable["&$BZ18&"]"))) -> 327.57 | CG18: =MIN(IF((PriorPlansTable[Market]=$CG$6)*(PriorPlansTable[Metal]=CG$7)*(INDIRECT("PriorPlansTable["&$BZ18&"]")>0),INDIRECT("PriorPlansTable["&$BZ18&"]"))) -> 0 | CH18: =MIN(IF((PriorPlansTable[Market]=$CG$6)*(PriorPlansTable[Metal]=CH$7)*(INDIRECT("PriorPlansTable["&$BZ18&"]")>0),INDIRECT("PriorPlansTable["&$BZ18&"]"))) -> 199.61 | CI18: =MIN(IF((PriorPlansTable[Market]=$CG$6)*(PriorPlansTable[Metal]=CI$7)*(INDIRECT("PriorPlansTable["&$BZ18&"]")>0),INDIRECT("PriorPlansTable["&$BZ18&"]"))) -> 281.86 | CJ18: =MIN(IF((PriorPlansTable[Market]=$CG$6)*(PriorPlansTable[Metal]=CJ$7)*(INDIRECT("PriorPlansTable["&$BZ18&"]")>0),INDIRECT("PriorPlansTable["&$BZ18&"]"))) -> 317.65 | CK18: =MIN(IF((PriorPlansTable[Market]=$CG$6)*(PriorPlansTable[Metal]=CK$7)*(INDIRECT("PriorPlansTable["&$BZ18&"]")>0),INDIRECT("PriorPlansTable["&$BZ18&"]"))) -> 390.1 | CL18: =MIN(IF((PriorPlansTable[Market]=$CG$6)*(PriorPlansTable[Metal]="Silver")*(INDIRECT("PriorPlansTable["&$BZ18&"]")>CI18),INDIRECT("PriorPlansTable["&$BZ18&"]"))) -> 286.7
B19: IBC | C19: QCC | D19: Individual | E19: 31609PA0190002 | F19: Personal Choice PPO Gold | G19: PPO | H19: Gold | I19: Off | J19: 0 | K19: 0 | L19: 0 | M19: 0 | N19: 0 | O19: 0 | P19: 0 | Q19: 0 | R19: 0 | S19: 0 | T19: 0 | U19: 0 | V19: 0 | W19: 0 | X19: 0 | Y19: 0 | Z19: 0 | AA19: 0 | AB19: 0 | AC19: 0 | AD19: 0 | AE19: 0 | AF19: 0 | AG19: 0 | AH19: 0 | AI19: 0 | AJ19: 0 | AK19: 0 | AL19: 0 | AM19: 0 | AN19: 0 | AO19: 0 | AP19: 0 | AQ19: 0 | AR19: 0 | AS19: 0 | AT19: 0 | AU19: 0 | AV19: 0 | AW19: 0 | AX19: 0 | AY19: 0 | AZ19: 0 | BA19: 0 | BB19: 0 | BC19: 0 | BD19: 0 | BE19: 0 | BF19: 0 | BG19: 0 | BH19: 0 | BI19: 0 | BJ19: 0 | BK19: 0 | BL19: 0 | BM19: 550.38 | BN19: 550.38 | BO19: 550.38 | BP19: 550.38 | BQ19: 550.38 | BR19: 0 | BS19: 0 | BT19: 0 | BU19: 0 | BV19: 0 | BW19: 0 | BX19: 0 | BZ19: Bradford | CA19: =MIN(IF((PriorPlansTable[Market]=$CA$6)*(PriorPlansTable[Metal]=CA$7)*(INDIRECT("PriorPlansTable["&$BZ19&"]")>0),INDIRECT("PriorPlansTable["&$BZ19&"]"))) -> 193.5 | CB19: =MIN(IF((PriorPlansTable[Market]=$CA$6)*(PriorPlansTable[Metal]=CB$7)*(INDIRECT("PriorPlansTable["&$BZ19&"]")>0),INDIRECT("PriorPlansTable["&$BZ19&"]"))) -> 228.2 | CC19: =MIN(IF((PriorPlansTable[Market]=$CA$6)*(PriorPlansTable[Metal]=CC$7)*(INDIRECT("PriorPlansTable["&$BZ19&"]")>0),INDIRECT("PriorPlansTable["&$BZ19&"]"))) -> 234.88 | CD19: =MIN(IF((PriorPlansTable[Market]=$CA$6)*(PriorPlansTable[Metal]=CD$7)*(INDIRECT("PriorPlansTable["&$BZ19&"]")>0),INDIRECT("PriorPlansTable["&$BZ19&"]"))) -> 295.53 | CE19: =MIN(IF((PriorPlansTable[Market]=$CA$6)*(PriorPlansTable[Metal]=CE$7)*(INDIRECT("PriorPlansTable["&$BZ19&"]")>0),INDIRECT("PriorPlansTable["&$BZ19&"]"))) -> 0 | CF19: =MIN(IF((PriorPlansTable[Market]=$CA$6)*(PriorPlansTable[Metal]="Silver")*(INDIRECT("PriorPlansTable["&$BZ19&"]")>CC19),INDIRECT("PriorPlansTable["&$BZ19&"]"))) -> 242.34 | CG19: =MIN(IF((PriorPlansTable[Market]=$CG$6)*(PriorPlansTable[Metal]=CG$7)*(INDIRECT("PriorPlansTable["&$BZ19&"]")>0),INDIRECT("PriorPlansTable["&$BZ19&"]"))) -> 0 | CH19: =MIN(IF((PriorPlansTable[Market]=$CG$6)*(PriorPlansTable[Metal]=CH$7)*(INDIRECT("PriorPlansTable["&$BZ19&"]")>0),INDIRECT("PriorPlansTable["&$BZ19&"]"))) -> 226.09 | CI19: =MIN(IF((PriorPlansTable[Market]=$CG$6)*(PriorPlansTable[Metal]=CI$7)*(INDIRECT("PriorPlansTable["&$BZ19&"]")>0),INDIRECT("PriorPlansTable["&$BZ19&"]"))) -> 292.44 | CJ19: =MIN(IF((PriorPlansTable[Market]=$CG$6)*(PriorPlansTable[Metal]=CJ$7)*(INDIRECT("PriorPlansTable["&$BZ19&"]")>0),INDIRECT("PriorPlansTable["&$BZ19&"]"))) -> 327.1 | CK19: =MIN(IF((PriorPlansTable[Market]=$CG$6)*(PriorPlansTable[Metal]=CK$7)*(INDIRECT("PriorPlansTable["&$BZ19&"]")>0),INDIRECT("PriorPlansTable["&$BZ19&"]"))) -> 428.33 | CL19: =MIN(IF((PriorPlansTable[Market]=$CG$6)*(PriorPlansTable[Metal]="Silver")*(INDIRECT("PriorPlansTable["&$BZ19&"]")>CI19),INDIRECT("PriorPlansTable["&$BZ19&"]"))) -> 299.82
B20: IBC | C20: QCC | D20: Individual | E20: 31609PA0190003 | F20: Personal Choice PPO Silver | G20: PPO | H20: Silver | I20: Off | J20: 0 | K20: 0 | L20: 0 | M20: 0 | N20: 0 | O20: 0 | P20: 0 | Q20: 0 | R20: 0 | S20: 0 | T20: 0 | U20: 0 | V20: 0 | W20: 0 | X20: 0 | Y20: 0 | Z20: 0 | AA20: 0 | AB20: 0 | AC20: 0 | AD20: 0 | AE20: 0 | AF20: 0 | AG20: 0 | AH20: 0 | AI20: 0 | AJ20: 0 | AK20: 0 | AL20: 0 | AM20: 0 | AN20: 0 | AO20: 0 | AP20: 0 | AQ20: 0 | AR20: 0 | AS20: 0 | AT20: 0 | AU20: 0 | AV20: 0 | AW20: 0 | AX20: 0 | AY20: 0 | AZ20: 0 | BA20: 0 | BB20: 0 | BC20: 0 | BD20: 0 | BE20: 0 | BF20: 0 | BG20: 0 | BH20: 0 | BI20: 0 | BJ20: 0 | BK20: 0 | BL20: 0 | BM20: 481.3 | BN20: 481.3 | BO20: 481.3 | BP20: 481.3 | BQ20: 481.3 | BR20: 0 | BS20: 0 | BT20: 0 | BU20: 0 | BV20: 0 | BW20: 0 | BX20: 0 | BZ20: Carbon | CA20: =MIN(IF((PriorPlansTable[Market]=$CA$6)*(PriorPlansTable[Metal]=CA$7)*(INDIRECT("PriorPlansTable["&$BZ20&"]")>0),INDIRECT("PriorPlansTable["&$BZ20&"]"))) -> 193.5 | CB20: =MIN(IF((PriorPlansTable[Market]=$CA$6)*(PriorPlansTable[Metal]=CB$7)*(INDIRECT("PriorPlansTable["&$BZ20&"]")>0),INDIRECT("PriorPlansTable["&$BZ20&"]"))) -> 215.1 | CC20: =MIN(IF((PriorPlansTable[Market]=$CA$6)*(PriorPlansTable[Metal]=CC$7)*(INDIRECT("PriorPlansTable["&$BZ20&"]")>0),INDIRECT("PriorPlansTable["&$BZ20&"]"))) -> 284.82 | CD20: =MIN(IF((PriorPlansTable[Market]=$CA$6)*(PriorPlansTable[Metal]=CD$7)*(INDIRECT("PriorPlansTable["&$BZ20&"]")>0),INDIRECT("PriorPlansTable["&$BZ20&"]"))) -> 335.49 | CE20: =MIN(IF((PriorPlansTable[Market]=$CA$6)*(PriorPlansTable[Metal]=CE$7)*(INDIRECT("PriorPlansTable["&$BZ20&"]")>0),INDIRECT("PriorPlansTable["&$BZ20&"]"))) -> 0 | CF20: =MIN(IF((PriorPlansTable[Market]=$CA$6)*(PriorPlansTable[Metal]="Silver")*(INDIRECT("PriorPlansTable["&$BZ20&"]")>CC20),INDIRECT("PriorPlansTable["&$BZ20&"]"))) -> 291.35 | CG20: =MIN(IF((PriorPlansTable[Market]=$CG$6)*(PriorPlansTable[Metal]=CG$7)*(INDIRECT("PriorPlansTable["&$BZ20&"]")>0),INDIRECT("PriorPlansTable["&$BZ20&"]"))) -> 0 | CH20: =MIN(IF((PriorPlansTable[Market]=$CG$6)*(PriorPlansTable[Metal]=CH$7)*(INDIRECT("PriorPlansTable["&$BZ20&"]")>0),INDIRECT("PriorPlansTable["&$BZ20&"]"))) -> 226.09 | CI20: =MIN(IF((PriorPlansTable[Market]=$CG$6)*(PriorPlansTable[Metal]=CI$7)*(INDIRECT("PriorPlansTable["&$BZ20&"]")>0),INDIRECT("PriorPlansTable["&$BZ20&"]"))) -> 292.44 | CJ20: =MIN(IF((PriorPlansTable[Market]=$CG$6)*(PriorPlansTable[Metal]=CJ$7)*(INDIRECT("PriorPlansTable["&$BZ20&"]")>0),INDIRECT("PriorPlansTable["&$BZ20&"]"))) -> 327.1 | CK20: =MIN(IF((PriorPlansTable[Market]=$CG$6)*(PriorPlansTable[Metal]=CK$7)*(INDIRECT("PriorPlansTable["&$BZ20&"]")>0),INDIRECT("PriorPlansTable["&$BZ20&"]"))) -> 420.47 | CL20: =MIN(IF((PriorPlansTable[Market]=$CG$6)*(PriorPlansTable[Metal]="Silver")*(INDIRECT("PriorPlansTable["&$BZ20&"]")>CI20),INDIRECT("PriorPlansTable["&$BZ20&"]"))) -> 299.82
B21: IBC | C21: QCC | D21: Individual | E21: 31609PA0190004 | F21: Personal Choice PPO Bronze | G21: PPO | H21: Bronze | I21: Off | J21: 0 | K21: 0 | L21: 0 | M21: 0 | N21: 0 | O21: 0 | P21: 0 | Q21: 0 | R21: 0 | S21: 0 | T21: 0 | U21: 0 | V21: 0 | W21: 0 | X21: 0 | Y21: 0 | Z21: 0 | AA21: 0 | AB21: 0 | AC21: 0 | AD21: 0 | AE21: 0 | AF21: 0 | AG21: 0 | AH21: 0 | AI21: 0 | AJ21: 0 | AK21: 0 | AL21: 0 | AM21: 0 | AN21: 0 | AO21: 0 | AP21: 0 | AQ21: 0 | AR21: 0 | AS21: 0 | AT21: 0 | AU21: 0 | AV21: 0 | AW21: 0 | AX21: 0 | AY21: 0 | AZ21: 0 | BA21: 0 | BB21: 0 | BC21: 0 | BD21: 0 | BE21: 0 | BF21: 0 | BG21: 0 | BH21: 0 | BI21: 0 | BJ21: 0 | BK21: 0 | BL21: 0 | BM21: 322.38 | BN21: 322.38 | BO21: 322.38 | BP21: 322.38 | BQ21: 322.38 | BR21: 0 | BS21: 0 | BT21: 0 | BU21: 0 | BV21: 0 | BW21: 0 | BX21: 0 | BZ21: Clinton | CA21: =MIN(IF((PriorPlansTable[Market]=$CA$6)*(PriorPlansTable[Metal]=CA$7)*(INDIRECT("PriorPlansTable["&$BZ21&"]")>0),INDIRECT("PriorPlansTable["&$BZ21&"]"))) -> 193.5 | CB21: =MIN(IF((PriorPlansTable[Market]=$CA$6)*(PriorPlansTable[Metal]=CB$7)*(INDIRECT("PriorPlansTable["&$BZ21&"]")>0),INDIRECT("PriorPlansTable["&$BZ21&"]"))) -> 228.83 | CC21: =MIN(IF((PriorPlansTable[Market]=$CA$6)*(PriorPlansTable[Metal]=CC$7)*(INDIRECT("PriorPlansTable["&$BZ21&"]")>0),INDIRECT("PriorPlansTable["&$BZ21&"]"))) -> 280.06 | CD21: =MIN(IF((PriorPlansTable[Market]=$CA$6)*(PriorPlansTable[Metal]=CD$7)*(INDIRECT("PriorPlansTable["&$BZ21&"]")>0),INDIRECT("PriorPlansTable["&$BZ21&"]"))) -> 292.19 | CE21: =MIN(IF((PriorPlansTable[Market]=$CA$6)*(PriorPlansTable[Metal]=CE$7)*(INDIRECT("PriorPlansTable["&$BZ21&"]")>0),INDIRECT("PriorPlansTable["&$BZ21&"]"))) -> 0 | CF21: =MIN(IF((PriorPlansTable[Market]=$CA$6)*(PriorPlansTable[Metal]="Silver")*(INDIRECT("PriorPlansTable["&$BZ21&"]")>CC21),INDIRECT("PriorPlansTable["&$BZ21&"]"))) -> 284.82 | CG21: =MIN(IF((PriorPlansTable[Market]=$CG$6)*(PriorPlansTable[Metal]=CG$7)*(INDIRECT("PriorPlansTable["&$BZ21&"]")>0),INDIRECT("PriorPlansTable["&$BZ21&"]"))) -> 0 | CH21: =MIN(IF((PriorPlansTable[Market]=$CG$6)*(PriorPlansTable[Metal]=CH$7)*(INDIRECT("PriorPlansTable["&$BZ21&"]")>0),INDIRECT("PriorPlansTable["&$BZ21&"]"))) -> 226.09 | CI21: =MIN(IF((PriorPlansTable[Market]=$CG$6)*(PriorPlansTable[Metal]=CI$7)*(INDIRECT("PriorPlansTable["&$BZ21&"]")>0),INDIRECT("PriorPlansTable["&$BZ21&"]"))) -> 261.48 | CJ21: =MIN(IF((PriorPlansTable[Market]=$CG$6)*(PriorPlansTable[Metal]=CJ$7)*(INDIRECT("PriorPlansTable["&$BZ21&"]")>0),INDIRECT("PriorPlansTable["&$BZ21&"]"))) -> 320.76 | CK21: =MIN(IF((PriorPlansTable[Market]=$CG$6)*(PriorPlansTable[Metal]=CK$7)*(INDIRECT("PriorPlansTable["&$BZ21&"]")>0),INDIRECT("PriorPlansTable["&$BZ21&"]"))) -> 428.33 | CL21: =MIN(IF((PriorPlansTable[Market]=$CG$6)*(PriorPlansTable[Metal]="Silver")*(INDIRECT("PriorPlansTable["&$BZ21&"]")>CI21),INDIRECT("PriorPlansTable["&$BZ21&"]"))) -> 269.3
B22: IBC | C22: QCC | D22: Small Group | E22: 31609PA0150025 | F22: Personal Choice PPO Platinum Preferred $10/$20/$200 | G22: PPO | H22: Platinum | I22: Off | J22: 0 | K22: 0 | L22: 0 | M22: 0 | N22: 0 | O22: 0 | P22: 0 | Q22: 0 | R22: 0 | S22: 0 | T22: 0 | U22: 0 | V22: 0 | W22: 0 | X22: 0 | Y22: 0 | Z22: 0 | AA22: 0 | AB22: 0 | AC22: 0 | AD22: 0 | AE22: 0 | AF22: 0 | AG22: 0 | AH22: 0 | AI22: 0 | AJ22: 0 | AK22: 0 | AL22: 0 | AM22: 0 | AN22: 0 | AO22: 0 | AP22: 0 | AQ22: 0 | AR22: 0 | AS22: 0 | AT22: 0 | AU22: 0 | AV22: 0 | AW22: 0 | AX22: 0 | AY22: 0 | AZ22: 0 | BA22: 0 | BB22: 0 | BC22: 0 | BD22: 0 | BE22: 0 | BF22: 0 | BG22: 0 | BH22: 0 | BI22: 0 | BJ22: 0 | BK22: 0 | BL22: 0 | BM22: 579.97 | BN22: 579.97 | BO22: 579.97 | BP22: 579.97 | BQ22: 579.97 | BR22: 0 | BS22: 0 | BT22: 0 | BU22: 0 | BV22: 0 | BW22: 0 | BX22: 0 | BZ22: Lackawanna | CA22: =MIN(IF((PriorPlansTable[Market]=$CA$6)*(PriorPlansTable[Metal]=CA$7)*(INDIRECT("PriorPlansTable["&$BZ22&"]")>0),INDIRECT("PriorPlansTable["&$BZ22&"]"))) -> 193.5 | CB22: =MIN(IF((PriorPlansTable[Market]=$CA$6)*(PriorPlansTable[Metal]=CB$7)*(INDIRECT("PriorPlansTable["&$BZ22&"]")>0),INDIRECT("PriorPlansTable["&$BZ22&"]"))) -> 215.1 | CC22: =MIN(IF((PriorPlansTable[Market]=$CA$6)*(PriorPlansTable[Metal]=CC$7)*(INDIRECT("PriorPlansTable["&$BZ22&"]")>0),INDIRECT("PriorPlansTable["&$BZ22&"]"))) -> 234.88 | CD22: =MIN(IF((PriorPlansTable[Market]=$CA$6)*(PriorPlansTable[Metal]=CD$7)*(INDIRECT("PriorPlansTable["&$BZ22&"]")>0),INDIRECT("PriorPlansTable["&$BZ22&"]"))) -> 295.53 | CE22: =MIN(IF((PriorPlansTable[Market]=$CA$6)*(PriorPlansTable[Metal]=CE$7)*(INDIRECT("PriorPlansTable["&$BZ22&"]")>0),INDIRECT("PriorPlansTable["&$BZ22&"]"))) -> 0 | CF22: =MIN(IF((PriorPlansTable[Market]=$CA$6)*(PriorPlansTable[Metal]="Silver")*(INDIRECT("PriorPlansTable["&$BZ22&"]")>CC22),INDIRECT("PriorPlansTable["&$BZ22&"]"))) -> 242.34 | CG22: =MIN(IF((PriorPlansTable[Market]=$CG$6)*(PriorPlansTable[Metal]=CG$7)*(INDIRECT("PriorPlansTable["&$BZ22&"]")>0),INDIRECT("PriorPlansTable["&$BZ22&"]"))) -> 0 | CH22: =MIN(IF((PriorPlansTable[Market]=$CG$6)*(PriorPlansTable[Metal]=CH$7)*(INDIRECT("PriorPlansTable["&$BZ22&"]")>0),INDIRECT("PriorPlansTable["&$BZ22&"]"))) -> 226.09 | CI22: =MIN(IF((PriorPlansTable[Market]=$CG$6)*(PriorPlansTable[Metal]=CI$7)*(INDIRECT("PriorPlansTable["&$BZ22&"]")>0),INDIRECT("PriorPlansTable["&$BZ22&"]"))) -> 292.44 | CJ22: =MIN(IF((PriorPlansTable[Market]=$CG$6)*(PriorPlansTable[Metal]=CJ$7)*(INDIRECT("PriorPlansTable["&$BZ22&"]")>0),INDIRECT("PriorPlansTable["&$BZ22&"]"))) -> 327.1 | CK22: =MIN(IF((PriorPlansTable[Market]=$CG$6)*(PriorPlansTable[Metal]=CK$7)*(INDIRECT("PriorPlansTable["&$BZ22&"]")>0),INDIRECT("PriorPlansTable["&$BZ22&"]"))) -> 420.47 | CL22: =MIN(IF((PriorPlansTable[Market]=$CG$6)*(PriorPlansTable[Metal]="Silver")*(INDIRECT("PriorPlansTable["&$BZ22&"]")>CI22),INDIRECT("PriorPlansTable["&$BZ22&"]"))) -> 299.82
B23: IBC | C23: QCC | D23: Small Group | E23: 31609PA0150026 | F23: Personal Choice PPO Platinum Preferred $20/$40/$250 | G23: PPO | H23: Platinum | I23: Off | J23: 0 | K23: 0 | L23: 0 | M23: 0 | N23: 0 | O23: 0 | P23: 0 | Q23: 0 | R23: 0 | S23: 0 | T23: 0 | U23: 0 | V23: 0 | W23: 0 | X23: 0 | Y23: 0 | Z23: 0 | AA23: 0 | AB23: 0 | AC23: 0 | AD23: 0 | AE23: 0 | AF23: 0 | AG23: 0 | AH23: 0 | AI23: 0 | AJ23: 0 | AK23: 0 | AL23: 0 | AM23: 0 | AN23: 0 | AO23: 0 | AP23: 0 | AQ23: 0 | AR23: 0 | AS23: 0 | AT23: 0 | AU23: 0 | AV23: 0 | AW23: 0 | AX23: 0 | AY23: 0 | AZ23: 0 | BA23: 0 | BB23: 0 | BC23: 0 | BD23: 0 | BE23: 0 | BF23: 0 | BG23: 0 | BH23: 0 | BI23: 0 | BJ23: 0 | BK23: 0 | BL23: 0 | BM23: 552.04 | BN23: 552.04 | BO23: 552.04 | BP23: 552.04 | BQ23: 552.04 | BR23: 0 | BS23: 0 | BT23: 0 | BU23: 0 | BV23: 0 | BW23: 0 | BX23: 0 | BZ23: Luzerne | CA23: =MIN(IF((PriorPlansTable[Market]=$CA$6)*(PriorPlansTable[Metal]=CA$7)*(INDIRECT("PriorPlansTable["&$BZ23&"]")>0),INDIRECT("PriorPlansTable["&$BZ23&"]"))) -> 190.18 | CB23: =MIN(IF((PriorPlansTable[Market]=$CA$6)*(PriorPlansTable[Metal]=CB$7)*(INDIRECT("PriorPlansTable["&$BZ23&"]")>0),INDIRECT("PriorPlansTable["&$BZ23&"]"))) -> 215.1 | CC23: =MIN(IF((PriorPlansTable[Market]=$CA$6)*(PriorPlansTable[Metal]=CC$7)*(INDIRECT("PriorPlansTable["&$BZ23&"]")>0),INDIRECT("PriorPlansTable["&$BZ23&"]"))) -> 234.88 | CD23: =MIN(IF((PriorPlansTable[Market]=$CA$6)*(PriorPlansTable[Metal]=CD$7)*(INDIRECT("PriorPlansTable["&$BZ23&"]")>0),INDIRECT("PriorPlansTable["&$BZ23&"]"))) -> 286.1 | CE23: =MIN(IF((PriorPlansTable[Market]=$CA$6)*(PriorPlansTable[Metal]=CE$7)*(INDIRECT("PriorPlansTable["&$BZ23&"]")>0),INDIRECT("PriorPlansTable["&$BZ23&"]"))) -> 0 | CF23: =MIN(IF((PriorPlansTable[Market]=$CA$6)*(PriorPlansTable[Metal]="Silver")*(INDIRECT("PriorPlansTable["&$BZ23&"]")>CC23),INDIRECT("PriorPlansTable["&$BZ23&"]"))) -> 242.34 | CG23: =MIN(IF((PriorPlansTable[Market]=$CG$6)*(PriorPlansTable[Metal]=CG$7)*(INDIRECT("PriorPlansTable["&$BZ23&"]")>0),INDIRECT("PriorPlansTable["&$BZ23&"]"))) -> 0 | CH23: =MIN(IF((PriorPlansTable[Market]=$CG$6)*(PriorPlansTable[Metal]=CH$7)*(INDIRECT("PriorPlansTable["&$BZ23&"]")>0),INDIRECT("PriorPlansTable["&$BZ23&"]"))) -> 226.09 | CI23: =MIN(IF((PriorPlansTable[Market]=$CG$6)*(PriorPlansTable[Metal]=CI$7)*(INDIRECT("PriorPlansTable["&$BZ23&"]")>0),INDIRECT("PriorPlansTable["&$BZ23&"]"))) -> 292.44 | CJ23: =MIN(IF((PriorPlansTable[Market]=$CG$6)*(PriorPlansTable[Metal]=CJ$7)*(INDIRECT("PriorPlansTable["&$BZ23&"]")>0),INDIRECT("PriorPlansTable["&$BZ23&"]"))) -> 327.1 | CK23: =MIN(IF((PriorPlansTable[Market]=$CG$6)*(PriorPlansTable[Metal]=CK$7)*(INDIRECT("PriorPlansTable["&$BZ23&"]")>0),INDIRECT("PriorPlansTable["&$BZ23&"]"))) -> 420.47 | CL23: =MIN(IF((PriorPlansTable[Market]=$CG$6)*(PriorPlansTable[Metal]="Silver")*(INDIRECT("PriorPlansTable["&$BZ23&"]")>CI23),INDIRECT("PriorPlansTable["&$BZ23&"]"))) -> 299.82
B24: IBC | C24: QCC | D24: Small Group | E24: 31609PA0150027 | F24: Personal Choice PPO Gold Preferred $40/$80/$600 | G24: PPO | H24: Gold | I24: Off | J24: 0 | K24: 0 | L24: 0 | M24: 0 | N24: 0 | O24: 0 | P24: 0 | Q24: 0 | R24: 0 | S24: 0 | T24: 0 | U24: 0 | V24: 0 | W24: 0 | X24: 0 | Y24: 0 | Z24: 0 | AA24: 0 | AB24: 0 | AC24: 0 | AD24: 0 | AE24: 0 | AF24: 0 | AG24: 0 | AH24: 0 | AI24: 0 | AJ24: 0 | AK24: 0 | AL24: 0 | AM24: 0 | AN24: 0 | AO24: 0 | AP24: 0 | AQ24: 0 | AR24: 0 | AS24: 0 | AT24: 0 | AU24: 0 | AV24: 0 | AW24: 0 | AX24: 0 | AY24: 0 | AZ24: 0 | BA24: 0 | BB24: 0 | BC24: 0 | BD24: 0 | BE24: 0 | BF24: 0 | BG24: 0 | BH24: 0 | BI24: 0 | BJ24: 0 | BK24: 0 | BL24: 0 | BM24: 441.34 | BN24: 441.34 | BO24: 441.34 | BP24: 441.34 | BQ24: 441.34 | BR24: 0 | BS24: 0 | BT24: 0 | BU24: 0 | BV24: 0 | BW24: 0 | BX24: 0 | BZ24: Lycoming | CA24: =MIN(IF((PriorPlansTable[Market]=$CA$6)*(PriorPlansTable[Metal]=CA$7)*(INDIRECT("PriorPlansTable["&$BZ24&"]")>0),INDIRECT("PriorPlansTable["&$BZ24&"]"))) -> 193.5 | CB24: =MIN(IF((PriorPlansTable[Market]=$CA$6)*(PriorPlansTable[Metal]=CB$7)*(INDIRECT("PriorPlansTable["&$BZ24&"]")>0),INDIRECT("PriorPlansTable["&$BZ24&"]"))) -> 228.83 | CC24: =MIN(IF((PriorPlansTable[Market]=$CA$6)*(PriorPlansTable[Metal]=CC$7)*(INDIRECT("PriorPlansTable["&$BZ24&"]")>0),INDIRECT("PriorPlansTable["&$BZ24&"]"))) -> 280.06 | CD24: =MIN(IF((PriorPlansTable[Market]=$CA$6)*(PriorPlansTable[Metal]=CD$7)*(INDIRECT("PriorPlansTable["&$BZ24&"]")>0),INDIRECT("PriorPlansTable["&$BZ24&"]"))) -> 292.19 | CE24: =MIN(IF((PriorPlansTable[Market]=$CA$6)*(PriorPlansTable[Metal]=CE$7)*(INDIRECT("PriorPlansTable["&$BZ24&"]")>0),INDIRECT("PriorPlansTable["&$BZ24&"]"))) -> 0 | CF24: =MIN(IF((PriorPlansTable[Market]=$CA$6)*(PriorPlansTable[Metal]="Silver")*(INDIRECT("PriorPlansTable["&$BZ24&"]")>CC24),INDIRECT("PriorPlansTable["&$BZ24&"]"))) -> 284.82 | CG24: =MIN(IF((PriorPlansTable[Market]=$CG$6)*(PriorPlansTable[Metal]=CG$7)*(INDIRECT("PriorPlansTable["&$BZ24&"]")>0),INDIRECT("PriorPlansTable["&$BZ24&"]"))) -> 0 | CH24: =MIN(IF((PriorPlansTable[Market]=$CG$6)*(PriorPlansTable[Metal]=CH$7)*(INDIRECT("PriorPlansTable["&$BZ24&"]")>0),INDIRECT("PriorPlansTable["&$BZ24&"]"))) -> 226.09 | CI24: =MIN(IF((PriorPlansTable[Market]=$CG$6)*(PriorPlansTable[Metal]=CI$7)*(INDIRECT("PriorPlansTable["&$BZ24&"]")>0),INDIRECT("PriorPlansTable["&$BZ24&"]"))) -> 261.48 | CJ24: =MIN(IF((PriorPlansTable[Market]=$CG$6)*(PriorPlansTable[Metal]=CJ$7)*(INDIRECT("PriorPlansTable["&$BZ24&"]")>0),INDIRECT("PriorPlansTable["&$BZ24&"]"))) -> 320.76 | CK24: =MIN(IF((PriorPlansTable[Market]=$CG$6)*(PriorPlansTable[Metal]=CK$7)*(INDIRECT("PriorPlansTable["&$BZ24&"]")>0),INDIRECT("PriorPlansTable["&$BZ24&"]"))) -> 428.33 | CL24: =MIN(IF((PriorPlansTable[Market]=$CG$6)*(PriorPlansTable[Metal]="Silver")*(INDIRECT("PriorPlansTable["&$BZ24&"]")>CI24),INDIRECT("PriorPlansTable["&$BZ24&"]"))) -> 269.3
B25: IBC | C25: QCC | D25: Small Group | E25: 31609PA0150028 | F25: Personal Choice PPO Gold Classic $1,500/$20/$40/80% | G25: PPO | H25: Gold | I25: Off | J25: 0 | K25: 0 | L25: 0 | M25: 0 | N25: 0 | O25: 0 | P25: 0 | Q25: 0 | R25: 0 | S25: 0 | T25: 0 | U25: 0 | V25: 0 | W25: 0 | X25: 0 | Y25: 0 | Z25: 0 | AA25: 0 | AB25: 0 | AC25: 0 | AD25: 0 | AE25: 0 | AF25: 0 | AG25: 0 | AH25: 0 | AI25: 0 | AJ25: 0 | AK25: 0 | AL25: 0 | AM25: 0 | AN25: 0 | AO25: 0 | AP25: 0 | AQ25: 0 | AR25: 0 | AS25: 0 | AT25: 0 | AU25: 0 | AV25: 0 | AW25: 0 | AX25: 0 | AY25: 0 | AZ25: 0 | BA25: 0 | BB25: 0 | BC25: 0 | BD25: 0 | BE25: 0 | BF25: 0 | BG25: 0 | BH25: 0 | BI25: 0 | BJ25: 0 | BK25: 0 | BL25: 0 | BM25: 432.15 | BN25: 432.15 | BO25: 432.15 | BP25: 432.15 | BQ25: 432.15 | BR25: 0 | BS25: 0 | BT25: 0 | BU25: 0 | BV25: 0 | BW25: 0 | BX25: 0 | BZ25: Monroe | CA25: =MIN(IF((PriorPlansTable[Market]=$CA$6)*(PriorPlansTable[Metal]=CA$7)*(INDIRECT("PriorPlansTable["&$BZ25&"]")>0),INDIRECT("PriorPlansTable["&$BZ25&"]"))) -> 190.18 | CB25: =MIN(IF((PriorPlansTable[Market]=$CA$6)*(PriorPlansTable[Metal]=CB$7)*(INDIRECT("PriorPlansTable["&$BZ25&"]")>0),INDIRECT("PriorPlansTable["&$BZ25&"]"))) -> 215.1 | CC25: =MIN(IF((PriorPlansTable[Market]=$CA$6)*(PriorPlansTable[Metal]=CC$7)*(INDIRECT("PriorPlansTable["&$BZ25&"]")>0),INDIRECT("PriorPlansTable["&$BZ25&"]"))) -> 249.47 | CD25: =MIN(IF((PriorPlansTable[Market]=$CA$6)*(PriorPlansTable[Metal]=CD$7)*(INDIRECT("PriorPlansTable["&$BZ25&"]")>0),INDIRECT("PriorPlansTable["&$BZ25&"]"))) -> 286.1 | CE25: =MIN(IF((PriorPlansTable[Market]=$CA$6)*(PriorPlansTable[Metal]=CE$7)*(INDIRECT("PriorPlansTable["&$BZ25&"]")>0),INDIRECT("PriorPlansTable["&$BZ25&"]"))) -> 0 | CF25: =MIN(IF((PriorPlansTable[Market]=$CA$6)*(PriorPlansTable[Metal]="Silver")*(INDIRECT("PriorPlansTable["&$BZ25&"]")>CC25),INDIRECT("PriorPlansTable["&$BZ25&"]"))) -> 258.55 | CG25: =MIN(IF((PriorPlansTable[Market]=$CG$6)*(PriorPlansTable[Metal]=CG$7)*(INDIRECT("PriorPlansTable["&$BZ25&"]")>0),INDIRECT("PriorPlansTable["&$BZ25&"]"))) -> 0 | CH25: =MIN(IF((PriorPlansTable[Market]=$CG$6)*(PriorPlansTable[Metal]=CH$7)*(INDIRECT("PriorPlansTable["&$BZ25&"]")>0),INDIRECT("PriorPlansTable["&$BZ25&"]"))) -> 243.37 | CI25: =MIN(IF((PriorPlansTable[Market]=$CG$6)*(PriorPlansTable[Metal]=CI$7)*(INDIRECT("PriorPlansTable["&$BZ25&"]")>0),INDIRECT("PriorPlansTable["&$BZ25&"]"))) -> 311.01 | CJ25: =MIN(IF((PriorPlansTable[Market]=$CG$6)*(PriorPlansTable[Metal]=CJ$7)*(INDIRECT("PriorPlansTable["&$BZ25&"]")>0),INDIRECT("PriorPlansTable["&$BZ25&"]"))) -> 358.08 | CK25: =MIN(IF((PriorPlansTable[Market]=$CG$6)*(PriorPlansTable[Metal]=CK$7)*(INDIRECT("PriorPlansTable["&$BZ25&"]")>0),INDIRECT("PriorPlansTable["&$BZ25&"]"))) -> 420.47 | CL25: =MIN(IF((PriorPlansTable[Market]=$CG$6)*(PriorPlansTable[Metal]="Silver")*(INDIRECT("PriorPlansTable["&$BZ25&"]")>CI25),INDIRECT("PriorPlansTable["&$BZ25&"]"))) -> 322.64
B26: IBC | C26: QCC | D26: Small Group | E26: 31609PA0150029 | F26: Personal Choice PPO Silver Classic $3,750/$30/$60/70% | G26: PPO | H26: Silver | I26: Off | J26: 0 | K26: 0 | L26: 0 | M26: 0 | N26: 0 | O26: 0 | P26: 0 | Q26: 0 | R26: 0 | S26: 0 | T26: 0 | U26: 0 | V26: 0 | W26: 0 | X26: 0 | Y26: 0 | Z26: 0 | AA26: 0 | AB26: 0 | AC26: 0 | AD26: 0 | AE26: 0 | AF26: 0 | AG26: 0 | AH26: 0 | AI26: 0 | AJ26: 0 | AK26: 0 | AL26: 0 | AM26: 0 | AN26: 0 | AO26: 0 | AP26: 0 | AQ26: 0 | AR26: 0 | AS26: 0 | AT26: 0 | AU26: 0 | AV26: 0 | AW26: 0 | AX26: 0 | AY26: 0 | AZ26: 0 | BA26: 0 | BB26: 0 | BC26: 0 | BD26: 0 | BE26: 0 | BF26: 0 | BG26: 0 | BH26: 0 | BI26: 0 | BJ26: 0 | BK26: 0 | BL26: 0 | BM26: 353.46 | BN26: 353.46 | BO26: 353.46 | BP26: 353.46 | BQ26: 353.46 | BR26: 0 | BS26: 0 | BT26: 0 | BU26: 0 | BV26: 0 | BW26: 0 | BX26: 0 | BZ26: Pike | CA26: =MIN(IF((PriorPlansTable[Market]=$CA$6)*(PriorPlansTable[Metal]=CA$7)*(INDIRECT("PriorPlansTable["&$BZ26&"]")>0),INDIRECT("PriorPlansTable["&$BZ26&"]"))) -> 193.5 | CB26: =MIN(IF((PriorPlansTable[Market]=$CA$6)*(PriorPlansTable[Metal]=CB$7)*(INDIRECT("PriorPlansTable["&$BZ26&"]")>0),INDIRECT("PriorPlansTable["&$BZ26&"]"))) -> 228.83 | CC26: =MIN(IF((PriorPlansTable[Market]=$CA$6)*(PriorPlansTable[Metal]=CC$7)*(INDIRECT("PriorPlansTable["&$BZ26&"]")>0),INDIRECT("PriorPlansTable["&$BZ26&"]"))) -> 284.82 | CD26: =MIN(IF((PriorPlansTable[Market]=$CA$6)*(PriorPlansTable[Metal]=CD$7)*(INDIRECT("PriorPlansTable["&$BZ26&"]")>0),INDIRECT("PriorPlansTable["&$BZ26&"]"))) -> 335.49 | CE26: =MIN(IF((PriorPlansTable[Market]=$CA$6)*(PriorPlansTable[Metal]=CE$7)*(INDIRECT("PriorPlansTable["&$BZ26&"]")>0),INDIRECT("PriorPlansTable["&$BZ26&"]"))) -> 0 | CF26: =MIN(IF((PriorPlansTable[Market]=$CA$6)*(PriorPlansTable[Metal]="Silver")*(INDIRECT("PriorPlansTable["&$BZ26&"]")>CC26),INDIRECT("PriorPlansTable["&$BZ26&"]"))) -> 291.35 | CG26: =MIN(IF((PriorPlansTable[Market]=$CG$6)*(PriorPlansTable[Metal]=CG$7)*(INDIRECT("PriorPlansTable["&$BZ26&"]")>0),INDIRECT("PriorPlansTable["&$BZ26&"]"))) -> 0 | CH26: =MIN(IF((PriorPlansTable[Market]=$CG$6)*(PriorPlansTable[Metal]=CH$7)*(INDIRECT("PriorPlansTable["&$BZ26&"]")>0),INDIRECT("PriorPlansTable["&$BZ26&"]"))) -> 243.37 | CI26: =MIN(IF((PriorPlansTable[Market]=$CG$6)*(PriorPlansTable[Metal]=CI$7)*(INDIRECT("PriorPlansTable["&$BZ26&"]")>0),INDIRECT("PriorPlansTable["&$BZ26&"]"))) -> 322.64 | CJ26: =MIN(IF((PriorPlansTable[Market]=$CG$6)*(PriorPlansTable[Metal]=CJ$7)*(INDIRECT("PriorPlansTable["&$BZ26&"]")>0),INDIRECT("PriorPlansTable["&$BZ26&"]"))) -> 366.58 | CK26: =MIN(IF((PriorPlansTable[Market]=$CG$6)*(PriorPlansTable[Metal]=CK$7)*(INDIRECT("PriorPlansTable["&$BZ26&"]")>0),INDIRECT("PriorPlansTable["&$BZ26&"]"))) -> 428.33 | CL26: =MIN(IF((PriorPlansTable[Market]=$CG$6)*(PriorPlansTable[Metal]="Silver")*(INDIRECT("PriorPlansTable["&$BZ26&"]")>CI26),INDIRECT("PriorPlansTable["&$BZ26&"]"))) -> 328.11
B27: IBC | C27: QCC | D27: Small Group | E27: 31609PA0150030 | F27: Personal Choice PPO Platinum HSA-50 $1,800/100% | G27: PPO | H27: Platinum | I27: Off | J27: 0 | K27: 0 | L27: 0 | M27: 0 | N27: 0 | O27: 0 | P27: 0 | Q27: 0 | R27: 0 | S27: 0 | T27: 0 | U27: 0 | V27: 0 | W27: 0 | X27: 0 | Y27: 0 | Z27: 0 | AA27: 0 | AB27: 0 | AC27: 0 | AD27: 0 | AE27: 0 | AF27: 0 | AG27: 0 | AH27: 0 | AI27: 0 | AJ27: 0 | AK27: 0 | AL27: 0 | AM27: 0 | AN27: 0 | AO27: 0 | AP27: 0 | AQ27: 0 | AR27: 0 | AS27: 0 | AT27: 0 | AU27: 0 | AV27: 0 | AW27: 0 | AX27: 0 | AY27: 0 | AZ27: 0 | BA27: 0 | BB27: 0 | BC27: 0 | BD27: 0 | BE27: 0 | BF27: 0 | BG27: 0 | BH27: 0 | BI27: 0 | BJ27: 0 | BK27: 0 | BL27: 0 | BM27: 494.17 | BN27: 494.17 | BO27: 494.17 | BP27: 494.17 | BQ27: 494.17 | BR27: 0 | BS27: 0 | BT27: 0 | BU27: 0 | BV27: 0 | BW27: 0 | BX27: 0 | BZ27: Sullivan | CA27: =MIN(IF((PriorPlansTable[Market]=$CA$6)*(PriorPlansTable[Metal]=CA$7)*(INDIRECT("PriorPlansTable["&$BZ27&"]")>0),INDIRECT("PriorPlansTable["&$BZ27&"]"))) -> 193.5 | CB27: =MIN(IF((PriorPlansTable[Market]=$CA$6)*(PriorPlansTable[Metal]=CB$7)*(INDIRECT("PriorPlansTable["&$BZ27&"]")>0),INDIRECT("PriorPlansTable["&$BZ27&"]"))) -> 228.2 | CC27: =MIN(IF((PriorPlansTable[Market]=$CA$6)*(PriorPlansTable[Metal]=CC$7)*(INDIRECT("PriorPlansTable["&$BZ27&"]")>0),INDIRECT("PriorPlansTable["&$BZ27&"]"))) -> 234.88 | CD27: =MIN(IF((PriorPlansTable[Market]=$CA$6)*(PriorPlansTable[Metal]=CD$7)*(INDIRECT("PriorPlansTable["&$BZ27&"]")>0),INDIRECT("PriorPlansTable["&$BZ27&"]"))) -> 295.53 | CE27: =MIN(IF((PriorPlansTable[Market]=$CA$6)*(PriorPlansTable[Metal]=CE$7)*(INDIRECT("PriorPlansTable["&$BZ27&"]")>0),INDIRECT("PriorPlansTable["&$BZ27&"]"))) -> 0 | CF27: =MIN(IF((PriorPlansTable[Market]=$CA$6)*(PriorPlansTable[Metal]="Silver")*(INDIRECT("PriorPlansTable["&$BZ27&"]")>CC27),INDIRECT("PriorPlansTable["&$BZ27&"]"))) -> 242.34 | CG27: =MIN(IF((PriorPlansTable[Market]=$CG$6)*(PriorPlansTable[Metal]=CG$7)*(INDIRECT("PriorPlansTable["&$BZ27&"]")>0),INDIRECT("PriorPlansTable["&$BZ27&"]"))) -> 0 | CH27: =MIN(IF((PriorPlansTable[Market]=$CG$6)*(PriorPlansTable[Metal]=CH$7)*(INDIRECT("PriorPlansTable["&$BZ27&"]")>0),INDIRECT("PriorPlansTable["&$BZ27&"]"))) -> 226.09 | CI27: =MIN(IF((PriorPlansTable[Market]=$CG$6)*(PriorPlansTable[Metal]=CI$7)*(INDIRECT("PriorPlansTable["&$BZ27&"]")>0),INDIRECT("PriorPlansTable["&$BZ27&"]"))) -> 292.44 | CJ27: =MIN(IF((PriorPlansTable[Market]=$CG$6)*(PriorPlansTable[Metal]=CJ$7)*(INDIRECT("PriorPlansTable["&$BZ27&"]")>0),INDIRECT("PriorPlansTable["&$BZ27&"]"))) -> 327.1 | CK27: =MIN(IF((PriorPlansTable[Market]=$CG$6)*(PriorPlansTable[Metal]=CK$7)*(INDIRECT("PriorPlansTable["&$BZ27&"]")>0),INDIRECT("PriorPlansTable["&$BZ27&"]"))) -> 428.33 | CL27: =MIN(IF((PriorPlansTable[Market]=$CG$6)*(PriorPlansTable[Metal]="Silver")*(INDIRECT("PriorPlansTable["&$BZ27&"]")>CI27),INDIRECT("PriorPlansTable["&$BZ27&"]"))) -> 299.82
B28: IBC | C28: QCC | D28: Small Group | E28: 31609PA0150031 | F28: Personal Choice PPO Gold HSA-25 $2,400/$25/$50/90% | G28: PPO | H28: Gold | I28: Off | J28: 0 | K28: 0 | L28: 0 | M28: 0 | N28: 0 | O28: 0 | P28: 0 | Q28: 0 | R28: 0 | S28: 0 | T28: 0 | U28: 0 | V28: 0 | W28: 0 | X28: 0 | Y28: 0 | Z28: 0 | AA28: 0 | AB28: 0 | AC28: 0 | AD28: 0 | AE28: 0 | AF28: 0 | AG28: 0 | AH28: 0 | AI28: 0 | AJ28: 0 | AK28: 0 | AL28: 0 | AM28: 0 | AN28: 0 | AO28: 0 | AP28: 0 | AQ28: 0 | AR28: 0 | AS28: 0 | AT28: 0 | AU28: 0 | AV28: 0 | AW28: 0 | AX28: 0 | AY28: 0 | AZ28: 0 | BA28: 0 | BB28: 0 | BC28: 0 | BD28: 0 | BE28: 0 | BF28: 0 | BG28: 0 | BH28: 0 | BI28: 0 | BJ28: 0 | BK28: 0 | BL28: 0 | BM28: 411.66 | BN28: 411.66 | BO28: 411.66 | BP28: 411.66 | BQ28: 411.66 | BR28: 0 | BS28: 0 | BT28: 0 | BU28: 0 | BV28: 0 | BW28: 0 | BX28: 0 | BZ28: Susquehanna | CA28: =MIN(IF((PriorPlansTable[Market]=$CA$6)*(PriorPlansTable[Metal]=CA$7)*(INDIRECT("PriorPlansTable["&$BZ28&"]")>0),INDIRECT("PriorPlansTable["&$BZ28&"]"))) -> 193.5 | CB28: =MIN(IF((PriorPlansTable[Market]=$CA$6)*(PriorPlansTable[Metal]=CB$7)*(INDIRECT("PriorPlansTable["&$BZ28&"]")>0),INDIRECT("PriorPlansTable["&$BZ28&"]"))) -> 228.2 | CC28: =MIN(IF((PriorPlansTable[Market]=$CA$6)*(PriorPlansTable[Metal]=CC$7)*(INDIRECT("PriorPlansTable["&$BZ28&"]")>0),INDIRECT("PriorPlansTable["&$BZ28&"]"))) -> 234.88 | CD28: =MIN(IF((PriorPlansTable[Market]=$CA$6)*(PriorPlansTable[Metal]=CD$7)*(INDIRECT("PriorPlansTable["&$BZ28&"]")>0),INDIRECT("PriorPlansTable["&$BZ28&"]"))) -> 295.53 | CE28: =MIN(IF((PriorPlansTable[Market]=$CA$6)*(PriorPlansTable[Metal]=CE$7)*(INDIRECT("PriorPlansTable["&$BZ28&"]")>0),INDIRECT("PriorPlansTable["&$BZ28&"]"))) -> 0 | CF28: =MIN(IF((PriorPlansTable[Market]=$CA$6)*(PriorPlansTable[Metal]="Silver")*(INDIRECT("PriorPlansTable["&$BZ28&"]")>CC28),INDIRECT("PriorPlansTable["&$BZ28&"]"))) -> 242.34 | CG28: =MIN(IF((PriorPlansTable[Market]=$CG$6)*(PriorPlansTable[Metal]=CG$7)*(INDIRECT("PriorPlansTable["&$BZ28&"]")>0),INDIRECT("PriorPlansTable["&$BZ28&"]"))) -> 0 | CH28: =MIN(IF((PriorPlansTable[Market]=$CG$6)*(PriorPlansTable[Metal]=CH$7)*(INDIRECT("PriorPlansTable["&$BZ28&"]")>0),INDIRECT("PriorPlansTable["&$BZ28&"]"))) -> 243.37 | CI28: =MIN(IF((PriorPlansTable[Market]=$CG$6)*(PriorPlansTable[Metal]=CI$7)*(INDIRECT("PriorPlansTable["&$BZ28&"]")>0),INDIRECT("PriorPlansTable["&$BZ28&"]"))) -> 322.64 | CJ28: =MIN(IF((PriorPlansTable[Market]=$CG$6)*(PriorPlansTable[Metal]=CJ$7)*(INDIRECT("PriorPlansTable["&$BZ28&"]")>0),INDIRECT("PriorPlansTable["&$BZ28&"]"))) -> 366.58 | CK28: =MIN(IF((PriorPlansTable[Market]=$CG$6)*(PriorPlansTable[Metal]=CK$7)*(INDIRECT("PriorPlansTable["&$BZ28&"]")>0),INDIRECT("PriorPlansTable["&$BZ28&"]"))) -> 428.33 | CL28: =MIN(IF((PriorPlansTable[Market]=$CG$6)*(PriorPlansTable[Metal]="Silver")*(INDIRECT("PriorPlansTable["&$BZ28&"]")>CI28),INDIRECT("PriorPlansTable["&$BZ28&"]"))) -> 328.11
B29: IBC | C29: QCC | D29: Small Group | E29: 31609PA0150032 | F29: Personal Choice PPO Gold HSA-0 $2,100/100% | G29: PPO | H29: Gold | I29: Off | J29: 0 | K29: 0 | L29: 0 | M29: 0 | N29: 0 | O29: 0 | P29: 0 | Q29: 0 | R29: 0 | S29: 0 | T29: 0 | U29: 0 | V29: 0 | W29: 0 | X29: 0 | Y29: 0 | Z29: 0 | AA29: 0 | AB29: 0 | AC29: 0 | AD29: 0 | AE29: 0 | AF29: 0 | AG29: 0 | AH29: 0 | AI29: 0 | AJ29: 0 | AK29: 0 | AL29: 0 | AM29: 0 | AN29: 0 | AO29: 0 | AP29: 0 | AQ29: 0 | AR29: 0 | AS29: 0 | AT29: 0 | AU29: 0 | AV29: 0 | AW29: 0 | AX29: 0 | AY29: 0 | AZ29: 0 | BA29: 0 | BB29: 0 | BC29: 0 | BD29: 0 | BE29: 0 | BF29: 0 | BG29: 0 | BH29: 0 | BI29: 0 | BJ29: 0 | BK29: 0 | BL29: 0 | BM29: 479.3 | BN29: 479.3 | BO29: 479.3 | BP29: 479.3 | BQ29: 479.3 | BR29: 0 | BS29: 0 | BT29: 0 | BU29: 0 | BV29: 0 | BW29: 0 | BX29: 0 | BZ29: Tioga | CA29: =MIN(IF((PriorPlansTable[Market]=$CA$6)*(PriorPlansTable[Metal]=CA$7)*(INDIRECT("PriorPlansTable["&$BZ29&"]")>0),INDIRECT("PriorPlansTable["&$BZ29&"]"))) -> 193.5 | CB29: =MIN(IF((PriorPlansTable[Market]=$CA$6)*(PriorPlansTable[Metal]=CB$7)*(INDIRECT("PriorPlansTable["&$BZ29&"]")>0),INDIRECT("PriorPlansTable["&$BZ29&"]"))) -> 228.83 | CC29: =MIN(IF((PriorPlansTable[Market]=$CA$6)*(PriorPlansTable[Metal]=CC$7)*(INDIRECT("PriorPlansTable["&$BZ29&"]")>0),INDIRECT("PriorPlansTable["&$BZ29&"]"))) -> 280.06 | CD29: =MIN(IF((PriorPlansTable[Market]=$CA$6)*(PriorPlansTable[Metal]=CD$7)*(INDIRECT("PriorPlansTable["&$BZ29&"]")>0),INDIRECT("PriorPlansTable["&$BZ29&"]"))) -> 292.19 | CE29: =MIN(IF((PriorPlansTable[Market]=$CA$6)*(PriorPlansTable[Metal]=CE$7)*(INDIRECT("PriorPlansTable["&$BZ29&"]")>0),INDIRECT("PriorPlansTable["&$BZ29&"]"))) -> 0 | CF29: =MIN(IF((PriorPlansTable[Market]=$CA$6)*(PriorPlansTable[Metal]="Silver")*(INDIRECT("PriorPlansTable["&$BZ29&"]")>CC29),INDIRECT("PriorPlansTable["&$BZ29&"]"))) -> 284.82 | CG29: =MIN(IF((PriorPlansTable[Market]=$CG$6)*(PriorPlansTable[Metal]=CG$7)*(INDIRECT("PriorPlansTable["&$BZ29&"]")>0),INDIRECT("PriorPlansTable["&$BZ29&"]"))) -> 0 | CH29: =MIN(IF((PriorPlansTable[Market]=$CG$6)*(PriorPlansTable[Metal]=CH$7)*(INDIRECT("PriorPlansTable["&$BZ29&"]")>0),INDIRECT("PriorPlansTable["&$BZ29&"]"))) -> 226.09 | CI29: =MIN(IF((PriorPlansTable[Market]=$CG$6)*(PriorPlansTable[Metal]=CI$7)*(INDIRECT("PriorPlansTable["&$BZ29&"]")>0),INDIRECT("PriorPlansTable["&$BZ29&"]"))) -> 261.48 | CJ29: =MIN(IF((PriorPlansTable[Market]=$CG$6)*(PriorPlansTable[Metal]=CJ$7)*(INDIRECT("PriorPlansTable["&$BZ29&"]")>0),INDIRECT("PriorPlansTable["&$BZ29&"]"))) -> 320.76 | CK29: =MIN(IF((PriorPlansTable[Market]=$CG$6)*(PriorPlansTable[Metal]=CK$7)*(INDIRECT("PriorPlansTable["&$BZ29&"]")>0),INDIRECT("PriorPlansTable["&$BZ29&"]"))) -> 428.33 | CL29: =MIN(IF((PriorPlansTable[Market]=$CG$6)*(PriorPlansTable[Metal]="Silver")*(INDIRECT("PriorPlansTable["&$BZ29&"]")>CI29),INDIRECT("PriorPlansTable["&$BZ29&"]"))) -> 269.3
B30: IBC | C30: QCC | D30: Small Group | E30: 31609PA0150034 | F30: Personal Choice PPO Silver HSA-0 $2,100/70% | G30: PPO | H30: Silver | I30: Off | J30: 0 | K30: 0 | L30: 0 | M30: 0 | N30: 0 | O30: 0 | P30: 0 | Q30: 0 | R30: 0 | S30: 0 | T30: 0 | U30: 0 | V30: 0 | W30: 0 | X30: 0 | Y30: 0 | Z30: 0 | AA30: 0 | AB30: 0 | AC30: 0 | AD30: 0 | AE30: 0 | AF30: 0 | AG30: 0 | AH30: 0 | AI30: 0 | AJ30: 0 | AK30: 0 | AL30: 0 | AM30: 0 | AN30: 0 | AO30: 0 | AP30: 0 | AQ30: 0 | AR30: 0 | AS30: 0 | AT30: 0 | AU30: 0 | AV30: 0 | AW30: 0 | AX30: 0 | AY30: 0 | AZ30: 0 | BA30: 0 | BB30: 0 | BC30: 0 | BD30: 0 | BE30: 0 | BF30: 0 | BG30: 0 | BH30: 0 | BI30: 0 | BJ30: 0 | BK30: 0 | BL30: 0 | BM30: 351.81 | BN30: 351.81 | BO30: 351.81 | BP30: 351.81 | BQ30: 351.81 | BR30: 0 | BS30: 0 | BT30: 0 | BU30: 0 | BV30: 0 | BW30: 0 | BX30: 0 | BZ30: Wayne | CA30: =MIN(IF((PriorPlansTable[Market]=$CA$6)*(PriorPlansTable[Metal]=CA$7)*(INDIRECT("PriorPlansTable["&$BZ30&"]")>0),INDIRECT("PriorPlansTable["&$BZ30&"]"))) -> 193.5 | CB30: =MIN(IF((PriorPlansTable[Market]=$CA$6)*(PriorPlansTable[Metal]=CB$7)*(INDIRECT("PriorPlansTable["&$BZ30&"]")>0),INDIRECT("PriorPlansTable["&$BZ30&"]"))) -> 215.1 | CC30: =MIN(IF((PriorPlansTable[Market]=$CA$6)*(PriorPlansTable[Metal]=CC$7)*(INDIRECT("PriorPlansTable["&$BZ30&"]")>0),INDIRECT("PriorPlansTable["&$BZ30&"]"))) -> 234.88 | CD30: =MIN(IF((PriorPlansTable[Market]=$CA$6)*(PriorPlansTable[Metal]=CD$7)*(INDIRECT("PriorPlansTable["&$BZ30&"]")>0),INDIRECT("PriorPlansTable["&$BZ30&"]"))) -> 295.53 | CE30: =MIN(IF((PriorPlansTable[Market]=$CA$6)*(PriorPlansTable[Metal]=CE$7)*(INDIRECT("PriorPlansTable["&$BZ30&"]")>0),INDIRECT("PriorPlansTable["&$BZ30&"]"))) -> 0 | CF30: =MIN(IF((PriorPlansTable[Market]=$CA$6)*(PriorPlansTable[Metal]="Silver")*(INDIRECT("PriorPlansTable["&$BZ30&"]")>CC30),INDIRECT("PriorPlansTable["&$BZ30&"]"))) -> 242.34 | CG30: =MIN(IF((PriorPlansTable[Market]=$CG$6)*(PriorPlansTable[Metal]=CG$7)*(INDIRECT("PriorPlansTable["&$BZ30&"]")>0),INDIRECT("PriorPlansTable["&$BZ30&"]"))) -> 0 | CH30: =MIN(IF((PriorPlansTable[Market]=$CG$6)*(PriorPlansTable[Metal]=CH$7)*(INDIRECT("PriorPlansTable["&$BZ30&"]")>0),INDIRECT("PriorPlansTable["&$BZ30&"]"))) -> 243.37 | CI30: =MIN(IF((PriorPlansTable[Market]=$CG$6)*(PriorPlansTable[Metal]=CI$7)*(INDIRECT("PriorPlansTable["&$BZ30&"]")>0),INDIRECT("PriorPlansTable["&$BZ30&"]"))) -> 311.01 | CJ30: =MIN(IF((PriorPlansTable[Market]=$CG$6)*(PriorPlansTable[Metal]=CJ$7)*(INDIRECT("PriorPlansTable["&$BZ30&"]")>0),INDIRECT("PriorPlansTable["&$BZ30&"]"))) -> 358.08 | CK30: =MIN(IF((PriorPlansTable[Market]=$CG$6)*(PriorPlansTable[Metal]=CK$7)*(INDIRECT("PriorPlansTable["&$BZ30&"]")>0),INDIRECT("PriorPlansTable["&$BZ30&"]"))) -> 420.47 | CL30: =MIN(IF((PriorPlansTable[Market]=$CG$6)*(PriorPlansTable[Metal]="Silver")*(INDIRECT("PriorPlansTable["&$BZ30&"]")>CI30),INDIRECT("PriorPlansTable["&$BZ30&"]"))) -> 322.64
B31: IBC | C31: QCC | D31: Small Group | E31: 31609PA0150035 | F31: Personal Choice PPO Silver HSA-0 $3,000/90% | G31: PPO | H31: Silver | I31: Off | J31: 0 | K31: 0 | L31: 0 | M31: 0 | N31: 0 | O31: 0 | P31: 0 | Q31: 0 | R31: 0 | S31: 0 | T31: 0 | U31: 0 | V31: 0 | W31: 0 | X31: 0 | Y31: 0 | Z31: 0 | AA31: 0 | AB31: 0 | AC31: 0 | AD31: 0 | AE31: 0 | AF31: 0 | AG31: 0 | AH31: 0 | AI31: 0 | AJ31: 0 | AK31: 0 | AL31: 0 | AM31: 0 | AN31: 0 | AO31: 0 | AP31: 0 | AQ31: 0 | AR31: 0 | AS31: 0 | AT31: 0 | AU31: 0 | AV31: 0 | AW31: 0 | AX31: 0 | AY31: 0 | AZ31: 0 | BA31: 0 | BB31: 0 | BC31: 0 | BD31: 0 | BE31: 0 | BF31: 0 | BG31: 0 | BH31: 0 | BI31: 0 | BJ31: 0 | BK31: 0 | BL31: 0 | BM31: 386.81 | BN31: 386.81 | BO31: 386.81 | BP31: 386.81 | BQ31: 386.81 | BR31: 0 | BS31: 0 | BT31: 0 | BU31: 0 | BV31: 0 | BW31: 0 | BX31: 0 | BZ31: Wyoming | CA31: =MIN(IF((PriorPlansTable[Market]=$CA$6)*(PriorPlansTable[Metal]=CA$7)*(INDIRECT("PriorPlansTable["&$BZ31&"]")>0),INDIRECT("PriorPlansTable["&$BZ31&"]"))) -> 193.5 | CB31: =MIN(IF((PriorPlansTable[Market]=$CA$6)*(PriorPlansTable[Metal]=CB$7)*(INDIRECT("PriorPlansTable["&$BZ31&"]")>0),INDIRECT("PriorPlansTable["&$BZ31&"]"))) -> 228.2 | CC31: =MIN(IF((PriorPlansTable[Market]=$CA$6)*(PriorPlansTable[Metal]=CC$7)*(INDIRECT("PriorPlansTable["&$BZ31&"]")>0),INDIRECT("PriorPlansTable["&$BZ31&"]"))) -> 234.88 | CD31: =MIN(IF((PriorPlansTable[Market]=$CA$6)*(PriorPlansTable[Metal]=CD$7)*(INDIRECT("PriorPlansTable["&$BZ31&"]")>0),INDIRECT("PriorPlansTable["&$BZ31&"]"))) -> 295.53 | CE31: =MIN(IF((PriorPlansTable[Market]=$CA$6)*(PriorPlansTable[Metal]=CE$7)*(INDIRECT("PriorPlansTable["&$BZ31&"]")>0),INDIRECT("PriorPlansTable["&$BZ31&"]"))) -> 0 | CF31: =MIN(IF((PriorPlansTable[Market]=$CA$6)*(PriorPlansTable[Metal]="Silver")*(INDIRECT("PriorPlansTable["&$BZ31&"]")>CC31),INDIRECT("PriorPlansTable["&$BZ31&"]"))) -> 242.34 | CG31: =MIN(IF((PriorPlansTable[Market]=$CG$6)*(PriorPlansTable[Metal]=CG$7)*(INDIRECT("PriorPlansTable["&$BZ31&"]")>0),INDIRECT("PriorPlansTable["&$BZ31&"]"))) -> 0 | CH31: =MIN(IF((PriorPlansTable[Market]=$CG$6)*(PriorPlansTable[Metal]=CH$7)*(INDIRECT("PriorPlansTable["&$BZ31&"]")>0),INDIRECT("PriorPlansTable["&$BZ31&"]"))) -> 226.09 | CI31: =MIN(IF((PriorPlansTable[Market]=$CG$6)*(PriorPlansTable[Metal]=CI$7)*(INDIRECT("PriorPlansTable["&$BZ31&"]")>0),INDIRECT("PriorPlansTable["&$BZ31&"]"))) -> 292.44 | CJ31: =MIN(IF((PriorPlansTable[Market]=$CG$6)*(PriorPlansTable[Metal]=CJ$7)*(INDIRECT("PriorPlansTable["&$BZ31&"]")>0),INDIRECT("PriorPlansTable["&$BZ31&"]"))) -> 327.1 | CK31: =MIN(IF((PriorPlansTable[Market]=$CG$6)*(PriorPlansTable[Metal]=CK$7)*(INDIRECT("PriorPlansTable["&$BZ31&"]")>0),INDIRECT("PriorPlansTable["&$BZ31&"]"))) -> 428.33 | CL31: =MIN(IF((PriorPlansTable[Market]=$CG$6)*(PriorPlansTable[Metal]="Silver")*(INDIRECT("PriorPlansTable["&$BZ31&"]")>CI31),INDIRECT("PriorPlansTable["&$BZ31&"]"))) -> 299.82
B32: IBC | C32: QCC | D32: Small Group | E32: 31609PA0150036 | F32: Personal Choice PPO Bronze HSA-0 $5,600/50% | G32: PPO | H32: Bronze | I32: Off | J32: 0 | K32: 0 | L32: 0 | M32: 0 | N32: 0 | O32: 0 | P32: 0 | Q32: 0 | R32: 0 | S32: 0 | T32: 0 | U32: 0 | V32: 0 | W32: 0 | X32: 0 | Y32: 0 | Z32: 0 | AA32: 0 | AB32: 0 | AC32: 0 | AD32: 0 | AE32: 0 | AF32: 0 | AG32: 0 | AH32: 0 | AI32: 0 | AJ32: 0 | AK32: 0 | AL32: 0 | AM32: 0 | AN32: 0 | AO32: 0 | AP32: 0 | AQ32: 0 | AR32: 0 | AS32: 0 | AT32: 0 | AU32: 0 | AV32: 0 | AW32: 0 | AX32: 0 | AY32: 0 | AZ32: 0 | BA32: 0 | BB32: 0 | BC32: 0 | BD32: 0 | BE32: 0 | BF32: 0 | BG32: 0 | BH32: 0 | BI32: 0 | BJ32: 0 | BK32: 0 | BL32: 0 | BM32: 263.97 | BN32: 263.97 | BO32: 263.97 | BP32: 263.97 | BQ32: 263.97 | BR32: 0 | BS32: 0 | BT32: 0 | BU32: 0 | BV32: 0 | BW32: 0 | BX32: 0 | BZ32: Allegheny | CA32: =MIN(IF((PriorPlansTable[Market]=$CA$6)*(PriorPlansTable[Metal]=CA$7)*(INDIRECT("PriorPlansTable["&$BZ32&"]")>0),INDIRECT("PriorPlansTable["&$BZ32&"]"))) -> 148.02 | CB32: =MIN(IF((PriorPlansTable[Market]=$CA$6)*(PriorPlansTable[Metal]=CB$7)*(INDIRECT("PriorPlansTable["&$BZ32&"]")>0),INDIRECT("PriorPlansTable["&$BZ32&"]"))) -> 173.59 | CC32: =MIN(IF((PriorPlansTable[Market]=$CA$6)*(PriorPlansTable[Metal]=CC$7)*(INDIRECT("PriorPlansTable["&$BZ32&"]")>0),INDIRECT("PriorPlansTable["&$BZ32&"]"))) -> 211.37 | CD32: =MIN(IF((PriorPlansTable[Market]=$CA$6)*(PriorPlansTable[Metal]=CD$7)*(INDIRECT("PriorPlansTable["&$BZ32&"]")>0),INDIRECT("PriorPlansTable["&$BZ32&"]"))) -> 220.53 | CE32: =MIN(IF((PriorPlansTable[Market]=$CA$6)*(PriorPlansTable[Metal]=CE$7)*(INDIRECT("PriorPlansTable["&$BZ32&"]")>0),INDIRECT("PriorPlansTable["&$BZ32&"]"))) -> 0 | CF32: =MIN(IF((PriorPlansTable[Market]=$CA$6)*(PriorPlansTable[Metal]="Silver")*(INDIRECT("PriorPlansTable["&$BZ32&"]")>CC32),INDIRECT("PriorPlansTable["&$BZ32&"]"))) -> 218.1 | CG32: =MIN(IF((PriorPlansTable[Market]=$CG$6)*(PriorPlansTable[Metal]=CG$7)*(INDIRECT("PriorPlansTable["&$BZ32&"]")>0),INDIRECT("PriorPlansTable["&$BZ32&"]"))) -> 0 | CH32: =MIN(IF((PriorPlansTable[Market]=$CG$6)*(PriorPlansTable[Metal]=CH$7)*(INDIRECT("PriorPlansTable["&$BZ32&"]")>0),INDIRECT("PriorPlansTable["&$BZ32&"]"))) -> 176.13 | CI32: =MIN(IF((PriorPlansTable[Market]=$CG$6)*(PriorPlansTable[Metal]=CI$7)*(INDIRECT("PriorPlansTable["&$BZ32&"]")>0),INDIRECT("PriorPlansTable["&$BZ32&"]"))) -> 211.35 | CJ32: =MIN(IF((PriorPlansTable[Market]=$CG$6)*(PriorPlansTable[Metal]=CJ$7)*(INDIRECT("PriorPlansTable["&$BZ32&"]")>0),INDIRECT("PriorPlansTable["&$BZ32&"]"))) -> 233.94 | CK32: =MIN(IF((PriorPlansTable[Market]=$CG$6)*(PriorPlansTable[Metal]=CK$7)*(INDIRECT("PriorPlansTable["&$BZ32&"]")>0),INDIRECT("PriorPlansTable["&$BZ32&"]"))) -> 314.94 | CL32: =MIN(IF((PriorPlansTable[Market]=$CG$6)*(PriorPlansTable[Metal]="Silver")*(INDIRECT("PriorPlansTable["&$BZ32&"]")>CI32),INDIRECT("PriorPlansTable["&$BZ32&"]"))) -> 212.07
B33: IBC | C33: QCC | D33: Small Group | E33: 31609PA0150037 | F33: Personal Choice PPO Bronze HSA-0 $7,000/100% | G33: PPO | H33: Bronze | I33: Off | J33: 0 | K33: 0 | L33: 0 | M33: 0 | N33: 0 | O33: 0 | P33: 0 | Q33: 0 | R33: 0 | S33: 0 | T33: 0 | U33: 0 | V33: 0 | W33: 0 | X33: 0 | Y33: 0 | Z33: 0 | AA33: 0 | AB33: 0 | AC33: 0 | AD33: 0 | AE33: 0 | AF33: 0 | AG33: 0 | AH33: 0 | AI33: 0 | AJ33: 0 | AK33: 0 | AL33: 0 | AM33: 0 | AN33: 0 | AO33: 0 | AP33: 0 | AQ33: 0 | AR33: 0 | AS33: 0 | AT33: 0 | AU33: 0 | AV33: 0 | AW33: 0 | AX33: 0 | AY33: 0 | AZ33: 0 | BA33: 0 | BB33: 0 | BC33: 0 | BD33: 0 | BE33: 0 | BF33: 0 | BG33: 0 | BH33: 0 | BI33: 0 | BJ33: 0 | BK33: 0 | BL33: 0 | BM33: 284.74 | BN33: 284.74 | BO33: 284.74 | BP33: 284.74 | BQ33: 284.74 | BR33: 0 | BS33: 0 | BT33: 0 | BU33: 0 | BV33: 0 | BW33: 0 | BX33: 0 | BZ33: Armstrong | CA33: =MIN(IF((PriorPlansTable[Market]=$CA$6)*(PriorPlansTable[Metal]=CA$7)*(INDIRECT("PriorPlansTable["&$BZ33&"]")>0),INDIRECT("PriorPlansTable["&$BZ33&"]"))) -> 179.88 | CB33: =MIN(IF((PriorPlansTable[Market]=$CA$6)*(PriorPlansTable[Metal]=CB$7)*(INDIRECT("PriorPlansTable["&$BZ33&"]")>0),INDIRECT("PriorPlansTable["&$BZ33&"]"))) -> 229.13 | CC33: =MIN(IF((PriorPlansTable[Market]=$CA$6)*(PriorPlansTable[Metal]=CC$7)*(INDIRECT("PriorPlansTable["&$BZ33&"]")>0),INDIRECT("PriorPlansTable["&$BZ33&"]"))) -> 274.09 | CD33: =MIN(IF((PriorPlansTable[Market]=$CA$6)*(PriorPlansTable[Metal]=CD$7)*(INDIRECT("PriorPlansTable["&$BZ33&"]")>0),INDIRECT("PriorPlansTable["&$BZ33&"]"))) -> 291.8 | CE33: =MIN(IF((PriorPlansTable[Market]=$CA$6)*(PriorPlansTable[Metal]=CE$7)*(INDIRECT("PriorPlansTable["&$BZ33&"]")>0),INDIRECT("PriorPlansTable["&$BZ33&"]"))) -> 0 | CF33: =MIN(IF((PriorPlansTable[Market]=$CA$6)*(PriorPlansTable[Metal]="Silver")*(INDIRECT("PriorPlansTable["&$BZ33&"]")>CC33),INDIRECT("PriorPlansTable["&$BZ33&"]"))) -> 276.46 | CG33: =MIN(IF((PriorPlansTable[Market]=$CG$6)*(PriorPlansTable[Metal]=CG$7)*(INDIRECT("PriorPlansTable["&$BZ33&"]")>0),INDIRECT("PriorPlansTable["&$BZ33&"]"))) -> 0 | CH33: =MIN(IF((PriorPlansTable[Market]=$CG$6)*(PriorPlansTable[Metal]=CH$7)*(INDIRECT("PriorPlansTable["&$BZ33&"]")>0),INDIRECT("PriorPlansTable["&$BZ33&"]"))) -> 176.13 | CI33: =MIN(IF((PriorPlansTable[Market]=$CG$6)*(PriorPlansTable[Metal]=CI$7)*(INDIRECT("PriorPlansTable["&$BZ33&"]")>0),INDIRECT("PriorPlansTable["&$BZ33&"]"))) -> 233.57 | CJ33: =MIN(IF((PriorPlansTable[Market]=$CG$6)*(PriorPlansTable[Metal]=CJ$7)*(INDIRECT("PriorPlansTable["&$BZ33&"]")>0),INDIRECT("PriorPlansTable["&$BZ33&"]"))) -> 264.38 | CK33: =MIN(IF((PriorPlansTable[Market]=$CG$6)*(PriorPlansTable[Metal]=CK$7)*(INDIRECT("PriorPlansTable["&$BZ33&"]")>0),INDIRECT("PriorPlansTable["&$BZ33&"]"))) -> 317.82 | CL33: =MIN(IF((PriorPlansTable[Market]=$CG$6)*(PriorPlansTable[Metal]="Silver")*(INDIRECT("PriorPlansTable["&$BZ33&"]")>CI33),INDIRECT("PriorPlansTable["&$BZ33&"]"))) -> 236.37
B34: IBC | C34: QCC | D34: Small Group | E34: 31609PA0150039 | F34: Personal Choice PPO Gold HRA-20 $3,700/100% | G34: PPO | H34: Gold | I34: Off | J34: 0 | K34: 0 | L34: 0 | M34: 0 | N34: 0 | O34: 0 | P34: 0 | Q34: 0 | R34: 0 | S34: 0 | T34: 0 | U34: 0 | V34: 0 | W34: 0 | X34: 0 | Y34: 0 | Z34: 0 | AA34: 0 | AB34: 0 | AC34: 0 | AD34: 0 | AE34: 0 | AF34: 0 | AG34: 0 | AH34: 0 | AI34: 0 | AJ34: 0 | AK34: 0 | AL34: 0 | AM34: 0 | AN34: 0 | AO34: 0 | AP34: 0 | AQ34: 0 | AR34: 0 | AS34: 0 | AT34: 0 | AU34: 0 | AV34: 0 | AW34: 0 | AX34: 0 | AY34: 0 | AZ34: 0 | BA34: 0 | BB34: 0 | BC34: 0 | BD34: 0 | BE34: 0 | BF34: 0 | BG34: 0 | BH34: 0 | BI34: 0 | BJ34: 0 | BK34: 0 | BL34: 0 | BM34: 428.56 | BN34: 428.56 | BO34: 428.56 | BP34: 428.56 | BQ34: 428.56 | BR34: 0 | BS34: 0 | BT34: 0 | BU34: 0 | BV34: 0 | BW34: 0 | BX34: 0 | BZ34: Beaver | CA34: =MIN(IF((PriorPlansTable[Market]=$CA$6)*(PriorPlansTable[Metal]=CA$7)*(INDIRECT("PriorPlansTable["&$BZ34&"]")>0),INDIRECT("PriorPlansTable["&$BZ34&"]"))) -> 174.14 | CB34: =MIN(IF((PriorPlansTable[Market]=$CA$6)*(PriorPlansTable[Metal]=CB$7)*(INDIRECT("PriorPlansTable["&$BZ34&"]")>0),INDIRECT("PriorPlansTable["&$BZ34&"]"))) -> 183.49 | CC34: =MIN(IF((PriorPlansTable[Market]=$CA$6)*(PriorPlansTable[Metal]=CC$7)*(INDIRECT("PriorPlansTable["&$BZ34&"]")>0),INDIRECT("PriorPlansTable["&$BZ34&"]"))) -> 223.43 | CD34: =MIN(IF((PriorPlansTable[Market]=$CA$6)*(PriorPlansTable[Metal]=CD$7)*(INDIRECT("PriorPlansTable["&$BZ34&"]")>0),INDIRECT("PriorPlansTable["&$BZ34&"]"))) -> 233.11 | CE34: =MIN(IF((PriorPlansTable[Market]=$CA$6)*(PriorPlansTable[Metal]=CE$7)*(INDIRECT("PriorPlansTable["&$BZ34&"]")>0),INDIRECT("PriorPlansTable["&$BZ34&"]"))) -> 0 | CF34: =MIN(IF((PriorPlansTable[Market]=$CA$6)*(PriorPlansTable[Metal]="Silver")*(INDIRECT("PriorPlansTable["&$BZ34&"]")>CC34),INDIRECT("PriorPlansTable["&$BZ34&"]"))) -> 230.54 | CG34: =MIN(IF((PriorPlansTable[Market]=$CG$6)*(PriorPlansTable[Metal]=CG$7)*(INDIRECT("PriorPlansTable["&$BZ34&"]")>0),INDIRECT("PriorPlansTable["&$BZ34&"]"))) -> 0 | CH34: =MIN(IF((PriorPlansTable[Market]=$CG$6)*(PriorPlansTable[Metal]=CH$7)*(INDIRECT("PriorPlansTable["&$BZ34&"]")>0),INDIRECT("PriorPlansTable["&$BZ34&"]"))) -> 176.13 | CI34: =MIN(IF((PriorPlansTable[Market]=$CG$6)*(PriorPlansTable[Metal]=CI$7)*(INDIRECT("PriorPlansTable["&$BZ34&"]")>0),INDIRECT("PriorPlansTable["&$BZ34&"]"))) -> 211.35 | CJ34: =MIN(IF((PriorPlansTable[Market]=$CG$6)*(PriorPlansTable[Metal]=CJ$7)*(INDIRECT("PriorPlansTable["&$BZ34&"]")>0),INDIRECT("PriorPlansTable["&$BZ34&"]"))) -> 259.26 | CK34: =MIN(IF((PriorPlansTable[Market]=$CG$6)*(PriorPlansTable[Metal]=CK$7)*(INDIRECT("PriorPlansTable["&$BZ34&"]")>0),INDIRECT("PriorPlansTable["&$BZ34&"]"))) -> 317.82 | CL34: =MIN(IF((PriorPlansTable[Market]=$CG$6)*(PriorPlansTable[Metal]="Silver")*(INDIRECT("PriorPlansTable["&$BZ34&"]")>CI34),INDIRECT("PriorPlansTable["&$BZ34&"]"))) -> 217.66
B35: IBC | C35: QCC | D35: Small Group | E35: 31609PA0150047 | F35: Personal Choice PPO Gold Classic $2,500 $40/$80/100% | G35: PPO | H35: Gold | I35: Off | J35: 0 | K35: 0 | L35: 0 | M35: 0 | N35: 0 | O35: 0 | P35: 0 | Q35: 0 | R35: 0 | S35: 0 | T35: 0 | U35: 0 | V35: 0 | W35: 0 | X35: 0 | Y35: 0 | Z35: 0 | AA35: 0 | AB35: 0 | AC35: 0 | AD35: 0 | AE35: 0 | AF35: 0 | AG35: 0 | AH35: 0 | AI35: 0 | AJ35: 0 | AK35: 0 | AL35: 0 | AM35: 0 | AN35: 0 | AO35: 0 | AP35: 0 | AQ35: 0 | AR35: 0 | AS35: 0 | AT35: 0 | AU35: 0 | AV35: 0 | AW35: 0 | AX35: 0 | AY35: 0 | AZ35: 0 | BA35: 0 | BB35: 0 | BC35: 0 | BD35: 0 | BE35: 0 | BF35: 0 | BG35: 0 | BH35: 0 | BI35: 0 | BJ35: 0 | BK35: 0 | BL35: 0 | BM35: 427.87 | BN35: 427.87 | BO35: 427.87 | BP35: 427.87 | BQ35: 427.87 | BR35: 0 | BS35: 0 | BT35: 0 | BU35: 0 | BV35: 0 | BW35: 0 | BX35: 0 | BZ35: Butler | CA35: =MIN(IF((PriorPlansTable[Market]=$CA$6)*(PriorPlansTable[Metal]=CA$7)*(INDIRECT("PriorPlansTable["&$BZ35&"]")>0),INDIRECT("PriorPlansTable["&$BZ35&"]"))) -> 174.14 | CB35: =MIN(IF((PriorPlansTable[Market]=$CA$6)*(PriorPlansTable[Metal]=CB$7)*(INDIRECT("PriorPlansTable["&$BZ35&"]")>0),INDIRECT("PriorPlansTable["&$BZ35&"]"))) -> 183.49 | CC35: =MIN(IF((PriorPlansTable[Market]=$CA$6)*(PriorPlansTable[Metal]=CC$7)*(INDIRECT("PriorPlansTable["&$BZ35&"]")>0),INDIRECT("PriorPlansTable["&$BZ35&"]"))) -> 223.43 | CD35: =MIN(IF((PriorPlansTable[Market]=$CA$6)*(PriorPlansTable[Metal]=CD$7)*(INDIRECT("PriorPlansTable["&$BZ35&"]")>0),INDIRECT("PriorPlansTable["&$BZ35&"]"))) -> 233.11 | CE35: =MIN(IF((PriorPlansTable[Market]=$CA$6)*(PriorPlansTable[Metal]=CE$7)*(INDIRECT("PriorPlansTable["&$BZ35&"]")>0),INDIRECT("PriorPlansTable["&$BZ35&"]"))) -> 0 | CF35: =MIN(IF((PriorPlansTable[Market]=$CA$6)*(PriorPlansTable[Metal]="Silver")*(INDIRECT("PriorPlansTable["&$BZ35&"]")>CC35),INDIRECT("PriorPlansTable["&$BZ35&"]"))) -> 230.54 | CG35: =MIN(IF((PriorPlansTable[Market]=$CG$6)*(PriorPlansTable[Metal]=CG$7)*(INDIRECT("PriorPlansTable["&$BZ35&"]")>0),INDIRECT("PriorPlansTable["&$BZ35&"]"))) -> 0 | CH35: =MIN(IF((PriorPlansTable[Market]=$CG$6)*(PriorPlansTable[Metal]=CH$7)*(INDIRECT("PriorPlansTable["&$BZ35&"]")>0),INDIRECT("PriorPlansTable["&$BZ35&"]"))) -> 176.13 | CI35: =MIN(IF((PriorPlansTable[Market]=$CG$6)*(PriorPlansTable[Metal]=CI$7)*(INDIRECT("PriorPlansTable["&$BZ35&"]")>0),INDIRECT("PriorPlansTable["&$BZ35&"]"))) -> 211.35 | CJ35: =MIN(IF((PriorPlansTable[Market]=$CG$6)*(PriorPlansTable[Metal]=CJ$7)*(INDIRECT("PriorPlansTable["&$BZ35&"]")>0),INDIRECT("PriorPlansTable["&$BZ35&"]"))) -> 259.26 | CK35: =MIN(IF((PriorPlansTable[Market]=$CG$6)*(PriorPlansTable[Metal]=CK$7)*(INDIRECT("PriorPlansTable["&$BZ35&"]")>0),INDIRECT("PriorPlansTable["&$BZ35&"]"))) -> 317.82 | CL35: =MIN(IF((PriorPlansTable[Market]=$CG$6)*(PriorPlansTable[Metal]="Silver")*(INDIRECT("PriorPlansTable["&$BZ35&"]")>CI35),INDIRECT("PriorPlansTable["&$BZ35&"]"))) -> 217.66
B36: IBC | C36: QCC | D36: Small Group | E36: 31609PA0150048 | F36: Personal Choice PPO Silver Classic $5,000/$50/$100/90% | G36: PPO | H36: Silver | I36: Off | J36: 0 | K36: 0 | L36: 0 | M36: 0 | N36: 0 | O36: 0 | P36: 0 | Q36: 0 | R36: 0 | S36: 0 | T36: 0 | U36: 0 | V36: 0 | W36: 0 | X36: 0 | Y36: 0 | Z36: 0 | AA36: 0 | AB36: 0 | AC36: 0 | AD36: 0 | AE36: 0 | AF36: 0 | AG36: 0 | AH36: 0 | AI36: 0 | AJ36: 0 | AK36: 0 | AL36: 0 | AM36: 0 | AN36: 0 | AO36: 0 | AP36: 0 | AQ36: 0 | AR36: 0 | AS36: 0 | AT36: 0 | AU36: 0 | AV36: 0 | AW36: 0 | AX36: 0 | AY36: 0 | AZ36: 0 | BA36: 0 | BB36: 0 | BC36: 0 | BD36: 0 | BE36: 0 | BF36: 0 | BG36: 0 | BH36: 0 | BI36: 0 | BJ36: 0 | BK36: 0 | BL36: 0 | BM36: 302.91 | BN36: 302.91 | BO36: 302.91 | BP36: 302.91 | BQ36: 302.91 | BR36: 0 | BS36: 0 | BT36: 0 | BU36: 0 | BV36: 0 | BW36: 0 | BX36: 0 | BZ36: Fayette | CA36: =MIN(IF((PriorPlansTable[Market]=$CA$6)*(PriorPlansTable[Metal]=CA$7)*(INDIRECT("PriorPlansTable["&$BZ36&"]")>0),INDIRECT("PriorPlansTable["&$BZ36&"]"))) -> 174.14 | CB36: =MIN(IF((PriorPlansTable[Market]=$CA$6)*(PriorPlansTable[Metal]=CB$7)*(INDIRECT("PriorPlansTable["&$BZ36&"]")>0),INDIRECT("PriorPlansTable["&$BZ36&"]"))) -> 183.49 | CC36: =MIN(IF((PriorPlansTable[Market]=$CA$6)*(PriorPlansTable[Metal]=CC$7)*(INDIRECT("PriorPlansTable["&$BZ36&"]")>0),INDIRECT("PriorPlansTable["&$BZ36&"]"))) -> 223.43 | CD36: =MIN(IF((PriorPlansTable[Market]=$CA$6)*(PriorPlansTable[Metal]=CD$7)*(INDIRECT("PriorPlansTable["&$BZ36&"]")>0),INDIRECT("PriorPlansTable["&$BZ36&"]"))) -> 233.11 | CE36: =MIN(IF((PriorPlansTable[Market]=$CA$6)*(PriorPlansTable[Metal]=CE$7)*(INDIRECT("PriorPlansTable["&$BZ36&"]")>0),INDIRECT("PriorPlansTable["&$BZ36&"]"))) -> 0 | CF36: =MIN(IF((PriorPlansTable[Market]=$CA$6)*(PriorPlansTable[Metal]="Silver")*(INDIRECT("PriorPlansTable["&$BZ36&"]")>CC36),INDIRECT("PriorPlansTable["&$BZ36&"]"))) -> 230.54 | CG36: =MIN(IF((PriorPlansTable[Market]=$CG$6)*(PriorPlansTable[Metal]=CG$7)*(INDIRECT("PriorPlansTable["&$BZ36&"]")>0),INDIRECT("PriorPlansTable["&$BZ36&"]"))) -> 0 | CH36: =MIN(IF((PriorPlansTable[Market]=$CG$6)*(PriorPlansTable[Metal]=CH$7)*(INDIRECT("PriorPlansTable["&$BZ36&"]")>0),INDIRECT("PriorPlansTable["&$BZ36&"]"))) -> 176.13 | CI36: =MIN(IF((PriorPlansTable[Market]=$CG$6)*(PriorPlansTable[Metal]=CI$7)*(INDIRECT("PriorPlansTable["&$BZ36&"]")>0),INDIRECT("PriorPlansTable["&$BZ36&"]"))) -> 211.35 | CJ36: =MIN(IF((PriorPlansTable[Market]=$CG$6)*(PriorPlansTable[Metal]=CJ$7)*(INDIRECT("PriorPlansTable["&$BZ36&"]")>0),INDIRECT("PriorPlansTable["&$BZ36&"]"))) -> 259.26 | CK36: =MIN(IF((PriorPlansTable[Market]=$CG$6)*(PriorPlansTable[Metal]=CK$7)*(INDIRECT("PriorPlansTable["&$BZ36&"]")>0),INDIRECT("PriorPlansTable["&$BZ36&"]"))) -> 317.82 | CL36: =MIN(IF((PriorPlansTable[Market]=$CG$6)*(PriorPlansTable[Metal]="Silver")*(INDIRECT("PriorPlansTable["&$BZ36&"]")>CI36),INDIRECT("PriorPlansTable["&$BZ36&"]"))) -> 217.66
B37: IBC | C37: QCC | D37: Small Group | E37: 31609PA0150049 | F37: Personal Choice PPO Silver Secure $4,750/$40/$80/$600 | G37: PPO | H37: Silver | I37: Off | J37: 0 | K37: 0 | L37: 0 | M37: 0 | N37: 0 | O37: 0 | P37: 0 | Q37: 0 | R37: 0 | S37: 0 | T37: 0 | U37: 0 | V37: 0 | W37: 0 | X37: 0 | Y37: 0 | Z37: 0 | AA37: 0 | AB37: 0 | AC37: 0 | AD37: 0 | AE37: 0 | AF37: 0 | AG37: 0 | AH37: 0 | AI37: 0 | AJ37: 0 | AK37: 0 | AL37: 0 | AM37: 0 | AN37: 0 | AO37: 0 | AP37: 0 | AQ37: 0 | AR37: 0 | AS37: 0 | AT37: 0 | AU37: 0 | AV37: 0 | AW37: 0 | AX37: 0 | AY37: 0 | AZ37: 0 | BA37: 0 | BB37: 0 | BC37: 0 | BD37: 0 | BE37: 0 | BF37: 0 | BG37: 0 | BH37: 0 | BI37: 0 | BJ37: 0 | BK37: 0 | BL37: 0 | BM37: 312.18 | BN37: 312.18 | BO37: 312.18 | BP37: 312.18 | BQ37: 312.18 | BR37: 0 | BS37: 0 | BT37: 0 | BU37: 0 | BV37: 0 | BW37: 0 | BX37: 0 | BZ37: Greene | CA37: =MIN(IF((PriorPlansTable[Market]=$CA$6)*(PriorPlansTable[Metal]=CA$7)*(INDIRECT("PriorPlansTable["&$BZ37&"]")>0),INDIRECT("PriorPlansTable["&$BZ37&"]"))) -> 179.88 | CB37: =MIN(IF((PriorPlansTable[Market]=$CA$6)*(PriorPlansTable[Metal]=CB$7)*(INDIRECT("PriorPlansTable["&$BZ37&"]")>0),INDIRECT("PriorPlansTable["&$BZ37&"]"))) -> 229.13 | CC37: =MIN(IF((PriorPlansTable[Market]=$CA$6)*(PriorPlansTable[Metal]=CC$7)*(INDIRECT("PriorPlansTable["&$BZ37&"]")>0),INDIRECT("PriorPlansTable["&$BZ37&"]"))) -> 274.09 | CD37: =MIN(IF((PriorPlansTable[Market]=$CA$6)*(PriorPlansTable[Metal]=CD$7)*(INDIRECT("PriorPlansTable["&$BZ37&"]")>0),INDIRECT("PriorPlansTable["&$BZ37&"]"))) -> 291.8 | CE37: =MIN(IF((PriorPlansTable[Market]=$CA$6)*(PriorPlansTable[Metal]=CE$7)*(INDIRECT("PriorPlansTable["&$BZ37&"]")>0),INDIRECT("PriorPlansTable["&$BZ37&"]"))) -> 0 | CF37: =MIN(IF((PriorPlansTable[Market]=$CA$6)*(PriorPlansTable[Metal]="Silver")*(INDIRECT("PriorPlansTable["&$BZ37&"]")>CC37),INDIRECT("PriorPlansTable["&$BZ37&"]"))) -> 276.46 | CG37: =MIN(IF((PriorPlansTable[Market]=$CG$6)*(PriorPlansTable[Metal]=CG$7)*(INDIRECT("PriorPlansTable["&$BZ37&"]")>0),INDIRECT("PriorPlansTable["&$BZ37&"]"))) -> 0 | CH37: =MIN(IF((PriorPlansTable[Market]=$CG$6)*(PriorPlansTable[Metal]=CH$7)*(INDIRECT("PriorPlansTable["&$BZ37&"]")>0),INDIRECT("PriorPlansTable["&$BZ37&"]"))) -> 176.13 | CI37: =MIN(IF((PriorPlansTable[Market]=$CG$6)*(PriorPlansTable[Metal]=CI$7)*(INDIRECT("PriorPlansTable["&$BZ37&"]")>0),INDIRECT("PriorPlansTable["&$BZ37&"]"))) -> 233.57 | CJ37: =MIN(IF((PriorPlansTable[Market]=$CG$6)*(PriorPlansTable[Metal]=CJ$7)*(INDIRECT("PriorPlansTable["&$BZ37&"]")>0),INDIRECT("PriorPlansTable["&$BZ37&"]"))) -> 264.38 | CK37: =MIN(IF((PriorPlansTable[Market]=$CG$6)*(PriorPlansTable[Metal]=CK$7)*(INDIRECT("PriorPlansTable["&$BZ37&"]")>0),INDIRECT("PriorPlansTable["&$BZ37&"]"))) -> 317.82 | CL37: =MIN(IF((PriorPlansTable[Market]=$CG$6)*(PriorPlansTable[Metal]="Silver")*(INDIRECT("PriorPlansTable["&$BZ37&"]")>CI37),INDIRECT("PriorPlansTable["&$BZ37&"]"))) -> 236.37
B38: IBC | C38: QCC | D38: Small Group | E38: 31609PA0150050 | F38: Personal Choice PPO Silver HSA-0 $3,700/100% | G38: PPO | H38: Silver | I38: Off | J38: 0 | K38: 0 | L38: 0 | M38: 0 | N38: 0 | O38: 0 | P38: 0 | Q38: 0 | R38: 0 | S38: 0 | T38: 0 | U38: 0 | V38: 0 | W38: 0 | X38: 0 | Y38: 0 | Z38: 0 | AA38: 0 | AB38: 0 | AC38: 0 | AD38: 0 | AE38: 0 | AF38: 0 | AG38: 0 | AH38: 0 | AI38: 0 | AJ38: 0 | AK38: 0 | AL38: 0 | AM38: 0 | AN38: 0 | AO38: 0 | AP38: 0 | AQ38: 0 | AR38: 0 | AS38: 0 | AT38: 0 | AU38: 0 | AV38: 0 | AW38: 0 | AX38: 0 | AY38: 0 | AZ38: 0 | BA38: 0 | BB38: 0 | BC38: 0 | BD38: 0 | BE38: 0 | BF38: 0 | BG38: 0 | BH38: 0 | BI38: 0 | BJ38: 0 | BK38: 0 | BL38: 0 | BM38: 386.13 | BN38: 386.13 | BO38: 386.13 | BP38: 386.13 | BQ38: 386.13 | BR38: 0 | BS38: 0 | BT38: 0 | BU38: 0 | BV38: 0 | BW38: 0 | BX38: 0 | BZ38: Indiana | CA38: =MIN(IF((PriorPlansTable[Market]=$CA$6)*(PriorPlansTable[Metal]=CA$7)*(INDIRECT("PriorPlansTable["&$BZ38&"]")>0),INDIRECT("PriorPlansTable["&$BZ38&"]"))) -> 204.78 | CB38: =MIN(IF((PriorPlansTable[Market]=$CA$6)*(PriorPlansTable[Metal]=CB$7)*(INDIRECT("PriorPlansTable["&$BZ38&"]")>0),INDIRECT("PriorPlansTable["&$BZ38&"]"))) -> 229.13 | CC38: =MIN(IF((PriorPlansTable[Market]=$CA$6)*(PriorPlansTable[Metal]=CC$7)*(INDIRECT("PriorPlansTable["&$BZ38&"]")>0),INDIRECT("PriorPlansTable["&$BZ38&"]"))) -> 279.67 | CD38: =MIN(IF((PriorPlansTable[Market]=$CA$6)*(PriorPlansTable[Metal]=CD$7)*(INDIRECT("PriorPlansTable["&$BZ38&"]")>0),INDIRECT("PriorPlansTable["&$BZ38&"]"))) -> 291.8 | CE38: =MIN(IF((PriorPlansTable[Market]=$CA$6)*(PriorPlansTable[Metal]=CE$7)*(INDIRECT("PriorPlansTable["&$BZ38&"]")>0),INDIRECT("PriorPlansTable["&$BZ38&"]"))) -> 0 | CF38: =MIN(IF((PriorPlansTable[Market]=$CA$6)*(PriorPlansTable[Metal]="Silver")*(INDIRECT("PriorPlansTable["&$BZ38&"]")>CC38),INDIRECT("PriorPlansTable["&$BZ38&"]"))) -> 289.51 | CG38: =MIN(IF((PriorPlansTable[Market]=$CG$6)*(PriorPlansTable[Metal]=CG$7)*(INDIRECT("PriorPlansTable["&$BZ38&"]")>0),INDIRECT("PriorPlansTable["&$BZ38&"]"))) -> 0 | CH38: =MIN(IF((PriorPlansTable[Market]=$CG$6)*(PriorPlansTable[Metal]=CH$7)*(INDIRECT("PriorPlansTable["&$BZ38&"]")>0),INDIRECT("PriorPlansTable["&$BZ38&"]"))) -> 176.13 | CI38: =MIN(IF((PriorPlansTable[Market]=$CG$6)*(PriorPlansTable[Metal]=CI$7)*(INDIRECT("PriorPlansTable["&$BZ38&"]")>0),INDIRECT("PriorPlansTable["&$BZ38&"]"))) -> 233.57 | CJ38: =MIN(IF((PriorPlansTable[Market]=$CG$6)*(PriorPlansTable[Metal]=CJ$7)*(INDIRECT("PriorPlansTable["&$BZ38&"]")>0),INDIRECT("PriorPlansTable["&$BZ38&"]"))) -> 264.38 | CK38: =MIN(IF((PriorPlansTable[Market]=$CG$6)*(PriorPlansTable[Metal]=CK$7)*(INDIRECT("PriorPlansTable["&$BZ38&"]")>0),INDIRECT("PriorPlansTable["&$BZ38&"]"))) -> 317.82 | CL38: =MIN(IF((PriorPlansTable[Market]=$CG$6)*(PriorPlansTable[Metal]="Silver")*(INDIRECT("PriorPlansTable["&$BZ38&"]")>CI38),INDIRECT("PriorPlansTable["&$BZ38&"]"))) -> 236.37
B39: IBC | C39: QCC | D39: Small Group | E39: 31609PA0170001 | F39: Personal Choice EPO Silver HSA-0 $3,000/80% | G39: EPO | H39: Silver | I39: Off | J39: 0 | K39: 0 | L39: 0 | M39: 0 | N39: 0 | O39: 0 | P39: 0 | Q39: 0 | R39: 0 | S39: 0 | T39: 0 | U39: 0 | V39: 0 | W39: 0 | X39: 0 | Y39: 0 | Z39: 0 | AA39: 0 | AB39: 0 | AC39: 0 | AD39: 0 | AE39: 0 | AF39: 0 | AG39: 0 | AH39: 0 | AI39: 0 | AJ39: 0 | AK39: 0 | AL39: 0 | AM39: 0 | AN39: 0 | AO39: 0 | AP39: 0 | AQ39: 0 | AR39: 0 | AS39: 0 | AT39: 0 | AU39: 0 | AV39: 0 | AW39: 0 | AX39: 0 | AY39: 0 | AZ39: 0 | BA39: 0 | BB39: 0 | BC39: 0 | BD39: 0 | BE39: 0 | BF39: 0 | BG39: 0 | BH39: 0 | BI39: 0 | BJ39: 0 | BK39: 0 | BL39: 0 | BM39: 324.97 | BN39: 324.97 | BO39: 324.97 | BP39: 324.97 | BQ39: 324.97 | BR39: 0 | BS39: 0 | BT39: 0 | BU39: 0 | BV39: 0 | BW39: 0 | BX39: 0 | BZ39: Lawrence | CA39: =MIN(IF((PriorPlansTable[Market]=$CA$6)*(PriorPlansTable[Metal]=CA$7)*(INDIRECT("PriorPlansTable["&$BZ39&"]")>0),INDIRECT("PriorPlansTable["&$BZ39&"]"))) -> 164.75 | CB39: =MIN(IF((PriorPlansTable[Market]=$CA$6)*(PriorPlansTable[Metal]=CB$7)*(INDIRECT("PriorPlansTable["&$BZ39&"]")>0),INDIRECT("PriorPlansTable["&$BZ39&"]"))) -> 173.59 | CC39: =MIN(IF((PriorPlansTable[Market]=$CA$6)*(PriorPlansTable[Metal]=CC$7)*(INDIRECT("PriorPlansTable["&$BZ39&"]")>0),INDIRECT("PriorPlansTable["&$BZ39&"]"))) -> 211.37 | CD39: =MIN(IF((PriorPlansTable[Market]=$CA$6)*(PriorPlansTable[Metal]=CD$7)*(INDIRECT("PriorPlansTable["&$BZ39&"]")>0),INDIRECT("PriorPlansTable["&$BZ39&"]"))) -> 220.53 | CE39: =MIN(IF((PriorPlansTable[Market]=$CA$6)*(PriorPlansTable[Metal]=CE$7)*(INDIRECT("PriorPlansTable["&$BZ39&"]")>0),INDIRECT("PriorPlansTable["&$BZ39&"]"))) -> 0 | CF39: =MIN(IF((PriorPlansTable[Market]=$CA$6)*(PriorPlansTable[Metal]="Silver")*(INDIRECT("PriorPlansTable["&$BZ39&"]")>CC39),INDIRECT("PriorPlansTable["&$BZ39&"]"))) -> 218.1 | CG39: =MIN(IF((PriorPlansTable[Market]=$CG$6)*(PriorPlansTable[Metal]=CG$7)*(INDIRECT("PriorPlansTable["&$BZ39&"]")>0),INDIRECT("PriorPlansTable["&$BZ39&"]"))) -> 0 | CH39: =MIN(IF((PriorPlansTable[Market]=$CG$6)*(PriorPlansTable[Metal]=CH$7)*(INDIRECT("PriorPlansTable["&$BZ39&"]")>0),INDIRECT("PriorPlansTable["&$BZ39&"]"))) -> 176.13 | CI39: =MIN(IF((PriorPlansTable[Market]=$CG$6)*(PriorPlansTable[Metal]=CI$7)*(INDIRECT("PriorPlansTable["&$BZ39&"]")>0),INDIRECT("PriorPlansTable["&$BZ39&"]"))) -> 211.35 | CJ39: =MIN(IF((PriorPlansTable[Market]=$CG$6)*(PriorPlansTable[Metal]=CJ$7)*(INDIRECT("PriorPlansTable["&$BZ39&"]")>0),INDIRECT("PriorPlansTable["&$BZ39&"]"))) -> 259.26 | CK39: =MIN(IF((PriorPlansTable[Market]=$CG$6)*(PriorPlansTable[Metal]=CK$7)*(INDIRECT("PriorPlansTable["&$BZ39&"]")>0),INDIRECT("PriorPlansTable["&$BZ39&"]"))) -> 317.82 | CL39: =MIN(IF((PriorPlansTable[Market]=$CG$6)*(PriorPlansTable[Metal]="Silver")*(INDIRECT("PriorPlansTable["&$BZ39&"]")>CI39),INDIRECT("PriorPlansTable["&$BZ39&"]"))) -> 217.66
B40: IBC | C40: KHPE | D40: Individual | E40: 33871PA0040002 | F40: Keystone HMO Gold | G40: HMO | H40: Gold | I40: On | J40: 0 | K40: 0 | L40: 0 | M40: 0 | N40: 0 | O40: 0 | P40: 0 | Q40: 0 | R40: 0 | S40: 0 | T40: 0 | U40: 0 | V40: 0 | W40: 0 | X40: 0 | Y40: 0 | Z40: 0 | AA40: 0 | AB40: 0 | AC40: 0 | AD40: 0 | AE40: 0 | AF40: 0 | AG40: 0 | AH40: 0 | AI40: 0 | AJ40: 0 | AK40: 0 | AL40: 0 | AM40: 0 | AN40: 0 | AO40: 0 | AP40: 0 | AQ40: 0 | AR40: 0 | AS40: 0 | AT40: 0 | AU40: 0 | AV40: 0 | AW40: 0 | AX40: 0 | AY40: 0 | AZ40: 0 | BA40: 0 | BB40: 0 | BC40: 0 | BD40: 0 | BE40: 0 | BF40: 0 | BG40: 0 | BH40: 0 | BI40: 0 | BJ40: 0 | BK40: 0 | BL40: 0 | BM40: 463.01 | BN40: 463.01 | BO40: 463.01 | BP40: 463.01 | BQ40: 463.01 | BR40: 0 | BS40: 0 | BT40: 0 | BU40: 0 | BV40: 0 | BW40: 0 | BX40: 0 | BZ40: Washington | CA40: =MIN(IF((PriorPlansTable[Market]=$CA$6)*(PriorPlansTable[Metal]=CA$7)*(INDIRECT("PriorPlansTable["&$BZ40&"]")>0),INDIRECT("PriorPlansTable["&$BZ40&"]"))) -> 148.02 | CB40: =MIN(IF((PriorPlansTable[Market]=$CA$6)*(PriorPlansTable[Metal]=CB$7)*(INDIRECT("PriorPlansTable["&$BZ40&"]")>0),INDIRECT("PriorPlansTable["&$BZ40&"]"))) -> 183.49 | CC40: =MIN(IF((PriorPlansTable[Market]=$CA$6)*(PriorPlansTable[Metal]=CC$7)*(INDIRECT("PriorPlansTable["&$BZ40&"]")>0),INDIRECT("PriorPlansTable["&$BZ40&"]"))) -> 223.43 | CD40: =MIN(IF((PriorPlansTable[Market]=$CA$6)*(PriorPlansTable[Metal]=CD$7)*(INDIRECT("PriorPlansTable["&$BZ40&"]")>0),INDIRECT("PriorPlansTable["&$BZ40&"]"))) -> 233.11 | CE40: =MIN(IF((PriorPlansTable[Market]=$CA$6)*(PriorPlansTable[Metal]=CE$7)*(INDIRECT("PriorPlansTable["&$BZ40&"]")>0),INDIRECT("PriorPlansTable["&$BZ40&"]"))) -> 0 | CF40: =MIN(IF((PriorPlansTable[Market]=$CA$6)*(PriorPlansTable[Metal]="Silver")*(INDIRECT("PriorPlansTable["&$BZ40&"]")>CC40),INDIRECT("PriorPlansTable["&$BZ40&"]"))) -> 223.96 | CG40: =MIN(IF((PriorPlansTable[Market]=$CG$6)*(PriorPlansTable[Metal]=CG$7)*(INDIRECT("PriorPlansTable["&$BZ40&"]")>0),INDIRECT("PriorPlansTable["&$BZ40&"]"))) -> 0 | CH40: =MIN(IF((PriorPlansTable[Market]=$CG$6)*(PriorPlansTable[Metal]=CH$7)*(INDIRECT("PriorPlansTable["&$BZ40&"]")>0),INDIRECT("PriorPlansTable["&$BZ40&"]"))) -> 176.13 | CI40: =MIN(IF((PriorPlansTable[Market]=$CG$6)*(PriorPlansTable[Metal]=CI$7)*(INDIRECT("PriorPlansTable["&$BZ40&"]")>0),INDIRECT("PriorPlansTable["&$BZ40&"]"))) -> 211.35 | CJ40: =MIN(IF((PriorPlansTable[Market]=$CG$6)*(PriorPlansTable[Metal]=CJ$7)*(INDIRECT("PriorPlansTable["&$BZ40&"]")>0),INDIRECT("PriorPlansTable["&$BZ40&"]"))) -> 233.94 | CK40: =MIN(IF((PriorPlansTable[Market]=$CG$6)*(PriorPlansTable[Metal]=CK$7)*(INDIRECT("PriorPlansTable["&$BZ40&"]")>0),INDIRECT("PriorPlansTable["&$BZ40&"]"))) -> 314.94 | CL40: =MIN(IF((PriorPlansTable[Market]=$CG$6)*(PriorPlansTable[Metal]="Silver")*(INDIRECT("PriorPlansTable["&$BZ40&"]")>CI40),INDIRECT("PriorPlansTable["&$BZ40&"]"))) -> 212.07
B41: IBC | C41: KHPE | D41: Individual | E41: 33871PA0040005 | F41: Keystone HMO Gold Proactive | G41: HMO | H41: Gold | I41: On | J41: 0 | K41: 0 | L41: 0 | M41: 0 | N41: 0 | O41: 0 | P41: 0 | Q41: 0 | R41: 0 | S41: 0 | T41: 0 | U41: 0 | V41: 0 | W41: 0 | X41: 0 | Y41: 0 | Z41: 0 | AA41: 0 | AB41: 0 | AC41: 0 | AD41: 0 | AE41: 0 | AF41: 0 | AG41: 0 | AH41: 0 | AI41: 0 | AJ41: 0 | AK41: 0 | AL41: 0 | AM41: 0 | AN41: 0 | AO41: 0 | AP41: 0 | AQ41: 0 | AR41: 0 | AS41: 0 | AT41: 0 | AU41: 0 | AV41: 0 | AW41: 0 | AX41: 0 | AY41: 0 | AZ41: 0 | BA41: 0 | BB41: 0 | BC41: 0 | BD41: 0 | BE41: 0 | BF41: 0 | BG41: 0 | BH41: 0 | BI41: 0 | BJ41: 0 | BK41: 0 | BL41: 0 | BM41: 415.59 | BN41: 415.59 | BO41: 415.59 | BP41: 415.59 | BQ41: 415.59 | BR41: 0 | BS41: 0 | BT41: 0 | BU41: 0 | BV41: 0 | BW41: 0 | BX41: 0 | BZ41: Westmoreland | CA41: =MIN(IF((PriorPlansTable[Market]=$CA$6)*(PriorPlansTable[Metal]=CA$7)*(INDIRECT("PriorPlansTable["&$BZ41&"]")>0),INDIRECT("PriorPlansTable["&$BZ41&"]"))) -> 174.14 | CB41: =MIN(IF((PriorPlansTable[Market]=$CA$6)*(PriorPlansTable[Metal]=CB$7)*(INDIRECT("PriorPlansTable["&$BZ41&"]")>0),INDIRECT("PriorPlansTable["&$BZ41&"]"))) -> 183.49 | CC41: =MIN(IF((PriorPlansTable[Market]=$CA$6)*(PriorPlansTable[Metal]=CC$7)*(INDIRECT("PriorPlansTable["&$BZ41&"]")>0),INDIRECT("PriorPlansTable["&$BZ41&"]"))) -> 223.43 | CD41: =MIN(IF((PriorPlansTable[Market]=$CA$6)*(PriorPlansTable[Metal]=CD$7)*(INDIRECT("PriorPlansTable["&$BZ41&"]")>0),INDIRECT("PriorPlansTable["&$BZ41&"]"))) -> 233.11 | CE41: =MIN(IF((PriorPlansTable[Market]=$CA$6)*(PriorPlansTable[Metal]=CE$7)*(INDIRECT("PriorPlansTable["&$BZ41&"]")>0),INDIRECT("PriorPlansTable["&$BZ41&"]"))) -> 0 | CF41: =MIN(IF((PriorPlansTable[Market]=$CA$6)*(PriorPlansTable[Metal]="Silver")*(INDIRECT("PriorPlansTable["&$BZ41&"]")>CC41),INDIRECT("PriorPlansTable["&$BZ41&"]"))) -> 230.54 | CG41: =MIN(IF((PriorPlansTable[Market]=$CG$6)*(PriorPlansTable[Metal]=CG$7)*(INDIRECT("PriorPlansTable["&$BZ41&"]")>0),INDIRECT("PriorPlansTable["&$BZ41&"]"))) -> 0 | CH41: =MIN(IF((PriorPlansTable[Market]=$CG$6)*(PriorPlansTable[Metal]=CH$7)*(INDIRECT("PriorPlansTable["&$BZ41&"]")>0),INDIRECT("PriorPlansTable["&$BZ41&"]"))) -> 176.13 | CI41: =MIN(IF((PriorPlansTable[Market]=$CG$6)*(PriorPlansTable[Metal]=CI$7)*(INDIRECT("PriorPlansTable["&$BZ41&"]")>0),INDIRECT("PriorPlansTable["&$BZ41&"]"))) -> 211.35 | CJ41: =MIN(IF((PriorPlansTable[Market]=$CG$6)*(PriorPlansTable[Metal]=CJ$7)*(INDIRECT("PriorPlansTable["&$BZ41&"]")>0),INDIRECT("PriorPlansTable["&$BZ41&"]"))) -> 259.26 | CK41: =MIN(IF((PriorPlansTable[Market]=$CG$6)*(PriorPlansTable[Metal]=CK$7)*(INDIRECT("PriorPlansTable["&$BZ41&"]")>0),INDIRECT("PriorPlansTable["&$BZ41&"]"))) -> 317.82 | CL41: =MIN(IF((PriorPlansTable[Market]=$CG$6)*(PriorPlansTable[Metal]="Silver")*(INDIRECT("PriorPlansTable["&$BZ41&"]")>CI41),INDIRECT("PriorPlansTable["&$BZ41&"]"))) -> 217.66
B42: IBC | C42: KHPE | D42: Individual | E42: 33871PA0040006 | F42: Keystone HMO Silver Proactive | G42: HMO | H42: Silver | I42: On | J42: 0 | K42: 0 | L42: 0 | M42: 0 | N42: 0 | O42: 0 | P42: 0 | Q42: 0 | R42: 0 | S42: 0 | T42: 0 | U42: 0 | V42: 0 | W42: 0 | X42: 0 | Y42: 0 | Z42: 0 | AA42: 0 | AB42: 0 | AC42: 0 | AD42: 0 | AE42: 0 | AF42: 0 | AG42: 0 | AH42: 0 | AI42: 0 | AJ42: 0 | AK42: 0 | AL42: 0 | AM42: 0 | AN42: 0 | AO42: 0 | AP42: 0 | AQ42: 0 | AR42: 0 | AS42: 0 | AT42: 0 | AU42: 0 | AV42: 0 | AW42: 0 | AX42: 0 | AY42: 0 | AZ42: 0 | BA42: 0 | BB42: 0 | BC42: 0 | BD42: 0 | BE42: 0 | BF42: 0 | BG42: 0 | BH42: 0 | BI42: 0 | BJ42: 0 | BK42: 0 | BL42: 0 | BM42: 368.93 | BN42: 0 | BO42: 0 | BP42: 0 | BQ42: 0 | BR42: 0 | BS42: 0 | BT42: 0 | BU42: 0 | BV42: 0 | BW42: 0 | BX42: 0 | BZ42: Bedford | CA42: =MIN(IF((PriorPlansTable[Market]=$CA$6)*(PriorPlansTable[Metal]=CA$7)*(INDIRECT("PriorPlansTable["&$BZ42&"]")>0),INDIRECT("PriorPlansTable["&$BZ42&"]"))) -> 164.75 | CB42: =MIN(IF((PriorPlansTable[Market]=$CA$6)*(PriorPlansTable[Metal]=CB$7)*(INDIRECT("PriorPlansTable["&$BZ42&"]")>0),INDIRECT("PriorPlansTable["&$BZ42&"]"))) -> 173.59 | CC42: =MIN(IF((PriorPlansTable[Market]=$CA$6)*(PriorPlansTable[Metal]=CC$7)*(INDIRECT("PriorPlansTable["&$BZ42&"]")>0),INDIRECT("PriorPlansTable["&$BZ42&"]"))) -> 211.37 | CD42: =MIN(IF((PriorPlansTable[Market]=$CA$6)*(PriorPlansTable[Metal]=CD$7)*(INDIRECT("PriorPlansTable["&$BZ42&"]")>0),INDIRECT("PriorPlansTable["&$BZ42&"]"))) -> 220.53 | CE42: =MIN(IF((PriorPlansTable[Market]=$CA$6)*(PriorPlansTable[Metal]=CE$7)*(INDIRECT("PriorPlansTable["&$BZ42&"]")>0),INDIRECT("PriorPlansTable["&$BZ42&"]"))) -> 0 | CF42: =MIN(IF((PriorPlansTable[Market]=$CA$6)*(PriorPlansTable[Metal]="Silver")*(INDIRECT("PriorPlansTable["&$BZ42&"]")>CC42),INDIRECT("PriorPlansTable["&$BZ42&"]"))) -> 218.1 | CG42: =MIN(IF((PriorPlansTable[Market]=$CG$6)*(PriorPlansTable[Metal]=CG$7)*(INDIRECT("PriorPlansTable["&$BZ42&"]")>0),INDIRECT("PriorPlansTable["&$BZ42&"]"))) -> 0 | CH42: =MIN(IF((PriorPlansTable[Market]=$CG$6)*(PriorPlansTable[Metal]=CH$7)*(INDIRECT("PriorPlansTable["&$BZ42&"]")>0),INDIRECT("PriorPlansTable["&$BZ42&"]"))) -> 184.28 | CI42: =MIN(IF((PriorPlansTable[Market]=$CG$6)*(PriorPlansTable[Metal]=CI$7)*(INDIRECT("PriorPlansTable["&$BZ42&"]")>0),INDIRECT("PriorPlansTable["&$BZ42&"]"))) -> 221.13 | CJ42: =MIN(IF((PriorPlansTable[Market]=$CG$6)*(PriorPlansTable[Metal]=CJ$7)*(INDIRECT("PriorPlansTable["&$BZ42&"]")>0),INDIRECT("PriorPlansTable["&$BZ42&"]"))) -> 271.26 | CK42: =MIN(IF((PriorPlansTable[Market]=$CG$6)*(PriorPlansTable[Metal]=CK$7)*(INDIRECT("PriorPlansTable["&$BZ42&"]")>0),INDIRECT("PriorPlansTable["&$BZ42&"]"))) -> 332.53 | CL42: =MIN(IF((PriorPlansTable[Market]=$CG$6)*(PriorPlansTable[Metal]="Silver")*(INDIRECT("PriorPlansTable["&$BZ42&"]")>CI42),INDIRECT("PriorPlansTable["&$BZ42&"]"))) -> 227.74
B43: IBC | C43: KHPE | D43: Individual | E43: 33871PA0040008 | F43: Keystone HMO Silver Proactive Lite | G43: HMO | H43: Silver | I43: On/Off | J43: 0 | K43: 0 | L43: 0 | M43: 0 | N43: 0 | O43: 0 | P43: 0 | Q43: 0 | R43: 0 | S43: 0 | T43: 0 | U43: 0 | V43: 0 | W43: 0 | X43: 0 | Y43: 0 | Z43: 0 | AA43: 0 | AB43: 0 | AC43: 0 | AD43: 0 | AE43: 0 | AF43: 0 | AG43: 0 | AH43: 0 | AI43: 0 | AJ43: 0 | AK43: 0 | AL43: 0 | AM43: 0 | AN43: 0 | AO43: 0 | AP43: 0 | AQ43: 0 | AR43: 0 | AS43: 0 | AT43: 0 | AU43: 0 | AV43: 0 | AW43: 0 | AX43: 0 | AY43: 0 | AZ43: 0 | BA43: 0 | BB43: 0 | BC43: 0 | BD43: 0 | BE43: 0 | BF43: 0 | BG43: 0 | BH43: 0 | BI43: 0 | BJ43: 0 | BK43: 0 | BL43: 0 | BM43: 349.96 | BN43: 0 | BO43: 0 | BP43: 0 | BQ43: 0 | BR43: 0 | BS43: 0 | BT43: 0 | BU43: 0 | BV43: 0 | BW43: 0 | BX43: 0 | BZ43: Blair | CA43: =MIN(IF((PriorPlansTable[Market]=$CA$6)*(PriorPlansTable[Metal]=CA$7)*(INDIRECT("PriorPlansTable["&$BZ43&"]")>0),INDIRECT("PriorPlansTable["&$BZ43&"]"))) -> 164.75 | CB43: =MIN(IF((PriorPlansTable[Market]=$CA$6)*(PriorPlansTable[Metal]=CB$7)*(INDIRECT("PriorPlansTable["&$BZ43&"]")>0),INDIRECT("PriorPlansTable["&$BZ43&"]"))) -> 173.59 | CC43: =MIN(IF((PriorPlansTable[Market]=$CA$6)*(PriorPlansTable[Metal]=CC$7)*(INDIRECT("PriorPlansTable["&$BZ43&"]")>0),INDIRECT("PriorPlansTable["&$BZ43&"]"))) -> 211.37 | CD43: =MIN(IF((PriorPlansTable[Market]=$CA$6)*(PriorPlansTable[Metal]=CD$7)*(INDIRECT("PriorPlansTable["&$BZ43&"]")>0),INDIRECT("PriorPlansTable["&$BZ43&"]"))) -> 220.53 | CE43: =MIN(IF((PriorPlansTable[Market]=$CA$6)*(PriorPlansTable[Metal]=CE$7)*(INDIRECT("PriorPlansTable["&$BZ43&"]")>0),INDIRECT("PriorPlansTable["&$BZ43&"]"))) -> 0 | CF43: =MIN(IF((PriorPlansTable[Market]=$CA$6)*(PriorPlansTable[Metal]="Silver")*(INDIRECT("PriorPlansTable["&$BZ43&"]")>CC43),INDIRECT("PriorPlansTable["&$BZ43&"]"))) -> 218.1 | CG43: =MIN(IF((PriorPlansTable[Market]=$CG$6)*(PriorPlansTable[Metal]=CG$7)*(INDIRECT("PriorPlansTable["&$BZ43&"]")>0),INDIRECT("PriorPlansTable["&$BZ43&"]"))) -> 0 | CH43: =MIN(IF((PriorPlansTable[Market]=$CG$6)*(PriorPlansTable[Metal]=CH$7)*(INDIRECT("PriorPlansTable["&$BZ43&"]")>0),INDIRECT("PriorPlansTable["&$BZ43&"]"))) -> 184.28 | CI43: =MIN(IF((PriorPlansTable[Market]=$CG$6)*(PriorPlansTable[Metal]=CI$7)*(INDIRECT("PriorPlansTable["&$BZ43&"]")>0),INDIRECT("PriorPlansTable["&$BZ43&"]"))) -> 221.13 | CJ43: =MIN(IF((PriorPlansTable[Market]=$CG$6)*(PriorPlansTable[Metal]=CJ$7)*(INDIRECT("PriorPlansTable["&$BZ43&"]")>0),INDIRECT("PriorPlansTable["&$BZ43&"]"))) -> 271.26 | CK43: =MIN(IF((PriorPlansTable[Market]=$CG$6)*(PriorPlansTable[Metal]=CK$7)*(INDIRECT("PriorPlansTable["&$BZ43&"]")>0),INDIRECT("PriorPlansTable["&$BZ43&"]"))) -> 332.53 | CL43: =MIN(IF((PriorPlansTable[Market]=$CG$6)*(PriorPlansTable[Metal]="Silver")*(INDIRECT("PriorPlansTable["&$BZ43&"]")>CI43),INDIRECT("PriorPlansTable["&$BZ43&"]"))) -> 227.74
B44: IBC | C44: KHPE | D44: Individual | E44: 33871PA0040009 | F44: Keystone HMO Silver Proactive Lite | G44: HMO | H44: Silver | I44: On/Off | J44: 0 | K44: 0 | L44: 0 | M44: 0 | N44: 0 | O44: 0 | P44: 0 | Q44: 0 | R44: 0 | S44: 0 | T44: 0 | U44: 0 | V44: 0 | W44: 0 | X44: 0 | Y44: 0 | Z44: 0 | AA44: 0 | AB44: 0 | AC44: 0 | AD44: 0 | AE44: 0 | AF44: 0 | AG44: 0 | AH44: 0 | AI44: 0 | AJ44: 0 | AK44: 0 | AL44: 0 | AM44: 0 | AN44: 0 | AO44: 0 | AP44: 0 | AQ44: 0 | AR44: 0 | AS44: 0 | AT44: 0 | AU44: 0 | AV44: 0 | AW44: 0 | AX44: 0 | AY44: 0 | AZ44: 0 | BA44: 0 | BB44: 0 | BC44: 0 | BD44: 0 | BE44: 0 | BF44: 0 | BG44: 0 | BH44: 0 | BI44: 0 | BJ44: 0 | BK44: 0 | BL44: 0 | BM44: 0 | BN44: 0 | BO44: 0 | BP44: 349.96 | BQ44: 0 | BR44: 0 | BS44: 0 | BT44: 0 | BU44: 0 | BV44: 0 | BW44: 0 | BX44: 0 | BZ44: Cambria | CA44: =MIN(IF((PriorPlansTable[Market]=$CA$6)*(PriorPlansTable[Metal]=CA$7)*(INDIRECT("PriorPlansTable["&$BZ44&"]")>0),INDIRECT("PriorPlansTable["&$BZ44&"]"))) -> 179.88 | CB44: =MIN(IF((PriorPlansTable[Market]=$CA$6)*(PriorPlansTable[Metal]=CB$7)*(INDIRECT("PriorPlansTable["&$BZ44&"]")>0),INDIRECT("PriorPlansTable["&$BZ44&"]"))) -> 229.13 | CC44: =MIN(IF((PriorPlansTable[Market]=$CA$6)*(PriorPlansTable[Metal]=CC$7)*(INDIRECT("PriorPlansTable["&$BZ44&"]")>0),INDIRECT("PriorPlansTable["&$BZ44&"]"))) -> 274.09 | CD44: =MIN(IF((PriorPlansTable[Market]=$CA$6)*(PriorPlansTable[Metal]=CD$7)*(INDIRECT("PriorPlansTable["&$BZ44&"]")>0),INDIRECT("PriorPlansTable["&$BZ44&"]"))) -> 291.8 | CE44: =MIN(IF((PriorPlansTable[Market]=$CA$6)*(PriorPlansTable[Metal]=CE$7)*(INDIRECT("PriorPlansTable["&$BZ44&"]")>0),INDIRECT("PriorPlansTable["&$BZ44&"]"))) -> 0 | CF44: =MIN(IF((PriorPlansTable[Market]=$CA$6)*(PriorPlansTable[Metal]="Silver")*(INDIRECT("PriorPlansTable["&$BZ44&"]")>CC44),INDIRECT("PriorPlansTable["&$BZ44&"]"))) -> 276.46 | CG44: =MIN(IF((PriorPlansTable[Market]=$CG$6)*(PriorPlansTable[Metal]=CG$7)*(INDIRECT("PriorPlansTable["&$BZ44&"]")>0),INDIRECT("PriorPlansTable["&$BZ44&"]"))) -> 0 | CH44: =MIN(IF((PriorPlansTable[Market]=$CG$6)*(PriorPlansTable[Metal]=CH$7)*(INDIRECT("PriorPlansTable["&$BZ44&"]")>0),INDIRECT("PriorPlansTable["&$BZ44&"]"))) -> 184.28 | CI44: =MIN(IF((PriorPlansTable[Market]=$CG$6)*(PriorPlansTable[Metal]=CI$7)*(INDIRECT("PriorPlansTable["&$BZ44&"]")>0),INDIRECT("PriorPlansTable["&$BZ44&"]"))) -> 244.39 | CJ44: =MIN(IF((PriorPlansTable[Market]=$CG$6)*(PriorPlansTable[Metal]=CJ$7)*(INDIRECT("PriorPlansTable["&$BZ44&"]")>0),INDIRECT("PriorPlansTable["&$BZ44&"]"))) -> 276.62 | CK44: =MIN(IF((PriorPlansTable[Market]=$CG$6)*(PriorPlansTable[Metal]=CK$7)*(INDIRECT("PriorPlansTable["&$BZ44&"]")>0),INDIRECT("PriorPlansTable["&$BZ44&"]"))) -> 332.53 | CL44: =MIN(IF((PriorPlansTable[Market]=$CG$6)*(PriorPlansTable[Metal]="Silver")*(INDIRECT("PriorPlansTable["&$BZ44&"]")>CI44),INDIRECT("PriorPlansTable["&$BZ44&"]"))) -> 247.02
B45: IBC | C45: KHPE | D45: Individual | E45: 33871PA0040010 | F45: Keystone HMO Silver Proactive Lite | G45: HMO | H45: Silver | I45: On/Off | J45: 0 | K45: 0 | L45: 0 | M45: 0 | N45: 0 | O45: 0 | P45: 0 | Q45: 0 | R45: 0 | S45: 0 | T45: 0 | U45: 0 | V45: 0 | W45: 0 | X45: 0 | Y45: 0 | Z45: 0 | AA45: 0 | AB45: 0 | AC45: 0 | AD45: 0 | AE45: 0 | AF45: 0 | AG45: 0 | AH45: 0 | AI45: 0 | AJ45: 0 | AK45: 0 | AL45: 0 | AM45: 0 | AN45: 0 | AO45: 0 | AP45: 0 | AQ45: 0 | AR45: 0 | AS45: 0 | AT45: 0 | AU45: 0 | AV45: 0 | AW45: 0 | AX45: 0 | AY45: 0 | AZ45: 0 | BA45: 0 | BB45: 0 | BC45: 0 | BD45: 0 | BE45: 0 | BF45: 0 | BG45: 0 | BH45: 0 | BI45: 0 | BJ45: 0 | BK45: 0 | BL45: 0 | BM45: 0 | BN45: 0 | BO45: 0 | BP45: 0 | BQ45: 349.96 | BR45: 0 | BS45: 0 | BT45: 0 | BU45: 0 | BV45: 0 | BW45: 0 | BX45: 0 | BZ45: Clearfield | CA45: =MIN(IF((PriorPlansTable[Market]=$CA$6)*(PriorPlansTable[Metal]=CA$7)*(INDIRECT("PriorPlansTable["&$BZ45&"]")>0),INDIRECT("PriorPlansTable["&$BZ45&"]"))) -> 204.78 | CB45: =MIN(IF((PriorPlansTable[Market]=$CA$6)*(PriorPlansTable[Metal]=CB$7)*(INDIRECT("PriorPlansTable["&$BZ45&"]")>0),INDIRECT("PriorPlansTable["&$BZ45&"]"))) -> 237.72 | CC45: =MIN(IF((PriorPlansTable[Market]=$CA$6)*(PriorPlansTable[Metal]=CC$7)*(INDIRECT("PriorPlansTable["&$BZ45&"]")>0),INDIRECT("PriorPlansTable["&$BZ45&"]"))) -> 291.08 | CD45: =MIN(IF((PriorPlansTable[Market]=$CA$6)*(PriorPlansTable[Metal]=CD$7)*(INDIRECT("PriorPlansTable["&$BZ45&"]")>0),INDIRECT("PriorPlansTable["&$BZ45&"]"))) -> 303.69 | CE45: =MIN(IF((PriorPlansTable[Market]=$CA$6)*(PriorPlansTable[Metal]=CE$7)*(INDIRECT("PriorPlansTable["&$BZ45&"]")>0),INDIRECT("PriorPlansTable["&$BZ45&"]"))) -> 0 | CF45: =MIN(IF((PriorPlansTable[Market]=$CA$6)*(PriorPlansTable[Metal]="Silver")*(INDIRECT("PriorPlansTable["&$BZ45&"]")>CC45),INDIRECT("PriorPlansTable["&$BZ45&"]"))) -> 300.35 | CG45: =MIN(IF((PriorPlansTable[Market]=$CG$6)*(PriorPlansTable[Metal]=CG$7)*(INDIRECT("PriorPlansTable["&$BZ45&"]")>0),INDIRECT("PriorPlansTable["&$BZ45&"]"))) -> 0 | CH45: =MIN(IF((PriorPlansTable[Market]=$CG$6)*(PriorPlansTable[Metal]=CH$7)*(INDIRECT("PriorPlansTable["&$BZ45&"]")>0),INDIRECT("PriorPlansTable["&$BZ45&"]"))) -> 199.61 | CI45: =MIN(IF((PriorPlansTable[Market]=$CG$6)*(PriorPlansTable[Metal]=CI$7)*(INDIRECT("PriorPlansTable["&$BZ45&"]")>0),INDIRECT("PriorPlansTable["&$BZ45&"]"))) -> 247.02 | CJ45: =MIN(IF((PriorPlansTable[Market]=$CG$6)*(PriorPlansTable[Metal]=CJ$7)*(INDIRECT("PriorPlansTable["&$BZ45&"]")>0),INDIRECT("PriorPlansTable["&$BZ45&"]"))) -> 278.39 | CK45: =MIN(IF((PriorPlansTable[Market]=$CG$6)*(PriorPlansTable[Metal]=CK$7)*(INDIRECT("PriorPlansTable["&$BZ45&"]")>0),INDIRECT("PriorPlansTable["&$BZ45&"]"))) -> 377.19 | CL45: =MIN(IF((PriorPlansTable[Market]=$CG$6)*(PriorPlansTable[Metal]="Silver")*(INDIRECT("PriorPlansTable["&$BZ45&"]")>CI45),INDIRECT("PriorPlansTable["&$BZ45&"]"))) -> 253.39
B46: IBC | C46: KHPE | D46: Individual | E46: 33871PA0040011 | F46: Keystone HMO Silver Proactive Lite | G46: HMO | H46: Silver | I46: On/Off | J46: 0 | K46: 0 | L46: 0 | M46: 0 | N46: 0 | O46: 0 | P46: 0 | Q46: 0 | R46: 0 | S46: 0 | T46: 0 | U46: 0 | V46: 0 | W46: 0 | X46: 0 | Y46: 0 | Z46: 0 | AA46: 0 | AB46: 0 | AC46: 0 | AD46: 0 | AE46: 0 | AF46: 0 | AG46: 0 | AH46: 0 | AI46: 0 | AJ46: 0 | AK46: 0 | AL46: 0 | AM46: 0 | AN46: 0 | AO46: 0 | AP46: 0 | AQ46: 0 | AR46: 0 | AS46: 0 | AT46: 0 | AU46: 0 | AV46: 0 | AW46: 0 | AX46: 0 | AY46: 0 | AZ46: 0 | BA46: 0 | BB46: 0 | BC46: 0 | BD46: 0 | BE46: 0 | BF46: 0 | BG46: 0 | BH46: 0 | BI46: 0 | BJ46: 0 | BK46: 0 | BL46: 0 | BM46: 0 | BN46: 349.96 | BO46: 0 | BP46: 0 | BQ46: 0 | BR46: 0 | BS46: 0 | BT46: 0 | BU46: 0 | BV46: 0 | BW46: 0 | BX46: 0 | BZ46: Huntingdon | CA46: =MIN(IF((PriorPlansTable[Market]=$CA$6)*(PriorPlansTable[Metal]=CA$7)*(INDIRECT("PriorPlansTable["&$BZ46&"]")>0),INDIRECT("PriorPlansTable["&$BZ46&"]"))) -> 204.78 | CB46: =MIN(IF((PriorPlansTable[Market]=$CA$6)*(PriorPlansTable[Metal]=CB$7)*(INDIRECT("PriorPlansTable["&$BZ46&"]")>0),INDIRECT("PriorPlansTable["&$BZ46&"]"))) -> 229.13 | CC46: =MIN(IF((PriorPlansTable[Market]=$CA$6)*(PriorPlansTable[Metal]=CC$7)*(INDIRECT("PriorPlansTable["&$BZ46&"]")>0),INDIRECT("PriorPlansTable["&$BZ46&"]"))) -> 279.67 | CD46: =MIN(IF((PriorPlansTable[Market]=$CA$6)*(PriorPlansTable[Metal]=CD$7)*(INDIRECT("PriorPlansTable["&$BZ46&"]")>0),INDIRECT("PriorPlansTable["&$BZ46&"]"))) -> 291.8 | CE46: =MIN(IF((PriorPlansTable[Market]=$CA$6)*(PriorPlansTable[Metal]=CE$7)*(INDIRECT("PriorPlansTable["&$BZ46&"]")>0),INDIRECT("PriorPlansTable["&$BZ46&"]"))) -> 0 | CF46: =MIN(IF((PriorPlansTable[Market]=$CA$6)*(PriorPlansTable[Metal]="Silver")*(INDIRECT("PriorPlansTable["&$BZ46&"]")>CC46),INDIRECT("PriorPlansTable["&$BZ46&"]"))) -> 289.51 | CG46: =MIN(IF((PriorPlansTable[Market]=$CG$6)*(PriorPlansTable[Metal]=CG$7)*(INDIRECT("PriorPlansTable["&$BZ46&"]")>0),INDIRECT("PriorPlansTable["&$BZ46&"]"))) -> 0 | CH46: =MIN(IF((PriorPlansTable[Market]=$CG$6)*(PriorPlansTable[Metal]=CH$7)*(INDIRECT("PriorPlansTable["&$BZ46&"]")>0),INDIRECT("PriorPlansTable["&$BZ46&"]"))) -> 184.28 | CI46: =MIN(IF((PriorPlansTable[Market]=$CG$6)*(PriorPlansTable[Metal]=CI$7)*(INDIRECT("PriorPlansTable["&$BZ46&"]")>0),INDIRECT("PriorPlansTable["&$BZ46&"]"))) -> 244.39 | CJ46: =MIN(IF((PriorPlansTable[Market]=$CG$6)*(PriorPlansTable[Metal]=CJ$7)*(INDIRECT("PriorPlansTable["&$BZ46&"]")>0),INDIRECT("PriorPlansTable["&$BZ46&"]"))) -> 276.62 | CK46: =MIN(IF((PriorPlansTable[Market]=$CG$6)*(PriorPlansTable[Metal]=CK$7)*(INDIRECT("PriorPlansTable["&$BZ46&"]")>0),INDIRECT("PriorPlansTable["&$BZ46&"]"))) -> 332.53 | CL46: =MIN(IF((PriorPlansTable[Market]=$CG$6)*(PriorPlansTable[Metal]="Silver")*(INDIRECT("PriorPlansTable["&$BZ46&"]")>CI46),INDIRECT("PriorPlansTable["&$BZ46&"]"))) -> 247.02
B47: IBC | C47: KHPE | D47: Individual | E47: 33871PA0040012 | F47: Keystone HMO Silver Proactive Lite | G47: HMO | H47: Silver | I47: On/Off | J47: 0 | K47: 0 | L47: 0 | M47: 0 | N47: 0 | O47: 0 | P47: 0 | Q47: 0 | R47: 0 | S47: 0 | T47: 0 | U47: 0 | V47: 0 | W47: 0 | X47: 0 | Y47: 0 | Z47: 0 | AA47: 0 | AB47: 0 | AC47: 0 | AD47: 0 | AE47: 0 | AF47: 0 | AG47: 0 | AH47: 0 | AI47: 0 | AJ47: 0 | AK47: 0 | AL47: 0 | AM47: 0 | AN47: 0 | AO47: 0 | AP47: 0 | AQ47: 0 | AR47: 0 | AS47: 0 | AT47: 0 | AU47: 0 | AV47: 0 | AW47: 0 | AX47: 0 | AY47: 0 | AZ47: 0 | BA47: 0 | BB47: 0 | BC47: 0 | BD47: 0 | BE47: 0 | BF47: 0 | BG47: 0 | BH47: 0 | BI47: 0 | BJ47: 0 | BK47: 0 | BL47: 0 | BM47: 0 | BN47: 0 | BO47: 349.96 | BP47: 0 | BQ47: 0 | BR47: 0 | BS47: 0 | BT47: 0 | BU47: 0 | BV47: 0 | BW47: 0 | BX47: 0 | BZ47: Jefferson | CA47: =MIN(IF((PriorPlansTable[Market]=$CA$6)*(PriorPlansTable[Metal]=CA$7)*(INDIRECT("PriorPlansTable["&$BZ47&"]")>0),INDIRECT("PriorPlansTable["&$BZ47&"]"))) -> 204.78 | CB47: =MIN(IF((PriorPlansTable[Market]=$CA$6)*(PriorPlansTable[Metal]=CB$7)*(INDIRECT("PriorPlansTable["&$BZ47&"]")>0),INDIRECT("PriorPlansTable["&$BZ47&"]"))) -> 229.13 | CC47: =MIN(IF((PriorPlansTable[Market]=$CA$6)*(PriorPlansTable[Metal]=CC$7)*(INDIRECT("PriorPlansTable["&$BZ47&"]")>0),INDIRECT("PriorPlansTable["&$BZ47&"]"))) -> 279.67 | CD47: =MIN(IF((PriorPlansTable[Market]=$CA$6)*(PriorPlansTable[Metal]=CD$7)*(INDIRECT("PriorPlansTable["&$BZ47&"]")>0),INDIRECT("PriorPlansTable["&$BZ47&"]"))) -> 291.8 | CE47: =MIN(IF((PriorPlansTable[Market]=$CA$6)*(PriorPlansTable[Metal]=CE$7)*(INDIRECT("PriorPlansTable["&$BZ47&"]")>0),INDIRECT("PriorPlansTable["&$BZ47&"]"))) -> 0 | CF47: =MIN(IF((PriorPlansTable[Market]=$CA$6)*(PriorPlansTable[Metal]="Silver")*(INDIRECT("PriorPlansTable["&$BZ47&"]")>CC47),INDIRECT("PriorPlansTable["&$BZ47&"]"))) -> 289.51 | CG47: =MIN(IF((PriorPlansTable[Market]=$CG$6)*(PriorPlansTable[Metal]=CG$7)*(INDIRECT("PriorPlansTable["&$BZ47&"]")>0),INDIRECT("PriorPlansTable["&$BZ47&"]"))) -> 0 | CH47: =MIN(IF((PriorPlansTable[Market]=$CG$6)*(PriorPlansTable[Metal]=CH$7)*(INDIRECT("PriorPlansTable["&$BZ47&"]")>0),INDIRECT("PriorPlansTable["&$BZ47&"]"))) -> 184.28 | CI47: =MIN(IF((PriorPlansTable[Market]=$CG$6)*(PriorPlansTable[Metal]=CI$7)*(INDIRECT("PriorPlansTable["&$BZ47&"]")>0),INDIRECT("PriorPlansTable["&$BZ47&"]"))) -> 244.39 | CJ47: =MIN(IF((PriorPlansTable[Market]=$CG$6)*(PriorPlansTable[Metal]=CJ$7)*(INDIRECT("PriorPlansTable["&$BZ47&"]")>0),INDIRECT("PriorPlansTable["&$BZ47&"]"))) -> 276.62 | CK47: =MIN(IF((PriorPlansTable[Market]=$CG$6)*(PriorPlansTable[Metal]=CK$7)*(INDIRECT("PriorPlansTable["&$BZ47&"]")>0),INDIRECT("PriorPlansTable["&$BZ47&"]"))) -> 332.53 | CL47: =MIN(IF((PriorPlansTable[Market]=$CG$6)*(PriorPlansTable[Metal]="Silver")*(INDIRECT("PriorPlansTable["&$BZ47&"]")>CI47),INDIRECT("PriorPlansTable["&$BZ47&"]"))) -> 247.02
B48: IBC | C48: KHPE | D48: Individual | E48: 33871PA0120002 | F48: Keystone HMO Gold | G48: HMO | H48: Gold | I48: Off | J48: 0 | K48: 0 | L48: 0 | M48: 0 | N48: 0 | O48: 0 | P48: 0 | Q48: 0 | R48: 0 | S48: 0 | T48: 0 | U48: 0 | V48: 0 | W48: 0 | X48: 0 | Y48: 0 | Z48: 0 | AA48: 0 | AB48: 0 | AC48: 0 | AD48: 0 | AE48: 0 | AF48: 0 | AG48: 0 | AH48: 0 | AI48: 0 | AJ48: 0 | AK48: 0 | AL48: 0 | AM48: 0 | AN48: 0 | AO48: 0 | AP48: 0 | AQ48: 0 | AR48: 0 | AS48: 0 | AT48: 0 | AU48: 0 | AV48: 0 | AW48: 0 | AX48: 0 | AY48: 0 | AZ48: 0 | BA48: 0 | BB48: 0 | BC48: 0 | BD48: 0 | BE48: 0 | BF48: 0 | BG48: 0 | BH48: 0 | BI48: 0 | BJ48: 0 | BK48: 0 | BL48: 0 | BM48: 463.01 | BN48: 463.01 | BO48: 463.01 | BP48: 463.01 | BQ48: 463.01 | BR48: 0 | BS48: 0 | BT48: 0 | BU48: 0 | BV48: 0 | BW48: 0 | BX48: 0 | BZ48: Somerset | CA48: =MIN(IF((PriorPlansTable[Market]=$CA$6)*(PriorPlansTable[Metal]=CA$7)*(INDIRECT("PriorPlansTable["&$BZ48&"]")>0),INDIRECT("PriorPlansTable["&$BZ48&"]"))) -> 179.88 | CB48: =MIN(IF((PriorPlansTable[Market]=$CA$6)*(PriorPlansTable[Metal]=CB$7)*(INDIRECT("PriorPlansTable["&$BZ48&"]")>0),INDIRECT("PriorPlansTable["&$BZ48&"]"))) -> 229.13 | CC48: =MIN(IF((PriorPlansTable[Market]=$CA$6)*(PriorPlansTable[Metal]=CC$7)*(INDIRECT("PriorPlansTable["&$BZ48&"]")>0),INDIRECT("PriorPlansTable["&$BZ48&"]"))) -> 274.09 | CD48: =MIN(IF((PriorPlansTable[Market]=$CA$6)*(PriorPlansTable[Metal]=CD$7)*(INDIRECT("PriorPlansTable["&$BZ48&"]")>0),INDIRECT("PriorPlansTable["&$BZ48&"]"))) -> 291.8 | CE48: =MIN(IF((PriorPlansTable[Market]=$CA$6)*(PriorPlansTable[Metal]=CE$7)*(INDIRECT("PriorPlansTable["&$BZ48&"]")>0),INDIRECT("PriorPlansTable["&$BZ48&"]"))) -> 0 | CF48: =MIN(IF((PriorPlansTable[Market]=$CA$6)*(PriorPlansTable[Metal]="Silver")*(INDIRECT("PriorPlansTable["&$BZ48&"]")>CC48),INDIRECT("PriorPlansTable["&$BZ48&"]"))) -> 276.46 | CG48: =MIN(IF((PriorPlansTable[Market]=$CG$6)*(PriorPlansTable[Metal]=CG$7)*(INDIRECT("PriorPlansTable["&$BZ48&"]")>0),INDIRECT("PriorPlansTable["&$BZ48&"]"))) -> 0 | CH48: =MIN(IF((PriorPlansTable[Market]=$CG$6)*(PriorPlansTable[Metal]=CH$7)*(INDIRECT("PriorPlansTable["&$BZ48&"]")>0),INDIRECT("PriorPlansTable["&$BZ48&"]"))) -> 184.28 | CI48: =MIN(IF((PriorPlansTable[Market]=$CG$6)*(PriorPlansTable[Metal]=CI$7)*(INDIRECT("PriorPlansTable["&$BZ48&"]")>0),INDIRECT("PriorPlansTable["&$BZ48&"]"))) -> 244.39 | CJ48: =MIN(IF((PriorPlansTable[Market]=$CG$6)*(PriorPlansTable[Metal]=CJ$7)*(INDIRECT("PriorPlansTable["&$BZ48&"]")>0),INDIRECT("PriorPlansTable["&$BZ48&"]"))) -> 276.62 | CK48: =MIN(IF((PriorPlansTable[Market]=$CG$6)*(PriorPlansTable[Metal]=CK$7)*(INDIRECT("PriorPlansTable["&$BZ48&"]")>0),INDIRECT("PriorPlansTable["&$BZ48&"]"))) -> 332.53 | CL48: =MIN(IF((PriorPlansTable[Market]=$CG$6)*(PriorPlansTable[Metal]="Silver")*(INDIRECT("PriorPlansTable["&$BZ48&"]")>CI48),INDIRECT("PriorPlansTable["&$BZ48&"]"))) -> 247.02
B49: IBC | C49: KHPE | D49: Individual | E49: 33871PA0120003 | F49: Keystone HMO Silver | G49: HMO | H49: Silver | I49: Off | J49: 0 | K49: 0 | L49: 0 | M49: 0 | N49: 0 | O49: 0 | P49: 0 | Q49: 0 | R49: 0 | S49: 0 | T49: 0 | U49: 0 | V49: 0 | W49: 0 | X49: 0 | Y49: 0 | Z49: 0 | AA49: 0 | AB49: 0 | AC49: 0 | AD49: 0 | AE49: 0 | AF49: 0 | AG49: 0 | AH49: 0 | AI49: 0 | AJ49: 0 | AK49: 0 | AL49: 0 | AM49: 0 | AN49: 0 | AO49: 0 | AP49: 0 | AQ49: 0 | AR49: 0 | AS49: 0 | AT49: 0 | AU49: 0 | AV49: 0 | AW49: 0 | AX49: 0 | AY49: 0 | AZ49: 0 | BA49: 0 | BB49: 0 | BC49: 0 | BD49: 0 | BE49: 0 | BF49: 0 | BG49: 0 | BH49: 0 | BI49: 0 | BJ49: 0 | BK49: 0 | BL49: 0 | BM49: 355.59 | BN49: 355.59 | BO49: 355.59 | BP49: 355.59 | BQ49: 355.59 | BR49: 0 | BS49: 0 | BT49: 0 | BU49: 0 | BV49: 0 | BW49: 0 | BX49: 0 | BZ49: Centre | CA49: =MIN(IF((PriorPlansTable[Market]=$CA$6)*(PriorPlansTable[Metal]=CA$7)*(INDIRECT("PriorPlansTable["&$BZ49&"]")>0),INDIRECT("PriorPlansTable["&$BZ49&"]"))) -> 193.66 | CB49: =MIN(IF((PriorPlansTable[Market]=$CA$6)*(PriorPlansTable[Metal]=CB$7)*(INDIRECT("PriorPlansTable["&$BZ49&"]")>0),INDIRECT("PriorPlansTable["&$BZ49&"]"))) -> 280.54 | CC49: =MIN(IF((PriorPlansTable[Market]=$CA$6)*(PriorPlansTable[Metal]=CC$7)*(INDIRECT("PriorPlansTable["&$BZ49&"]")>0),INDIRECT("PriorPlansTable["&$BZ49&"]"))) -> 315.83 | CD49: =MIN(IF((PriorPlansTable[Market]=$CA$6)*(PriorPlansTable[Metal]=CD$7)*(INDIRECT("PriorPlansTable["&$BZ49&"]")>0),INDIRECT("PriorPlansTable["&$BZ49&"]"))) -> 390.8 | CE49: =MIN(IF((PriorPlansTable[Market]=$CA$6)*(PriorPlansTable[Metal]=CE$7)*(INDIRECT("PriorPlansTable["&$BZ49&"]")>0),INDIRECT("PriorPlansTable["&$BZ49&"]"))) -> 0 | CF49: =MIN(IF((PriorPlansTable[Market]=$CA$6)*(PriorPlansTable[Metal]="Silver")*(INDIRECT("PriorPlansTable["&$BZ49&"]")>CC49),INDIRECT("PriorPlansTable["&$BZ49&"]"))) -> 375.76 | CG49: =MIN(IF((PriorPlansTable[Market]=$CG$6)*(PriorPlansTable[Metal]=CG$7)*(INDIRECT("PriorPlansTable["&$BZ49&"]")>0),INDIRECT("PriorPlansTable["&$BZ49&"]"))) -> 0 | CH49: =MIN(IF((PriorPlansTable[Market]=$CG$6)*(PriorPlansTable[Metal]=CH$7)*(INDIRECT("PriorPlansTable["&$BZ49&"]")>0),INDIRECT("PriorPlansTable["&$BZ49&"]"))) -> 214.02 | CI49: =MIN(IF((PriorPlansTable[Market]=$CG$6)*(PriorPlansTable[Metal]=CI$7)*(INDIRECT("PriorPlansTable["&$BZ49&"]")>0),INDIRECT("PriorPlansTable["&$BZ49&"]"))) -> 311.86 | CJ49: =MIN(IF((PriorPlansTable[Market]=$CG$6)*(PriorPlansTable[Metal]=CJ$7)*(INDIRECT("PriorPlansTable["&$BZ49&"]")>0),INDIRECT("PriorPlansTable["&$BZ49&"]"))) -> 361.27 | CK49: =MIN(IF((PriorPlansTable[Market]=$CG$6)*(PriorPlansTable[Metal]=CK$7)*(INDIRECT("PriorPlansTable["&$BZ49&"]")>0),INDIRECT("PriorPlansTable["&$BZ49&"]"))) -> 473.83 | CL49: =MIN(IF((PriorPlansTable[Market]=$CG$6)*(PriorPlansTable[Metal]="Silver")*(INDIRECT("PriorPlansTable["&$BZ49&"]")>CI49),INDIRECT("PriorPlansTable["&$BZ49&"]"))) -> 312.97
B50: IBC | C50: KHPE | D50: Individual | E50: 33871PA0120004 | F50: Keystone HMO Bronze | G50: HMO | H50: Bronze | I50: Off | J50: 0 | K50: 0 | L50: 0 | M50: 0 | N50: 0 | O50: 0 | P50: 0 | Q50: 0 | R50: 0 | S50: 0 | T50: 0 | U50: 0 | V50: 0 | W50: 0 | X50: 0 | Y50: 0 | Z50: 0 | AA50: 0 | AB50: 0 | AC50: 0 | AD50: 0 | AE50: 0 | AF50: 0 | AG50: 0 | AH50: 0 | AI50: 0 | AJ50: 0 | AK50: 0 | AL50: 0 | AM50: 0 | AN50: 0 | AO50: 0 | AP50: 0 | AQ50: 0 | AR50: 0 | AS50: 0 | AT50: 0 | AU50: 0 | AV50: 0 | AW50: 0 | AX50: 0 | AY50: 0 | AZ50: 0 | BA50: 0 | BB50: 0 | BC50: 0 | BD50: 0 | BE50: 0 | BF50: 0 | BG50: 0 | BH50: 0 | BI50: 0 | BJ50: 0 | BK50: 0 | BL50: 0 | BM50: 219.33 | BN50: 219.33 | BO50: 219.33 | BP50: 219.33 | BQ50: 219.33 | BR50: 0 | BS50: 0 | BT50: 0 | BU50: 0 | BV50: 0 | BW50: 0 | BX50: 0 | BZ50: Columbia | CA50: =MIN(IF((PriorPlansTable[Market]=$CA$6)*(PriorPlansTable[Metal]=CA$7)*(INDIRECT("PriorPlansTable["&$BZ50&"]")>0),INDIRECT("PriorPlansTable["&$BZ50&"]"))) -> 193.66 | CB50: =MIN(IF((PriorPlansTable[Market]=$CA$6)*(PriorPlansTable[Metal]=CB$7)*(INDIRECT("PriorPlansTable["&$BZ50&"]")>0),INDIRECT("PriorPlansTable["&$BZ50&"]"))) -> 269.38 | CC50: =MIN(IF((PriorPlansTable[Market]=$CA$6)*(PriorPlansTable[Metal]=CC$7)*(INDIRECT("PriorPlansTable["&$BZ50&"]")>0),INDIRECT("PriorPlansTable["&$BZ50&"]"))) -> 277.27 | CD50: =MIN(IF((PriorPlansTable[Market]=$CA$6)*(PriorPlansTable[Metal]=CD$7)*(INDIRECT("PriorPlansTable["&$BZ50&"]")>0),INDIRECT("PriorPlansTable["&$BZ50&"]"))) -> 348.87 | CE50: =MIN(IF((PriorPlansTable[Market]=$CA$6)*(PriorPlansTable[Metal]=CE$7)*(INDIRECT("PriorPlansTable["&$BZ50&"]")>0),INDIRECT("PriorPlansTable["&$BZ50&"]"))) -> 0 | CF50: =MIN(IF((PriorPlansTable[Market]=$CA$6)*(PriorPlansTable[Metal]="Silver")*(INDIRECT("PriorPlansTable["&$BZ50&"]")>CC50),INDIRECT("PriorPlansTable["&$BZ50&"]"))) -> 286.08 | CG50: =MIN(IF((PriorPlansTable[Market]=$CG$6)*(PriorPlansTable[Metal]=CG$7)*(INDIRECT("PriorPlansTable["&$BZ50&"]")>0),INDIRECT("PriorPlansTable["&$BZ50&"]"))) -> 0 | CH50: =MIN(IF((PriorPlansTable[Market]=$CG$6)*(PriorPlansTable[Metal]=CH$7)*(INDIRECT("PriorPlansTable["&$BZ50&"]")>0),INDIRECT("PriorPlansTable["&$BZ50&"]"))) -> 268.72 | CI50: =MIN(IF((PriorPlansTable[Market]=$CG$6)*(PriorPlansTable[Metal]=CI$7)*(INDIRECT("PriorPlansTable["&$BZ50&"]")>0),INDIRECT("PriorPlansTable["&$BZ50&"]"))) -> 311.86 | CJ50: =MIN(IF((PriorPlansTable[Market]=$CG$6)*(PriorPlansTable[Metal]=CJ$7)*(INDIRECT("PriorPlansTable["&$BZ50&"]")>0),INDIRECT("PriorPlansTable["&$BZ50&"]"))) -> 361.27 | CK50: =MIN(IF((PriorPlansTable[Market]=$CG$6)*(PriorPlansTable[Metal]=CK$7)*(INDIRECT("PriorPlansTable["&$BZ50&"]")>0),INDIRECT("PriorPlansTable["&$BZ50&"]"))) -> 473.83 | CL50: =MIN(IF((PriorPlansTable[Market]=$CG$6)*(PriorPlansTable[Metal]="Silver")*(INDIRECT("PriorPlansTable["&$BZ50&"]")>CI50),INDIRECT("PriorPlansTable["&$BZ50&"]"))) -> 314.23
B51: IBC | C51: KHPE | D51: Individual | E51: 33871PA0120005 | F51: Keystone HMO Gold Proactive | G51: HMO | H51: Gold | I51: Off | J51: 0 | K51: 0 | L51: 0 | M51: 0 | N51: 0 | O51: 0 | P51: 0 | Q51: 0 | R51: 0 | S51: 0 | T51: 0 | U51: 0 | V51: 0 | W51: 0 | X51: 0 | Y51: 0 | Z51: 0 | AA51: 0 | AB51: 0 | AC51: 0 | AD51: 0 | AE51: 0 | AF51: 0 | AG51: 0 | AH51: 0 | AI51: 0 | AJ51: 0 | AK51: 0 | AL51: 0 | AM51: 0 | AN51: 0 | AO51: 0 | AP51: 0 | AQ51: 0 | AR51: 0 | AS51: 0 | AT51: 0 | AU51: 0 | AV51: 0 | AW51: 0 | AX51: 0 | AY51: 0 | AZ51: 0 | BA51: 0 | BB51: 0 | BC51: 0 | BD51: 0 | BE51: 0 | BF51: 0 | BG51: 0 | BH51: 0 | BI51: 0 | BJ51: 0 | BK51: 0 | BL51: 0 | BM51: 415.59 | BN51: 415.59 | BO51: 415.59 | BP51: 415.59 | BQ51: 415.59 | BR51: 0 | BS51: 0 | BT51: 0 | BU51: 0 | BV51: 0 | BW51: 0 | BX51: 0 | BZ51: Lehigh | CA51: =MIN(IF((PriorPlansTable[Market]=$CA$6)*(PriorPlansTable[Metal]=CA$7)*(INDIRECT("PriorPlansTable["&$BZ51&"]")>0),INDIRECT("PriorPlansTable["&$BZ51&"]"))) -> 193.66 | CB51: =MIN(IF((PriorPlansTable[Market]=$CA$6)*(PriorPlansTable[Metal]=CB$7)*(INDIRECT("PriorPlansTable["&$BZ51&"]")>0),INDIRECT("PriorPlansTable["&$BZ51&"]"))) -> 253.67 | CC51: =MIN(IF((PriorPlansTable[Market]=$CA$6)*(PriorPlansTable[Metal]=CC$7)*(INDIRECT("PriorPlansTable["&$BZ51&"]")>0),INDIRECT("PriorPlansTable["&$BZ51&"]"))) -> 284.08 | CD51: =MIN(IF((PriorPlansTable[Market]=$CA$6)*(PriorPlansTable[Metal]=CD$7)*(INDIRECT("PriorPlansTable["&$BZ51&"]")>0),INDIRECT("PriorPlansTable["&$BZ51&"]"))) -> 343.74 | CE51: =MIN(IF((PriorPlansTable[Market]=$CA$6)*(PriorPlansTable[Metal]=CE$7)*(INDIRECT("PriorPlansTable["&$BZ51&"]")>0),INDIRECT("PriorPlansTable["&$BZ51&"]"))) -> 0 | CF51: =MIN(IF((PriorPlansTable[Market]=$CA$6)*(PriorPlansTable[Metal]="Silver")*(INDIRECT("PriorPlansTable["&$BZ51&"]")>CC51),INDIRECT("PriorPlansTable["&$BZ51&"]"))) -> 299.73 | CG51: =MIN(IF((PriorPlansTable[Market]=$CG$6)*(PriorPlansTable[Metal]=CG$7)*(INDIRECT("PriorPlansTable["&$BZ51&"]")>0),INDIRECT("PriorPlansTable["&$BZ51&"]"))) -> 0 | CH51: =MIN(IF((PriorPlansTable[Market]=$CG$6)*(PriorPlansTable[Metal]=CH$7)*(INDIRECT("PriorPlansTable["&$BZ51&"]")>0),INDIRECT("PriorPlansTable["&$BZ51&"]"))) -> 268.72 | CI51: =MIN(IF((PriorPlansTable[Market]=$CG$6)*(PriorPlansTable[Metal]=CI$7)*(INDIRECT("PriorPlansTable["&$BZ51&"]")>0),INDIRECT("PriorPlansTable["&$BZ51&"]"))) -> 294.08 | CJ51: =MIN(IF((PriorPlansTable[Market]=$CG$6)*(PriorPlansTable[Metal]=CJ$7)*(INDIRECT("PriorPlansTable["&$BZ51&"]")>0),INDIRECT("PriorPlansTable["&$BZ51&"]"))) -> 349.87 | CK51: =MIN(IF((PriorPlansTable[Market]=$CG$6)*(PriorPlansTable[Metal]=CK$7)*(INDIRECT("PriorPlansTable["&$BZ51&"]")>0),INDIRECT("PriorPlansTable["&$BZ51&"]"))) -> 473.83 | CL51: =MIN(IF((PriorPlansTable[Market]=$CG$6)*(PriorPlansTable[Metal]="Silver")*(INDIRECT("PriorPlansTable["&$BZ51&"]")>CI51),INDIRECT("PriorPlansTable["&$BZ51&"]"))) -> 308.03
B52: IBC | C52: KHPE | D52: Individual | E52: 33871PA0120006 | F52: Keystone HMO Silver Proactive | G52: HMO | H52: Silver | I52: Off | J52: 0 | K52: 0 | L52: 0 | M52: 0 | N52: 0 | O52: 0 | P52: 0 | Q52: 0 | R52: 0 | S52: 0 | T52: 0 | U52: 0 | V52: 0 | W52: 0 | X52: 0 | Y52: 0 | Z52: 0 | AA52: 0 | AB52: 0 | AC52: 0 | AD52: 0 | AE52: 0 | AF52: 0 | AG52: 0 | AH52: 0 | AI52: 0 | AJ52: 0 | AK52: 0 | AL52: 0 | AM52: 0 | AN52: 0 | AO52: 0 | AP52: 0 | AQ52: 0 | AR52: 0 | AS52: 0 | AT52: 0 | AU52: 0 | AV52: 0 | AW52: 0 | AX52: 0 | AY52: 0 | AZ52: 0 | BA52: 0 | BB52: 0 | BC52: 0 | BD52: 0 | BE52: 0 | BF52: 0 | BG52: 0 | BH52: 0 | BI52: 0 | BJ52: 0 | BK52: 0 | BL52: 0 | BM52: 368.93 | BN52: 368.93 | BO52: 368.93 | BP52: 368.93 | BQ52: 368.93 | BR52: 0 | BS52: 0 | BT52: 0 | BU52: 0 | BV52: 0 | BW52: 0 | BX52: 0 | BZ52: Mifflin | CA52: =MIN(IF((PriorPlansTable[Market]=$CA$6)*(PriorPlansTable[Metal]=CA$7)*(INDIRECT("PriorPlansTable["&$BZ52&"]")>0),INDIRECT("PriorPlansTable["&$BZ52&"]"))) -> 193.66 | CB52: =MIN(IF((PriorPlansTable[Market]=$CA$6)*(PriorPlansTable[Metal]=CB$7)*(INDIRECT("PriorPlansTable["&$BZ52&"]")>0),INDIRECT("PriorPlansTable["&$BZ52&"]"))) -> 280.54 | CC52: =MIN(IF((PriorPlansTable[Market]=$CA$6)*(PriorPlansTable[Metal]=CC$7)*(INDIRECT("PriorPlansTable["&$BZ52&"]")>0),INDIRECT("PriorPlansTable["&$BZ52&"]"))) -> 315.83 | CD52: =MIN(IF((PriorPlansTable[Market]=$CA$6)*(PriorPlansTable[Metal]=CD$7)*(INDIRECT("PriorPlansTable["&$BZ52&"]")>0),INDIRECT("PriorPlansTable["&$BZ52&"]"))) -> 390.8 | CE52: =MIN(IF((PriorPlansTable[Market]=$CA$6)*(PriorPlansTable[Metal]=CE$7)*(INDIRECT("PriorPlansTable["&$BZ52&"]")>0),INDIRECT("PriorPlansTable["&$BZ52&"]"))) -> 0 | CF52: =MIN(IF((PriorPlansTable[Market]=$CA$6)*(PriorPlansTable[Metal]="Silver")*(INDIRECT("PriorPlansTable["&$BZ52&"]")>CC52),INDIRECT("PriorPlansTable["&$BZ52&"]"))) -> 403.75 | CG52: =MIN(IF((PriorPlansTable[Market]=$CG$6)*(PriorPlansTable[Metal]=CG$7)*(INDIRECT("PriorPlansTable["&$BZ52&"]")>0),INDIRECT("PriorPlansTable["&$BZ52&"]"))) -> 0 | CH52: =MIN(IF((PriorPlansTable[Market]=$CG$6)*(PriorPlansTable[Metal]=CH$7)*(INDIRECT("PriorPlansTable["&$BZ52&"]")>0),INDIRECT("PriorPlansTable["&$BZ52&"]"))) -> 268.72 | CI52: =MIN(IF((PriorPlansTable[Market]=$CG$6)*(PriorPlansTable[Metal]=CI$7)*(INDIRECT("PriorPlansTable["&$BZ52&"]")>0),INDIRECT("PriorPlansTable["&$BZ52&"]"))) -> 311.86 | CJ52: =MIN(IF((PriorPlansTable[Market]=$CG$6)*(PriorPlansTable[Metal]=CJ$7)*(INDIRECT("PriorPlansTable["&$BZ52&"]")>0),INDIRECT("PriorPlansTable["&$BZ52&"]"))) -> 361.27 | CK52: =MIN(IF((PriorPlansTable[Market]=$CG$6)*(PriorPlansTable[Metal]=CK$7)*(INDIRECT("PriorPlansTable["&$BZ52&"]")>0),INDIRECT("PriorPlansTable["&$BZ52&"]"))) -> 473.83 | CL52: =MIN(IF((PriorPlansTable[Market]=$CG$6)*(PriorPlansTable[Metal]="Silver")*(INDIRECT("PriorPlansTable["&$BZ52&"]")>CI52),INDIRECT("PriorPlansTable["&$BZ52&"]"))) -> 314.23
B53: IBC | C53: KHPE | D53: Individual | E53: 33871PA0120007 | F53: Keystone HMO Silver Proactive Value | G53: HMO | H53: Silver | I53: Off | J53: 0 | K53: 0 | L53: 0 | M53: 0 | N53: 0 | O53: 0 | P53: 0 | Q53: 0 | R53: 0 | S53: 0 | T53: 0 | U53: 0 | V53: 0 | W53: 0 | X53: 0 | Y53: 0 | Z53: 0 | AA53: 0 | AB53: 0 | AC53: 0 | AD53: 0 | AE53: 0 | AF53: 0 | AG53: 0 | AH53: 0 | AI53: 0 | AJ53: 0 | AK53: 0 | AL53: 0 | AM53: 0 | AN53: 0 | AO53: 0 | AP53: 0 | AQ53: 0 | AR53: 0 | AS53: 0 | AT53: 0 | AU53: 0 | AV53: 0 | AW53: 0 | AX53: 0 | AY53: 0 | AZ53: 0 | BA53: 0 | BB53: 0 | BC53: 0 | BD53: 0 | BE53: 0 | BF53: 0 | BG53: 0 | BH53: 0 | BI53: 0 | BJ53: 0 | BK53: 0 | BL53: 0 | BM53: 270.16 | BN53: 270.16 | BO53: 270.16 | BP53: 270.16 | BQ53: 270.16 | BR53: 0 | BS53: 0 | BT53: 0 | BU53: 0 | BV53: 0 | BW53: 0 | BX53: 0 | BZ53: Montour | CA53: =MIN(IF((PriorPlansTable[Market]=$CA$6)*(PriorPlansTable[Metal]=CA$7)*(INDIRECT("PriorPlansTable["&$BZ53&"]")>0),INDIRECT("PriorPlansTable["&$BZ53&"]"))) -> 193.66 | CB53: =MIN(IF((PriorPlansTable[Market]=$CA$6)*(PriorPlansTable[Metal]=CB$7)*(INDIRECT("PriorPlansTable["&$BZ53&"]")>0),INDIRECT("PriorPlansTable["&$BZ53&"]"))) -> 280.54 | CC53: =MIN(IF((PriorPlansTable[Market]=$CA$6)*(PriorPlansTable[Metal]=CC$7)*(INDIRECT("PriorPlansTable["&$BZ53&"]")>0),INDIRECT("PriorPlansTable["&$BZ53&"]"))) -> 315.83 | CD53: =MIN(IF((PriorPlansTable[Market]=$CA$6)*(PriorPlansTable[Metal]=CD$7)*(INDIRECT("PriorPlansTable["&$BZ53&"]")>0),INDIRECT("PriorPlansTable["&$BZ53&"]"))) -> 390.8 | CE53: =MIN(IF((PriorPlansTable[Market]=$CA$6)*(PriorPlansTable[Metal]=CE$7)*(INDIRECT("PriorPlansTable["&$BZ53&"]")>0),INDIRECT("PriorPlansTable["&$BZ53&"]"))) -> 0 | CF53: =MIN(IF((PriorPlansTable[Market]=$CA$6)*(PriorPlansTable[Metal]="Silver")*(INDIRECT("PriorPlansTable["&$BZ53&"]")>CC53),INDIRECT("PriorPlansTable["&$BZ53&"]"))) -> 403.75 | CG53: =MIN(IF((PriorPlansTable[Market]=$CG$6)*(PriorPlansTable[Metal]=CG$7)*(INDIRECT("PriorPlansTable["&$BZ53&"]")>0),INDIRECT("PriorPlansTable["&$BZ53&"]"))) -> 0 | CH53: =MIN(IF((PriorPlansTable[Market]=$CG$6)*(PriorPlansTable[Metal]=CH$7)*(INDIRECT("PriorPlansTable["&$BZ53&"]")>0),INDIRECT("PriorPlansTable["&$BZ53&"]"))) -> 268.72 | CI53: =MIN(IF((PriorPlansTable[Market]=$CG$6)*(PriorPlansTable[Metal]=CI$7)*(INDIRECT("PriorPlansTable["&$BZ53&"]")>0),INDIRECT("PriorPlansTable["&$BZ53&"]"))) -> 311.86 | CJ53: =MIN(IF((PriorPlansTable[Market]=$CG$6)*(PriorPlansTable[Metal]=CJ$7)*(INDIRECT("PriorPlansTable["&$BZ53&"]")>0),INDIRECT("PriorPlansTable["&$BZ53&"]"))) -> 367.17 | CK53: =MIN(IF((PriorPlansTable[Market]=$CG$6)*(PriorPlansTable[Metal]=CK$7)*(INDIRECT("PriorPlansTable["&$BZ53&"]")>0),INDIRECT("PriorPlansTable["&$BZ53&"]"))) -> 473.83 | CL53: =MIN(IF((PriorPlansTable[Market]=$CG$6)*(PriorPlansTable[Metal]="Silver")*(INDIRECT("PriorPlansTable["&$BZ53&"]")>CI53),INDIRECT("PriorPlansTable["&$BZ53&"]"))) -> 314.23
B54: IBC | C54: KHPE | D54: Individual | E54: 33871PA0120008 | F54: Keystone HMO Silver Proactive Select | G54: HMO | H54: Silver | I54: Off | J54: 0 | K54: 0 | L54: 0 | M54: 0 | N54: 0 | O54: 0 | P54: 0 | Q54: 0 | R54: 0 | S54: 0 | T54: 0 | U54: 0 | V54: 0 | W54: 0 | X54: 0 | Y54: 0 | Z54: 0 | AA54: 0 | AB54: 0 | AC54: 0 | AD54: 0 | AE54: 0 | AF54: 0 | AG54: 0 | AH54: 0 | AI54: 0 | AJ54: 0 | AK54: 0 | AL54: 0 | AM54: 0 | AN54: 0 | AO54: 0 | AP54: 0 | AQ54: 0 | AR54: 0 | AS54: 0 | AT54: 0 | AU54: 0 | AV54: 0 | AW54: 0 | AX54: 0 | AY54: 0 | AZ54: 0 | BA54: 0 | BB54: 0 | BC54: 0 | BD54: 0 | BE54: 0 | BF54: 0 | BG54: 0 | BH54: 0 | BI54: 0 | BJ54: 0 | BK54: 0 | BL54: 0 | BM54: 308.12 | BN54: 308.12 | BO54: 308.12 | BP54: 308.12 | BQ54: 308.12 | BR54: 0 | BS54: 0 | BT54: 0 | BU54: 0 | BV54: 0 | BW54: 0 | BX54: 0 | BZ54: Northampton | CA54: =MIN(IF((PriorPlansTable[Market]=$CA$6)*(PriorPlansTable[Metal]=CA$7)*(INDIRECT("PriorPlansTable["&$BZ54&"]")>0),INDIRECT("PriorPlansTable["&$BZ54&"]"))) -> 193.66 | CB54: =MIN(IF((PriorPlansTable[Market]=$CA$6)*(PriorPlansTable[Metal]=CB$7)*(INDIRECT("PriorPlansTable["&$BZ54&"]")>0),INDIRECT("PriorPlansTable["&$BZ54&"]"))) -> 253.67 | CC54: =MIN(IF((PriorPlansTable[Market]=$CA$6)*(PriorPlansTable[Metal]=CC$7)*(INDIRECT("PriorPlansTable["&$BZ54&"]")>0),INDIRECT("PriorPlansTable["&$BZ54&"]"))) -> 284.08 | CD54: =MIN(IF((PriorPlansTable[Market]=$CA$6)*(PriorPlansTable[Metal]=CD$7)*(INDIRECT("PriorPlansTable["&$BZ54&"]")>0),INDIRECT("PriorPlansTable["&$BZ54&"]"))) -> 343.74 | CE54: =MIN(IF((PriorPlansTable[Market]=$CA$6)*(PriorPlansTable[Metal]=CE$7)*(INDIRECT("PriorPlansTable["&$BZ54&"]")>0),INDIRECT("PriorPlansTable["&$BZ54&"]"))) -> 0 | CF54: =MIN(IF((PriorPlansTable[Market]=$CA$6)*(PriorPlansTable[Metal]="Silver")*(INDIRECT("PriorPlansTable["&$BZ54&"]")>CC54),INDIRECT("PriorPlansTable["&$BZ54&"]"))) -> 299.73 | CG54: =MIN(IF((PriorPlansTable[Market]=$CG$6)*(PriorPlansTable[Metal]=CG$7)*(INDIRECT("PriorPlansTable["&$BZ54&"]")>0),INDIRECT("PriorPlansTable["&$BZ54&"]"))) -> 0 | CH54: =MIN(IF((PriorPlansTable[Market]=$CG$6)*(PriorPlansTable[Metal]=CH$7)*(INDIRECT("PriorPlansTable["&$BZ54&"]")>0),INDIRECT("PriorPlansTable["&$BZ54&"]"))) -> 268.72 | CI54: =MIN(IF((PriorPlansTable[Market]=$CG$6)*(PriorPlansTable[Metal]=CI$7)*(INDIRECT("PriorPlansTable["&$BZ54&"]")>0),INDIRECT("PriorPlansTable["&$BZ54&"]"))) -> 294.08 | CJ54: =MIN(IF((PriorPlansTable[Market]=$CG$6)*(PriorPlansTable[Metal]=CJ$7)*(INDIRECT("PriorPlansTable["&$BZ54&"]")>0),INDIRECT("PriorPlansTable["&$BZ54&"]"))) -> 349.87 | CK54: =MIN(IF((PriorPlansTable[Market]=$CG$6)*(PriorPlansTable[Metal]=CK$7)*(INDIRECT("PriorPlansTable["&$BZ54&"]")>0),INDIRECT("PriorPlansTable["&$BZ54&"]"))) -> 473.83 | CL54: =MIN(IF((PriorPlansTable[Market]=$CG$6)*(PriorPlansTable[Metal]="Silver")*(INDIRECT("PriorPlansTable["&$BZ54&"]")>CI54),INDIRECT("PriorPlansTable["&$BZ54&"]"))) -> 308.03
B55: IBC | C55: KHPE | D55: Small Group | E55: 33871PA0100020 | F55: Keystone HMO Platinum Preferred $10/$20/$200 | G55: HMO | H55: Platinum | I55: Off | J55: 0 | K55: 0 | L55: 0 | M55: 0 | N55: 0 | O55: 0 | P55: 0 | Q55: 0 | R55: 0 | S55: 0 | T55: 0 | U55: 0 | V55: 0 | W55: 0 | X55: 0 | Y55: 0 | Z55: 0 | AA55: 0 | AB55: 0 | AC55: 0 | AD55: 0 | AE55: 0 | AF55: 0 | AG55: 0 | AH55: 0 | AI55: 0 | AJ55: 0 | AK55: 0 | AL55: 0 | AM55: 0 | AN55: 0 | AO55: 0 | AP55: 0 | AQ55: 0 | AR55: 0 | AS55: 0 | AT55: 0 | AU55: 0 | AV55: 0 | AW55: 0 | AX55: 0 | AY55: 0 | AZ55: 0 | BA55: 0 | BB55: 0 | BC55: 0 | BD55: 0 | BE55: 0 | BF55: 0 | BG55: 0 | BH55: 0 | BI55: 0 | BJ55: 0 | BK55: 0 | BL55: 0 | BM55: 521.94 | BN55: 521.94 | BO55: 521.94 | BP55: 521.94 | BQ55: 521.94 | BR55: 0 | BS55: 0 | BT55: 0 | BU55: 0 | BV55: 0 | BW55: 0 | BX55: 0 | BZ55: Northumberland | CA55: =MIN(IF((PriorPlansTable[Market]=$CA$6)*(PriorPlansTable[Metal]=CA$7)*(INDIRECT("PriorPlansTable["&$BZ55&"]")>0),INDIRECT("PriorPlansTable["&$BZ55&"]"))) -> 193.66 | CB55: =MIN(IF((PriorPlansTable[Market]=$CA$6)*(PriorPlansTable[Metal]=CB$7)*(INDIRECT("PriorPlansTable["&$BZ55&"]")>0),INDIRECT("PriorPlansTable["&$BZ55&"]"))) -> 280.54 | CC55: =MIN(IF((PriorPlansTable[Market]=$CA$6)*(PriorPlansTable[Metal]=CC$7)*(INDIRECT("PriorPlansTable["&$BZ55&"]")>0),INDIRECT("PriorPlansTable["&$BZ55&"]"))) -> 315.83 | CD55: =MIN(IF((PriorPlansTable[Market]=$CA$6)*(PriorPlansTable[Metal]=CD$7)*(INDIRECT("PriorPlansTable["&$BZ55&"]")>0),INDIRECT("PriorPlansTable["&$BZ55&"]"))) -> 390.8 | CE55: =MIN(IF((PriorPlansTable[Market]=$CA$6)*(PriorPlansTable[Metal]=CE$7)*(INDIRECT("PriorPlansTable["&$BZ55&"]")>0),INDIRECT("PriorPlansTable["&$BZ55&"]"))) -> 0 | CF55: =MIN(IF((PriorPlansTable[Market]=$CA$6)*(PriorPlansTable[Metal]="Silver")*(INDIRECT("PriorPlansTable["&$BZ55&"]")>CC55),INDIRECT("PriorPlansTable["&$BZ55&"]"))) -> 403.75 | CG55: =MIN(IF((PriorPlansTable[Market]=$CG$6)*(PriorPlansTable[Metal]=CG$7)*(INDIRECT("PriorPlansTable["&$BZ55&"]")>0),INDIRECT("PriorPlansTable["&$BZ55&"]"))) -> 0 | CH55: =MIN(IF((PriorPlansTable[Market]=$CG$6)*(PriorPlansTable[Metal]=CH$7)*(INDIRECT("PriorPlansTable["&$BZ55&"]")>0),INDIRECT("PriorPlansTable["&$BZ55&"]"))) -> 268.72 | CI55: =MIN(IF((PriorPlansTable[Market]=$CG$6)*(PriorPlansTable[Metal]=CI$7)*(INDIRECT("PriorPlansTable["&$BZ55&"]")>0),INDIRECT("PriorPlansTable["&$BZ55&"]"))) -> 311.86 | CJ55: =MIN(IF((PriorPlansTable[Market]=$CG$6)*(PriorPlansTable[Metal]=CJ$7)*(INDIRECT("PriorPlansTable["&$BZ55&"]")>0),INDIRECT("PriorPlansTable["&$BZ55&"]"))) -> 361.27 | CK55: =MIN(IF((PriorPlansTable[Market]=$CG$6)*(PriorPlansTable[Metal]=CK$7)*(INDIRECT("PriorPlansTable["&$BZ55&"]")>0),INDIRECT("PriorPlansTable["&$BZ55&"]"))) -> 473.83 | CL55: =MIN(IF((PriorPlansTable[Market]=$CG$6)*(PriorPlansTable[Metal]="Silver")*(INDIRECT("PriorPlansTable["&$BZ55&"]")>CI55),INDIRECT("PriorPlansTable["&$BZ55&"]"))) -> 314.23
B56: IBC | C56: KHPE | D56: Small Group | E56: 33871PA0100021 | F56: Keystone HMO Platinum Preferred $20/$40/$250 | G56: HMO | H56: Platinum | I56: Off | J56: 0 | K56: 0 | L56: 0 | M56: 0 | N56: 0 | O56: 0 | P56: 0 | Q56: 0 | R56: 0 | S56: 0 | T56: 0 | U56: 0 | V56: 0 | W56: 0 | X56: 0 | Y56: 0 | Z56: 0 | AA56: 0 | AB56: 0 | AC56: 0 | AD56: 0 | AE56: 0 | AF56: 0 | AG56: 0 | AH56: 0 | AI56: 0 | AJ56: 0 | AK56: 0 | AL56: 0 | AM56: 0 | AN56: 0 | AO56: 0 | AP56: 0 | AQ56: 0 | AR56: 0 | AS56: 0 | AT56: 0 | AU56: 0 | AV56: 0 | AW56: 0 | AX56: 0 | AY56: 0 | AZ56: 0 | BA56: 0 | BB56: 0 | BC56: 0 | BD56: 0 | BE56: 0 | BF56: 0 | BG56: 0 | BH56: 0 | BI56: 0 | BJ56: 0 | BK56: 0 | BL56: 0 | BM56: 502.72 | BN56: 502.72 | BO56: 502.72 | BP56: 502.72 | BQ56: 502.72 | BR56: 0 | BS56: 0 | BT56: 0 | BU56: 0 | BV56: 0 | BW56: 0 | BX56: 0 | BZ56: Schuylkill | CA56: =MIN(IF((PriorPlansTable[Market]=$CA$6)*(PriorPlansTable[Metal]=CA$7)*(INDIRECT("PriorPlansTable["&$BZ56&"]")>0),INDIRECT("PriorPlansTable["&$BZ56&"]"))) -> 193.66 | CB56: =MIN(IF((PriorPlansTable[Market]=$CA$6)*(PriorPlansTable[Metal]=CB$7)*(INDIRECT("PriorPlansTable["&$BZ56&"]")>0),INDIRECT("PriorPlansTable["&$BZ56&"]"))) -> 280.54 | CC56: =MIN(IF((PriorPlansTable[Market]=$CA$6)*(PriorPlansTable[Metal]=CC$7)*(INDIRECT("PriorPlansTable["&$BZ56&"]")>0),INDIRECT("PriorPlansTable["&$BZ56&"]"))) -> 315.83 | CD56: =MIN(IF((PriorPlansTable[Market]=$CA$6)*(PriorPlansTable[Metal]=CD$7)*(INDIRECT("PriorPlansTable["&$BZ56&"]")>0),INDIRECT("PriorPlansTable["&$BZ56&"]"))) -> 390.55 | CE56: =MIN(IF((PriorPlansTable[Market]=$CA$6)*(PriorPlansTable[Metal]=CE$7)*(INDIRECT("PriorPlansTable["&$BZ56&"]")>0),INDIRECT("PriorPlansTable["&$BZ56&"]"))) -> 0 | CF56: =MIN(IF((PriorPlansTable[Market]=$CA$6)*(PriorPlansTable[Metal]="Silver")*(INDIRECT("PriorPlansTable["&$BZ56&"]")>CC56),INDIRECT("PriorPlansTable["&$BZ56&"]"))) -> 340.22 | CG56: =MIN(IF((PriorPlansTable[Market]=$CG$6)*(PriorPlansTable[Metal]=CG$7)*(INDIRECT("PriorPlansTable["&$BZ56&"]")>0),INDIRECT("PriorPlansTable["&$BZ56&"]"))) -> 0 | CH56: =MIN(IF((PriorPlansTable[Market]=$CG$6)*(PriorPlansTable[Metal]=CH$7)*(INDIRECT("PriorPlansTable["&$BZ56&"]")>0),INDIRECT("PriorPlansTable["&$BZ56&"]"))) -> 268.72 | CI56: =MIN(IF((PriorPlansTable[Market]=$CG$6)*(PriorPlansTable[Metal]=CI$7)*(INDIRECT("PriorPlansTable["&$BZ56&"]")>0),INDIRECT("PriorPlansTable["&$BZ56&"]"))) -> 311.86 | CJ56: =MIN(IF((PriorPlansTable[Market]=$CG$6)*(PriorPlansTable[Metal]=CJ$7)*(INDIRECT("PriorPlansTable["&$BZ56&"]")>0),INDIRECT("PriorPlansTable["&$BZ56&"]"))) -> 361.27 | CK56: =MIN(IF((PriorPlansTable[Market]=$CG$6)*(PriorPlansTable[Metal]=CK$7)*(INDIRECT("PriorPlansTable["&$BZ56&"]")>0),INDIRECT("PriorPlansTable["&$BZ56&"]"))) -> 473.83 | CL56: =MIN(IF((PriorPlansTable[Market]=$CG$6)*(PriorPlansTable[Metal]="Silver")*(INDIRECT("PriorPlansTable["&$BZ56&"]")>CI56),INDIRECT("PriorPlansTable["&$BZ56&"]"))) -> 314.23
B57: IBC | C57: KHPE | D57: Small Group | E57: 33871PA0100022 | F57: Keystone HMO Gold Preferred $40/$80/$650 | G57: HMO | H57: Gold | I57: Off | J57: 0 | K57: 0 | L57: 0 | M57: 0 | N57: 0 | O57: 0 | P57: 0 | Q57: 0 | R57: 0 | S57: 0 | T57: 0 | U57: 0 | V57: 0 | W57: 0 | X57: 0 | Y57: 0 | Z57: 0 | AA57: 0 | AB57: 0 | AC57: 0 | AD57: 0 | AE57: 0 | AF57: 0 | AG57: 0 | AH57: 0 | AI57: 0 | AJ57: 0 | AK57: 0 | AL57: 0 | AM57: 0 | AN57: 0 | AO57: 0 | AP57: 0 | AQ57: 0 | AR57: 0 | AS57: 0 | AT57: 0 | AU57: 0 | AV57: 0 | AW57: 0 | AX57: 0 | AY57: 0 | AZ57: 0 | BA57: 0 | BB57: 0 | BC57: 0 | BD57: 0 | BE57: 0 | BF57: 0 | BG57: 0 | BH57: 0 | BI57: 0 | BJ57: 0 | BK57: 0 | BL57: 0 | BM57: 400.94 | BN57: 400.94 | BO57: 400.94 | BP57: 400.94 | BQ57: 400.94 | BR57: 0 | BS57: 0 | BT57: 0 | BU57: 0 | BV57: 0 | BW57: 0 | BX57: 0 | BZ57: Snyder | CA57: =MIN(IF((PriorPlansTable[Market]=$CA$6)*(PriorPlansTable[Metal]=CA$7)*(INDIRECT("PriorPlansTable["&$BZ57&"]")>0),INDIRECT("PriorPlansTable["&$BZ57&"]"))) -> 193.66 | CB57: =MIN(IF((PriorPlansTable[Market]=$CA$6)*(PriorPlansTable[Metal]=CB$7)*(INDIRECT("PriorPlansTable["&$BZ57&"]")>0),INDIRECT("PriorPlansTable["&$BZ57&"]"))) -> 280.54 | CC57: =MIN(IF((PriorPlansTable[Market]=$CA$6)*(PriorPlansTable[Metal]=CC$7)*(INDIRECT("PriorPlansTable["&$BZ57&"]")>0),INDIRECT("PriorPlansTable["&$BZ57&"]"))) -> 315.83 | CD57: =MIN(IF((PriorPlansTable[Market]=$CA$6)*(PriorPlansTable[Metal]=CD$7)*(INDIRECT("PriorPlansTable["&$BZ57&"]")>0),INDIRECT("PriorPlansTable["&$BZ57&"]"))) -> 390.8 | CE57: =MIN(IF((PriorPlansTable[Market]=$CA$6)*(PriorPlansTable[Metal]=CE$7)*(INDIRECT("PriorPlansTable["&$BZ57&"]")>0),INDIRECT("PriorPlansTable["&$BZ57&"]"))) -> 0 | CF57: =MIN(IF((PriorPlansTable[Market]=$CA$6)*(PriorPlansTable[Metal]="Silver")*(INDIRECT("PriorPlansTable["&$BZ57&"]")>CC57),INDIRECT("PriorPlansTable["&$BZ57&"]"))) -> 403.75 | CG57: =MIN(IF((PriorPlansTable[Market]=$CG$6)*(PriorPlansTable[Metal]=CG$7)*(INDIRECT("PriorPlansTable["&$BZ57&"]")>0),INDIRECT("PriorPlansTable["&$BZ57&"]"))) -> 0 | CH57: =MIN(IF((PriorPlansTable[Market]=$CG$6)*(PriorPlansTable[Metal]=CH$7)*(INDIRECT("PriorPlansTable["&$BZ57&"]")>0),INDIRECT("PriorPlansTable["&$BZ57&"]"))) -> 268.72 | CI57: =MIN(IF((PriorPlansTable[Market]=$CG$6)*(PriorPlansTable[Metal]=CI$7)*(INDIRECT("PriorPlansTable["&$BZ57&"]")>0),INDIRECT("PriorPlansTable["&$BZ57&"]"))) -> 311.86 | CJ57: =MIN(IF((PriorPlansTable[Market]=$CG$6)*(PriorPlansTable[Metal]=CJ$7)*(INDIRECT("PriorPlansTable["&$BZ57&"]")>0),INDIRECT("PriorPlansTable["&$BZ57&"]"))) -> 361.27 | CK57: =MIN(IF((PriorPlansTable[Market]=$CG$6)*(PriorPlansTable[Metal]=CK$7)*(INDIRECT("PriorPlansTable["&$BZ57&"]")>0),INDIRECT("PriorPlansTable["&$BZ57&"]"))) -> 473.83 | CL57: =MIN(IF((PriorPlansTable[Market]=$CG$6)*(PriorPlansTable[Metal]="Silver")*(INDIRECT("PriorPlansTable["&$BZ57&"]")>CI57),INDIRECT("PriorPlansTable["&$BZ57&"]"))) -> 314.23
B58: IBC | C58: KHPE | D58: Small Group | E58: 33871PA0100023 | F58: Keystone HMO Gold Classic $1,500/$30/$60/90% | G58: HMO | H58: Gold | I58: Off | J58: 0 | K58: 0 | L58: 0 | M58: 0 | N58: 0 | O58: 0 | P58: 0 | Q58: 0 | R58: 0 | S58: 0 | T58: 0 | U58: 0 | V58: 0 | W58: 0 | X58: 0 | Y58: 0 | Z58: 0 | AA58: 0 | AB58: 0 | AC58: 0 | AD58: 0 | AE58: 0 | AF58: 0 | AG58: 0 | AH58: 0 | AI58: 0 | AJ58: 0 | AK58: 0 | AL58: 0 | AM58: 0 | AN58: 0 | AO58: 0 | AP58: 0 | AQ58: 0 | AR58: 0 | AS58: 0 | AT58: 0 | AU58: 0 | AV58: 0 | AW58: 0 | AX58: 0 | AY58: 0 | AZ58: 0 | BA58: 0 | BB58: 0 | BC58: 0 | BD58: 0 | BE58: 0 | BF58: 0 | BG58: 0 | BH58: 0 | BI58: 0 | BJ58: 0 | BK58: 0 | BL58: 0 | BM58: 407.23 | BN58: 407.23 | BO58: 407.23 | BP58: 407.23 | BQ58: 407.23 | BR58: 0 | BS58: 0 | BT58: 0 | BU58: 0 | BV58: 0 | BW58: 0 | BX58: 0 | BZ58: Union | CA58: =MIN(IF((PriorPlansTable[Market]=$CA$6)*(PriorPlansTable[Metal]=CA$7)*(INDIRECT("PriorPlansTable["&$BZ58&"]")>0),INDIRECT("PriorPlansTable["&$BZ58&"]"))) -> 193.66 | CB58: =MIN(IF((PriorPlansTable[Market]=$CA$6)*(PriorPlansTable[Metal]=CB$7)*(INDIRECT("PriorPlansTable["&$BZ58&"]")>0),INDIRECT("PriorPlansTable["&$BZ58&"]"))) -> 280.54 | CC58: =MIN(IF((PriorPlansTable[Market]=$CA$6)*(PriorPlansTable[Metal]=CC$7)*(INDIRECT("PriorPlansTable["&$BZ58&"]")>0),INDIRECT("PriorPlansTable["&$BZ58&"]"))) -> 315.83 | CD58: =MIN(IF((PriorPlansTable[Market]=$CA$6)*(PriorPlansTable[Metal]=CD$7)*(INDIRECT("PriorPlansTable["&$BZ58&"]")>0),INDIRECT("PriorPlansTable["&$BZ58&"]"))) -> 390.8 | CE58: =MIN(IF((PriorPlansTable[Market]=$CA$6)*(PriorPlansTable[Metal]=CE$7)*(INDIRECT("PriorPlansTable["&$BZ58&"]")>0),INDIRECT("PriorPlansTable["&$BZ58&"]"))) -> 0 | CF58: =MIN(IF((PriorPlansTable[Market]=$CA$6)*(PriorPlansTable[Metal]="Silver")*(INDIRECT("PriorPlansTable["&$BZ58&"]")>CC58),INDIRECT("PriorPlansTable["&$BZ58&"]"))) -> 403.75 | CG58: =MIN(IF((PriorPlansTable[Market]=$CG$6)*(PriorPlansTable[Metal]=CG$7)*(INDIRECT("PriorPlansTable["&$BZ58&"]")>0),INDIRECT("PriorPlansTable["&$BZ58&"]"))) -> 0 | CH58: =MIN(IF((PriorPlansTable[Market]=$CG$6)*(PriorPlansTable[Metal]=CH$7)*(INDIRECT("PriorPlansTable["&$BZ58&"]")>0),INDIRECT("PriorPlansTable["&$BZ58&"]"))) -> 268.72 | CI58: =MIN(IF((PriorPlansTable[Market]=$CG$6)*(PriorPlansTable[Metal]=CI$7)*(INDIRECT("PriorPlansTable["&$BZ58&"]")>0),INDIRECT("PriorPlansTable["&$BZ58&"]"))) -> 311.86 | CJ58: =MIN(IF((PriorPlansTable[Market]=$CG$6)*(PriorPlansTable[Metal]=CJ$7)*(INDIRECT("PriorPlansTable["&$BZ58&"]")>0),INDIRECT("PriorPlansTable["&$BZ58&"]"))) -> 367.17 | CK58: =MIN(IF((PriorPlansTable[Market]=$CG$6)*(PriorPlansTable[Metal]=CK$7)*(INDIRECT("PriorPlansTable["&$BZ58&"]")>0),INDIRECT("PriorPlansTable["&$BZ58&"]"))) -> 473.83 | CL58: =MIN(IF((PriorPlansTable[Market]=$CG$6)*(PriorPlansTable[Metal]="Silver")*(INDIRECT("PriorPlansTable["&$BZ58&"]")>CI58),INDIRECT("PriorPlansTable["&$BZ58&"]"))) -> 314.23
B59: IBC | C59: KHPE | D59: Small Group | E59: 33871PA0100024 | F59: Keystone HMO Silver Classic $4,750/$30/$60/70% | G59: HMO | H59: Silver | I59: Off | J59: 0 | K59: 0 | L59: 0 | M59: 0 | N59: 0 | O59: 0 | P59: 0 | Q59: 0 | R59: 0 | S59: 0 | T59: 0 | U59: 0 | V59: 0 | W59: 0 | X59: 0 | Y59: 0 | Z59: 0 | AA59: 0 | AB59: 0 | AC59: 0 | AD59: 0 | AE59: 0 | AF59: 0 | AG59: 0 | AH59: 0 | AI59: 0 | AJ59: 0 | AK59: 0 | AL59: 0 | AM59: 0 | AN59: 0 | AO59: 0 | AP59: 0 | AQ59: 0 | AR59: 0 | AS59: 0 | AT59: 0 | AU59: 0 | AV59: 0 | AW59: 0 | AX59: 0 | AY59: 0 | AZ59: 0 | BA59: 0 | BB59: 0 | BC59: 0 | BD59: 0 | BE59: 0 | BF59: 0 | BG59: 0 | BH59: 0 | BI59: 0 | BJ59: 0 | BK59: 0 | BL59: 0 | BM59: 334.69 | BN59: 334.69 | BO59: 334.69 | BP59: 334.69 | BQ59: 334.69 | BR59: 0 | BS59: 0 | BT59: 0 | BU59: 0 | BV59: 0 | BW59: 0 | BX59: 0 | BZ59: Adams | CA59: =MIN(IF((PriorPlansTable[Market]=$CA$6)*(PriorPlansTable[Metal]=CA$7)*(INDIRECT("PriorPlansTable["&$BZ59&"]")>0),INDIRECT("PriorPlansTable["&$BZ59&"]"))) -> 220.77 | CB59: =MIN(IF((PriorPlansTable[Market]=$CA$6)*(PriorPlansTable[Metal]=CB$7)*(INDIRECT("PriorPlansTable["&$BZ59&"]")>0),INDIRECT("PriorPlansTable["&$BZ59&"]"))) -> 303.38 | CC59: =MIN(IF((PriorPlansTable[Market]=$CA$6)*(PriorPlansTable[Metal]=CC$7)*(INDIRECT("PriorPlansTable["&$BZ59&"]")>0),INDIRECT("PriorPlansTable["&$BZ59&"]"))) -> 360.05 | CD59: =MIN(IF((PriorPlansTable[Market]=$CA$6)*(PriorPlansTable[Metal]=CD$7)*(INDIRECT("PriorPlansTable["&$BZ59&"]")>0),INDIRECT("PriorPlansTable["&$BZ59&"]"))) -> 445.51 | CE59: =MIN(IF((PriorPlansTable[Market]=$CA$6)*(PriorPlansTable[Metal]=CE$7)*(INDIRECT("PriorPlansTable["&$BZ59&"]")>0),INDIRECT("PriorPlansTable["&$BZ59&"]"))) -> 0 | CF59: =MIN(IF((PriorPlansTable[Market]=$CA$6)*(PriorPlansTable[Metal]="Silver")*(INDIRECT("PriorPlansTable["&$BZ59&"]")>CC59),INDIRECT("PriorPlansTable["&$BZ59&"]"))) -> 409.36 | CG59: =MIN(IF((PriorPlansTable[Market]=$CG$6)*(PriorPlansTable[Metal]=CG$7)*(INDIRECT("PriorPlansTable["&$BZ59&"]")>0),INDIRECT("PriorPlansTable["&$BZ59&"]"))) -> 0 | CH59: =MIN(IF((PriorPlansTable[Market]=$CG$6)*(PriorPlansTable[Metal]=CH$7)*(INDIRECT("PriorPlansTable["&$BZ59&"]")>0),INDIRECT("PriorPlansTable["&$BZ59&"]"))) -> 231.11 | CI59: =MIN(IF((PriorPlansTable[Market]=$CG$6)*(PriorPlansTable[Metal]=CI$7)*(INDIRECT("PriorPlansTable["&$BZ59&"]")>0),INDIRECT("PriorPlansTable["&$BZ59&"]"))) -> 298.94 | CJ59: =MIN(IF((PriorPlansTable[Market]=$CG$6)*(PriorPlansTable[Metal]=CJ$7)*(INDIRECT("PriorPlansTable["&$BZ59&"]")>0),INDIRECT("PriorPlansTable["&$BZ59&"]"))) -> 334.37 | CK59: =MIN(IF((PriorPlansTable[Market]=$CG$6)*(PriorPlansTable[Metal]=CK$7)*(INDIRECT("PriorPlansTable["&$BZ59&"]")>0),INDIRECT("PriorPlansTable["&$BZ59&"]"))) -> 498.96 | CL59: =MIN(IF((PriorPlansTable[Market]=$CG$6)*(PriorPlansTable[Metal]="Silver")*(INDIRECT("PriorPlansTable["&$BZ59&"]")>CI59),INDIRECT("PriorPlansTable["&$BZ59&"]"))) -> 306.48
B60: IBC | C60: KHPE | D60: Small Group | E60: 33871PA0100025 | F60: Keystone HMO Silver Classic $3,750/$30/$60/50% | G60: HMO | H60: Silver | I60: Off | J60: 0 | K60: 0 | L60: 0 | M60: 0 | N60: 0 | O60: 0 | P60: 0 | Q60: 0 | R60: 0 | S60: 0 | T60: 0 | U60: 0 | V60: 0 | W60: 0 | X60: 0 | Y60: 0 | Z60: 0 | AA60: 0 | AB60: 0 | AC60: 0 | AD60: 0 | AE60: 0 | AF60: 0 | AG60: 0 | AH60: 0 | AI60: 0 | AJ60: 0 | AK60: 0 | AL60: 0 | AM60: 0 | AN60: 0 | AO60: 0 | AP60: 0 | AQ60: 0 | AR60: 0 | AS60: 0 | AT60: 0 | AU60: 0 | AV60: 0 | AW60: 0 | AX60: 0 | AY60: 0 | AZ60: 0 | BA60: 0 | BB60: 0 | BC60: 0 | BD60: 0 | BE60: 0 | BF60: 0 | BG60: 0 | BH60: 0 | BI60: 0 | BJ60: 0 | BK60: 0 | BL60: 0 | BM60: 332.58 | BN60: 332.58 | BO60: 332.58 | BP60: 332.58 | BQ60: 332.58 | BR60: 0 | BS60: 0 | BT60: 0 | BU60: 0 | BV60: 0 | BW60: 0 | BX60: 0 | BZ60: Berks | CA60: =MIN(IF((PriorPlansTable[Market]=$CA$6)*(PriorPlansTable[Metal]=CA$7)*(INDIRECT("PriorPlansTable["&$BZ60&"]")>0),INDIRECT("PriorPlansTable["&$BZ60&"]"))) -> 215.8 | CB60: =MIN(IF((PriorPlansTable[Market]=$CA$6)*(PriorPlansTable[Metal]=CB$7)*(INDIRECT("PriorPlansTable["&$BZ60&"]")>0),INDIRECT("PriorPlansTable["&$BZ60&"]"))) -> 297.25 | CC60: =MIN(IF((PriorPlansTable[Market]=$CA$6)*(PriorPlansTable[Metal]=CC$7)*(INDIRECT("PriorPlansTable["&$BZ60&"]")>0),INDIRECT("PriorPlansTable["&$BZ60&"]"))) -> 334.89 | CD60: =MIN(IF((PriorPlansTable[Market]=$CA$6)*(PriorPlansTable[Metal]=CD$7)*(INDIRECT("PriorPlansTable["&$BZ60&"]")>0),INDIRECT("PriorPlansTable["&$BZ60&"]"))) -> 384.45 | CE60: =MIN(IF((PriorPlansTable[Market]=$CA$6)*(PriorPlansTable[Metal]=CE$7)*(INDIRECT("PriorPlansTable["&$BZ60&"]")>0),INDIRECT("PriorPlansTable["&$BZ60&"]"))) -> 0 | CF60: =MIN(IF((PriorPlansTable[Market]=$CA$6)*(PriorPlansTable[Metal]="Silver")*(INDIRECT("PriorPlansTable["&$BZ60&"]")>CC60),INDIRECT("PriorPlansTable["&$BZ60&"]"))) -> 339.02 | CG60: =MIN(IF((PriorPlansTable[Market]=$CG$6)*(PriorPlansTable[Metal]=CG$7)*(INDIRECT("PriorPlansTable["&$BZ60&"]")>0),INDIRECT("PriorPlansTable["&$BZ60&"]"))) -> 0 | CH60: =MIN(IF((PriorPlansTable[Market]=$CG$6)*(PriorPlansTable[Metal]=CH$7)*(INDIRECT("PriorPlansTable["&$BZ60&"]")>0),INDIRECT("PriorPlansTable["&$BZ60&"]"))) -> 269.62 | CI60: =MIN(IF((PriorPlansTable[Market]=$CG$6)*(PriorPlansTable[Metal]=CI$7)*(INDIRECT("PriorPlansTable["&$BZ60&"]")>0),INDIRECT("PriorPlansTable["&$BZ60&"]"))) -> 329.48 | CJ60: =MIN(IF((PriorPlansTable[Market]=$CG$6)*(PriorPlansTable[Metal]=CJ$7)*(INDIRECT("PriorPlansTable["&$BZ60&"]")>0),INDIRECT("PriorPlansTable["&$BZ60&"]"))) -> 338.79 | CK60: =MIN(IF((PriorPlansTable[Market]=$CG$6)*(PriorPlansTable[Metal]=CK$7)*(INDIRECT("PriorPlansTable["&$BZ60&"]")>0),INDIRECT("PriorPlansTable["&$BZ60&"]"))) -> 498.96 | CL60: =MIN(IF((PriorPlansTable[Market]=$CG$6)*(PriorPlansTable[Metal]="Silver")*(INDIRECT("PriorPlansTable["&$BZ60&"]")>CI60),INDIRECT("PriorPlansTable["&$BZ60&"]"))) -> 333.66
B61: IBC | C61: KHPE | D61: Small Group | E61: 33871PA0100026 | F61: Keystone HMO Bronze Essential $7,500/$70/$140/$700 | G61: HMO | H61: Bronze | I61: Off | J61: 0 | K61: 0 | L61: 0 | M61: 0 | N61: 0 | O61: 0 | P61: 0 | Q61: 0 | R61: 0 | S61: 0 | T61: 0 | U61: 0 | V61: 0 | W61: 0 | X61: 0 | Y61: 0 | Z61: 0 | AA61: 0 | AB61: 0 | AC61: 0 | AD61: 0 | AE61: 0 | AF61: 0 | AG61: 0 | AH61: 0 | AI61: 0 | AJ61: 0 | AK61: 0 | AL61: 0 | AM61: 0 | AN61: 0 | AO61: 0 | AP61: 0 | AQ61: 0 | AR61: 0 | AS61: 0 | AT61: 0 | AU61: 0 | AV61: 0 | AW61: 0 | AX61: 0 | AY61: 0 | AZ61: 0 | BA61: 0 | BB61: 0 | BC61: 0 | BD61: 0 | BE61: 0 | BF61: 0 | BG61: 0 | BH61: 0 | BI61: 0 | BJ61: 0 | BK61: 0 | BL61: 0 | BM61: 249.25 | BN61: 249.25 | BO61: 249.25 | BP61: 249.25 | BQ61: 249.25 | BR61: 0 | BS61: 0 | BT61: 0 | BU61: 0 | BV61: 0 | BW61: 0 | BX61: 0 | BZ61: Lancaster | CA61: =MIN(IF((PriorPlansTable[Market]=$CA$6)*(PriorPlansTable[Metal]=CA$7)*(INDIRECT("PriorPlansTable["&$BZ61&"]")>0),INDIRECT("PriorPlansTable["&$BZ61&"]"))) -> 215.8 | CB61: =MIN(IF((PriorPlansTable[Market]=$CA$6)*(PriorPlansTable[Metal]=CB$7)*(INDIRECT("PriorPlansTable["&$BZ61&"]")>0),INDIRECT("PriorPlansTable["&$BZ61&"]"))) -> 271.13 | CC61: =MIN(IF((PriorPlansTable[Market]=$CA$6)*(PriorPlansTable[Metal]=CC$7)*(INDIRECT("PriorPlansTable["&$BZ61&"]")>0),INDIRECT("PriorPlansTable["&$BZ61&"]"))) -> 308.32 | CD61: =MIN(IF((PriorPlansTable[Market]=$CA$6)*(PriorPlansTable[Metal]=CD$7)*(INDIRECT("PriorPlansTable["&$BZ61&"]")>0),INDIRECT("PriorPlansTable["&$BZ61&"]"))) -> 379.16 | CE61: =MIN(IF((PriorPlansTable[Market]=$CA$6)*(PriorPlansTable[Metal]=CE$7)*(INDIRECT("PriorPlansTable["&$BZ61&"]")>0),INDIRECT("PriorPlansTable["&$BZ61&"]"))) -> 0 | CF61: =MIN(IF((PriorPlansTable[Market]=$CA$6)*(PriorPlansTable[Metal]="Silver")*(INDIRECT("PriorPlansTable["&$BZ61&"]")>CC61),INDIRECT("PriorPlansTable["&$BZ61&"]"))) -> 334.89 | CG61: =MIN(IF((PriorPlansTable[Market]=$CG$6)*(PriorPlansTable[Metal]=CG$7)*(INDIRECT("PriorPlansTable["&$BZ61&"]")>0),INDIRECT("PriorPlansTable["&$BZ61&"]"))) -> 0 | CH61: =MIN(IF((PriorPlansTable[Market]=$CG$6)*(PriorPlansTable[Metal]=CH$7)*(INDIRECT("PriorPlansTable["&$BZ61&"]")>0),INDIRECT("PriorPlansTable["&$BZ61&"]"))) -> 231.11 | CI61: =MIN(IF((PriorPlansTable[Market]=$CG$6)*(PriorPlansTable[Metal]=CI$7)*(INDIRECT("PriorPlansTable["&$BZ61&"]")>0),INDIRECT("PriorPlansTable["&$BZ61&"]"))) -> 298.94 | CJ61: =MIN(IF((PriorPlansTable[Market]=$CG$6)*(PriorPlansTable[Metal]=CJ$7)*(INDIRECT("PriorPlansTable["&$BZ61&"]")>0),INDIRECT("PriorPlansTable["&$BZ61&"]"))) -> 334.37 | CK61: =MIN(IF((PriorPlansTable[Market]=$CG$6)*(PriorPlansTable[Metal]=CK$7)*(INDIRECT("PriorPlansTable["&$BZ61&"]")>0),INDIRECT("PriorPlansTable["&$BZ61&"]"))) -> 498.96 | CL61: =MIN(IF((PriorPlansTable[Market]=$CG$6)*(PriorPlansTable[Metal]="Silver")*(INDIRECT("PriorPlansTable["&$BZ61&"]")>CI61),INDIRECT("PriorPlansTable["&$BZ61&"]"))) -> 306.48
B62: IBC | C62: KHPE | D62: Small Group | E62: 33871PA0100044 | F62: Keystone HMO Gold Proactive | G62: HMO | H62: Gold | I62: Off | J62: 0 | K62: 0 | L62: 0 | M62: 0 | N62: 0 | O62: 0 | P62: 0 | Q62: 0 | R62: 0 | S62: 0 | T62: 0 | U62: 0 | V62: 0 | W62: 0 | X62: 0 | Y62: 0 | Z62: 0 | AA62: 0 | AB62: 0 | AC62: 0 | AD62: 0 | AE62: 0 | AF62: 0 | AG62: 0 | AH62: 0 | AI62: 0 | AJ62: 0 | AK62: 0 | AL62: 0 | AM62: 0 | AN62: 0 | AO62: 0 | AP62: 0 | AQ62: 0 | AR62: 0 | AS62: 0 | AT62: 0 | AU62: 0 | AV62: 0 | AW62: 0 | AX62: 0 | AY62: 0 | AZ62: 0 | BA62: 0 | BB62: 0 | BC62: 0 | BD62: 0 | BE62: 0 | BF62: 0 | BG62: 0 | BH62: 0 | BI62: 0 | BJ62: 0 | BK62: 0 | BL62: 0 | BM62: 377.08 | BN62: 377.08 | BO62: 377.08 | BP62: 377.08 | BQ62: 377.08 | BR62: 0 | BS62: 0 | BT62: 0 | BU62: 0 | BV62: 0 | BW62: 0 | BX62: 0 | BZ62: York | CA62: =MIN(IF((PriorPlansTable[Market]=$CA$6)*(PriorPlansTable[Metal]=CA$7)*(INDIRECT("PriorPlansTable["&$BZ62&"]")>0),INDIRECT("PriorPlansTable["&$BZ62&"]"))) -> 220.77 | CB62: =MIN(IF((PriorPlansTable[Market]=$CA$6)*(PriorPlansTable[Metal]=CB$7)*(INDIRECT("PriorPlansTable["&$BZ62&"]")>0),INDIRECT("PriorPlansTable["&$BZ62&"]"))) -> 303.38 | CC62: =MIN(IF((PriorPlansTable[Market]=$CA$6)*(PriorPlansTable[Metal]=CC$7)*(INDIRECT("PriorPlansTable["&$BZ62&"]")>0),INDIRECT("PriorPlansTable["&$BZ62&"]"))) -> 360.05 | CD62: =MIN(IF((PriorPlansTable[Market]=$CA$6)*(PriorPlansTable[Metal]=CD$7)*(INDIRECT("PriorPlansTable["&$BZ62&"]")>0),INDIRECT("PriorPlansTable["&$BZ62&"]"))) -> 445.51 | CE62: =MIN(IF((PriorPlansTable[Market]=$CA$6)*(PriorPlansTable[Metal]=CE$7)*(INDIRECT("PriorPlansTable["&$BZ62&"]")>0),INDIRECT("PriorPlansTable["&$BZ62&"]"))) -> 0 | CF62: =MIN(IF((PriorPlansTable[Market]=$CA$6)*(PriorPlansTable[Metal]="Silver")*(INDIRECT("PriorPlansTable["&$BZ62&"]")>CC62),INDIRECT("PriorPlansTable["&$BZ62&"]"))) -> 409.36 | CG62: =MIN(IF((PriorPlansTable[Market]=$CG$6)*(PriorPlansTable[Metal]=CG$7)*(INDIRECT("PriorPlansTable["&$BZ62&"]")>0),INDIRECT("PriorPlansTable["&$BZ62&"]"))) -> 0 | CH62: =MIN(IF((PriorPlansTable[Market]=$CG$6)*(PriorPlansTable[Metal]=CH$7)*(INDIRECT("PriorPlansTable["&$BZ62&"]")>0),INDIRECT("PriorPlansTable["&$BZ62&"]"))) -> 231.11 | CI62: =MIN(IF((PriorPlansTable[Market]=$CG$6)*(PriorPlansTable[Metal]=CI$7)*(INDIRECT("PriorPlansTable["&$BZ62&"]")>0),INDIRECT("PriorPlansTable["&$BZ62&"]"))) -> 298.94 | CJ62: =MIN(IF((PriorPlansTable[Market]=$CG$6)*(PriorPlansTable[Metal]=CJ$7)*(INDIRECT("PriorPlansTable["&$BZ62&"]")>0),INDIRECT("PriorPlansTable["&$BZ62&"]"))) -> 334.37 | CK62: =MIN(IF((PriorPlansTable[Market]=$CG$6)*(PriorPlansTable[Metal]=CK$7)*(INDIRECT("PriorPlansTable["&$BZ62&"]")>0),INDIRECT("PriorPlansTable["&$BZ62&"]"))) -> 498.96 | CL62: =MIN(IF((PriorPlansTable[Market]=$CG$6)*(PriorPlansTable[Metal]="Silver")*(INDIRECT("PriorPlansTable["&$BZ62&"]")>CI62),INDIRECT("PriorPlansTable["&$BZ62&"]"))) -> 306.48
... 77 more rows

Sheet Prior Issuers (hidden)
A1: PRIOR ISSUERS BY RATING AREA AND COUNTY
B4: Inputs Tab | C4: Inputs Tab | D4: Inputs Tab | E4: Prior Plans Tab | F4: Prior Plans Tab | G4: Prior Plans Tab | H4: Prior Plans Tab | I4: Prior Plans Tab | J4: Calc | K4: Prior Plans Tab | L4: Prior Plans Tab | M4: Prior Plans Tab | N4: Prior Plans Tab | O4: Prior Plans Tab | P4: Prior Plans Tab | Q4: Prior Plans Tab | R4: Prior Plans Tab | S4: Prior Plans Tab | T4: Prior Plans Tab | U4: Prior Plans Tab | V4: Prior Plans Tab | W4: Prior Plans Tab | X4: Prior Plans Tab | Y4: Prior Plans Tab | Z4: Prior Plans Tab | AA4: Prior Plans Tab | AB4: Prior Plans Tab | AC4: Prior Plans Tab | AD4: Prior Plans Tab | AE4: Prior Plans Tab | AF4: Prior Plans Tab | AG4: Prior Plans Tab | AH4: Prior Plans Tab | AI4: Prior Plans Tab | AJ4: Prior Plans Tab | AK4: Prior Plans Tab | AL4: Prior Plans Tab | AM4: Prior Plans Tab | AN4: Prior Plans Tab | AO4: Prior Plans Tab | AP4: Prior Plans Tab | AQ4: Prior Plans Tab | AR4: Prior Plans Tab | AS4: Prior Plans Tab | AT4: Prior Plans Tab | AU4: Prior Plans Tab | AV4: Prior Plans Tab | AW4: Prior Plans Tab | AX4: Prior Plans Tab | AY4: Prior Plans Tab | AZ4: Prior Plans Tab | BA4: Prior Plans Tab | BB4: Prior Plans Tab | BC4: Prior Plans Tab | BD4: Prior Plans Tab | BE4: Prior Plans Tab | BF4: Prior Plans Tab | BG4: Prior Plans Tab | BH4: Prior Plans Tab | BI4: Prior Plans Tab | BJ4: Prior Plans Tab | BK4: Prior Plans Tab | BL4: Prior Plans Tab | BM4: Prior Plans Tab | BN4: Prior Plans Tab | BO4: Prior Plans Tab | BP4: Prior Plans Tab | BQ4: Prior Plans Tab | BR4: Prior Plans Tab | BS4: Prior Plans Tab | BT4: Prior Plans Tab | BU4: Prior Plans Tab | BV4: Prior Plans Tab | BW4: Prior Plans Tab | BX4: Prior Plans Tab | BY4: Prior Plans Tab | BZ4: Calc | CA4: Calc | CB4: Calc | CC4: Calc | CD4: Calc | CE4: Calc | CF4: Calc | CG4: Calc | CH4: Calc | CI4: Calc | CJ4: Calc | CK4: Calc | CL4: Calc | CM4: Calc | CN4: Calc | CO4: Calc | CP4: Calc | CQ4: Calc | CR4: Calc | CS4: Calc | CT4: Calc | CU4: Calc | CV4: Calc | CW4: Calc | CX4: Calc | CY4: Calc | CZ4: Calc | DA4: Calc | DB4: Calc | DC4: Calc | DD4: Calc | DE4: Calc | DF4: Calc | DG4: Calc | DH4: Calc | DI4: Calc | DJ4: Calc | DK4: Calc | DL4: Calc | DM4: Calc | DN4: Calc | DO4: Calc | DP4: Calc | DQ4: Calc | DR4: Calc | DS4: Calc | DT4: Calc | DU4: Calc | DV4: Calc | DW4: Calc | DX4: Calc | DY4: Calc | DZ4: Calc | EA4: Calc | EB4: Calc | EC4: Calc | ED4: Calc | EE4: Calc | EF4: Calc | EG4: Calc | EH4: Calc | EI4: Calc | EJ4: Calc | EK4: Calc | EL4: Calc | EM4: Calc | EN4: Calc
K5: By Metal Level | BZ5: Overall (No Metal Split)
K6: =INDEX(Lookups!$B:$B,MATCH(K$7,Lookups!$A:$A,0),1) -> Rating Area 1 | L6: =INDEX(Lookups!$B:$B,MATCH(L$7,Lookups!$A:$A,0),1) -> Rating Area 1 | M6: =INDEX(Lookups!$B:$B,MATCH(M$7,Lookups!$A:$A,0),1) -> Rating Area 1 | N6: =INDEX(Lookups!$B:$B,MATCH(N$7,Lookups!$A:$A,0),1) -> Rating Area 1 | O6: =INDEX(Lookups!$B:$B,MATCH(O$7,Lookups!$A:$A,0),1) -> Rating Area 1 | P6: =INDEX(Lookups!$B:$B,MATCH(P$7,Lookups!$A:$A,0),1) -> Rating Area 1 | Q6: =INDEX(Lookups!$B:$B,MATCH(Q$7,Lookups!$A:$A,0),1) -> Rating Area 1 | R6: =INDEX(Lookups!$B:$B,MATCH(R$7,Lookups!$A:$A,0),1) -> Rating Area 1 | S6: =INDEX(Lookups!$B:$B,MATCH(S$7,Lookups!$A:$A,0),1) -> Rating Area 2 | T6: =INDEX(Lookups!$B:$B,MATCH(T$7,Lookups!$A:$A,0),1) -> Rating Area 2 | U6: =INDEX(Lookups!$B:$B,MATCH(U$7,Lookups!$A:$A,0),1) -> Rating Area 2 | V6: =INDEX(Lookups!$B:$B,MATCH(V$7,Lookups!$A:$A,0),1) -> Rating Area 3 | W6: =INDEX(Lookups!$B:$B,MATCH(W$7,Lookups!$A:$A,0),1) -> Rating Area 3 | X6: =INDEX(Lookups!$B:$B,MATCH(X$7,Lookups!$A:$A,0),1) -> Rating Area 3 | Y6: =INDEX(Lookups!$B:$B,MATCH(Y$7,Lookups!$A:$A,0),1) -> Rating Area 3 | Z6: =INDEX(Lookups!$B:$B,MATCH(Z$7,Lookups!$A:$A,0),1) -> Rating Area 3 | AA6: =INDEX(Lookups!$B:$B,MATCH(AA$7,Lookups!$A:$A,0),1) -> Rating Area 3 | AB6: =INDEX(Lookups!$B:$B,MATCH(AB$7,Lookups!$A:$A,0),1) -> Rating Area 3 | AC6: =INDEX(Lookups!$B:$B,MATCH(AC$7,Lookups!$A:$A,0),1) -> Rating Area 3 | AD6: =INDEX(Lookups!$B:$B,MATCH(AD$7,Lookups!$A:$A,0),1) -> Rating Area 3 | AE6: =INDEX(Lookups!$B:$B,MATCH(AE$7,Lookups!$A:$A,0),1) -> Rating Area 3 | AF6: =INDEX(Lookups!$B:$B,MATCH(AF$7,Lookups!$A:$A,0),1) -> Rating Area 3 | AG6: =INDEX(Lookups!$B:$B,MATCH(AG$7,Lookups!$A:$A,0),1) -> Rating Area 3 | AH6: =INDEX(Lookups!$B:$B,MATCH(AH$7,Lookups!$A:$A,0),1) -> Rating Area 3 | AI6: =INDEX(Lookups!$B:$B,MATCH(AI$7,Lookups!$A:$A,0),1) -> Rating Area 4 | AJ6: =INDEX(Lookups!$B:$B,MATCH(AJ$7,Lookups!$A:$A,0),1) -> Rating Area 4 | AK6: =INDEX(Lookups!$B:$B,MATCH(AK$7,Lookups!$A:$A,0),1) -> Rating Area 4 | AL6: =INDEX(Lookups!$B:$B,MATCH(AL$7,Lookups!$A:$A,0),1) -> Rating Area 4 | AM6: =INDEX(Lookups!$B:$B,MATCH(AM$7,Lookups!$A:$A,0),1) -> Rating Area 4 | AN6: =INDEX(Lookups!$B:$B,MATCH(AN$7,Lookups!$A:$A,0),1) -> Rating Area 4 | AO6: =INDEX(Lookups!$B:$B,MATCH(AO$7,Lookups!$A:$A,0),1) -> Rating Area 4 | AP6: =INDEX(Lookups!$B:$B,MATCH(AP$7,Lookups!$A:$A,0),1) -> Rating Area 4 | AQ6: =INDEX(Lookups!$B:$B,MATCH(AQ$7,Lookups!$A:$A,0),1) -> Rating Area 4 | AR6: =INDEX(Lookups!$B:$B,MATCH(AR$7,Lookups!$A:$A,0),1) -> Rating Area 4 | AS6: =INDEX(Lookups!$B:$B,MATCH(AS$7,Lookups!$A:$A,0),1) -> Rating Area 5 | AT6: =INDEX(Lookups!$B:$B,MATCH(AT$7,Lookups!$A:$A,0),1) -> Rating Area 5 | AU6: =INDEX(Lookups!$B:$B,MATCH(AU$7,Lookups!$A:$A,0),1) -> Rating Area 5 | AV6: =INDEX(Lookups!$B:$B,MATCH(AV$7,Lookups!$A:$A,0),1) -> Rating Area 5 | AW6: =INDEX(Lookups!$B:$B,MATCH(AW$7,Lookups!$A:$A,0),1) -> Rating Area 5 | AX6: =INDEX(Lookups!$B:$B,MATCH(AX$7,Lookups!$A:$A,0),1) -> Rating Area 5 | AY6: =INDEX(Lookups!$B:$B,MATCH(AY$7,Lookups!$A:$A,0),1) -> Rating Area 5 | AZ6: =INDEX(Lookups!$B:$B,MATCH(AZ$7,Lookups!$A:$A,0),1) -> Rating Area 6 | BA6: =INDEX(Lookups!$B:$B,MATCH(BA$7,Lookups!$A:$A,0),1) -> Rating Area 6 | BB6: =INDEX(Lookups!$B:$B,MATCH(BB$7,Lookups!$A:$A,0),1) -> Rating Area 6 | BC6: =INDEX(Lookups!$B:$B,MATCH(BC$7,Lookups!$A:$A,0),1) -> Rating Area 6 | BD6: =INDEX(Lookups!$B:$B,MATCH(BD$7,Lookups!$A:$A,0),1) -> Rating Area 6 | BE6: =INDEX(Lookups!$B:$B,MATCH(BE$7,Lookups!$A:$A,0),1) -> Rating Area 6 | BF6: =INDEX(Lookups!$B:$B,MATCH(BF$7,Lookups!$A:$A,0),1) -> Rating Area 6 | BG6: =INDEX(Lookups!$B:$B,MATCH(BG$7,Lookups!$A:$A,0),1) -> Rating Area 6 | BH6: =INDEX(Lookups!$B:$B,MATCH(BH$7,Lookups!$A:$A,0),1) -> Rating Area 6 | BI6: =INDEX(Lookups!$B:$B,MATCH(BI$7,Lookups!$A:$A,0),1) -> Rating Area 6 | BJ6: =INDEX(Lookups!$B:$B,MATCH(BJ$7,Lookups!$A:$A,0),1) -> Rating Area 7 | BK6: =INDEX(Lookups!$B:$B,MATCH(BK$7,Lookups!$A:$A,0),1) -> Rating Area 7 | BL6: =INDEX(Lookups!$B:$B,MATCH(BL$7,Lookups!$A:$A,0),1) -> Rating Area 7 | BM6: =INDEX(Lookups!$B:$B,MATCH(BM$7,Lookups!$A:$A,0),1) -> Rating Area 7 | BN6: =INDEX(Lookups!$B:$B,MATCH(BN$7,Lookups!$A:$A,0),1) -> Rating Area 8 | BO6: =INDEX(Lookups!$B:$B,MATCH(BO$7,Lookups!$A:$A,0),1) -> Rating Area 8 | BP6: =INDEX(Lookups!$B:$B,MATCH(BP$7,Lookups!$A:$A,0),1) -> Rating Area 8 | BQ6: =INDEX(Lookups!$B:$B,MATCH(BQ$7,Lookups!$A:$A,0),1) -> Rating Area 8 | BR6: =INDEX(Lookups!$B:$B,MATCH(BR$7,Lookups!$A:$A,0),1) -> Rating Area 8 | BS6: =INDEX(Lookups!$B:$B,MATCH(BS$7,Lookups!$A:$A,0),1) -> Rating Area 9 | BT6: =INDEX(Lookups!$B:$B,MATCH(BT$7,Lookups!$A:$A,0),1) -> Rating Area 9 | BU6: =INDEX(Lookups!$B:$B,MATCH(BU$7,Lookups!$A:$A,0),1) -> Rating Area 9 | BV6: =INDEX(Lookups!$B:$B,MATCH(BV$7,Lookups!$A:$A,0),1) -> Rating Area 9 | BW6: =INDEX(Lookups!$B:$B,MATCH(BW$7,Lookups!$A:$A,0),1) -> Rating Area 9 | BX6: =INDEX(Lookups!$B:$B,MATCH(BX$7,Lookups!$A:$A,0),1) -> Rating Area 9 | BY6: =INDEX(Lookups!$B:$B,MATCH(BY$7,Lookups!$A:$A,0),1) -> Rating Area 9 | BZ6: =INDEX(Lookups!$B:$B,MATCH(LEFT(BZ$7,LEN(BZ$7)-1),Lookups!$A:$A,0),1) -> Rating Area 1 | CA6: =INDEX(Lookups!$B:$B,MATCH(LEFT(CA$7,LEN(CA$7)-1),Lookups!$A:$A,0),1) -> Rating Area 1 | CB6: =INDEX(Lookups!$B:$B,MATCH(LEFT(CB$7,LEN(CB$7)-1),Lookups!$A:$A,0),1) -> Rating Area 1 | CC6: =INDEX(Lookups!$B:$B,MATCH(LEFT(CC$7,LEN(CC$7)-1),Lookups!$A:$A,0),1) -> Rating Area 1 | CD6: =INDEX(Lookups!$B:$B,MATCH(LEFT(CD$7,LEN(CD$7)-1),Lookups!$A:$A,0),1) -> Rating Area 1 | CE6: =INDEX(Lookups!$B:$B,MATCH(LEFT(CE$7,LEN(CE$7)-1),Lookups!$A:$A,0),1) -> Rating Area 1 | CF6: =INDEX(Lookups!$B:$B,MATCH(LEFT(CF$7,LEN(CF$7)-1),Lookups!$A:$A,0),1) -> Rating Area 1 | CG6: =INDEX(Lookups!$B:$B,MATCH(LEFT(CG$7,LEN(CG$7)-1),Lookups!$A:$A,0),1) -> Rating Area 1 | CH6: =INDEX(Lookups!$B:$B,MATCH(LEFT(CH$7,LEN(CH$7)-1),Lookups!$A:$A,0),1) -> Rating Area 2 | CI6: =INDEX(Lookups!$B:$B,MATCH(LEFT(CI$7,LEN(CI$7)-1),Lookups!$A:$A,0),1) -> Rating Area 2 | CJ6: =INDEX(Lookups!$B:$B,MATCH(LEFT(CJ$7,LEN(CJ$7)-1),Lookups!$A:$A,0),1) -> Rating Area 2 | CK6: =INDEX(Lookups!$B:$B,MATCH(LEFT(CK$7,LEN(CK$7)-1),Lookups!$A:$A,0),1) -> Rating Area 3 | CL6: =INDEX(Lookups!$B:$B,MATCH(LEFT(CL$7,LEN(CL$7)-1),Lookups!$A:$A,0),1) -> Rating Area 3 | CM6: =INDEX(Lookups!$B:$B,MATCH(LEFT(CM$7,LEN(CM$7)-1),Lookups!$A:$A,0),1) -> Rating Area 3 | CN6: =INDEX(Lookups!$B:$B,MATCH(LEFT(CN$7,LEN(CN$7)-1),Lookups!$A:$A,0),1) -> Rating Area 3 | CO6: =INDEX(Lookups!$B:$B,MATCH(LEFT(CO$7,LEN(CO$7)-1),Lookups!$A:$A,0),1) -> Rating Area 3 | CP6: =INDEX(Lookups!$B:$B,MATCH(LEFT(CP$7,LEN(CP$7)-1),Lookups!$A:$A,0),1) -> Rating Area 3 | CQ6: =INDEX(Lookups!$B:$B,MATCH(LEFT(CQ$7,LEN(CQ$7)-1),Lookups!$A:$A,0),1) -> Rating Area 3 | CR6: =INDEX(Lookups!$B:$B,MATCH(LEFT(CR$7,LEN(CR$7)-1),Lookups!$A:$A,0),1) -> Rating Area 3 | CS6: =INDEX(Lookups!$B:$B,MATCH(LEFT(CS$7,LEN(CS$7)-1),Lookups!$A:$A,0),1) -> Rating Area 3 | CT6: =INDEX(Lookups!$B:$B,MATCH(LEFT(CT$7,LEN(CT$7)-1),Lookups!$A:$A,0),1) -> Rating Area 3 | CU6: =INDEX(Lookups!$B:$B,MATCH(LEFT(CU$7,LEN(CU$7)-1),Lookups!$A:$A,0),1) -> Rating Area 3 | CV6: =INDEX(Lookups!$B:$B,MATCH(LEFT(CV$7,LEN(CV$7)-1),Lookups!$A:$A,0),1) -> Rating Area 3 | CW6: =INDEX(Lookups!$B:$B,MATCH(LEFT(CW$7,LEN(CW$7)-1),Lookups!$A:$A,0),1) -> Rating Area 3 | CX6: =INDEX(Lookups!$B:$B,MATCH(LEFT(CX$7,LEN(CX$7)-1),Lookups!$A:$A,0),1) -> Rating Area 4 | CY6: =INDEX(Lookups!$B:$B,MATCH(LEFT(CY$7,LEN(CY$7)-1),Lookups!$A:$A,0),1) -> Rating Area 4 | CZ6: =INDEX(Lookups!$B:$B,MATCH(LEFT(CZ$7,LEN(CZ$7)-1),Lookups!$A:$A,0),1) -> Rating Area 4 | DA6: =INDEX(Lookups!$B:$B,MATCH(LEFT(DA$7,LEN(DA$7)-1),Lookups!$A:$A,0),1) -> Rating Area 4 | DB6: =INDEX(Lookups!$B:$B,MATCH(LEFT(DB$7,LEN(DB$7)-1),Lookups!$A:$A,0),1) -> Rating Area 4 | DC6: =INDEX(Lookups!$B:$B,MATCH(LEFT(DC$7,LEN(DC$7)-1),Lookups!$A:$A,0),1) -> Rating Area 4 | DD6: =INDEX(Lookups!$B:$B,MATCH(LEFT(DD$7,LEN(DD$7)-1),Lookups!$A:$A,0),1) -> Rating Area 4 | DE6: =INDEX(Lookups!$B:$B,MATCH(LEFT(DE$7,LEN(DE$7)-1),Lookups!$A:$A,0),1) -> Rating Area 4 | DF6: =INDEX(Lookups!$B:$B,MATCH(LEFT(DF$7,LEN(DF$7)-1),Lookups!$A:$A,0),1) -> Rating Area 4 | DG6: =INDEX(Lookups!$B:$B,MATCH(LEFT(DG$7,LEN(DG$7)-1),Lookups!$A:$A,0),1) -> Rating Area 4 | DH6: =INDEX(Lookups!$B:$B,MATCH(LEFT(DH$7,LEN(DH$7)-1),Lookups!$A:$A,0),1) -> Rating Area 5 | DI6: =INDEX(Lookups!$B:$B,MATCH(LEFT(DI$7,LEN(DI$7)-1),Lookups!$A:$A,0),1) -> Rating Area 5 | DJ6: =INDEX(Lookups!$B:$B,MATCH(LEFT(DJ$7,LEN(DJ$7)-1),Lookups!$A:$A,0),1) -> Rating Area 5 | DK6: =INDEX(Lookups!$B:$B,MATCH(LEFT(DK$7,LEN(DK$7)-1),Lookups!$A:$A,0),1) -> Rating Area 5 | DL6: =INDEX(Lookups!$B:$B,MATCH(LEFT(DL$7,LEN(DL$7)-1),Lookups!$A:$A,0),1) -> Rating Area 5 | DM6: =INDEX(Lookups!$B:$B,MATCH(LEFT(DM$7,LEN(DM$7)-1),Lookups!$A:$A,0),1) -> Rating Area 5 | DN6: =INDEX(Lookups!$B:$B,MATCH(LEFT(DN$7,LEN(DN$7)-1),Lookups!$A:$A,0),1) -> Rating Area 5 | DO6: =INDEX(Lookups!$B:$B,MATCH(LEFT(DO$7,LEN(DO$7)-1),Lookups!$A:$A,0),1) -> Rating Area 6 | DP6: =INDEX(Lookups!$B:$B,MATCH(LEFT(DP$7,LEN(DP$7)-1),Lookups!$A:$A,0),1) -> Rating Area 6 | DQ6: =INDEX(Lookups!$B:$B,MATCH(LEFT(DQ$7,LEN(DQ$7)-1),Lookups!$A:$A,0),1) -> Rating Area 6 | DR6: =INDEX(Lookups!$B:$B,MATCH(LEFT(DR$7,LEN(DR$7)-1),Lookups!$A:$A,0),1) -> Rating Area 6 | DS6: =INDEX(Lookups!$B:$B,MATCH(LEFT(DS$7,LEN(DS$7)-1),Lookups!$A:$A,0),1) -> Rating Area 6 | DT6: =INDEX(Lookups!$B:$B,MATCH(LEFT(DT$7,LEN(DT$7)-1),Lookups!$A:$A,0),1) -> Rating Area 6 | DU6: =INDEX(Lookups!$B:$B,MATCH(LEFT(DU$7,LEN(DU$7)-1),Lookups!$A:$A,0),1) -> Rating Area 6 | DV6: =INDEX(Lookups!$B:$B,MATCH(LEFT(DV$7,LEN(DV$7)-1),Lookups!$A:$A,0),1) -> Rating Area 6 | DW6: =INDEX(Lookups!$B:$B,MATCH(LEFT(DW$7,LEN(DW$7)-1),Lookups!$A:$A,0),1) -> Rating Area 6 | DX6: =INDEX(Lookups!$B:$B,MATCH(LEFT(DX$7,LEN(DX$7)-1),Lookups!$A:$A,0),1) -> Rating Area 6 | DY6: =INDEX(Lookups!$B:$B,MATCH(LEFT(DY$7,LEN(DY$7)-1),Lookups!$A:$A,0),1) -> Rating Area 7 | DZ6: =INDEX(Lookups!$B:$B,MATCH(LEFT(DZ$7,LEN(DZ$7)-1),Lookups!$A:$A,0),1) -> Rating Area 7 | EA6: =INDEX(Lookups!$B:$B,MATCH(LEFT(EA$7,LEN(EA$7)-1),Lookups!$A:$A,0),1) -> Rating Area 7 | EB6: =INDEX(Lookups!$B:$B,MATCH(LEFT(EB$7,LEN(EB$7)-1),Lookups!$A:$A,0),1) -> Rating Area 7 | EC6: =INDEX(Lookups!$B:$B,MATCH(LEFT(EC$7,LEN(EC$7)-1),Lookups!$A:$A,0),1) -> Rating Area 8 | ED6: =INDEX(Lookups!$B:$B,MATCH(LEFT(ED$7,LEN(ED$7)-1),Lookups!$A:$A,0),1) -> Rating Area 8 | EE6: =INDEX(Lookups!$B:$B,MATCH(LEFT(EE$7,LEN(EE$7)-1),Lookups!$A:$A,0),1) -> Rating Area 8 | EF6: =INDEX(Lookups!$B:$B,MATCH(LEFT(EF$7,LEN(EF$7)-1),Lookups!$A:$A,0),1) -> Rating Area 8 | EG6: =INDEX(Lookups!$B:$B,MATCH(LEFT(EG$7,LEN(EG$7)-1),Lookups!$A:$A,0),1) -> Rating Area 8 | EH6: =INDEX(Lookups!$B:$B,MATCH(LEFT(EH$7,LEN(EH$7)-1),Lookups!$A:$A,0),1) -> Rating Area 9 | EI6: =INDEX(Lookups!$B:$B,MATCH(LEFT(EI$7,LEN(EI$7)-1),Lookups!$A:$A,0),1) -> Rating Area 9 | EJ6: =INDEX(Lookups!$B:$B,MATCH(LEFT(EJ$7,LEN(EJ$7)-1),Lookups!$A:$A,0),1) -> Rating Area 9 | EK6: =INDEX(Lookups!$B:$B,MATCH(LEFT(EK$7,LEN(EK$7)-1),Lookups!$A:$A,0),1) -> Rating Area 9 | EL6: =INDEX(Lookups!$B:$B,MATCH(LEFT(EL$7,LEN(EL$7)-1),Lookups!$A:$A,0),1) -> Rating Area 9 | EM6: =INDEX(Lookups!$B:$B,MATCH(LEFT(EM$7,LEN(EM$7)-1),Lookups!$A:$A,0),1) -> Rating Area 9 | EN6: =INDEX(Lookups!$B:$B,MATCH(LEFT(EN$7,LEN(EN$7)-1),Lookups!$A:$A,0),1) -> Rating Area 9
B7: Parent Company | C7: Legal Entity | D7: Market | E7: HIOS Plan ID | F7: Plan Marketing Name | G7: Product | H7: Metal | I7: On/Off | J7: Issuers Exhibit Ind | K7: Clarion | L7: Crawford | M7: Erie | N7: Forest | O7: McKean | P7: Mercer | Q7: Venango | R7: Warren | S7: Cameron | T7: Elk | U7: Potter | V7: Bradford | W7: Carbon | X7: Clinton | Y7: Lackawanna | Z7: Luzerne | AA7: Lycoming | AB7: Monroe | AC7: Pike | AD7: Sullivan | AE7: Susquehanna | AF7: Tioga | AG7: Wayne | AH7: Wyoming | AI7: Allegheny | AJ7: Armstrong | AK7: Beaver | AL7: Butler | AM7: Fayette | AN7: Greene | AO7: Indiana | AP7: Lawrence | AQ7: Washington | AR7: Westmoreland | AS7: Bedford | AT7: Blair | AU7: Cambria | AV7: Clearfield | AW7: Huntingdon | AX7: Jefferson | AY7: Somerset | AZ7: Centre | BA7: Columbia | BB7: Lehigh | BC7: Mifflin | BD7: Montour | BE7: Northampton | BF7: Northumberland | BG7: Schuylkill | BH7: Snyder | BI7: Union | BJ7: Adams | BK7: Berks | BL7: Lancaster | BM7: York | BN7: Bucks | BO7: Chester | BP7: Delaware | BQ7: Montgomery | BR7: Philadelphia | BS7: Cumberland | BT7: Dauphin | BU7: Franklin | BV7: Fulton | BW7: Juniata | BX7: Lebanon | BY7: Perry | BZ7: Clarion2 | CA7: Crawford2 | CB7: Erie2 | CC7: Forest2 | CD7: McKean2 | CE7: Mercer2 | CF7: Venango2 | CG7: Warren2 | CH7: Cameron2 | CI7: Elk2 | CJ7: Potter2 | CK7: Bradford2 | CL7: Carbon2 | CM7: Clinton2 | CN7: Lackawanna2 | CO7: Luzerne2 | CP7: Lycoming2 | CQ7: Monroe2 | CR7: Pike2 | CS7: Sullivan2 | CT7: Susquehanna2 | CU7: Tioga2 | CV7: Wayne2 | CW7: Wyoming2 | CX7: Allegheny2 | CY7: Armstrong2 | CZ7: Beaver2 | DA7: Butler2 | DB7: Fayette2 | DC7: Greene2 | DD7: Indiana2 | DE7: Lawrence2 | DF7: Washington2 | DG7: Westmoreland2 | DH7: Bedford2 | DI7: Blair2 | DJ7: Cambria2 | DK7: Clearfield2 | DL7: Huntingdon2 | DM7: Jefferson2 | DN7: Somerset2 | DO7: Centre2 | DP7: Columbia2 | DQ7: Lehigh2 | DR7: Mifflin2 | DS7: Montour2 | DT7: Northampton2 | DU7: Northumberland2 | DV7: Schuylkill2 | DW7: Snyder2 | DX7: Union2 | DY7: Adams2 | DZ7: Berks2 | EA7: Lancaster2 | EB7: York2 | EC7: Bucks2 | ED7: Chester2 | EE7: Delaware2 | EF7: Montgomery2 | EG7: Philadelphia2 | EH7: Cumberland2 | EI7: Dauphin2 | EJ7: Franklin2 | EK7: Fulton2 | EL7: Juniata2 | EM7: Lebanon2 | EN7: Perry2
B8: IBC | C8: QCC | D8: Individual | E8: 31609PA0070002 | F8: Personal Choice PPO Gold | G8: PPO | H8: Gold | I8: On | J8: =IF(PriorIssTable[[#This Row],[Market]]<>Iss_Cnty_Mkt,0,IF(OR(Iss_Cnty_Exch="On/Off",PriorIssTable[[#This Row],[On/Off]]="On/Off"),1,IF(PriorIssTable[[#This Row],[On/Off]]<>Iss_Cnty_Exch,0,1))) -> 1 | K8: =IF(OR(PriorIssTable[[#This Row],[Issuers Exhibit Ind]]=0,'Prior Plans'!J8={0,""},COUNTIFS($C$8:$C8,PriorIssTable[[#This Row],[Legal Entity]],$J$8:$J8,PriorIssTable[[#This Row],[Issuers Exhibit Ind]],$H$8:$H8,PriorIssTable[[#This Row],[Metal]],'Prior Plans'!J$8:J8,">0")>1),0,1) -> 0 | L8: =IF(OR(PriorIssTable[[#This Row],[Issuers Exhibit Ind]]=0,'Prior Plans'!K8={0,""},COUNTIFS($C$8:$C8,PriorIssTable[[#This Row],[Legal Entity]],$J$8:$J8,PriorIssTable[[#This Row],[Issuers Exhibit Ind]],$H$8:$H8,PriorIssTable[[#This Row],[Metal]],'Prior Plans'!K$8:K8,">0")>1),0,1) -> 0 | M8: =IF(OR(PriorIssTable[[#This Row],[Issuers Exhibit Ind]]=0,'Prior Plans'!L8={0,""},COUNTIFS($C$8:$C8,PriorIssTable[[#This Row],[Legal Entity]],$J$8:$J8,PriorIssTable[[#This Row],[Issuers Exhibit Ind]],$H$8:$H8,PriorIssTable[[#This Row],[Metal]],'Prior Plans'!L$8:L8,">0")>1),0,1) -> 0 | N8: =IF(OR(PriorIssTable[[#This Row],[Issuers Exhibit Ind]]=0,'Prior Plans'!M8={0,""},COUNTIFS($C$8:$C8,PriorIssTable[[#This Row],[Legal Entity]],$J$8:$J8,PriorIssTable[[#This Row],[Issuers Exhibit Ind]],$H$8:$H8,PriorIssTable[[#This Row],[Metal]],'Prior Plans'!M$8:M8,">0")>1),0,1) -> 0 | O8: =IF(OR(PriorIssTable[[#This Row],[Issuers Exhibit Ind]]=0,'Prior Plans'!N8={0,""},COUNTIFS($C$8:$C8,PriorIssTable[[#This Row],[Legal Entity]],$J$8:$J8,PriorIssTable[[#This Row],[Issuers Exhibit Ind]],$H$8:$H8,PriorIssTable[[#This Row],[Metal]],'Prior Plans'!N$8:N8,">0")>1),0,1) -> 0 | P8: =IF(OR(PriorIssTable[[#This Row],[Issuers Exhibit Ind]]=0,'Prior Plans'!O8={0,""},COUNTIFS($C$8:$C8,PriorIssTable[[#This Row],[Legal Entity]],$J$8:$J8,PriorIssTable[[#This Row],[Issuers Exhibit Ind]],$H$8:$H8,PriorIssTable[[#This Row],[Metal]],'Prior Plans'!O$8:O8,">0")>1),0,1) -> 0 | Q8: =IF(OR(PriorIssTable[[#This Row],[Issuers Exhibit Ind]]=0,'Prior Plans'!P8={0,""},COUNTIFS($C$8:$C8,PriorIssTable[[#This Row],[Legal Entity]],$J$8:$J8,PriorIssTable[[#This Row],[Issuers Exhibit Ind]],$H$8:$H8,PriorIssTable[[#This Row],[Metal]],'Prior Plans'!P$8:P8,">0")>1),0,1) -> 0 | R8: =IF(OR(PriorIssTable[[#This Row],[Issuers Exhibit Ind]]=0,'Prior Plans'!Q8={0,""},COUNTIFS($C$8:$C8,PriorIssTable[[#This Row],[Legal Entity]],$J$8:$J8,PriorIssTable[[#This Row],[Issuers Exhibit Ind]],$H$8:$H8,PriorIssTable[[#This Row],[Metal]],'Prior Plans'!Q$8:Q8,">0")>1),0,1) -> 0 | S8: =IF(OR(PriorIssTable[[#This Row],[Issuers Exhibit Ind]]=0,'Prior Plans'!R8={0,""},COUNTIFS($C$8:$C8,PriorIssTable[[#This Row],[Legal Entity]],$J$8:$J8,PriorIssTable[[#This Row],[Issuers Exhibit Ind]],$H$8:$H8,PriorIssTable[[#This Row],[Metal]],'Prior Plans'!R$8:R8,">0")>1),0,1) -> 0 | T8: =IF(OR(PriorIssTable[[#This Row],[Issuers Exhibit Ind]]=0,'Prior Plans'!S8={0,""},COUNTIFS($C$8:$C8,PriorIssTable[[#This Row],[Legal Entity]],$J$8:$J8,PriorIssTable[[#This Row],[Issuers Exhibit Ind]],$H$8:$H8,PriorIssTable[[#This Row],[Metal]],'Prior Plans'!S$8:S8,">0")>1),0,1) -> 0 | U8: =IF(OR(PriorIssTable[[#This Row],[Issuers Exhibit Ind]]=0,'Prior Plans'!T8={0,""},COUNTIFS($C$8:$C8,PriorIssTable[[#This Row],[Legal Entity]],$J$8:$J8,PriorIssTable[[#This Row],[Issuers Exhibit Ind]],$H$8:$H8,PriorIssTable[[#This Row],[Metal]],'Prior Plans'!T$8:T8,">0")>1),0,1) -> 0 | V8: =IF(OR(PriorIssTable[[#This Row],[Issuers Exhibit Ind]]=0,'Prior Plans'!U8={0,""},COUNTIFS($C$8:$C8,PriorIssTable[[#This Row],[Legal Entity]],$J$8:$J8,PriorIssTable[[#This Row],[Issuers Exhibit Ind]],$H$8:$H8,PriorIssTable[[#This Row],[Metal]],'Prior Plans'!U$8:U8,">0")>1),0,1) -> 0 | W8: =IF(OR(PriorIssTable[[#This Row],[Issuers Exhibit Ind]]=0,'Prior Plans'!V8={0,""},COUNTIFS($C$8:$C8,PriorIssTable[[#This Row],[Legal Entity]],$J$8:$J8,PriorIssTable[[#This Row],[Issuers Exhibit Ind]],$H$8:$H8,PriorIssTable[[#This Row],[Metal]],'Prior Plans'!V$8:V8,">0")>1),0,1) -> 0 | X8: =IF(OR(PriorIssTable[[#This Row],[Issuers Exhibit Ind]]=0,'Prior Plans'!W8={0,""},COUNTIFS($C$8:$C8,PriorIssTable[[#This Row],[Legal Entity]],$J$8:$J8,PriorIssTable[[#This Row],[Issuers Exhibit Ind]],$H$8:$H8,PriorIssTable[[#This Row],[Metal]],'Prior Plans'!W$8:W8,">0")>1),0,1) -> 0 | Y8: =IF(OR(PriorIssTable[[#This Row],[Issuers Exhibit Ind]]=0,'Prior Plans'!X8={0,""},COUNTIFS($C$8:$C8,PriorIssTable[[#This Row],[Legal Entity]],$J$8:$J8,PriorIssTable[[#This Row],[Issuers Exhibit Ind]],$H$8:$H8,PriorIssTable[[#This Row],[Metal]],'Prior Plans'!X$8:X8,">0")>1),0,1) -> 0 | Z8: =IF(OR(PriorIssTable[[#This Row],[Issuers Exhibit Ind]]=0,'Prior Plans'!Y8={0,""},COUNTIFS($C$8:$C8,PriorIssTable[[#This Row],[Legal Entity]],$J$8:$J8,PriorIssTable[[#This Row],[Issuers Exhibit Ind]],$H$8:$H8,PriorIssTable[[#This Row],[Metal]],'Prior Plans'!Y$8:Y8,">0")>1),0,1) -> 0 | AA8: =IF(OR(PriorIssTable[[#This Row],[Issuers Exhibit Ind]]=0,'Prior Plans'!Z8={0,""},COUNTIFS($C$8:$C8,PriorIssTable[[#This Row],[Legal Entity]],$J$8:$J8,PriorIssTable[[#This Row],[Issuers Exhibit Ind]],$H$8:$H8,PriorIssTable[[#This Row],[Metal]],'Prior Plans'!Z$8:Z8,">0")>1),0,1) -> 0 | AB8: =IF(OR(PriorIssTable[[#This Row],[Issuers Exhibit Ind]]=0,'Prior Plans'!AA8={0,""},COUNTIFS($C$8:$C8,PriorIssTable[[#This Row],[Legal Entity]],$J$8:$J8,PriorIssTable[[#This Row],[Issuers Exhibit Ind]],$H$8:$H8,PriorIssTable[[#This Row],[Metal]],'Prior Plans'!AA$8:AA8,">0")>1),0,1) -> 0 | AC8: =IF(OR(PriorIssTable[[#This Row],[Issuers Exhibit Ind]]=0,'Prior Plans'!AB8={0,""},COUNTIFS($C$8:$C8,PriorIssTable[[#This Row],[Legal Entity]],$J$8:$J8,PriorIssTable[[#This Row],[Issuers Exhibit Ind]],$H$8:$H8,PriorIssTable[[#This Row],[Metal]],'Prior Plans'!AB$8:AB8,">0")>1),0,1) -> 0 | AD8: =IF(OR(PriorIssTable[[#This Row],[Issuers Exhibit Ind]]=0,'Prior Plans'!AC8={0,""},COUNTIFS($C$8:$C8,PriorIssTable[[#This Row],[Legal Entity]],$J$8:$J8,PriorIssTable[[#This Row],[Issuers Exhibit Ind]],$H$8:$H8,PriorIssTable[[#This Row],[Metal]],'Prior Plans'!AC$8:AC8,">0")>1),0,1) -> 0 | AE8: =IF(OR(PriorIssTable[[#This Row],[Issuers Exhibit Ind]]=0,'Prior Plans'!AD8={0,""},COUNTIFS($C$8:$C8,PriorIssTable[[#This Row],[Legal Entity]],$J$8:$J8,PriorIssTable[[#This Row],[Issuers Exhibit Ind]],$H$8:$H8,PriorIssTable[[#This Row],[Metal]],'Prior Plans'!AD$8:AD8,">0")>1),0,1) -> 0 | AF8: =IF(OR(PriorIssTable[[#This Row],[Issuers Exhibit Ind]]=0,'Prior Plans'!AE8={0,""},COUNTIFS($C$8:$C8,PriorIssTable[[#This Row],[Legal Entity]],$J$8:$J8,PriorIssTable[[#This Row],[Issuers Exhibit Ind]],$H$8:$H8,PriorIssTable[[#This Row],[Metal]],'Prior Plans'!AE$8:AE8,">0")>1),0,1) -> 0 | AG8: =IF(OR(PriorIssTable[[#This Row],[Issuers Exhibit Ind]]=0,'Prior Plans'!AF8={0,""},COUNTIFS($C$8:$C8,PriorIssTable[[#This Row],[Legal Entity]],$J$8:$J8,PriorIssTable[[#This Row],[Issuers Exhibit Ind]],$H$8:$H8,PriorIssTable[[#This Row],[Metal]],'Prior Plans'!AF$8:AF8,">0")>1),0,1) -> 0 | AH8: =IF(OR(PriorIssTable[[#This Row],[Issuers Exhibit Ind]]=0,'Prior Plans'!AG8={0,""},COUNTIFS($C$8:$C8,PriorIssTable[[#This Row],[Legal Entity]],$J$8:$J8,PriorIssTable[[#This Row],[Issuers Exhibit Ind]],$H$8:$H8,PriorIssTable[[#This Row],[Metal]],'Prior Plans'!AG$8:AG8,">0")>1),0,1) -> 0 | AI8: =IF(OR(PriorIssTable[[#This Row],[Issuers Exhibit Ind]]=0,'Prior Plans'!AH8={0,""},COUNTIFS($C$8:$C8,PriorIssTable[[#This Row],[Legal Entity]],$J$8:$J8,PriorIssTable[[#This Row],[Issuers Exhibit Ind]],$H$8:$H8,PriorIssTable[[#This Row],[Metal]],'Prior Plans'!AH$8:AH8,">0")>1),0,1) -> 0 | AJ8: =IF(OR(PriorIssTable[[#This Row],[Issuers Exhibit Ind]]=0,'Prior Plans'!AI8={0,""},COUNTIFS($C$8:$C8,PriorIssTable[[#This Row],[Legal Entity]],$J$8:$J8,PriorIssTable[[#This Row],[Issuers Exhibit Ind]],$H$8:$H8,PriorIssTable[[#This Row],[Metal]],'Prior Plans'!AI$8:AI8,">0")>1),0,1) -> 0 | AK8: =IF(OR(PriorIssTable[[#This Row],[Issuers Exhibit Ind]]=0,'Prior Plans'!AJ8={0,""},COUNTIFS($C$8:$C8,PriorIssTable[[#This Row],[Legal Entity]],$J$8:$J8,PriorIssTable[[#This Row],[Issuers Exhibit Ind]],$H$8:$H8,PriorIssTable[[#This Row],[Metal]],'Prior Plans'!AJ$8:AJ8,">0")>1),0,1) -> 0 | AL8: =IF(OR(PriorIssTable[[#This Row],[Issuers Exhibit Ind]]=0,'Prior Plans'!AK8={0,""},COUNTIFS($C$8:$C8,PriorIssTable[[#This Row],[Legal Entity]],$J$8:$J8,PriorIssTable[[#This Row],[Issuers Exhibit Ind]],$H$8:$H8,PriorIssTable[[#This Row],[Metal]],'Prior Plans'!AK$8:AK8,">0")>1),0,1) -> 0 | AM8: =IF(OR(PriorIssTable[[#This Row],[Issuers Exhibit Ind]]=0,'Prior Plans'!AL8={0,""},COUNTIFS($C$8:$C8,PriorIssTable[[#This Row],[Legal Entity]],$J$8:$J8,PriorIssTable[[#This Row],[Issuers Exhibit Ind]],$H$8:$H8,PriorIssTable[[#This Row],[Metal]],'Prior Plans'!AL$8:AL8,">0")>1),0,1) -> 0 | AN8: =IF(OR(PriorIssTable[[#This Row],[Issuers Exhibit Ind]]=0,'Prior Plans'!AM8={0,""},COUNTIFS($C$8:$C8,PriorIssTable[[#This Row],[Legal Entity]],$J$8:$J8,PriorIssTable[[#This Row],[Issuers Exhibit Ind]],$H$8:$H8,PriorIssTable[[#This Row],[Metal]],'Prior Plans'!AM$8:AM8,">0")>1),0,1) -> 0 | AO8: =IF(OR(PriorIssTable[[#This Row],[Issuers Exhibit Ind]]=0,'Prior Plans'!AN8={0,""},COUNTIFS($C$8:$C8,PriorIssTable[[#This Row],[Legal Entity]],$J$8:$J8,PriorIssTable[[#This Row],[Issuers Exhibit Ind]],$H$8:$H8,PriorIssTable[[#This Row],[Metal]],'Prior Plans'!AN$8:AN8,">0")>1),0,1) -> 0 | AP8: =IF(OR(PriorIssTable[[#This Row],[Issuers Exhibit Ind]]=0,'Prior Plans'!AO8={0,""},COUNTIFS($C$8:$C8,PriorIssTable[[#This Row],[Legal Entity]],$J$8:$J8,PriorIssTable[[#This Row],[Issuers Exhibit Ind]],$H$8:$H8,PriorIssTable[[#This Row],[Metal]],'Prior Plans'!AO$8:AO8,">0")>1),0,1) -> 0 | AQ8: =IF(OR(PriorIssTable[[#This Row],[Issuers Exhibit Ind]]=0,'Prior Plans'!AP8={0,""},COUNTIFS($C$8:$C8,PriorIssTable[[#This Row],[Legal Entity]],$J$8:$J8,PriorIssTable[[#This Row],[Issuers Exhibit Ind]],$H$8:$H8,PriorIssTable[[#This Row],[Metal]],'Prior Plans'!AP$8:AP8,">0")>1),0,1) -> 0 | AR8: =IF(OR(PriorIssTable[[#This Row],[Issuers Exhibit Ind]]=0,'Prior Plans'!AQ8={0,""},COUNTIFS($C$8:$C8,PriorIssTable[[#This Row],[Legal Entity]],$J$8:$J8,PriorIssTable[[#This Row],[Issuers Exhibit Ind]],$H$8:$H8,PriorIssTable[[#This Row],[Metal]],'Prior Plans'!AQ$8:AQ8,">0")>1),0,1) -> 0 | AS8: =IF(OR(PriorIssTable[[#This Row],[Issuers Exhibit Ind]]=0,'Prior Plans'!AR8={0,""},COUNTIFS($C$8:$C8,PriorIssTable[[#This Row],[Legal Entity]],$J$8:$J8,PriorIssTable[[#This Row],[Issuers Exhibit Ind]],$H$8:$H8,PriorIssTable[[#This Row],[Metal]],'Prior Plans'!AR$8:AR8,">0")>1),0,1) -> 0 | AT8: =IF(OR(PriorIssTable[[#This Row],[Issuers Exhibit Ind]]=0,'Prior Plans'!AS8={0,""},COUNTIFS($C$8:$C8,PriorIssTable[[#This Row],[Legal Entity]],$J$8:$J8,PriorIssTable[[#This Row],[Issuers Exhibit Ind]],$H$8:$H8,PriorIssTable[[#This Row],[Metal]],'Prior Plans'!AS$8:AS8,">0")>1),0,1) -> 0 | AU8: =IF(OR(PriorIssTable[[#This Row],[Issuers Exhibit Ind]]=0,'Prior Plans'!AT8={0,""},COUNTIFS($C$8:$C8,PriorIssTable[[#This Row],[Legal Entity]],$J$8:$J8,PriorIssTable[[#This Row],[Issuers Exhibit Ind]],$H$8:$H8,PriorIssTable[[#This Row],[Metal]],'Prior Plans'!AT$8:AT8,">0")>1),0,1) -> 0 | AV8: =IF(OR(PriorIssTable[[#This Row],[Issuers Exhibit Ind]]=0,'Prior Plans'!AU8={0,""},COUNTIFS($C$8:$C8,PriorIssTable[[#This Row],[Legal Entity]],$J$8:$J8,PriorIssTable[[#This Row],[Issuers Exhibit Ind]],$H$8:$H8,PriorIssTable[[#This Row],[Metal]],'Prior Plans'!AU$8:AU8,">0")>1),0,1) -> 0 | AW8: =IF(OR(PriorIssTable[[#This Row],[Issuers Exhibit Ind]]=0,'Prior Plans'!AV8={0,""},COUNTIFS($C$8:$C8,PriorIssTable[[#This Row],[Legal Entity]],$J$8:$J8,PriorIssTable[[#This Row],[Issuers Exhibit Ind]],$H$8:$H8,PriorIssTable[[#This Row],[Metal]],'Prior Plans'!AV$8:AV8,">0")>1),0,1) -> 0 | AX8: =IF(OR(PriorIssTable[[#This Row],[Issuers Exhibit Ind]]=0,'Prior Plans'!AW8={0,""},COUNTIFS($C$8:$C8,PriorIssTable[[#This Row],[Legal Entity]],$J$8:$J8,PriorIssTable[[#This Row],[Issuers Exhibit Ind]],$H$8:$H8,PriorIssTable[[#This Row],[Metal]],'Prior Plans'!AW$8:AW8,">0")>1),0,1) -> 0 | AY8: =IF(OR(PriorIssTable[[#This Row],[Issuers Exhibit Ind]]=0,'Prior Plans'!AX8={0,""},COUNTIFS($C$8:$C8,PriorIssTable[[#This Row],[Legal Entity]],$J$8:$J8,PriorIssTable[[#This Row],[Issuers Exhibit Ind]],$H$8:$H8,PriorIssTable[[#This Row],[Metal]],'Prior Plans'!AX$8:AX8,">0")>1),0,1) -> 0 | AZ8: =IF(OR(PriorIssTable[[#This Row],[Issuers Exhibit Ind]]=0,'Prior Plans'!AY8={0,""},COUNTIFS($C$8:$C8,PriorIssTable[[#This Row],[Legal Entity]],$J$8:$J8,PriorIssTable[[#This Row],[Issuers Exhibit Ind]],$H$8:$H8,PriorIssTable[[#This Row],[Metal]],'Prior Plans'!AY$8:AY8,">0")>1),0,1) -> 0 | BA8: =IF(OR(PriorIssTable[[#This Row],[Issuers Exhibit Ind]]=0,'Prior Plans'!AZ8={0,""},COUNTIFS($C$8:$C8,PriorIssTable[[#This Row],[Legal Entity]],$J$8:$J8,PriorIssTable[[#This Row],[Issuers Exhibit Ind]],$H$8:$H8,PriorIssTable[[#This Row],[Metal]],'Prior Plans'!AZ$8:AZ8,">0")>1),0,1) -> 0 | BB8: =IF(OR(PriorIssTable[[#This Row],[Issuers Exhibit Ind]]=0,'Prior Plans'!BA8={0,""},COUNTIFS($C$8:$C8,PriorIssTable[[#This Row],[Legal Entity]],$J$8:$J8,PriorIssTable[[#This Row],[Issuers Exhibit Ind]],$H$8:$H8,PriorIssTable[[#This Row],[Metal]],'Prior Plans'!BA$8:BA8,">0")>1),0,1) -> 0 | BC8: =IF(OR(PriorIssTable[[#This Row],[Issuers Exhibit Ind]]=0,'Prior Plans'!BB8={0,""},COUNTIFS($C$8:$C8,PriorIssTable[[#This Row],[Legal Entity]],$J$8:$J8,PriorIssTable[[#This Row],[Issuers Exhibit Ind]],$H$8:$H8,PriorIssTable[[#This Row],[Metal]],'Prior Plans'!BB$8:BB8,">0")>1),0,1) -> 0 | BD8: =IF(OR(PriorIssTable[[#This Row],[Issuers Exhibit Ind]]=0,'Prior Plans'!BC8={0,""},COUNTIFS($C$8:$C8,PriorIssTable[[#This Row],[Legal Entity]],$J$8:$J8,PriorIssTable[[#This Row],[Issuers Exhibit Ind]],$H$8:$H8,PriorIssTable[[#This Row],[Metal]],'Prior Plans'!BC$8:BC8,">0")>1),0,1) -> 0 | BE8: =IF(OR(PriorIssTable[[#This Row],[Issuers Exhibit Ind]]=0,'Prior Plans'!BD8={0,""},COUNTIFS($C$8:$C8,PriorIssTable[[#This Row],[Legal Entity]],$J$8:$J8,PriorIssTable[[#This Row],[Issuers Exhibit Ind]],$H$8:$H8,PriorIssTable[[#This Row],[Metal]],'Prior Plans'!BD$8:BD8,">0")>1),0,1) -> 0 | BF8: =IF(OR(PriorIssTable[[#This Row],[Issuers Exhibit Ind]]=0,'Prior Plans'!BE8={0,""},COUNTIFS($C$8:$C8,PriorIssTable[[#This Row],[Legal Entity]],$J$8:$J8,PriorIssTable[[#This Row],[Issuers Exhibit Ind]],$H$8:$H8,PriorIssTable[[#This Row],[Metal]],'Prior Plans'!BE$8:BE8,">0")>1),0,1) -> 0 | BG8: =IF(OR(PriorIssTable[[#This Row],[Issuers Exhibit Ind]]=0,'Prior Plans'!BF8={0,""},COUNTIFS($C$8:$C8,PriorIssTable[[#This Row],[Legal Entity]],$J$8:$J8,PriorIssTable[[#This Row],[Issuers Exhibit Ind]],$H$8:$H8,PriorIssTable[[#This Row],[Metal]],'Prior Plans'!BF$8:BF8,">0")>1),0,1) -> 0 | BH8: =IF(OR(PriorIssTable[[#This Row],[Issuers Exhibit Ind]]=0,'Prior Plans'!BG8={0,""},COUNTIFS($C$8:$C8,PriorIssTable[[#This Row],[Legal Entity]],$J$8:$J8,PriorIssTable[[#This Row],[Issuers Exhibit Ind]],$H$8:$H8,PriorIssTable[[#This Row],[Metal]],'Prior Plans'!BG$8:BG8,">0")>1),0,1) -> 0 | BI8: =IF(OR(PriorIssTable[[#This Row],[Issuers Exhibit Ind]]=0,'Prior Plans'!BH8={0,""},COUNTIFS($C$8:$C8,PriorIssTable[[#This Row],[Legal Entity]],$J$8:$J8,PriorIssTable[[#This Row],[Issuers Exhibit Ind]],$H$8:$H8,PriorIssTable[[#This Row],[Metal]],'Prior Plans'!BH$8:BH8,">0")>1),0,1) -> 0 | BJ8: =IF(OR(PriorIssTable[[#This Row],[Issuers Exhibit Ind]]=0,'Prior Plans'!BI8={0,""},COUNTIFS($C$8:$C8,PriorIssTable[[#This Row],[Legal Entity]],$J$8:$J8,PriorIssTable[[#This Row],[Issuers Exhibit Ind]],$H$8:$H8,PriorIssTable[[#This Row],[Metal]],'Prior Plans'!BI$8:BI8,">0")>1),0,1) -> 0 | BK8: =IF(OR(PriorIssTable[[#This Row],[Issuers Exhibit Ind]]=0,'Prior Plans'!BJ8={0,""},COUNTIFS($C$8:$C8,PriorIssTable[[#This Row],[Legal Entity]],$J$8:$J8,PriorIssTable[[#This Row],[Issuers Exhibit Ind]],$H$8:$H8,PriorIssTable[[#This Row],[Metal]],'Prior Plans'!BJ$8:BJ8,">0")>1),0,1) -> 0 | BL8: =IF(OR(PriorIssTable[[#This Row],[Issuers Exhibit Ind]]=0,'Prior Plans'!BK8={0,""},COUNTIFS($C$8:$C8,PriorIssTable[[#This Row],[Legal Entity]],$J$8:$J8,PriorIssTable[[#This Row],[Issuers Exhibit Ind]],$H$8:$H8,PriorIssTable[[#This Row],[Metal]],'Prior Plans'!BK$8:BK8,">0")>1),0,1) -> 0 | BM8: =IF(OR(PriorIssTable[[#This Row],[Issuers Exhibit Ind]]=0,'Prior Plans'!BL8={0,""},COUNTIFS($C$8:$C8,PriorIssTable[[#This Row],[Legal Entity]],$J$8:$J8,PriorIssTable[[#This Row],[Issuers Exhibit Ind]],$H$8:$H8,PriorIssTable[[#This Row],[Metal]],'Prior Plans'!BL$8:BL8,">0")>1),0,1) -> 0 | BN8: =IF(OR(PriorIssTable[[#This Row],[Issuers Exhibit Ind]]=0,'Prior Plans'!BM8={0,""},COUNTIFS($C$8:$C8,PriorIssTable[[#This Row],[Legal Entity]],$J$8:$J8,PriorIssTable[[#This Row],[Issuers Exhibit Ind]],$H$8:$H8,PriorIssTable[[#This Row],[Metal]],'Prior Plans'!BM$8:BM8,">0")>1),0,1) -> 1 | BO8: =IF(OR(PriorIssTable[[#This Row],[Issuers Exhibit Ind]]=0,'Prior Plans'!BN8={0,""},COUNTIFS($C$8:$C8,PriorIssTable[[#This Row],[Legal Entity]],$J$8:$J8,PriorIssTable[[#This Row],[Issuers Exhibit Ind]],$H$8:$H8,PriorIssTable[[#This Row],[Metal]],'Prior Plans'!BN$8:BN8,">0")>1),0,1) -> 1 | BP8: =IF(OR(PriorIssTable[[#This Row],[Issuers Exhibit Ind]]=0,'Prior Plans'!BO8={0,""},COUNTIFS($C$8:$C8,PriorIssTable[[#This Row],[Legal Entity]],$J$8:$J8,PriorIssTable[[#This Row],[Issuers Exhibit Ind]],$H$8:$H8,PriorIssTable[[#This Row],[Metal]],'Prior Plans'!BO$8:BO8,">0")>1),0,1) -> 1 | BQ8: =IF(OR(PriorIssTable[[#This Row],[Issuers Exhibit Ind]]=0,'Prior Plans'!BP8={0,""},COUNTIFS($C$8:$C8,PriorIssTable[[#This Row],[Legal Entity]],$J$8:$J8,PriorIssTable[[#This Row],[Issuers Exhibit Ind]],$H$8:$H8,PriorIssTable[[#This Row],[Metal]],'Prior Plans'!BP$8:BP8,">0")>1),0,1) -> 1 | BR8: =IF(OR(PriorIssTable[[#This Row],[Issuers Exhibit Ind]]=0,'Prior Plans'!BQ8={0,""},COUNTIFS($C$8:$C8,PriorIssTable[[#This Row],[Legal Entity]],$J$8:$J8,PriorIssTable[[#This Row],[Issuers Exhibit Ind]],$H$8:$H8,PriorIssTable[[#This Row],[Metal]],'Prior Plans'!BQ$8:BQ8,">0")>1),0,1) -> 1 | BS8: =IF(OR(PriorIssTable[[#This Row],[Issuers Exhibit Ind]]=0,'Prior Plans'!BR8={0,""},COUNTIFS($C$8:$C8,PriorIssTable[[#This Row],[Legal Entity]],$J$8:$J8,PriorIssTable[[#This Row],[Issuers Exhibit Ind]],$H$8:$H8,PriorIssTable[[#This Row],[Metal]],'Prior Plans'!BR$8:BR8,">0")>1),0,1) -> 0 | BT8: =IF(OR(PriorIssTable[[#This Row],[Issuers Exhibit Ind]]=0,'Prior Plans'!BS8={0,""},COUNTIFS($C$8:$C8,PriorIssTable[[#This Row],[Legal Entity]],$J$8:$J8,PriorIssTable[[#This Row],[Issuers Exhibit Ind]],$H$8:$H8,PriorIssTable[[#This Row],[Metal]],'Prior Plans'!BS$8:BS8,">0")>1),0,1) -> 0 | BU8: =IF(OR(PriorIssTable[[#This Row],[Issuers Exhibit Ind]]=0,'Prior Plans'!BT8={0,""},COUNTIFS($C$8:$C8,PriorIssTable[[#This Row],[Legal Entity]],$J$8:$J8,PriorIssTable[[#This Row],[Issuers Exhibit Ind]],$H$8:$H8,PriorIssTable[[#This Row],[Metal]],'Prior Plans'!BT$8:BT8,">0")>1),0,1) -> 0 | BV8: =IF(OR(PriorIssTable[[#This Row],[Issuers Exhibit Ind]]=0,'Prior Plans'!BU8={0,""},COUNTIFS($C$8:$C8,PriorIssTable[[#This Row],[Legal Entity]],$J$8:$J8,PriorIssTable[[#This Row],[Issuers Exhibit Ind]],$H$8:$H8,PriorIssTable[[#This Row],[Metal]],'Prior Plans'!BU$8:BU8,">0")>1),0,1) -> 0 | BW8: =IF(OR(PriorIssTable[[#This Row],[Issuers Exhibit Ind]]=0,'Prior Plans'!BV8={0,""},COUNTIFS($C$8:$C8,PriorIssTable[[#This Row],[Legal Entity]],$J$8:$J8,PriorIssTable[[#This Row],[Issuers Exhibit Ind]],$H$8:$H8,PriorIssTable[[#This Row],[Metal]],'Prior Plans'!BV$8:BV8,">0")>1),0,1) -> 0 | BX8: =IF(OR(PriorIssTable[[#This Row],[Issuers Exhibit Ind]]=0,'Prior Plans'!BW8={0,""},COUNTIFS($C$8:$C8,PriorIssTable[[#This Row],[Legal Entity]],$J$8:$J8,PriorIssTable[[#This Row],[Issuers Exhibit Ind]],$H$8:$H8,PriorIssTable[[#This Row],[Metal]],'Prior Plans'!BW$8:BW8,">0")>1),0,1) -> 0 | BY8: =IF(OR(PriorIssTable[[#This Row],[Issuers Exhibit Ind]]=0,'Prior Plans'!BX8={0,""},COUNTIFS($C$8:$C8,PriorIssTable[[#This Row],[Legal Entity]],$J$8:$J8,PriorIssTable[[#This Row],[Issuers Exhibit Ind]],$H$8:$H8,PriorIssTable[[#This Row],[Metal]],'Prior Plans'!BX$8:BX8,">0")>1),0,1) -> 0 | BZ8: =IF(OR(PriorIssTable[[#This Row],[Issuers Exhibit Ind]]=0,'Prior Plans'!J8=0,'Prior Plans'!J8="",COUNTIFS($C$8:$C8,PriorIssTable[[#This Row],[Legal Entity]],$J$8:$J8,PriorIssTable[[#This Row],[Issuers Exhibit Ind]],'Prior Plans'!J$8:J8,">0")>1),0,1) -> 0 | CA8: =IF(OR(PriorIssTable[[#This Row],[Issuers Exhibit Ind]]=0,'Prior Plans'!K8=0,'Prior Plans'!K8="",COUNTIFS($C$8:$C8,PriorIssTable[[#This Row],[Legal Entity]],$J$8:$J8,PriorIssTable[[#This Row],[Issuers Exhibit Ind]],'Prior Plans'!K$8:K8,">0")>1),0,1) -> 0 | CB8: =IF(OR(PriorIssTable[[#This Row],[Issuers Exhibit Ind]]=0,'Prior Plans'!L8=0,'Prior Plans'!L8="",COUNTIFS($C$8:$C8,PriorIssTable[[#This Row],[Legal Entity]],$J$8:$J8,PriorIssTable[[#This Row],[Issuers Exhibit Ind]],'Prior Plans'!L$8:L8,">0")>1),0,1) -> 0 | CC8: =IF(OR(PriorIssTable[[#This Row],[Issuers Exhibit Ind]]=0,'Prior Plans'!M8=0,'Prior Plans'!M8="",COUNTIFS($C$8:$C8,PriorIssTable[[#This Row],[Legal Entity]],$J$8:$J8,PriorIssTable[[#This Row],[Issuers Exhibit Ind]],'Prior Plans'!M$8:M8,">0")>1),0,1) -> 0 | CD8: =IF(OR(PriorIssTable[[#This Row],[Issuers Exhibit Ind]]=0,'Prior Plans'!N8=0,'Prior Plans'!N8="",COUNTIFS($C$8:$C8,PriorIssTable[[#This Row],[Legal Entity]],$J$8:$J8,PriorIssTable[[#This Row],[Issuers Exhibit Ind]],'Prior Plans'!N$8:N8,">0")>1),0,1) -> 0 | CE8: =IF(OR(PriorIssTable[[#This Row],[Issuers Exhibit Ind]]=0,'Prior Plans'!O8=0,'Prior Plans'!O8="",COUNTIFS($C$8:$C8,PriorIssTable[[#This Row],[Legal Entity]],$J$8:$J8,PriorIssTable[[#This Row],[Issuers Exhibit Ind]],'Prior Plans'!O$8:O8,">0")>1),0,1) -> 0 | CF8: =IF(OR(PriorIssTable[[#This Row],[Issuers Exhibit Ind]]=0,'Prior Plans'!P8=0,'Prior Plans'!P8="",COUNTIFS($C$8:$C8,PriorIssTable[[#This Row],[Legal Entity]],$J$8:$J8,PriorIssTable[[#This Row],[Issuers Exhibit Ind]],'Prior Plans'!P$8:P8,">0")>1),0,1) -> 0 | CG8: =IF(OR(PriorIssTable[[#This Row],[Issuers Exhibit Ind]]=0,'Prior Plans'!Q8=0,'Prior Plans'!Q8="",COUNTIFS($C$8:$C8,PriorIssTable[[#This Row],[Legal Entity]],$J$8:$J8,PriorIssTable[[#This Row],[Issuers Exhibit Ind]],'Prior Plans'!Q$8:Q8,">0")>1),0,1) -> 0 | CH8: =IF(OR(PriorIssTable[[#This Row],[Issuers Exhibit Ind]]=0,'Prior Plans'!R8=0,'Prior Plans'!R8="",COUNTIFS($C$8:$C8,PriorIssTable[[#This Row],[Legal Entity]],$J$8:$J8,PriorIssTable[[#This Row],[Issuers Exhibit Ind]],'Prior Plans'!R$8:R8,">0")>1),0,1) -> 0 | CI8: =IF(OR(PriorIssTable[[#This Row],[Issuers Exhibit Ind]]=0,'Prior Plans'!S8=0,'Prior Plans'!S8="",COUNTIFS($C$8:$C8,PriorIssTable[[#This Row],[Legal Entity]],$J$8:$J8,PriorIssTable[[#This Row],[Issuers Exhibit Ind]],'Prior Plans'!S$8:S8,">0")>1),0,1) -> 0 | CJ8: =IF(OR(PriorIssTable[[#This Row],[Issuers Exhibit Ind]]=0,'Prior Plans'!T8=0,'Prior Plans'!T8="",COUNTIFS($C$8:$C8,PriorIssTable[[#This Row],[Legal Entity]],$J$8:$J8,PriorIssTable[[#This Row],[Issuers Exhibit Ind]],'Prior Plans'!T$8:T8,">0")>1),0,1) -> 0 | CK8: =IF(OR(PriorIssTable[[#This Row],[Issuers Exhibit Ind]]=0,'Prior Plans'!U8=0,'Prior Plans'!U8="",COUNTIFS($C$8:$C8,PriorIssTable[[#This Row],[Legal Entity]],$J$8:$J8,PriorIssTable[[#This Row],[Issuers Exhibit Ind]],'Prior Plans'!U$8:U8,">0")>1),0,1) -> 0 | CL8: =IF(OR(PriorIssTable[[#This Row],[Issuers Exhibit Ind]]=0,'Prior Plans'!V8=0,'Prior Plans'!V8="",COUNTIFS($C$8:$C8,PriorIssTable[[#This Row],[Legal Entity]],$J$8:$J8,PriorIssTable[[#This Row],[Issuers Exhibit Ind]],'Prior Plans'!V$8:V8,">0")>1),0,1) -> 0 | CM8: =IF(OR(PriorIssTable[[#This Row],[Issuers Exhibit Ind]]=0,'Prior Plans'!W8=0,'Prior Plans'!W8="",COUNTIFS($C$8:$C8,PriorIssTable[[#This Row],[Legal Entity]],$J$8:$J8,PriorIssTable[[#This Row],[Issuers Exhibit Ind]],'Prior Plans'!W$8:W8,">0")>1),0,1) -> 0 | CN8: =IF(OR(PriorIssTable[[#This Row],[Issuers Exhibit Ind]]=0,'Prior Plans'!X8=0,'Prior Plans'!X8="",COUNTIFS($C$8:$C8,PriorIssTable[[#This Row],[Legal Entity]],$J$8:$J8,PriorIssTable[[#This Row],[Issuers Exhibit Ind]],'Prior Plans'!X$8:X8,">0")>1),0,1) -> 0 | CO8: =IF(OR(PriorIssTable[[#This Row],[Issuers Exhibit Ind]]=0,'Prior Plans'!Y8=0,'Prior Plans'!Y8="",COUNTIFS($C$8:$C8,PriorIssTable[[#This Row],[Legal Entity]],$J$8:$J8,PriorIssTable[[#This Row],[Issuers Exhibit Ind]],'Prior Plans'!Y$8:Y8,">0")>1),0,1) -> 0 | CP8: =IF(OR(PriorIssTable[[#This Row],[Issuers Exhibit Ind]]=0,'Prior Plans'!Z8=0,'Prior Plans'!Z8="",COUNTIFS($C$8:$C8,PriorIssTable[[#This Row],[Legal Entity]],$J$8:$J8,PriorIssTable[[#This Row],[Issuers Exhibit Ind]],'Prior Plans'!Z$8:Z8,">0")>1),0,1) -> 0 | CQ8: =IF(OR(PriorIssTable[[#This Row],[Issuers Exhibit Ind]]=0,'Prior Plans'!AA8=0,'Prior Plans'!AA8="",COUNTIFS($C$8:$C8,PriorIssTable[[#This Row],[Legal Entity]],$J$8:$J8,PriorIssTable[[#This Row],[Issuers Exhibit Ind]],'Prior Plans'!AA$8:AA8,">0")>1),0,1) -> 0 | CR8: =IF(OR(PriorIssTable[[#This Row],[Issuers Exhibit Ind]]=0,'Prior Plans'!AB8=0,'Prior Plans'!AB8="",COUNTIFS($C$8:$C8,PriorIssTable[[#This Row],[Legal Entity]],$J$8:$J8,PriorIssTable[[#This Row],[Issuers Exhibit Ind]],'Prior Plans'!AB$8:AB8,">0")>1),0,1) -> 0 | CS8: =IF(OR(PriorIssTable[[#This Row],[Issuers Exhibit Ind]]=0,'Prior Plans'!AC8=0,'Prior Plans'!AC8="",COUNTIFS($C$8:$C8,PriorIssTable[[#This Row],[Legal Entity]],$J$8:$J8,PriorIssTable[[#This Row],[Issuers Exhibit Ind]],'Prior Plans'!AC$8:AC8,">0")>1),0,1) -> 0 | CT8: =IF(OR(PriorIssTable[[#This Row],[Issuers Exhibit Ind]]=0,'Prior Plans'!AD8=0,'Prior Plans'!AD8="",COUNTIFS($C$8:$C8,PriorIssTable[[#This Row],[Legal Entity]],$J$8:$J8,PriorIssTable[[#This Row],[Issuers Exhibit Ind]],'Prior Plans'!AD$8:AD8,">0")>1),0,1) -> 0 | CU8: =IF(OR(PriorIssTable[[#This Row],[Issuers Exhibit Ind]]=0,'Prior Plans'!AE8=0,'Prior Plans'!AE8="",COUNTIFS($C$8:$C8,PriorIssTable[[#This Row],[Legal Entity]],$J$8:$J8,PriorIssTable[[#This Row],[Issuers Exhibit Ind]],'Prior Plans'!AE$8:AE8,">0")>1),0,1) -> 0 | CV8: =IF(OR(PriorIssTable[[#This Row],[Issuers Exhibit Ind]]=0,'Prior Plans'!AF8=0,'Prior Plans'!AF8="",COUNTIFS($C$8:$C8,PriorIssTable[[#This Row],[Legal Entity]],$J$8:$J8,PriorIssTable[[#This Row],[Issuers Exhibit Ind]],'Prior Plans'!AF$8:AF8,">0")>1),0,1) -> 0 | CW8: =IF(OR(PriorIssTable[[#This Row],[Issuers Exhibit Ind]]=0,'Prior Plans'!AG8=0,'Prior Plans'!AG8="",COUNTIFS($C$8:$C8,PriorIssTable[[#This Row],[Legal Entity]],$J$8:$J8,PriorIssTable[[#This Row],[Issuers Exhibit Ind]],'Prior Plans'!AG$8:AG8,">0")>1),0,1) -> 0 | CX8: =IF(OR(PriorIssTable[[#This Row],[Issuers Exhibit Ind]]=0,'Prior Plans'!AH8=0,'Prior Plans'!AH8="",COUNTIFS($C$8:$C8,PriorIssTable[[#This Row],[Legal Entity]],$J$8:$J8,PriorIssTable[[#This Row],[Issuers Exhibit Ind]],'Prior Plans'!AH$8:AH8,">0")>1),0,1) -> 0 | CY8: =IF(OR(PriorIssTable[[#This Row],[Issuers Exhibit Ind]]=0,'Prior Plans'!AI8=0,'Prior Plans'!AI8="",COUNTIFS($C$8:$C8,PriorIssTable[[#This Row],[Legal Entity]],$J$8:$J8,PriorIssTable[[#This Row],[Issuers Exhibit Ind]],'Prior Plans'!AI$8:AI8,">0")>1),0,1) -> 0 | CZ8: =IF(OR(PriorIssTable[[#This Row],[Issuers Exhibit Ind]]=0,'Prior Plans'!AJ8=0,'Prior Plans'!AJ8="",COUNTIFS($C$8:$C8,PriorIssTable[[#This Row],[Legal Entity]],$J$8:$J8,PriorIssTable[[#This Row],[Issuers Exhibit Ind]],'Prior Plans'!AJ$8:AJ8,">0")>1),0,1) -> 0 | DA8: =IF(OR(PriorIssTable[[#This Row],[Issuers Exhibit Ind]]=0,'Prior Plans'!AK8=0,'Prior Plans'!AK8="",COUNTIFS($C$8:$C8,PriorIssTable[[#This Row],[Legal Entity]],$J$8:$J8,PriorIssTable[[#This Row],[Issuers Exhibit Ind]],'Prior Plans'!AK$8:AK8,">0")>1),0,1) -> 0 | DB8: =IF(OR(PriorIssTable[[#This Row],[Issuers Exhibit Ind]]=0,'Prior Plans'!AL8=0,'Prior Plans'!AL8="",COUNTIFS($C$8:$C8,PriorIssTable[[#This Row],[Legal Entity]],$J$8:$J8,PriorIssTable[[#This Row],[Issuers Exhibit Ind]],'Prior Plans'!AL$8:AL8,">0")>1),0,1) -> 0 | DC8: =IF(OR(PriorIssTable[[#This Row],[Issuers Exhibit Ind]]=0,'Prior Plans'!AM8=0,'Prior Plans'!AM8="",COUNTIFS($C$8:$C8,PriorIssTable[[#This Row],[Legal Entity]],$J$8:$J8,PriorIssTable[[#This Row],[Issuers Exhibit Ind]],'Prior Plans'!AM$8:AM8,">0")>1),0,1) -> 0 | DD8: =IF(OR(PriorIssTable[[#This Row],[Issuers Exhibit Ind]]=0,'Prior Plans'!AN8=0,'Prior Plans'!AN8="",COUNTIFS($C$8:$C8,PriorIssTable[[#This Row],[Legal Entity]],$J$8:$J8,PriorIssTable[[#This Row],[Issuers Exhibit Ind]],'Prior Plans'!AN$8:AN8,">0")>1),0,1) -> 0 | DE8: =IF(OR(PriorIssTable[[#This Row],[Issuers Exhibit Ind]]=0,'Prior Plans'!AO8=0,'Prior Plans'!AO8="",COUNTIFS($C$8:$C8,PriorIssTable[[#This Row],[Legal Entity]],$J$8:$J8,PriorIssTable[[#This Row],[Issuers Exhibit Ind]],'Prior Plans'!AO$8:AO8,">0")>1),0,1) -> 0 | DF8: =IF(OR(PriorIssTable[[#This Row],[Issuers Exhibit Ind]]=0,'Prior Plans'!AP8=0,'Prior Plans'!AP8="",COUNTIFS($C$8:$C8,PriorIssTable[[#This Row],[Legal Entity]],$J$8:$J8,PriorIssTable[[#This Row],[Issuers Exhibit Ind]],'Prior Plans'!AP$8:AP8,">0")>1),0,1) -> 0 | DG8: =IF(OR(PriorIssTable[[#This Row],[Issuers Exhibit Ind]]=0,'Prior Plans'!AQ8=0,'Prior Plans'!AQ8="",COUNTIFS($C$8:$C8,PriorIssTable[[#This Row],[Legal Entity]],$J$8:$J8,PriorIssTable[[#This Row],[Issuers Exhibit Ind]],'Prior Plans'!AQ$8:AQ8,">0")>1),0,1) -> 0 | DH8: =IF(OR(PriorIssTable[[#This Row],[Issuers Exhibit Ind]]=0,'Prior Plans'!AR8=0,'Prior Plans'!AR8="",COUNTIFS($C$8:$C8,PriorIssTable[[#This Row],[Legal Entity]],$J$8:$J8,PriorIssTable[[#This Row],[Issuers Exhibit Ind]],'Prior Plans'!AR$8:AR8,">0")>1),0,1) -> 0 | DI8: =IF(OR(PriorIssTable[[#This Row],[Issuers Exhibit Ind]]=0,'Prior Plans'!AS8=0,'Prior Plans'!AS8="",COUNTIFS($C$8:$C8,PriorIssTable[[#This Row],[Legal Entity]],$J$8:$J8,PriorIssTable[[#This Row],[Issuers Exhibit Ind]],'Prior Plans'!AS$8:AS8,">0")>1),0,1) -> 0 | DJ8: =IF(OR(PriorIssTable[[#This Row],[Issuers Exhibit Ind]]=0,'Prior Plans'!AT8=0,'Prior Plans'!AT8="",COUNTIFS($C$8:$C8,PriorIssTable[[#This Row],[Legal Entity]],$J$8:$J8,PriorIssTable[[#This Row],[Issuers Exhibit Ind]],'Prior Plans'!AT$8:AT8,">0")>1),0,1) -> 0 | DK8: =IF(OR(PriorIssTable[[#This Row],[Issuers Exhibit Ind]]=0,'Prior Plans'!AU8=0,'Prior Plans'!AU8="",COUNTIFS($C$8:$C8,PriorIssTable[[#This Row],[Legal Entity]],$J$8:$J8,PriorIssTable[[#This Row],[Issuers Exhibit Ind]],'Prior Plans'!AU$8:AU8,">0")>1),0,1) -> 0 | DL8: =IF(OR(PriorIssTable[[#This Row],[Issuers Exhibit Ind]]=0,'Prior Plans'!AV8=0,'Prior Plans'!AV8="",COUNTIFS($C$8:$C8,PriorIssTable[[#This Row],[Legal Entity]],$J$8:$J8,PriorIssTable[[#This Row],[Issuers Exhibit Ind]],'Prior Plans'!AV$8:AV8,">0")>1),0,1) -> 0 | DM8: =IF(OR(PriorIssTable[[#This Row],[Issuers Exhibit Ind]]=0,'Prior Plans'!AW8=0,'Prior Plans'!AW8="",COUNTIFS($C$8:$C8,PriorIssTable[[#This Row],[Legal Entity]],$J$8:$J8,PriorIssTable[[#This Row],[Issuers Exhibit Ind]],'Prior Plans'!AW$8:AW8,">0")>1),0,1) -> 0 | DN8: =IF(OR(PriorIssTable[[#This Row],[Issuers Exhibit Ind]]=0,'Prior Plans'!AX8=0,'Prior Plans'!AX8="",COUNTIFS($C$8:$C8,PriorIssTable[[#This Row],[Legal Entity]],$J$8:$J8,PriorIssTable[[#This Row],[Issuers Exhibit Ind]],'Prior Plans'!AX$8:AX8,">0")>1),0,1) -> 0 | DO8: =IF(OR(PriorIssTable[[#This Row],[Issuers Exhibit Ind]]=0,'Prior Plans'!AY8=0,'Prior Plans'!AY8="",COUNTIFS($C$8:$C8,PriorIssTable[[#This Row],[Legal Entity]],$J$8:$J8,PriorIssTable[[#This Row],[Issuers Exhibit Ind]],'Prior Plans'!AY$8:AY8,">0")>1),0,1) -> 0 | DP8: =IF(OR(PriorIssTable[[#This Row],[Issuers Exhibit Ind]]=0,'Prior Plans'!AZ8=0,'Prior Plans'!AZ8="",COUNTIFS($C$8:$C8,PriorIssTable[[#This Row],[Legal Entity]],$J$8:$J8,PriorIssTable[[#This Row],[Issuers Exhibit Ind]],'Prior Plans'!AZ$8:AZ8,">0")>1),0,1) -> 0 | DQ8: =IF(OR(PriorIssTable[[#This Row],[Issuers Exhibit Ind]]=0,'Prior Plans'!BA8=0,'Prior Plans'!BA8="",COUNTIFS($C$8:$C8,PriorIssTable[[#This Row],[Legal Entity]],$J$8:$J8,PriorIssTable[[#This Row],[Issuers Exhibit Ind]],'Prior Plans'!BA$8:BA8,">0")>1),0,1) -> 0 | DR8: =IF(OR(PriorIssTable[[#This Row],[Issuers Exhibit Ind]]=0,'Prior Plans'!BB8=0,'Prior Plans'!BB8="",COUNTIFS($C$8:$C8,PriorIssTable[[#This Row],[Legal Entity]],$J$8:$J8,PriorIssTable[[#This Row],[Issuers Exhibit Ind]],'Prior Plans'!BB$8:BB8,">0")>1),0,1) -> 0 | DS8: =IF(OR(PriorIssTable[[#This Row],[Issuers Exhibit Ind]]=0,'Prior Plans'!BC8=0,'Prior Plans'!BC8="",COUNTIFS($C$8:$C8,PriorIssTable[[#This Row],[Legal Entity]],$J$8:$J8,PriorIssTable[[#This Row],[Issuers Exhibit Ind]],'Prior Plans'!BC$8:BC8,">0")>1),0,1) -> 0 | DT8: =IF(OR(PriorIssTable[[#This Row],[Issuers Exhibit Ind]]=0,'Prior Plans'!BD8=0,'Prior Plans'!BD8="",COUNTIFS($C$8:$C8,PriorIssTable[[#This Row],[Legal Entity]],$J$8:$J8,PriorIssTable[[#This Row],[Issuers Exhibit Ind]],'Prior Plans'!BD$8:BD8,">0")>1),0,1) -> 0 | DU8: =IF(OR(PriorIssTable[[#This Row],[Issuers Exhibit Ind]]=0,'Prior Plans'!BE8=0,'Prior Plans'!BE8="",COUNTIFS($C$8:$C8,PriorIssTable[[#This Row],[Legal Entity]],$J$8:$J8,PriorIssTable[[#This Row],[Issuers Exhibit Ind]],'Prior Plans'!BE$8:BE8,">0")>1),0,1) -> 0 | DV8: =IF(OR(PriorIssTable[[#This Row],[Issuers Exhibit Ind]]=0,'Prior Plans'!BF8=0,'Prior Plans'!BF8="",COUNTIFS($C$8:$C8,PriorIssTable[[#This Row],[Legal Entity]],$J$8:$J8,PriorIssTable[[#This Row],[Issuers Exhibit Ind]],'Prior Plans'!BF$8:BF8,">0")>1),0,1) -> 0 | DW8: =IF(OR(PriorIssTable[[#This Row],[Issuers Exhibit Ind]]=0,'Prior Plans'!BG8=0,'Prior Plans'!BG8="",COUNTIFS($C$8:$C8,PriorIssTable[[#This Row],[Legal Entity]],$J$8:$J8,PriorIssTable[[#This Row],[Issuers Exhibit Ind]],'Prior Plans'!BG$8:BG8,">0")>1),0,1) -> 0 | DX8: =IF(OR(PriorIssTable[[#This Row],[Issuers Exhibit Ind]]=0,'Prior Plans'!BH8=0,'Prior Plans'!BH8="",COUNTIFS($C$8:$C8,PriorIssTable[[#This Row],[Legal Entity]],$J$8:$J8,PriorIssTable[[#This Row],[Issuers Exhibit Ind]],'Prior Plans'!BH$8:BH8,">0")>1),0,1) -> 0 | DY8: =IF(OR(PriorIssTable[[#This Row],[Issuers Exhibit Ind]]=0,'Prior Plans'!BI8=0,'Prior Plans'!BI8="",COUNTIFS($C$8:$C8,PriorIssTable[[#This Row],[Legal Entity]],$J$8:$J8,PriorIssTable[[#This Row],[Issuers Exhibit Ind]],'Prior Plans'!BI$8:BI8,">0")>1),0,1) -> 0 | DZ8: =IF(OR(PriorIssTable[[#This Row],[Issuers Exhibit Ind]]=0,'Prior Plans'!BJ8=0,'Prior Plans'!BJ8="",COUNTIFS($C$8:$C8,PriorIssTable[[#This Row],[Legal Entity]],$J$8:$J8,PriorIssTable[[#This Row],[Issuers Exhibit Ind]],'Prior Plans'!BJ$8:BJ8,">0")>1),0,1) -> 0 | EA8: =IF(OR(PriorIssTable[[#This Row],[Issuers Exhibit Ind]]=0,'Prior Plans'!BK8=0,'Prior Plans'!BK8="",COUNTIFS($C$8:$C8,PriorIssTable[[#This Row],[Legal Entity]],$J$8:$J8,PriorIssTable[[#This Row],[Issuers Exhibit Ind]],'Prior Plans'!BK$8:BK8,">0")>1),0,1) -> 0 | EB8: =IF(OR(PriorIssTable[[#This Row],[Issuers Exhibit Ind]]=0,'Prior Plans'!BL8=0,'Prior Plans'!BL8="",COUNTIFS($C$8:$C8,PriorIssTable[[#This Row],[Legal Entity]],$J$8:$J8,PriorIssTable[[#This Row],[Issuers Exhibit Ind]],'Prior Plans'!BL$8:BL8,">0")>1),0,1) -> 0 | EC8: =IF(OR(PriorIssTable[[#This Row],[Issuers Exhibit Ind]]=0,'Prior Plans'!BM8=0,'Prior Plans'!BM8="",COUNTIFS($C$8:$C8,PriorIssTable[[#This Row],[Legal Entity]],$J$8:$J8,PriorIssTable[[#This Row],[Issuers Exhibit Ind]],'Prior Plans'!BM$8:BM8,">0")>1),0,1) -> 1 | ED8: =IF(OR(PriorIssTable[[#This Row],[Issuers Exhibit Ind]]=0,'Prior Plans'!BN8=0,'Prior Plans'!BN8="",COUNTIFS($C$8:$C8,PriorIssTable[[#This Row],[Legal Entity]],$J$8:$J8,PriorIssTable[[#This Row],[Issuers Exhibit Ind]],'Prior Plans'!BN$8:BN8,">0")>1),0,1) -> 1 | EE8: =IF(OR(PriorIssTable[[#This Row],[Issuers Exhibit Ind]]=0,'Prior Plans'!BO8=0,'Prior Plans'!BO8="",COUNTIFS($C$8:$C8,PriorIssTable[[#This Row],[Legal Entity]],$J$8:$J8,PriorIssTable[[#This Row],[Issuers Exhibit Ind]],'Prior Plans'!BO$8:BO8,">0")>1),0,1) -> 1 | EF8: =IF(OR(PriorIssTable[[#This Row],[Issuers Exhibit Ind]]=0,'Prior Plans'!BP8=0,'Prior Plans'!BP8="",COUNTIFS($C$8:$C8,PriorIssTable[[#This Row],[Legal Entity]],$J$8:$J8,PriorIssTable[[#This Row],[Issuers Exhibit Ind]],'Prior Plans'!BP$8:BP8,">0")>1),0,1) -> 1 | EG8: =IF(OR(PriorIssTable[[#This Row],[Issuers Exhibit Ind]]=0,'Prior Plans'!BQ8=0,'Prior Plans'!BQ8="",COUNTIFS($C$8:$C8,PriorIssTable[[#This Row],[Legal Entity]],$J$8:$J8,PriorIssTable[[#This Row],[Issuers Exhibit Ind]],'Prior Plans'!BQ$8:BQ8,">0")>1),0,1) -> 1 | EH8: =IF(OR(PriorIssTable[[#This Row],[Issuers Exhibit Ind]]=0,'Prior Plans'!BR8=0,'Prior Plans'!BR8="",COUNTIFS($C$8:$C8,PriorIssTable[[#This Row],[Legal Entity]],$J$8:$J8,PriorIssTable[[#This Row],[Issuers Exhibit Ind]],'Prior Plans'!BR$8:BR8,">0")>1),0,1) -> 0 | EI8: =IF(OR(PriorIssTable[[#This Row],[Issuers Exhibit Ind]]=0,'Prior Plans'!BS8=0,'Prior Plans'!BS8="",COUNTIFS($C$8:$C8,PriorIssTable[[#This Row],[Legal Entity]],$J$8:$J8,PriorIssTable[[#This Row],[Issuers Exhibit Ind]],'Prior Plans'!BS$8:BS8,">0")>1),0,1) -> 0 | EJ8: =IF(OR(PriorIssTable[[#This Row],[Issuers Exhibit Ind]]=0,'Prior Plans'!BT8=0,'Prior Plans'!BT8="",COUNTIFS($C$8:$C8,PriorIssTable[[#This Row],[Legal Entity]],$J$8:$J8,PriorIssTable[[#This Row],[Issuers Exhibit Ind]],'Prior Plans'!BT$8:BT8,">0")>1),0,1) -> 0 | EK8: =IF(OR(PriorIssTable[[#This Row],[Issuers Exhibit Ind]]=0,'Prior Plans'!BU8=0,'Prior Plans'!BU8="",COUNTIFS($C$8:$C8,PriorIssTable[[#This Row],[Legal Entity]],$J$8:$J8,PriorIssTable[[#This Row],[Issuers Exhibit Ind]],'Prior Plans'!BU$8:BU8,">0")>1),0,1) -> 0 | EL8: =IF(OR(PriorIssTable[[#This Row],[Issuers Exhibit Ind]]=0,'Prior Plans'!BV8=0,'Prior Plans'!BV8="",COUNTIFS($C$8:$C8,PriorIssTable[[#This Row],[Legal Entity]],$J$8:$J8,PriorIssTable[[#This Row],[Issuers Exhibit Ind]],'Prior Plans'!BV$8:BV8,">0")>1),0,1) -> 0 | EM8: =IF(OR(PriorIssTable[[#This Row],[Issuers Exhibit Ind]]=0,'Prior Plans'!BW8=0,'Prior Plans'!BW8="",COUNTIFS($C$8:$C8,PriorIssTable[[#This Row],[Legal Entity]],$J$8:$J8,PriorIssTable[[#This Row],[Issuers Exhibit Ind]],'Prior Plans'!BW$8:BW8,">0")>1),0,1) -> 0 | EN8: =IF(OR(PriorIssTable[[#This Row],[Issuers Exhibit Ind]]=0,'Prior Plans'!BX8=0,'Prior Plans'!BX8="",COUNTIFS($C$8:$C8,PriorIssTable[[#This Row],[Legal Entity]],$J$8:$J8,PriorIssTable[[#This Row],[Issuers Exhibit Ind]],'Prior Plans'!BX$8:BX8,">0")>1),0,1) -> 0
B9: IBC | C9: QCC | D9: Individual | E9: 31609PA0070003 | F9: Personal Choice PPO Silver | G9: PPO | H9: Silver | I9: On | J9: =IF(PriorIssTable[[#This Row],[Market]]<>Iss_Cnty_Mkt,0,IF(OR(Iss_Cnty_Exch="On/Off",PriorIssTable[[#This Row],[On/Off]]="On/Off"),1,IF(PriorIssTable[[#This Row],[On/Off]]<>Iss_Cnty_Exch,0,1))) -> 1 | K9: =IF(OR(PriorIssTable[[#This Row],[Issuers Exhibit Ind]]=0,'Prior Plans'!J9={0,""},COUNTIFS($C$8:$C9,PriorIssTable[[#This Row],[Legal Entity]],$J$8:$J9,PriorIssTable[[#This Row],[Issuers Exhibit Ind]],$H$8:$H9,PriorIssTable[[#This Row],[Metal]],'Prior Plans'!J$8:J9,">0")>1),0,1) -> 0 | L9: =IF(OR(PriorIssTable[[#This Row],[Issuers Exhibit Ind]]=0,'Prior Plans'!K9={0,""},COUNTIFS($C$8:$C9,PriorIssTable[[#This Row],[Legal Entity]],$J$8:$J9,PriorIssTable[[#This Row],[Issuers Exhibit Ind]],$H$8:$H9,PriorIssTable[[#This Row],[Metal]],'Prior Plans'!K$8:K9,">0")>1),0,1) -> 0 | M9: =IF(OR(PriorIssTable[[#This Row],[Issuers Exhibit Ind]]=0,'Prior Plans'!L9={0,""},COUNTIFS($C$8:$C9,PriorIssTable[[#This Row],[Legal Entity]],$J$8:$J9,PriorIssTable[[#This Row],[Issuers Exhibit Ind]],$H$8:$H9,PriorIssTable[[#This Row],[Metal]],'Prior Plans'!L$8:L9,">0")>1),0,1) -> 0 | N9: =IF(OR(PriorIssTable[[#This Row],[Issuers Exhibit Ind]]=0,'Prior Plans'!M9={0,""},COUNTIFS($C$8:$C9,PriorIssTable[[#This Row],[Legal Entity]],$J$8:$J9,PriorIssTable[[#This Row],[Issuers Exhibit Ind]],$H$8:$H9,PriorIssTable[[#This Row],[Metal]],'Prior Plans'!M$8:M9,">0")>1),0,1) -> 0 | O9: =IF(OR(PriorIssTable[[#This Row],[Issuers Exhibit Ind]]=0,'Prior Plans'!N9={0,""},COUNTIFS($C$8:$C9,PriorIssTable[[#This Row],[Legal Entity]],$J$8:$J9,PriorIssTable[[#This Row],[Issuers Exhibit Ind]],$H$8:$H9,PriorIssTable[[#This Row],[Metal]],'Prior Plans'!N$8:N9,">0")>1),0,1) -> 0 | P9: =IF(OR(PriorIssTable[[#This Row],[Issuers Exhibit Ind]]=0,'Prior Plans'!O9={0,""},COUNTIFS($C$8:$C9,PriorIssTable[[#This Row],[Legal Entity]],$J$8:$J9,PriorIssTable[[#This Row],[Issuers Exhibit Ind]],$H$8:$H9,PriorIssTable[[#This Row],[Metal]],'Prior Plans'!O$8:O9,">0")>1),0,1) -> 0 | Q9: =IF(OR(PriorIssTable[[#This Row],[Issuers Exhibit Ind]]=0,'Prior Plans'!P9={0,""},COUNTIFS($C$8:$C9,PriorIssTable[[#This Row],[Legal Entity]],$J$8:$J9,PriorIssTable[[#This Row],[Issuers Exhibit Ind]],$H$8:$H9,PriorIssTable[[#This Row],[Metal]],'Prior Plans'!P$8:P9,">0")>1),0,1) -> 0 | R9: =IF(OR(PriorIssTable[[#This Row],[Issuers Exhibit Ind]]=0,'Prior Plans'!Q9={0,""},COUNTIFS($C$8:$C9,PriorIssTable[[#This Row],[Legal Entity]],$J$8:$J9,PriorIssTable[[#This Row],[Issuers Exhibit Ind]],$H$8:$H9,PriorIssTable[[#This Row],[Metal]],'Prior Plans'!Q$8:Q9,">0")>1),0,1) -> 0 | S9: =IF(OR(PriorIssTable[[#This Row],[Issuers Exhibit Ind]]=0,'Prior Plans'!R9={0,""},COUNTIFS($C$8:$C9,PriorIssTable[[#This Row],[Legal Entity]],$J$8:$J9,PriorIssTable[[#This Row],[Issuers Exhibit Ind]],$H$8:$H9,PriorIssTable[[#This Row],[Metal]],'Prior Plans'!R$8:R9,">0")>1),0,1) -> 0 | T9: =IF(OR(PriorIssTable[[#This Row],[Issuers Exhibit Ind]]=0,'Prior Plans'!S9={0,""},COUNTIFS($C$8:$C9,PriorIssTable[[#This Row],[Legal Entity]],$J$8:$J9,PriorIssTable[[#This Row],[Issuers Exhibit Ind]],$H$8:$H9,PriorIssTable[[#This Row],[Metal]],'Prior Plans'!S$8:S9,">0")>1),0,1) -> 0 | U9: =IF(OR(PriorIssTable[[#This Row],[Issuers Exhibit Ind]]=0,'Prior Plans'!T9={0,""},COUNTIFS($C$8:$C9,PriorIssTable[[#This Row],[Legal Entity]],$J$8:$J9,PriorIssTable[[#This Row],[Issuers Exhibit Ind]],$H$8:$H9,PriorIssTable[[#This Row],[Metal]],'Prior Plans'!T$8:T9,">0")>1),0,1) -> 0 | V9: =IF(OR(PriorIssTable[[#This Row],[Issuers Exhibit Ind]]=0,'Prior Plans'!U9={0,""},COUNTIFS($C$8:$C9,PriorIssTable[[#This Row],[Legal Entity]],$J$8:$J9,PriorIssTable[[#This Row],[Issuers Exhibit Ind]],$H$8:$H9,PriorIssTable[[#This Row],[Metal]],'Prior Plans'!U$8:U9,">0")>1),0,1) -> 0 | W9: =IF(OR(PriorIssTable[[#This Row],[Issuers Exhibit Ind]]=0,'Prior Plans'!V9={0,""},COUNTIFS($C$8:$C9,PriorIssTable[[#This Row],[Legal Entity]],$J$8:$J9,PriorIssTable[[#This Row],[Issuers Exhibit Ind]],$H$8:$H9,PriorIssTable[[#This Row],[Metal]],'Prior Plans'!V$8:V9,">0")>1),0,1) -> 0 | X9: =IF(OR(PriorIssTable[[#This Row],[Issuers Exhibit Ind]]=0,'Prior Plans'!W9={0,""},COUNTIFS($C$8:$C9,PriorIssTable[[#This Row],[Legal Entity]],$J$8:$J9,PriorIssTable[[#This Row],[Issuers Exhibit Ind]],$H$8:$H9,PriorIssTable[[#This Row],[Metal]],'Prior Plans'!W$8:W9,">0")>1),0,1) -> 0 | Y9: =IF(OR(PriorIssTable[[#This Row],[Issuers Exhibit Ind]]=0,'Prior Plans'!X9={0,""},COUNTIFS($C$8:$C9,PriorIssTable[[#This Row],[Legal Entity]],$J$8:$J9,PriorIssTable[[#This Row],[Issuers Exhibit Ind]],$H$8:$H9,PriorIssTable[[#This Row],[Metal]],'Prior Plans'!X$8:X9,">0")>1),0,1) -> 0 | Z9: =IF(OR(PriorIssTable[[#This Row],[Issuers Exhibit Ind]]=0,'Prior Plans'!Y9={0,""},COUNTIFS($C$8:$C9,PriorIssTable[[#This Row],[Legal Entity]],$J$8:$J9,PriorIssTable[[#This Row],[Issuers Exhibit Ind]],$H$8:$H9,PriorIssTable[[#This Row],[Metal]],'Prior Plans'!Y$8:Y9,">0")>1),0,1) -> 0 | AA9: =IF(OR(PriorIssTable[[#This Row],[Issuers Exhibit Ind]]=0,'Prior Plans'!Z9={0,""},COUNTIFS($C$8:$C9,PriorIssTable[[#This Row],[Legal Entity]],$J$8:$J9,PriorIssTable[[#This Row],[Issuers Exhibit Ind]],$H$8:$H9,PriorIssTable[[#This Row],[Metal]],'Prior Plans'!Z$8:Z9,">0")>1),0,1) -> 0 | AB9: =IF(OR(PriorIssTable[[#This Row],[Issuers Exhibit Ind]]=0,'Prior Plans'!AA9={0,""},COUNTIFS($C$8:$C9,PriorIssTable[[#This Row],[Legal Entity]],$J$8:$J9,PriorIssTable[[#This Row],[Issuers Exhibit Ind]],$H$8:$H9,PriorIssTable[[#This Row],[Metal]],'Prior Plans'!AA$8:AA9,">0")>1),0,1) -> 0 | AC9: =IF(OR(PriorIssTable[[#This Row],[Issuers Exhibit Ind]]=0,'Prior Plans'!AB9={0,""},COUNTIFS($C$8:$C9,PriorIssTable[[#This Row],[Legal Entity]],$J$8:$J9,PriorIssTable[[#This Row],[Issuers Exhibit Ind]],$H$8:$H9,PriorIssTable[[#This Row],[Metal]],'Prior Plans'!AB$8:AB9,">0")>1),0,1) -> 0 | AD9: =IF(OR(PriorIssTable[[#This Row],[Issuers Exhibit Ind]]=0,'Prior Plans'!AC9={0,""},COUNTIFS($C$8:$C9,PriorIssTable[[#This Row],[Legal Entity]],$J$8:$J9,PriorIssTable[[#This Row],[Issuers Exhibit Ind]],$H$8:$H9,PriorIssTable[[#This Row],[Metal]],'Prior Plans'!AC$8:AC9,">0")>1),0,1) -> 0 | AE9: =IF(OR(PriorIssTable[[#This Row],[Issuers Exhibit Ind]]=0,'Prior Plans'!AD9={0,""},COUNTIFS($C$8:$C9,PriorIssTable[[#This Row],[Legal Entity]],$J$8:$J9,PriorIssTable[[#This Row],[Issuers Exhibit Ind]],$H$8:$H9,PriorIssTable[[#This Row],[Metal]],'Prior Plans'!AD$8:AD9,">0")>1),0,1) -> 0 | AF9: =IF(OR(PriorIssTable[[#This Row],[Issuers Exhibit Ind]]=0,'Prior Plans'!AE9={0,""},COUNTIFS($C$8:$C9,PriorIssTable[[#This Row],[Legal Entity]],$J$8:$J9,PriorIssTable[[#This Row],[Issuers Exhibit Ind]],$H$8:$H9,PriorIssTable[[#This Row],[Metal]],'Prior Plans'!AE$8:AE9,">0")>1),0,1) -> 0 | AG9: =IF(OR(PriorIssTable[[#This Row],[Issuers Exhibit Ind]]=0,'Prior Plans'!AF9={0,""},COUNTIFS($C$8:$C9,PriorIssTable[[#This Row],[Legal Entity]],$J$8:$J9,PriorIssTable[[#This Row],[Issuers Exhibit Ind]],$H$8:$H9,PriorIssTable[[#This Row],[Metal]],'Prior Plans'!AF$8:AF9,">0")>1),0,1) -> 0 | AH9: =IF(OR(PriorIssTable[[#This Row],[Issuers Exhibit Ind]]=0,'Prior Plans'!AG9={0,""},COUNTIFS($C$8:$C9,PriorIssTable[[#This Row],[Legal Entity]],$J$8:$J9,PriorIssTable[[#This Row],[Issuers Exhibit Ind]],$H$8:$H9,PriorIssTable[[#This Row],[Metal]],'Prior Plans'!AG$8:AG9,">0")>1),0,1) -> 0 | AI9: =IF(OR(PriorIssTable[[#This Row],[Issuers Exhibit Ind]]=0,'Prior Plans'!AH9={0,""},COUNTIFS($C$8:$C9,PriorIssTable[[#This Row],[Legal Entity]],$J$8:$J9,PriorIssTable[[#This Row],[Issuers Exhibit Ind]],$H$8:$H9,PriorIssTable[[#This Row],[Metal]],'Prior Plans'!AH$8:AH9,">0")>1),0,1) -> 0 | AJ9: =IF(OR(PriorIssTable[[#This Row],[Issuers Exhibit Ind]]=0,'Prior Plans'!AI9={0,""},COUNTIFS($C$8:$C9,PriorIssTable[[#This Row],[Legal Entity]],$J$8:$J9,PriorIssTable[[#This Row],[Issuers Exhibit Ind]],$H$8:$H9,PriorIssTable[[#This Row],[Metal]],'Prior Plans'!AI$8:AI9,">0")>1),0,1) -> 0 | AK9: =IF(OR(PriorIssTable[[#This Row],[Issuers Exhibit Ind]]=0,'Prior Plans'!AJ9={0,""},COUNTIFS($C$8:$C9,PriorIssTable[[#This Row],[Legal Entity]],$J$8:$J9,PriorIssTable[[#This Row],[Issuers Exhibit Ind]],$H$8:$H9,PriorIssTable[[#This Row],[Metal]],'Prior Plans'!AJ$8:AJ9,">0")>1),0,1) -> 0 | AL9: =IF(OR(PriorIssTable[[#This Row],[Issuers Exhibit Ind]]=0,'Prior Plans'!AK9={0,""},COUNTIFS($C$8:$C9,PriorIssTable[[#This Row],[Legal Entity]],$J$8:$J9,PriorIssTable[[#This Row],[Issuers Exhibit Ind]],$H$8:$H9,PriorIssTable[[#This Row],[Metal]],'Prior Plans'!AK$8:AK9,">0")>1),0,1) -> 0 | AM9: =IF(OR(PriorIssTable[[#This Row],[Issuers Exhibit Ind]]=0,'Prior Plans'!AL9={0,""},COUNTIFS($C$8:$C9,PriorIssTable[[#This Row],[Legal Entity]],$J$8:$J9,PriorIssTable[[#This Row],[Issuers Exhibit Ind]],$H$8:$H9,PriorIssTable[[#This Row],[Metal]],'Prior Plans'!AL$8:AL9,">0")>1),0,1) -> 0 | AN9: =IF(OR(PriorIssTable[[#This Row],[Issuers Exhibit Ind]]=0,'Prior Plans'!AM9={0,""},COUNTIFS($C$8:$C9,PriorIssTable[[#This Row],[Legal Entity]],$J$8:$J9,PriorIssTable[[#This Row],[Issuers Exhibit Ind]],$H$8:$H9,PriorIssTable[[#This Row],[Metal]],'Prior Plans'!AM$8:AM9,">0")>1),0,1) -> 0 | AO9: =IF(OR(PriorIssTable[[#This Row],[Issuers Exhibit Ind]]=0,'Prior Plans'!AN9={0,""},COUNTIFS($C$8:$C9,PriorIssTable[[#This Row],[Legal Entity]],$J$8:$J9,PriorIssTable[[#This Row],[Issuers Exhibit Ind]],$H$8:$H9,PriorIssTable[[#This Row],[Metal]],'Prior Plans'!AN$8:AN9,">0")>1),0,1) -> 0 | AP9: =IF(OR(PriorIssTable[[#This Row],[Issuers Exhibit Ind]]=0,'Prior Plans'!AO9={0,""},COUNTIFS($C$8:$C9,PriorIssTable[[#This Row],[Legal Entity]],$J$8:$J9,PriorIssTable[[#This Row],[Issuers Exhibit Ind]],$H$8:$H9,PriorIssTable[[#This Row],[Metal]],'Prior Plans'!AO$8:AO9,">0")>1),0,1) -> 0 | AQ9: =IF(OR(PriorIssTable[[#This Row],[Issuers Exhibit Ind]]=0,'Prior Plans'!AP9={0,""},COUNTIFS($C$8:$C9,PriorIssTable[[#This Row],[Legal Entity]],$J$8:$J9,PriorIssTable[[#This Row],[Issuers Exhibit Ind]],$H$8:$H9,PriorIssTable[[#This Row],[Metal]],'Prior Plans'!AP$8:AP9,">0")>1),0,1) -> 0 | AR9: =IF(OR(PriorIssTable[[#This Row],[Issuers Exhibit Ind]]=0,'Prior Plans'!AQ9={0,""},COUNTIFS($C$8:$C9,PriorIssTable[[#This Row],[Legal Entity]],$J$8:$J9,PriorIssTable[[#This Row],[Issuers Exhibit Ind]],$H$8:$H9,PriorIssTable[[#This Row],[Metal]],'Prior Plans'!AQ$8:AQ9,">0")>1),0,1) -> 0 | AS9: =IF(OR(PriorIssTable[[#This Row],[Issuers Exhibit Ind]]=0,'Prior Plans'!AR9={0,""},COUNTIFS($C$8:$C9,PriorIssTable[[#This Row],[Legal Entity]],$J$8:$J9,PriorIssTable[[#This Row],[Issuers Exhibit Ind]],$H$8:$H9,PriorIssTable[[#This Row],[Metal]],'Prior Plans'!AR$8:AR9,">0")>1),0,1) -> 0 | AT9: =IF(OR(PriorIssTable[[#This Row],[Issuers Exhibit Ind]]=0,'Prior Plans'!AS9={0,""},COUNTIFS($C$8:$C9,PriorIssTable[[#This Row],[Legal Entity]],$J$8:$J9,PriorIssTable[[#This Row],[Issuers Exhibit Ind]],$H$8:$H9,PriorIssTable[[#This Row],[Metal]],'Prior Plans'!AS$8:AS9,">0")>1),0,1) -> 0 | AU9: =IF(OR(PriorIssTable[[#This Row],[Issuers Exhibit Ind]]=0,'Prior Plans'!AT9={0,""},COUNTIFS($C$8:$C9,PriorIssTable[[#This Row],[Legal Entity]],$J$8:$J9,PriorIssTable[[#This Row],[Issuers Exhibit Ind]],$H$8:$H9,PriorIssTable[[#This Row],[Metal]],'Prior Plans'!AT$8:AT9,">0")>1),0,1) -> 0 | AV9: =IF(OR(PriorIssTable[[#This Row],[Issuers Exhibit Ind]]=0,'Prior Plans'!AU9={0,""},COUNTIFS($C$8:$C9,PriorIssTable[[#This Row],[Legal Entity]],$J$8:$J9,PriorIssTable[[#This Row],[Issuers Exhibit Ind]],$H$8:$H9,PriorIssTable[[#This Row],[Metal]],'Prior Plans'!AU$8:AU9,">0")>1),0,1) -> 0 | AW9: =IF(OR(PriorIssTable[[#This Row],[Issuers Exhibit Ind]]=0,'Prior Plans'!AV9={0,""},COUNTIFS($C$8:$C9,PriorIssTable[[#This Row],[Legal Entity]],$J$8:$J9,PriorIssTable[[#This Row],[Issuers Exhibit Ind]],$H$8:$H9,PriorIssTable[[#This Row],[Metal]],'Prior Plans'!AV$8:AV9,">0")>1),0,1) -> 0 | AX9: =IF(OR(PriorIssTable[[#This Row],[Issuers Exhibit Ind]]=0,'Prior Plans'!AW9={0,""},COUNTIFS($C$8:$C9,PriorIssTable[[#This Row],[Legal Entity]],$J$8:$J9,PriorIssTable[[#This Row],[Issuers Exhibit Ind]],$H$8:$H9,PriorIssTable[[#This Row],[Metal]],'Prior Plans'!AW$8:AW9,">0")>1),0,1) -> 0 | AY9: =IF(OR(PriorIssTable[[#This Row],[Issuers Exhibit Ind]]=0,'Prior Plans'!AX9={0,""},COUNTIFS($C$8:$C9,PriorIssTable[[#This Row],[Legal Entity]],$J$8:$J9,PriorIssTable[[#This Row],[Issuers Exhibit Ind]],$H$8:$H9,PriorIssTable[[#This Row],[Metal]],'Prior Plans'!AX$8:AX9,">0")>1),0,1) -> 0 | AZ9: =IF(OR(PriorIssTable[[#This Row],[Issuers Exhibit Ind]]=0,'Prior Plans'!AY9={0,""},COUNTIFS($C$8:$C9,PriorIssTable[[#This Row],[Legal Entity]],$J$8:$J9,PriorIssTable[[#This Row],[Issuers Exhibit Ind]],$H$8:$H9,PriorIssTable[[#This Row],[Metal]],'Prior Plans'!AY$8:AY9,">0")>1),0,1) -> 0 | BA9: =IF(OR(PriorIssTable[[#This Row],[Issuers Exhibit Ind]]=0,'Prior Plans'!AZ9={0,""},COUNTIFS($C$8:$C9,PriorIssTable[[#This Row],[Legal Entity]],$J$8:$J9,PriorIssTable[[#This Row],[Issuers Exhibit Ind]],$H$8:$H9,PriorIssTable[[#This Row],[Metal]],'Prior Plans'!AZ$8:AZ9,">0")>1),0,1) -> 0 | BB9: =IF(OR(PriorIssTable[[#This Row],[Issuers Exhibit Ind]]=0,'Prior Plans'!BA9={0,""},COUNTIFS($C$8:$C9,PriorIssTable[[#This Row],[Legal Entity]],$J$8:$J9,PriorIssTable[[#This Row],[Issuers Exhibit Ind]],$H$8:$H9,PriorIssTable[[#This Row],[Metal]],'Prior Plans'!BA$8:BA9,">0")>1),0,1) -> 0 | BC9: =IF(OR(PriorIssTable[[#This Row],[Issuers Exhibit Ind]]=0,'Prior Plans'!BB9={0,""},COUNTIFS($C$8:$C9,PriorIssTable[[#This Row],[Legal Entity]],$J$8:$J9,PriorIssTable[[#This Row],[Issuers Exhibit Ind]],$H$8:$H9,PriorIssTable[[#This Row],[Metal]],'Prior Plans'!BB$8:BB9,">0")>1),0,1) -> 0 | BD9: =IF(OR(PriorIssTable[[#This Row],[Issuers Exhibit Ind]]=0,'Prior Plans'!BC9={0,""},COUNTIFS($C$8:$C9,PriorIssTable[[#This Row],[Legal Entity]],$J$8:$J9,PriorIssTable[[#This Row],[Issuers Exhibit Ind]],$H$8:$H9,PriorIssTable[[#This Row],[Metal]],'Prior Plans'!BC$8:BC9,">0")>1),0,1) -> 0 | BE9: =IF(OR(PriorIssTable[[#This Row],[Issuers Exhibit Ind]]=0,'Prior Plans'!BD9={0,""},COUNTIFS($C$8:$C9,PriorIssTable[[#This Row],[Legal Entity]],$J$8:$J9,PriorIssTable[[#This Row],[Issuers Exhibit Ind]],$H$8:$H9,PriorIssTable[[#This Row],[Metal]],'Prior Plans'!BD$8:BD9,">0")>1),0,1) -> 0 | BF9: =IF(OR(PriorIssTable[[#This Row],[Issuers Exhibit Ind]]=0,'Prior Plans'!BE9={0,""},COUNTIFS($C$8:$C9,PriorIssTable[[#This Row],[Legal Entity]],$J$8:$J9,PriorIssTable[[#This Row],[Issuers Exhibit Ind]],$H$8:$H9,PriorIssTable[[#This Row],[Metal]],'Prior Plans'!BE$8:BE9,">0")>1),0,1) -> 0 | BG9: =IF(OR(PriorIssTable[[#This Row],[Issuers Exhibit Ind]]=0,'Prior Plans'!BF9={0,""},COUNTIFS($C$8:$C9,PriorIssTable[[#This Row],[Legal Entity]],$J$8:$J9,PriorIssTable[[#This Row],[Issuers Exhibit Ind]],$H$8:$H9,PriorIssTable[[#This Row],[Metal]],'Prior Plans'!BF$8:BF9,">0")>1),0,1) -> 0 | BH9: =IF(OR(PriorIssTable[[#This Row],[Issuers Exhibit Ind]]=0,'Prior Plans'!BG9={0,""},COUNTIFS($C$8:$C9,PriorIssTable[[#This Row],[Legal Entity]],$J$8:$J9,PriorIssTable[[#This Row],[Issuers Exhibit Ind]],$H$8:$H9,PriorIssTable[[#This Row],[Metal]],'Prior Plans'!BG$8:BG9,">0")>1),0,1) -> 0 | BI9: =IF(OR(PriorIssTable[[#This Row],[Issuers Exhibit Ind]]=0,'Prior Plans'!BH9={0,""},COUNTIFS($C$8:$C9,PriorIssTable[[#This Row],[Legal Entity]],$J$8:$J9,PriorIssTable[[#This Row],[Issuers Exhibit Ind]],$H$8:$H9,PriorIssTable[[#This Row],[Metal]],'Prior Plans'!BH$8:BH9,">0")>1),0,1) -> 0 | BJ9: =IF(OR(PriorIssTable[[#This Row],[Issuers Exhibit Ind]]=0,'Prior Plans'!BI9={0,""},COUNTIFS($C$8:$C9,PriorIssTable[[#This Row],[Legal Entity]],$J$8:$J9,PriorIssTable[[#This Row],[Issuers Exhibit Ind]],$H$8:$H9,PriorIssTable[[#This Row],[Metal]],'Prior Plans'!BI$8:BI9,">0")>1),0,1) -> 0 | BK9: =IF(OR(PriorIssTable[[#This Row],[Issuers Exhibit Ind]]=0,'Prior Plans'!BJ9={0,""},COUNTIFS($C$8:$C9,PriorIssTable[[#This Row],[Legal Entity]],$J$8:$J9,PriorIssTable[[#This Row],[Issuers Exhibit Ind]],$H$8:$H9,PriorIssTable[[#This Row],[Metal]],'Prior Plans'!BJ$8:BJ9,">0")>1),0,1) -> 0 | BL9: =IF(OR(PriorIssTable[[#This Row],[Issuers Exhibit Ind]]=0,'Prior Plans'!BK9={0,""},COUNTIFS($C$8:$C9,PriorIssTable[[#This Row],[Legal Entity]],$J$8:$J9,PriorIssTable[[#This Row],[Issuers Exhibit Ind]],$H$8:$H9,PriorIssTable[[#This Row],[Metal]],'Prior Plans'!BK$8:BK9,">0")>1),0,1) -> 0 | BM9: =IF(OR(PriorIssTable[[#This Row],[Issuers Exhibit Ind]]=0,'Prior Plans'!BL9={0,""},COUNTIFS($C$8:$C9,PriorIssTable[[#This Row],[Legal Entity]],$J$8:$J9,PriorIssTable[[#This Row],[Issuers Exhibit Ind]],$H$8:$H9,PriorIssTable[[#This Row],[Metal]],'Prior Plans'!BL$8:BL9,">0")>1),0,1) -> 0 | BN9: =IF(OR(PriorIssTable[[#This Row],[Issuers Exhibit Ind]]=0,'Prior Plans'!BM9={0,""},COUNTIFS($C$8:$C9,PriorIssTable[[#This Row],[Legal Entity]],$J$8:$J9,PriorIssTable[[#This Row],[Issuers Exhibit Ind]],$H$8:$H9,PriorIssTable[[#This Row],[Metal]],'Prior Plans'!BM$8:BM9,">0")>1),0,1) -> 1 | BO9: =IF(OR(PriorIssTable[[#This Row],[Issuers Exhibit Ind]]=0,'Prior Plans'!BN9={0,""},COUNTIFS($C$8:$C9,PriorIssTable[[#This Row],[Legal Entity]],$J$8:$J9,PriorIssTable[[#This Row],[Issuers Exhibit Ind]],$H$8:$H9,PriorIssTable[[#This Row],[Metal]],'Prior Plans'!BN$8:BN9,">0")>1),0,1) -> 1 | BP9: =IF(OR(PriorIssTable[[#This Row],[Issuers Exhibit Ind]]=0,'Prior Plans'!BO9={0,""},COUNTIFS($C$8:$C9,PriorIssTable[[#This Row],[Legal Entity]],$J$8:$J9,PriorIssTable[[#This Row],[Issuers Exhibit Ind]],$H$8:$H9,PriorIssTable[[#This Row],[Metal]],'Prior Plans'!BO$8:BO9,">0")>1),0,1) -> 1 | BQ9: =IF(OR(PriorIssTable[[#This Row],[Issuers Exhibit Ind]]=0,'Prior Plans'!BP9={0,""},COUNTIFS($C$8:$C9,PriorIssTable[[#This Row],[Legal Entity]],$J$8:$J9,PriorIssTable[[#This Row],[Issuers Exhibit Ind]],$H$8:$H9,PriorIssTable[[#This Row],[Metal]],'Prior Plans'!BP$8:BP9,">0")>1),0,1) -> 1 | BR9: =IF(OR(PriorIssTable[[#This Row],[Issuers Exhibit Ind]]=0,'Prior Plans'!BQ9={0,""},COUNTIFS($C$8:$C9,PriorIssTable[[#This Row],[Legal Entity]],$J$8:$J9,PriorIssTable[[#This Row],[Issuers Exhibit Ind]],$H$8:$H9,PriorIssTable[[#This Row],[Metal]],'Prior Plans'!BQ$8:BQ9,">0")>1),0,1) -> 1 | BS9: =IF(OR(PriorIssTable[[#This Row],[Issuers Exhibit Ind]]=0,'Prior Plans'!BR9={0,""},COUNTIFS($C$8:$C9,PriorIssTable[[#This Row],[Legal Entity]],$J$8:$J9,PriorIssTable[[#This Row],[Issuers Exhibit Ind]],$H$8:$H9,PriorIssTable[[#This Row],[Metal]],'Prior Plans'!BR$8:BR9,">0")>1),0,1) -> 0 | BT9: =IF(OR(PriorIssTable[[#This Row],[Issuers Exhibit Ind]]=0,'Prior Plans'!BS9={0,""},COUNTIFS($C$8:$C9,PriorIssTable[[#This Row],[Legal Entity]],$J$8:$J9,PriorIssTable[[#This Row],[Issuers Exhibit Ind]],$H$8:$H9,PriorIssTable[[#This Row],[Metal]],'Prior Plans'!BS$8:BS9,">0")>1),0,1) -> 0 | BU9: =IF(OR(PriorIssTable[[#This Row],[Issuers Exhibit Ind]]=0,'Prior Plans'!BT9={0,""},COUNTIFS($C$8:$C9,PriorIssTable[[#This Row],[Legal Entity]],$J$8:$J9,PriorIssTable[[#This Row],[Issuers Exhibit Ind]],$H$8:$H9,PriorIssTable[[#This Row],[Metal]],'Prior Plans'!BT$8:BT9,">0")>1),0,1) -> 0 | BV9: =IF(OR(PriorIssTable[[#This Row],[Issuers Exhibit Ind]]=0,'Prior Plans'!BU9={0,""},COUNTIFS($C$8:$C9,PriorIssTable[[#This Row],[Legal Entity]],$J$8:$J9,PriorIssTable[[#This Row],[Issuers Exhibit Ind]],$H$8:$H9,PriorIssTable[[#This Row],[Metal]],'Prior Plans'!BU$8:BU9,">0")>1),0,1) -> 0 | BW9: =IF(OR(PriorIssTable[[#This Row],[Issuers Exhibit Ind]]=0,'Prior Plans'!BV9={0,""},COUNTIFS($C$8:$C9,PriorIssTable[[#This Row],[Legal Entity]],$J$8:$J9,PriorIssTable[[#This Row],[Issuers Exhibit Ind]],$H$8:$H9,PriorIssTable[[#This Row],[Metal]],'Prior Plans'!BV$8:BV9,">0")>1),0,1) -> 0 | BX9: =IF(OR(PriorIssTable[[#This Row],[Issuers Exhibit Ind]]=0,'Prior Plans'!BW9={0,""},COUNTIFS($C$8:$C9,PriorIssTable[[#This Row],[Legal Entity]],$J$8:$J9,PriorIssTable[[#This Row],[Issuers Exhibit Ind]],$H$8:$H9,PriorIssTable[[#This Row],[Metal]],'Prior Plans'!BW$8:BW9,">0")>1),0,1) -> 0 | BY9: =IF(OR(PriorIssTable[[#This Row],[Issuers Exhibit Ind]]=0,'Prior Plans'!BX9={0,""},COUNTIFS($C$8:$C9,PriorIssTable[[#This Row],[Legal Entity]],$J$8:$J9,PriorIssTable[[#This Row],[Issuers Exhibit Ind]],$H$8:$H9,PriorIssTable[[#This Row],[Metal]],'Prior Plans'!BX$8:BX9,">0")>1),0,1) -> 0 | BZ9: =IF(OR(PriorIssTable[[#This Row],[Issuers Exhibit Ind]]=0,'Prior Plans'!J9=0,'Prior Plans'!J9="",COUNTIFS($C$8:$C9,PriorIssTable[[#This Row],[Legal Entity]],$J$8:$J9,PriorIssTable[[#This Row],[Issuers Exhibit Ind]],'Prior Plans'!J$8:J9,">0")>1),0,1) -> 0 | CA9: =IF(OR(PriorIssTable[[#This Row],[Issuers Exhibit Ind]]=0,'Prior Plans'!K9=0,'Prior Plans'!K9="",COUNTIFS($C$8:$C9,PriorIssTable[[#This Row],[Legal Entity]],$J$8:$J9,PriorIssTable[[#This Row],[Issuers Exhibit Ind]],'Prior Plans'!K$8:K9,">0")>1),0,1) -> 0 | CB9: =IF(OR(PriorIssTable[[#This Row],[Issuers Exhibit Ind]]=0,'Prior Plans'!L9=0,'Prior Plans'!L9="",COUNTIFS($C$8:$C9,PriorIssTable[[#This Row],[Legal Entity]],$J$8:$J9,PriorIssTable[[#This Row],[Issuers Exhibit Ind]],'Prior Plans'!L$8:L9,">0")>1),0,1) -> 0 | CC9: =IF(OR(PriorIssTable[[#This Row],[Issuers Exhibit Ind]]=0,'Prior Plans'!M9=0,'Prior Plans'!M9="",COUNTIFS($C$8:$C9,PriorIssTable[[#This Row],[Legal Entity]],$J$8:$J9,PriorIssTable[[#This Row],[Issuers Exhibit Ind]],'Prior Plans'!M$8:M9,">0")>1),0,1) -> 0 | CD9: =IF(OR(PriorIssTable[[#This Row],[Issuers Exhibit Ind]]=0,'Prior Plans'!N9=0,'Prior Plans'!N9="",COUNTIFS($C$8:$C9,PriorIssTable[[#This Row],[Legal Entity]],$J$8:$J9,PriorIssTable[[#This Row],[Issuers Exhibit Ind]],'Prior Plans'!N$8:N9,">0")>1),0,1) -> 0 | CE9: =IF(OR(PriorIssTable[[#This Row],[Issuers Exhibit Ind]]=0,'Prior Plans'!O9=0,'Prior Plans'!O9="",COUNTIFS($C$8:$C9,PriorIssTable[[#This Row],[Legal Entity]],$J$8:$J9,PriorIssTable[[#This Row],[Issuers Exhibit Ind]],'Prior Plans'!O$8:O9,">0")>1),0,1) -> 0 | CF9: =IF(OR(PriorIssTable[[#This Row],[Issuers Exhibit Ind]]=0,'Prior Plans'!P9=0,'Prior Plans'!P9="",COUNTIFS($C$8:$C9,PriorIssTable[[#This Row],[Legal Entity]],$J$8:$J9,PriorIssTable[[#This Row],[Issuers Exhibit Ind]],'Prior Plans'!P$8:P9,">0")>1),0,1) -> 0 | CG9: =IF(OR(PriorIssTable[[#This Row],[Issuers Exhibit Ind]]=0,'Prior Plans'!Q9=0,'Prior Plans'!Q9="",COUNTIFS($C$8:$C9,PriorIssTable[[#This Row],[Legal Entity]],$J$8:$J9,PriorIssTable[[#This Row],[Issuers Exhibit Ind]],'Prior Plans'!Q$8:Q9,">0")>1),0,1) -> 0 | CH9: =IF(OR(PriorIssTable[[#This Row],[Issuers Exhibit Ind]]=0,'Prior Plans'!R9=0,'Prior Plans'!R9="",COUNTIFS($C$8:$C9,PriorIssTable[[#This Row],[Legal Entity]],$J$8:$J9,PriorIssTable[[#This Row],[Issuers Exhibit Ind]],'Prior Plans'!R$8:R9,">0")>1),0,1) -> 0 | CI9: =IF(OR(PriorIssTable[[#This Row],[Issuers Exhibit Ind]]=0,'Prior Plans'!S9=0,'Prior Plans'!S9="",COUNTIFS($C$8:$C9,PriorIssTable[[#This Row],[Legal Entity]],$J$8:$J9,PriorIssTable[[#This Row],[Issuers Exhibit Ind]],'Prior Plans'!S$8:S9,">0")>1),0,1) -> 0 | CJ9: =IF(OR(PriorIssTable[[#This Row],[Issuers Exhibit Ind]]=0,'Prior Plans'!T9=0,'Prior Plans'!T9="",COUNTIFS($C$8:$C9,PriorIssTable[[#This Row],[Legal Entity]],$J$8:$J9,PriorIssTable[[#This Row],[Issuers Exhibit Ind]],'Prior Plans'!T$8:T9,">0")>1),0,1) -> 0 | CK9: =IF(OR(PriorIssTable[[#This Row],[Issuers Exhibit Ind]]=0,'Prior Plans'!U9=0,'Prior Plans'!U9="",COUNTIFS($C$8:$C9,PriorIssTable[[#This Row],[Legal Entity]],$J$8:$J9,PriorIssTable[[#This Row],[Issuers Exhibit Ind]],'Prior Plans'!U$8:U9,">0")>1),0,1) -> 0 | CL9: =IF(OR(PriorIssTable[[#This Row],[Issuers Exhibit Ind]]=0,'Prior Plans'!V9=0,'Prior Plans'!V9="",COUNTIFS($C$8:$C9,PriorIssTable[[#This Row],[Legal Entity]],$J$8:$J9,PriorIssTable[[#This Row],[Issuers Exhibit Ind]],'Prior Plans'!V$8:V9,">0")>1),0,1) -> 0 | CM9: =IF(OR(PriorIssTable[[#This Row],[Issuers Exhibit Ind]]=0,'Prior Plans'!W9=0,'Prior Plans'!W9="",COUNTIFS($C$8:$C9,PriorIssTable[[#This Row],[Legal Entity]],$J$8:$J9,PriorIssTable[[#This Row],[Issuers Exhibit Ind]],'Prior Plans'!W$8:W9,">0")>1),0,1) -> 0 | CN9: =IF(OR(PriorIssTable[[#This Row],[Issuers Exhibit Ind]]=0,'Prior Plans'!X9=0,'Prior Plans'!X9="",COUNTIFS($C$8:$C9,PriorIssTable[[#This Row],[Legal Entity]],$J$8:$J9,PriorIssTable[[#This Row],[Issuers Exhibit Ind]],'Prior Plans'!X$8:X9,">0")>1),0,1) -> 0 | CO9: =IF(OR(PriorIssTable[[#This Row],[Issuers Exhibit Ind]]=0,'Prior Plans'!Y9=0,'Prior Plans'!Y9="",COUNTIFS($C$8:$C9,PriorIssTable[[#This Row],[Legal Entity]],$J$8:$J9,PriorIssTable[[#This Row],[Issuers Exhibit Ind]],'Prior Plans'!Y$8:Y9,">0")>1),0,1) -> 0 | CP9: =IF(OR(PriorIssTable[[#This Row],[Issuers Exhibit Ind]]=0,'Prior Plans'!Z9=0,'Prior Plans'!Z9="",COUNTIFS($C$8:$C9,PriorIssTable[[#This Row],[Legal Entity]],$J$8:$J9,PriorIssTable[[#This Row],[Issuers Exhibit Ind]],'Prior Plans'!Z$8:Z9,">0")>1),0,1) -> 0 | CQ9: =IF(OR(PriorIssTable[[#This Row],[Issuers Exhibit Ind]]=0,'Prior Plans'!AA9=0,'Prior Plans'!AA9="",COUNTIFS($C$8:$C9,PriorIssTable[[#This Row],[Legal Entity]],$J$8:$J9,PriorIssTable[[#This Row],[Issuers Exhibit Ind]],'Prior Plans'!AA$8:AA9,">0")>1),0,1) -> 0 | CR9: =IF(OR(PriorIssTable[[#This Row],[Issuers Exhibit Ind]]=0,'Prior Plans'!AB9=0,'Prior Plans'!AB9="",COUNTIFS($C$8:$C9,PriorIssTable[[#This Row],[Legal Entity]],$J$8:$J9,PriorIssTable[[#This Row],[Issuers Exhibit Ind]],'Prior Plans'!AB$8:AB9,">0")>1),0,1) -> 0 | CS9: =IF(OR(PriorIssTable[[#This Row],[Issuers Exhibit Ind]]=0,'Prior Plans'!AC9=0,'Prior Plans'!AC9="",COUNTIFS($C$8:$C9,PriorIssTable[[#This Row],[Legal Entity]],$J$8:$J9,PriorIssTable[[#This Row],[Issuers Exhibit Ind]],'Prior Plans'!AC$8:AC9,">0")>1),0,1) -> 0 | CT9: =IF(OR(PriorIssTable[[#This Row],[Issuers Exhibit Ind]]=0,'Prior Plans'!AD9=0,'Prior Plans'!AD9="",COUNTIFS($C$8:$C9,PriorIssTable[[#This Row],[Legal Entity]],$J$8:$J9,PriorIssTable[[#This Row],[Issuers Exhibit Ind]],'Prior Plans'!AD$8:AD9,">0")>1),0,1) -> 0 | CU9: =IF(OR(PriorIssTable[[#This Row],[Issuers Exhibit Ind]]=0,'Prior Plans'!AE9=0,'Prior Plans'!AE9="",COUNTIFS($C$8:$C9,PriorIssTable[[#This Row],[Legal Entity]],$J$8:$J9,PriorIssTable[[#This Row],[Issuers Exhibit Ind]],'Prior Plans'!AE$8:AE9,">0")>1),0,1) -> 0 | CV9: =IF(OR(PriorIssTable[[#This Row],[Issuers Exhibit Ind]]=0,'Prior Plans'!AF9=0,'Prior Plans'!AF9="",COUNTIFS($C$8:$C9,PriorIssTable[[#This Row],[Legal Entity]],$J$8:$J9,PriorIssTable[[#This Row],[Issuers Exhibit Ind]],'Prior Plans'!AF$8:AF9,">0")>1),0,1) -> 0 | CW9: =IF(OR(PriorIssTable[[#This Row],[Issuers Exhibit Ind]]=0,'Prior Plans'!AG9=0,'Prior Plans'!AG9="",COUNTIFS($C$8:$C9,PriorIssTable[[#This Row],[Legal Entity]],$J$8:$J9,PriorIssTable[[#This Row],[Issuers Exhibit Ind]],'Prior Plans'!AG$8:AG9,">0")>1),0,1) -> 0 | CX9: =IF(OR(PriorIssTable[[#This Row],[Issuers Exhibit Ind]]=0,'Prior Plans'!AH9=0,'Prior Plans'!AH9="",COUNTIFS($C$8:$C9,PriorIssTable[[#This Row],[Legal Entity]],$J$8:$J9,PriorIssTable[[#This Row],[Issuers Exhibit Ind]],'Prior Plans'!AH$8:AH9,">0")>1),0,1) -> 0 | CY9: =IF(OR(PriorIssTable[[#This Row],[Issuers Exhibit Ind]]=0,'Prior Plans'!AI9=0,'Prior Plans'!AI9="",COUNTIFS($C$8:$C9,PriorIssTable[[#This Row],[Legal Entity]],$J$8:$J9,PriorIssTable[[#This Row],[Issuers Exhibit Ind]],'Prior Plans'!AI$8:AI9,">0")>1),0,1) -> 0 | CZ9: =IF(OR(PriorIssTable[[#This Row],[Issuers Exhibit Ind]]=0,'Prior Plans'!AJ9=0,'Prior Plans'!AJ9="",COUNTIFS($C$8:$C9,PriorIssTable[[#This Row],[Legal Entity]],$J$8:$J9,PriorIssTable[[#This Row],[Issuers Exhibit Ind]],'Prior Plans'!AJ$8:AJ9,">0")>1),0,1) -> 0 | DA9: =IF(OR(PriorIssTable[[#This Row],[Issuers Exhibit Ind]]=0,'Prior Plans'!AK9=0,'Prior Plans'!AK9="",COUNTIFS($C$8:$C9,PriorIssTable[[#This Row],[Legal Entity]],$J$8:$J9,PriorIssTable[[#This Row],[Issuers Exhibit Ind]],'Prior Plans'!AK$8:AK9,">0")>1),0,1) -> 0 | DB9: =IF(OR(PriorIssTable[[#This Row],[Issuers Exhibit Ind]]=0,'Prior Plans'!AL9=0,'Prior Plans'!AL9="",COUNTIFS($C$8:$C9,PriorIssTable[[#This Row],[Legal Entity]],$J$8:$J9,PriorIssTable[[#This Row],[Issuers Exhibit Ind]],'Prior Plans'!AL$8:AL9,">0")>1),0,1) -> 0 | DC9: =IF(OR(PriorIssTable[[#This Row],[Issuers Exhibit Ind]]=0,'Prior Plans'!AM9=0,'Prior Plans'!AM9="",COUNTIFS($C$8:$C9,PriorIssTable[[#This Row],[Legal Entity]],$J$8:$J9,PriorIssTable[[#This Row],[Issuers Exhibit Ind]],'Prior Plans'!AM$8:AM9,">0")>1),0,1) -> 0 | DD9: =IF(OR(PriorIssTable[[#This Row],[Issuers Exhibit Ind]]=0,'Prior Plans'!AN9=0,'Prior Plans'!AN9="",COUNTIFS($C$8:$C9,PriorIssTable[[#This Row],[Legal Entity]],$J$8:$J9,PriorIssTable[[#This Row],[Issuers Exhibit Ind]],'Prior Plans'!AN$8:AN9,">0")>1),0,1) -> 0 | DE9: =IF(OR(PriorIssTable[[#This Row],[Issuers Exhibit Ind]]=0,'Prior Plans'!AO9=0,'Prior Plans'!AO9="",COUNTIFS($C$8:$C9,PriorIssTable[[#This Row],[Legal Entity]],$J$8:$J9,PriorIssTable[[#This Row],[Issuers Exhibit Ind]],'Prior Plans'!AO$8:AO9,">0")>1),0,1) -> 0 | DF9: =IF(OR(PriorIssTable[[#This Row],[Issuers Exhibit Ind]]=0,'Prior Plans'!AP9=0,'Prior Plans'!AP9="",COUNTIFS($C$8:$C9,PriorIssTable[[#This Row],[Legal Entity]],$J$8:$J9,PriorIssTable[[#This Row],[Issuers Exhibit Ind]],'Prior Plans'!AP$8:AP9,">0")>1),0,1) -> 0 | DG9: =IF(OR(PriorIssTable[[#This Row],[Issuers Exhibit Ind]]=0,'Prior Plans'!AQ9=0,'Prior Plans'!AQ9="",COUNTIFS($C$8:$C9,PriorIssTable[[#This Row],[Legal Entity]],$J$8:$J9,PriorIssTable[[#This Row],[Issuers Exhibit Ind]],'Prior Plans'!AQ$8:AQ9,">0")>1),0,1) -> 0 | DH9: =IF(OR(PriorIssTable[[#This Row],[Issuers Exhibit Ind]]=0,'Prior Plans'!AR9=0,'Prior Plans'!AR9="",COUNTIFS($C$8:$C9,PriorIssTable[[#This Row],[Legal Entity]],$J$8:$J9,PriorIssTable[[#This Row],[Issuers Exhibit Ind]],'Prior Plans'!AR$8:AR9,">0")>1),0,1) -> 0 | DI9: =IF(OR(PriorIssTable[[#This Row],[Issuers Exhibit Ind]]=0,'Prior Plans'!AS9=0,'Prior Plans'!AS9="",COUNTIFS($C$8:$C9,PriorIssTable[[#This Row],[Legal Entity]],$J$8:$J9,PriorIssTable[[#This Row],[Issuers Exhibit Ind]],'Prior Plans'!AS$8:AS9,">0")>1),0,1) -> 0 | DJ9: =IF(OR(PriorIssTable[[#This Row],[Issuers Exhibit Ind]]=0,'Prior Plans'!AT9=0,'Prior Plans'!AT9="",COUNTIFS($C$8:$C9,PriorIssTable[[#This Row],[Legal Entity]],$J$8:$J9,PriorIssTable[[#This Row],[Issuers Exhibit Ind]],'Prior Plans'!AT$8:AT9,">0")>1),0,1) -> 0 | DK9: =IF(OR(PriorIssTable[[#This Row],[Issuers Exhibit Ind]]=0,'Prior Plans'!AU9=0,'Prior Plans'!AU9="",COUNTIFS($C$8:$C9,PriorIssTable[[#This Row],[Legal Entity]],$J$8:$J9,PriorIssTable[[#This Row],[Issuers Exhibit Ind]],'Prior Plans'!AU$8:AU9,">0")>1),0,1) -> 0 | DL9: =IF(OR(PriorIssTable[[#This Row],[Issuers Exhibit Ind]]=0,'Prior Plans'!AV9=0,'Prior Plans'!AV9="",COUNTIFS($C$8:$C9,PriorIssTable[[#This Row],[Legal Entity]],$J$8:$J9,PriorIssTable[[#This Row],[Issuers Exhibit Ind]],'Prior Plans'!AV$8:AV9,">0")>1),0,1) -> 0 | DM9: =IF(OR(PriorIssTable[[#This Row],[Issuers Exhibit Ind]]=0,'Prior Plans'!AW9=0,'Prior Plans'!AW9="",COUNTIFS($C$8:$C9,PriorIssTable[[#This Row],[Legal Entity]],$J$8:$J9,PriorIssTable[[#This Row],[Issuers Exhibit Ind]],'Prior Plans'!AW$8:AW9,">0")>1),0,1) -> 0 | DN9: =IF(OR(PriorIssTable[[#This Row],[Issuers Exhibit Ind]]=0,'Prior Plans'!AX9=0,'Prior Plans'!AX9="",COUNTIFS($C$8:$C9,PriorIssTable[[#This Row],[Legal Entity]],$J$8:$J9,PriorIssTable[[#This Row],[Issuers Exhibit Ind]],'Prior Plans'!AX$8:AX9,">0")>1),0,1) -> 0 | DO9: =IF(OR(PriorIssTable[[#This Row],[Issuers Exhibit Ind]]=0,'Prior Plans'!AY9=0,'Prior Plans'!AY9="",COUNTIFS($C$8:$C9,PriorIssTable[[#This Row],[Legal Entity]],$J$8:$J9,PriorIssTable[[#This Row],[Issuers Exhibit Ind]],'Prior Plans'!AY$8:AY9,">0")>1),0,1) -> 0 | DP9: =IF(OR(PriorIssTable[[#This Row],[Issuers Exhibit Ind]]=0,'Prior Plans'!AZ9=0,'Prior Plans'!AZ9="",COUNTIFS($C$8:$C9,PriorIssTable[[#This Row],[Legal Entity]],$J$8:$J9,PriorIssTable[[#This Row],[Issuers Exhibit Ind]],'Prior Plans'!AZ$8:AZ9,">0")>1),0,1) -> 0 | DQ9: =IF(OR(PriorIssTable[[#This Row],[Issuers Exhibit Ind]]=0,'Prior Plans'!BA9=0,'Prior Plans'!BA9="",COUNTIFS($C$8:$C9,PriorIssTable[[#This Row],[Legal Entity]],$J$8:$J9,PriorIssTable[[#This Row],[Issuers Exhibit Ind]],'Prior Plans'!BA$8:BA9,">0")>1),0,1) -> 0 | DR9: =IF(OR(PriorIssTable[[#This Row],[Issuers Exhibit Ind]]=0,'Prior Plans'!BB9=0,'Prior Plans'!BB9="",COUNTIFS($C$8:$C9,PriorIssTable[[#This Row],[Legal Entity]],$J$8:$J9,PriorIssTable[[#This Row],[Issuers Exhibit Ind]],'Prior Plans'!BB$8:BB9,">0")>1),0,1) -> 0 | DS9: =IF(OR(PriorIssTable[[#This Row],[Issuers Exhibit Ind]]=0,'Prior Plans'!BC9=0,'Prior Plans'!BC9="",COUNTIFS($C$8:$C9,PriorIssTable[[#This Row],[Legal Entity]],$J$8:$J9,PriorIssTable[[#This Row],[Issuers Exhibit Ind]],'Prior Plans'!BC$8:BC9,">0")>1),0,1) -> 0 | DT9: =IF(OR(PriorIssTable[[#This Row],[Issuers Exhibit Ind]]=0,'Prior Plans'!BD9=0,'Prior Plans'!BD9="",COUNTIFS($C$8:$C9,PriorIssTable[[#This Row],[Legal Entity]],$J$8:$J9,PriorIssTable[[#This Row],[Issuers Exhibit Ind]],'Prior Plans'!BD$8:BD9,">0")>1),0,1) -> 0 | DU9: =IF(OR(PriorIssTable[[#This Row],[Issuers Exhibit Ind]]=0,'Prior Plans'!BE9=0,'Prior Plans'!BE9="",COUNTIFS($C$8:$C9,PriorIssTable[[#This Row],[Legal Entity]],$J$8:$J9,PriorIssTable[[#This Row],[Issuers Exhibit Ind]],'Prior Plans'!BE$8:BE9,">0")>1),0,1) -> 0 | DV9: =IF(OR(PriorIssTable[[#This Row],[Issuers Exhibit Ind]]=0,'Prior Plans'!BF9=0,'Prior Plans'!BF9="",COUNTIFS($C$8:$C9,PriorIssTable[[#This Row],[Legal Entity]],$J$8:$J9,PriorIssTable[[#This Row],[Issuers Exhibit Ind]],'Prior Plans'!BF$8:BF9,">0")>1),0,1) -> 0 | DW9: =IF(OR(PriorIssTable[[#This Row],[Issuers Exhibit Ind]]=0,'Prior Plans'!BG9=0,'Prior Plans'!BG9="",COUNTIFS($C$8:$C9,PriorIssTable[[#This Row],[Legal Entity]],$J$8:$J9,PriorIssTable[[#This Row],[Issuers Exhibit Ind]],'Prior Plans'!BG$8:BG9,">0")>1),0,1) -> 0 | DX9: =IF(OR(PriorIssTable[[#This Row],[Issuers Exhibit Ind]]=0,'Prior Plans'!BH9=0,'Prior Plans'!BH9="",COUNTIFS($C$8:$C9,PriorIssTable[[#This Row],[Legal Entity]],$J$8:$J9,PriorIssTable[[#This Row],[Issuers Exhibit Ind]],'Prior Plans'!BH$8:BH9,">0")>1),0,1) -> 0 | DY9: =IF(OR(PriorIssTable[[#This Row],[Issuers Exhibit Ind]]=0,'Prior Plans'!BI9=0,'Prior Plans'!BI9="",COUNTIFS($C$8:$C9,PriorIssTable[[#This Row],[Legal Entity]],$J$8:$J9,PriorIssTable[[#This Row],[Issuers Exhibit Ind]],'Prior Plans'!BI$8:BI9,">0")>1),0,1) -> 0 | DZ9: =IF(OR(PriorIssTable[[#This Row],[Issuers Exhibit Ind]]=0,'Prior Plans'!BJ9=0,'Prior Plans'!BJ9="",COUNTIFS($C$8:$C9,PriorIssTable[[#This Row],[Legal Entity]],$J$8:$J9,PriorIssTable[[#This Row],[Issuers Exhibit Ind]],'Prior Plans'!BJ$8:BJ9,">0")>1),0,1) -> 0 | EA9: =IF(OR(PriorIssTable[[#This Row],[Issuers Exhibit Ind]]=0,'Prior Plans'!BK9=0,'Prior Plans'!BK9="",COUNTIFS($C$8:$C9,PriorIssTable[[#This Row],[Legal Entity]],$J$8:$J9,PriorIssTable[[#This Row],[Issuers Exhibit Ind]],'Prior Plans'!BK$8:BK9,">0")>1),0,1) -> 0 | EB9: =IF(OR(PriorIssTable[[#This Row],[Issuers Exhibit Ind]]=0,'Prior Plans'!BL9=0,'Prior Plans'!BL9="",COUNTIFS($C$8:$C9,PriorIssTable[[#This Row],[Legal Entity]],$J$8:$J9,PriorIssTable[[#This Row],[Issuers Exhibit Ind]],'Prior Plans'!BL$8:BL9,">0")>1),0,1) -> 0 | EC9: =IF(OR(PriorIssTable[[#This Row],[Issuers Exhibit Ind]]=0,'Prior Plans'!BM9=0,'Prior Plans'!BM9="",COUNTIFS($C$8:$C9,PriorIssTable[[#This Row],[Legal Entity]],$J$8:$J9,PriorIssTable[[#This Row],[Issuers Exhibit Ind]],'Prior Plans'!BM$8:BM9,">0")>1),0,1) -> 0 | ED9: =IF(OR(PriorIssTable[[#This Row],[Issuers Exhibit Ind]]=0,'Prior Plans'!BN9=0,'Prior Plans'!BN9="",COUNTIFS($C$8:$C9,PriorIssTable[[#This Row],[Legal Entity]],$J$8:$J9,PriorIssTable[[#This Row],[Issuers Exhibit Ind]],'Prior Plans'!BN$8:BN9,">0")>1),0,1) -> 0 | EE9: =IF(OR(PriorIssTable[[#This Row],[Issuers Exhibit Ind]]=0,'Prior Plans'!BO9=0,'Prior Plans'!BO9="",COUNTIFS($C$8:$C9,PriorIssTable[[#This Row],[Legal Entity]],$J$8:$J9,PriorIssTable[[#This Row],[Issuers Exhibit Ind]],'Prior Plans'!BO$8:BO9,">0")>1),0,1) -> 0 | EF9: =IF(OR(PriorIssTable[[#This Row],[Issuers Exhibit Ind]]=0,'Prior Plans'!BP9=0,'Prior Plans'!BP9="",COUNTIFS($C$8:$C9,PriorIssTable[[#This Row],[Legal Entity]],$J$8:$J9,PriorIssTable[[#This Row],[Issuers Exhibit Ind]],'Prior Plans'!BP$8:BP9,">0")>1),0,1) -> 0 | EG9: =IF(OR(PriorIssTable[[#This Row],[Issuers Exhibit Ind]]=0,'Prior Plans'!BQ9=0,'Prior Plans'!BQ9="",COUNTIFS($C$8:$C9,PriorIssTable[[#This Row],[Legal Entity]],$J$8:$J9,PriorIssTable[[#This Row],[Issuers Exhibit Ind]],'Prior Plans'!BQ$8:BQ9,">0")>1),0,1) -> 0 | EH9: =IF(OR(PriorIssTable[[#This Row],[Issuers Exhibit Ind]]=0,'Prior Plans'!BR9=0,'Prior Plans'!BR9="",COUNTIFS($C$8:$C9,PriorIssTable[[#This Row],[Legal Entity]],$J$8:$J9,PriorIssTable[[#This Row],[Issuers Exhibit Ind]],'Prior Plans'!BR$8:BR9,">0")>1),0,1) -> 0 | EI9: =IF(OR(PriorIssTable[[#This Row],[Issuers Exhibit Ind]]=0,'Prior Plans'!BS9=0,'Prior Plans'!BS9="",COUNTIFS($C$8:$C9,PriorIssTable[[#This Row],[Legal Entity]],$J$8:$J9,PriorIssTable[[#This Row],[Issuers Exhibit Ind]],'Prior Plans'!BS$8:BS9,">0")>1),0,1) -> 0 | EJ9: =IF(OR(PriorIssTable[[#This Row],[Issuers Exhibit Ind]]=0,'Prior Plans'!BT9=0,'Prior Plans'!BT9="",COUNTIFS($C$8:$C9,PriorIssTable[[#This Row],[Legal Entity]],$J$8:$J9,PriorIssTable[[#This Row],[Issuers Exhibit Ind]],'Prior Plans'!BT$8:BT9,">0")>1),0,1) -> 0 | EK9: =IF(OR(PriorIssTable[[#This Row],[Issuers Exhibit Ind]]=0,'Prior Plans'!BU9=0,'Prior Plans'!BU9="",COUNTIFS($C$8:$C9,PriorIssTable[[#This Row],[Legal Entity]],$J$8:$J9,PriorIssTable[[#This Row],[Issuers Exhibit Ind]],'Prior Plans'!BU$8:BU9,">0")>1),0,1) -> 0 | EL9: =IF(OR(PriorIssTable[[#This Row],[Issuers Exhibit Ind]]=0,'Prior Plans'!BV9=0,'Prior Plans'!BV9="",COUNTIFS($C$8:$C9,PriorIssTable[[#This Row],[Legal Entity]],$J$8:$J9,PriorIssTable[[#This Row],[Issuers Exhibit Ind]],'Prior Plans'!BV$8:BV9,">0")>1),0,1) -> 0 | EM9: =IF(OR(PriorIssTable[[#This Row],[Issuers Exhibit Ind]]=0,'Prior Plans'!BW9=0,'Prior Plans'!BW9="",COUNTIFS($C$8:$C9,PriorIssTable[[#This Row],[Legal Entity]],$J$8:$J9,PriorIssTable[[#This Row],[Issuers Exhibit Ind]],'Prior Plans'!BW$8:BW9,">0")>1),0,1) -> 0 | EN9: =IF(OR(PriorIssTable[[#This Row],[Issuers Exhibit Ind]]=0,'Prior Plans'!BX9=0,'Prior Plans'!BX9="",COUNTIFS($C$8:$C9,PriorIssTable[[#This Row],[Legal Entity]],$J$8:$J9,PriorIssTable[[#This Row],[Issuers Exhibit Ind]],'Prior Plans'!BX$8:BX9,">0")>1),0,1) -> 0
